Workbook

Sheet Theoretical Depreciation
A1: Timing | D1: Sheet | E1: =sheet_name(E2) -> Theoretical Depreciation
D2: Period | E2: Test | F2: Growth | G2: 0 | H2: =G2+1 -> 1 | I2: =H2+1 -> 2 | J2: 3 | K2: 4 | L2: 5 | M2: 6 | N2: 7 | O2: 8 | P2: 9 | Q2: 10 | R2: 11 | S2: 12 | T2: 13 | U2: 14 | V2: 15 | W2: 16 | X2: 17 | Y2: 18 | Z2: 19 | AA2: 20 | AB2: 21 | AC2: 22 | AD2: 23 | AE2: 24 | AF2: 25 | AG2: 26 | AH2: 27 | AI2: 28 | AJ2: 29 | AK2: 30 | AL2: 31 | AM2: 32 | AN2: 33 | AO2: 34 | AP2: 35 | AQ2: 36 | AR2: 37 | AS2: 38 | AT2: 39 | AU2: 40 | AV2: 41 | AW2: 42 | AX2: 43 | AY2: 44 | AZ2: 45 | BA2: 46 | BB2: 47 | BC2: 48 | BD2: 49 | BE2: 50 | BF2: 51 | BG2: 52 | BH2: 53 | BI2: 54 | BJ2: 55 | BK2: 56 | BL2: 57 | BM2: 58 | BN2: 59 | BO2: 60 | BP2: 61 | BQ2: 62 | BR2: 63 | BS2: 64 | BT2: 65 | BU2: =BT2+1 -> 66 | BV2: 67 | BW2: 68 | BX2: 69 | BY2: 70 | BZ2: 71 | CA2: 72 | CB2: 73 | CC2: 74 | CD2: 75 | CE2: 76 | CF2: 77 | CG2: 78 | CH2: 79 | CI2: 80 | CJ2: 81 | CK2: 82 | CL2: 83 | CM2: 84 | CN2: 85 | CO2: 86 | CP2: 87 | CQ2: 88 | CR2: 89 | CS2: 90 | CT2: 91 | CU2: 92 | CV2: 93 | CW2: 94 | CX2: 95 | CY2: 96 | CZ2: 97 | DA2: 98 | DB2: 99 | DC2: 100 | DD2: 101 | DE2: 102 | DF2: 103 | DG2: 104 | DH2: 105 | DI2: 106 | DJ2: 107 | DK2: 108 | DL2: 109 | DM2: 110 | DN2: 111 | DO2: 112 | DP2: 113 | DQ2: 114 | DR2: 115 | DS2: 116 | DT2: 117 | DU2: 118 | DV2: 119 | DW2: 120 | DX2: 121 | DY2: 122 | DZ2: 123 | EA2: 124 | EB2: 125 | EC2: 126 | ED2: 127 | EE2: 128 | EF2: 129 | EG2: =EF2+1 -> 130 | EH2: 131 | EI2: 132 | EJ2: 133 | EK2: 134 | EL2: 135 | EM2: 136 | EN2: 137 | EO2: 138 | EP2: 139 | EQ2: 140 | ER2: 141 | ES2: 142 | ET2: 143 | EU2: 144 | EV2: 145 | EW2: 146 | EX2: 147 | EY2: 148 | EZ2: 149 | FA2: 150 | FB2: 151 | FC2: 152 | FD2: 153 | FE2: 154 | FF2: 155 | FG2: 156 | FH2: 157 | FI2: 158 | FJ2: 159 | FK2: 160 | FL2: 161 | FM2: 162 | FN2: 163 | FO2: 164 | FP2: 165 | FQ2: 166 | FR2: 167 | FS2: 168 | FT2: 169 | FU2: 170 | FV2: 171 | FW2: 172 | FX2: 173 | FY2: 174 | FZ2: 175 | GA2: 176 | GB2: 177 | GC2: 178 | GD2: 179 | GE2: 180 | GF2: 181 | GG2: 182 | GH2: 183 | GI2: 184 | GJ2: 185 | GK2: 186 | GL2: 187 | GM2: 188 | GN2: 189 | GO2: 190 | GP2: 191 | GQ2: 192 | GR2: 193 | GS2: =GR2+1 -> 194 | GT2: 195 | GU2: 196 | GV2: 197 | GW2: 198 | GX2: 199 | GY2: 200 | GZ2: 201 | HA2: 202 | HB2: 203 | HC2: 204 | HD2: 205 | HE2: 206 | HF2: 207 | HG2: 208 | HH2: 209 | HI2: 210 | HJ2: 211 | HK2: 212 | HL2: 213 | HM2: 214 | HN2: 215 | HO2: 216 | HP2: 217 | HQ2: 218 | HR2: 219 | HS2: 220 | HT2: 221 | HU2: 222 | HV2: 223 | HW2: 224 | HX2: 225 | HY2: 226 | HZ2: 227 | IA2: 228 | IB2: 229 | IC2: 230 | ID2: 231 | IE2: 232 | IF2: 233 | IG2: 234 | IH2: 235 | II2: 236 | IJ2: 237 | IK2: 238 | IL2: 239 | IM2: 240 | IN2: 241 | IO2: 242 | IP2: 243 | IQ2: 244 | IR2: 245 | IS2: 246 | IT2: 247 | IU2: 248 | IV2: 249 | IW2: 250 | IX2: 251 | IY2: 252 | IZ2: 253 | JA2: 254 | JB2: 255 | JC2: 256 | JD2: 257 | JE2: =JD2+1 -> 258 | JF2: 259 | JG2: 260 | JH2: 261 | JI2: 262 | JJ2: 263 | JK2: 264 | JL2: 265 | JM2: 266 | JN2: 267 | JO2: 268 | JP2: 269 | JQ2: 270 | JR2: 271 | JS2: 272 | JT2: 273 | JU2: 274 | JV2: 275 | JW2: 276 | JX2: 277 | JY2: 278 | JZ2: 279 | KA2: 280 | KB2: 281 | KC2: 282 | KD2: 283 | KE2: 284 | KF2: 285 | KG2: 286 | KH2: 287 | KI2: 288 | KJ2: 289 | KK2: 290 | KL2: 291 | KM2: 292 | KN2: 293 | KO2: 294 | KP2: 295 | KQ2: 296 | KR2: 297 | KS2: 298 | KT2: 299 | KU2: 300
D3: Historic Period | E3: =COUNTIF(H3:KU3,TRUE) -> 16 | F3: =F12 -> 0.15 | H3: =H2<=$E$12 -> TRUE | I3: TRUE | J3: TRUE | K3: TRUE | L3: TRUE | M3: TRUE | N3: TRUE | O3: TRUE | P3: TRUE | Q3: TRUE | R3: TRUE | S3: TRUE | T3: TRUE | U3: TRUE | V3: TRUE | W3: TRUE | X3: FALSE | Y3: FALSE | Z3: FALSE | AA3: FALSE | AB3: FALSE | AC3: FALSE | AD3: FALSE | AE3: FALSE | AF3: FALSE | AG3: FALSE | AH3: FALSE | AI3: FALSE | AJ3: FALSE | AK3: FALSE | AL3: FALSE | AM3: FALSE | AN3: FALSE | AO3: FALSE | AP3: FALSE | AQ3: FALSE | AR3: FALSE | AS3: FALSE | AT3: FALSE | AU3: FALSE | AV3: FALSE | AW3: FALSE | AX3: FALSE | AY3: FALSE | AZ3: FALSE | BA3: FALSE | BB3: FALSE | BC3: FALSE | BD3: FALSE | BE3: FALSE | BF3: FALSE | BG3: FALSE | BH3: FALSE | BI3: FALSE | BJ3: FALSE | BK3: FALSE | BL3: FALSE | BM3: FALSE | BN3: FALSE | BO3: FALSE | BP3: FALSE | BQ3: FALSE | BR3: FALSE | BS3: FALSE | BT3: =BT2<=$E$12 -> FALSE | BU3: FALSE | BV3: FALSE | BW3: FALSE | BX3: FALSE | BY3: FALSE | BZ3: FALSE | CA3: FALSE | CB3: FALSE | CC3: FALSE | CD3: FALSE | CE3: FALSE | CF3: FALSE | CG3: FALSE | CH3: FALSE | CI3: FALSE | CJ3: FALSE | CK3: FALSE | CL3: FALSE | CM3: FALSE | CN3: FALSE | CO3: FALSE | CP3: FALSE | CQ3: FALSE | CR3: FALSE | CS3: FALSE | CT3: FALSE | CU3: FALSE | CV3: FALSE | CW3: FALSE | CX3: FALSE | CY3: FALSE | CZ3: FALSE | DA3: FALSE | DB3: FALSE | DC3: FALSE | DD3: FALSE | DE3: FALSE | DF3: FALSE | DG3: FALSE | DH3: FALSE | DI3: FALSE | DJ3: FALSE | DK3: FALSE | DL3: FALSE | DM3: FALSE | DN3: FALSE | DO3: FALSE | DP3: FALSE | DQ3: FALSE | DR3: FALSE | DS3: FALSE | DT3: FALSE | DU3: FALSE | DV3: FALSE | DW3: FALSE | DX3: FALSE | DY3: FALSE | DZ3: FALSE | EA3: FALSE | EB3: FALSE | EC3: FALSE | ED3: FALSE | EE3: FALSE | EF3: =EF2<=$E$12 -> FALSE | EG3: FALSE | EH3: FALSE | EI3: FALSE | EJ3: FALSE | EK3: FALSE | EL3: FALSE | EM3: FALSE | EN3: FALSE | EO3: FALSE | EP3: FALSE | EQ3: FALSE | ER3: FALSE | ES3: FALSE | ET3: FALSE | EU3: FALSE | EV3: FALSE | EW3: FALSE | EX3: FALSE | EY3: FALSE | EZ3: FALSE | FA3: FALSE | FB3: FALSE | FC3: FALSE | FD3: FALSE | FE3: FALSE | FF3: FALSE | FG3: FALSE | FH3: FALSE | FI3: FALSE | FJ3: FALSE | FK3: FALSE | FL3: FALSE | FM3: FALSE | FN3: FALSE | FO3: FALSE | FP3: FALSE | FQ3: FALSE | FR3: FALSE | FS3: FALSE | FT3: FALSE | FU3: FALSE | FV3: FALSE | FW3: FALSE | FX3: FALSE | FY3: FALSE | FZ3: FALSE | GA3: FALSE | GB3: FALSE | GC3: FALSE | GD3: FALSE | GE3: FALSE | GF3: FALSE | GG3: FALSE | GH3: FALSE | GI3: FALSE | GJ3: FALSE | GK3: FALSE | GL3: FALSE | GM3: FALSE | GN3: FALSE | GO3: FALSE | GP3: FALSE | GQ3: FALSE | GR3: =GR2<=$E$12 -> FALSE | GS3: FALSE | GT3: FALSE | GU3: FALSE | GV3: FALSE | GW3: FALSE | GX3: FALSE | GY3: FALSE | GZ3: FALSE | HA3: FALSE | HB3: FALSE | HC3: FALSE | HD3: FALSE | HE3: FALSE | HF3: FALSE | HG3: FALSE | HH3: FALSE | HI3: FALSE | HJ3: FALSE | HK3: FALSE | HL3: FALSE | HM3: FALSE | HN3: FALSE | HO3: FALSE | HP3: FALSE | HQ3: FALSE | HR3: FALSE | HS3: FALSE | HT3: FALSE | HU3: FALSE | HV3: FALSE | HW3: FALSE | HX3: FALSE | HY3: FALSE | HZ3: FALSE | IA3: FALSE | IB3: FALSE | IC3: FALSE | ID3: FALSE | IE3: FALSE | IF3: FALSE | IG3: FALSE | IH3: FALSE | II3: FALSE | IJ3: FALSE | IK3: FALSE | IL3: FALSE | IM3: FALSE | IN3: FALSE | IO3: FALSE | IP3: FALSE | IQ3: FALSE | IR3: FALSE | IS3: FALSE | IT3: FALSE | IU3: FALSE | IV3: FALSE | IW3: FALSE | IX3: FALSE | IY3: FALSE | IZ3: FALSE | JA3: FALSE | JB3: FALSE | JC3: FALSE | JD3: =JD2<=$E$12 -> FALSE | JE3: FALSE | JF3: FALSE | JG3: FALSE | JH3: FALSE | JI3: FALSE | JJ3: FALSE | JK3: FALSE | JL3: FALSE | JM3: FALSE | JN3: FALSE | JO3: FALSE | JP3: FALSE | JQ3: FALSE | JR3: FALSE | JS3: FALSE | JT3: FALSE | JU3: FALSE | JV3: FALSE | JW3: FALSE | JX3: FALSE | JY3: FALSE | JZ3: FALSE | KA3: FALSE | KB3: FALSE | KC3: FALSE | KD3: FALSE | KE3: FALSE | KF3: FALSE | KG3: FALSE | KH3: FALSE | KI3: FALSE | KJ3: FALSE | KK3: FALSE | KL3: FALSE | KM3: FALSE | KN3: FALSE | KO3: FALSE | KP3: FALSE | KQ3: FALSE | KR3: FALSE | KS3: FALSE | KT3: FALSE | KU3: FALSE
D4: Modelled Period | E4: =COUNTIF(H4:KU4,TRUE) -> 17 | F4: =F13 -> 0.15 | H4: =AND(H2>$E$12,H2<=$E$12+$E$13) -> FALSE | I4: FALSE | J4: FALSE | K4: FALSE | L4: FALSE | M4: FALSE | N4: FALSE | O4: FALSE | P4: FALSE | Q4: FALSE | R4: FALSE | S4: FALSE | T4: FALSE | U4: FALSE | V4: FALSE | W4: FALSE | X4: TRUE | Y4: TRUE | Z4: TRUE | AA4: TRUE | AB4: TRUE | AC4: TRUE | AD4: TRUE | AE4: TRUE | AF4: TRUE | AG4: TRUE | AH4: TRUE | AI4: TRUE | AJ4: TRUE | AK4: TRUE | AL4: TRUE | AM4: TRUE | AN4: TRUE | AO4: FALSE | AP4: FALSE | AQ4: FALSE | AR4: FALSE | AS4: FALSE | AT4: FALSE | AU4: FALSE | AV4: FALSE | AW4: FALSE | AX4: FALSE | AY4: FALSE | AZ4: FALSE | BA4: FALSE | BB4: FALSE | BC4: FALSE | BD4: FALSE | BE4: FALSE | BF4: FALSE | BG4: FALSE | BH4: FALSE | BI4: FALSE | BJ4: FALSE | BK4: FALSE | BL4: FALSE | BM4: FALSE | BN4: FALSE | BO4: FALSE | BP4: FALSE | BQ4: FALSE | BR4: FALSE | BS4: FALSE | BT4: =AND(BT2>$E$12,BT2<=$E$12+$E$13) -> FALSE | BU4: FALSE | BV4: FALSE | BW4: FALSE | BX4: FALSE | BY4: FALSE | BZ4: FALSE | CA4: FALSE | CB4: FALSE | CC4: FALSE | CD4: FALSE | CE4: FALSE | CF4: FALSE | CG4: FALSE | CH4: FALSE | CI4: FALSE | CJ4: FALSE | CK4: FALSE | CL4: FALSE | CM4: FALSE | CN4: FALSE | CO4: FALSE | CP4: FALSE | CQ4: FALSE | CR4: FALSE | CS4: FALSE | CT4: FALSE | CU4: FALSE | CV4: FALSE | CW4: FALSE | CX4: FALSE | CY4: FALSE | CZ4: FALSE | DA4: FALSE | DB4: FALSE | DC4: FALSE | DD4: FALSE | DE4: FALSE | DF4: FALSE | DG4: FALSE | DH4: FALSE | DI4: FALSE | DJ4: FALSE | DK4: FALSE | DL4: FALSE | DM4: FALSE | DN4: FALSE | DO4: FALSE | DP4: FALSE | DQ4: FALSE | DR4: FALSE | DS4: FALSE | DT4: FALSE | DU4: FALSE | DV4: FALSE | DW4: FALSE | DX4: FALSE | DY4: FALSE | DZ4: FALSE | EA4: FALSE | EB4: FALSE | EC4: FALSE | ED4: FALSE | EE4: FALSE | EF4: =AND(EF2>$E$12,EF2<=$E$12+$E$13) -> FALSE | EG4: FALSE | EH4: FALSE | EI4: FALSE | EJ4: FALSE | EK4: FALSE | EL4: FALSE | EM4: FALSE | EN4: FALSE | EO4: FALSE | EP4: FALSE | EQ4: FALSE | ER4: FALSE | ES4: FALSE | ET4: FALSE | EU4: FALSE | EV4: FALSE | EW4: FALSE | EX4: FALSE | EY4: FALSE | EZ4: FALSE | FA4: FALSE | FB4: FALSE | FC4: FALSE | FD4: FALSE | FE4: FALSE | FF4: FALSE | FG4: FALSE | FH4: FALSE | FI4: FALSE | FJ4: FALSE | FK4: FALSE | FL4: FALSE | FM4: FALSE | FN4: FALSE | FO4: FALSE | FP4: FALSE | FQ4: FALSE | FR4: FALSE | FS4: FALSE | FT4: FALSE | FU4: FALSE | FV4: FALSE | FW4: FALSE | FX4: FALSE | FY4: FALSE | FZ4: FALSE | GA4: FALSE | GB4: FALSE | GC4: FALSE | GD4: FALSE | GE4: FALSE | GF4: FALSE | GG4: FALSE | GH4: FALSE | GI4: FALSE | GJ4: FALSE | GK4: FALSE | GL4: FALSE | GM4: FALSE | GN4: FALSE | GO4: FALSE | GP4: FALSE | GQ4: FALSE | GR4: =AND(GR2>$E$12,GR2<=$E$12+$E$13) -> FALSE | GS4: FALSE | GT4: FALSE | GU4: FALSE | GV4: FALSE | GW4: FALSE | GX4: FALSE | GY4: FALSE | GZ4: FALSE | HA4: FALSE | HB4: FALSE | HC4: FALSE | HD4: FALSE | HE4: FALSE | HF4: FALSE | HG4: FALSE | HH4: FALSE | HI4: FALSE | HJ4: FALSE | HK4: FALSE | HL4: FALSE | HM4: FALSE | HN4: FALSE | HO4: FALSE | HP4: FALSE | HQ4: FALSE | HR4: FALSE | HS4: FALSE | HT4: FALSE | HU4: FALSE | HV4: FALSE | HW4: FALSE | HX4: FALSE | HY4: FALSE | HZ4: FALSE | IA4: FALSE | IB4: FALSE | IC4: FALSE | ID4: FALSE | IE4: FALSE | IF4: FALSE | IG4: FALSE | IH4: FALSE | II4: FALSE | IJ4: FALSE | IK4: FALSE | IL4: FALSE | IM4: FALSE | IN4: FALSE | IO4: FALSE | IP4: FALSE | IQ4: FALSE | IR4: FALSE | IS4: FALSE | IT4: FALSE | IU4: FALSE | IV4: FALSE | IW4: FALSE | IX4: FALSE | IY4: FALSE | IZ4: FALSE | JA4: FALSE | JB4: FALSE | JC4: FALSE | JD4: =AND(JD2>$E$12,JD2<=$E$12+$E$13) -> FALSE | JE4: FALSE | JF4: FALSE | JG4: FALSE | JH4: FALSE | JI4: FALSE | JJ4: FALSE | JK4: FALSE | JL4: FALSE | JM4: FALSE | JN4: FALSE | JO4: FALSE | JP4: FALSE | JQ4: FALSE | JR4: FALSE | JS4: FALSE | JT4: FALSE | JU4: FALSE | JV4: FALSE | JW4: FALSE | JX4: FALSE | JY4: FALSE | JZ4: FALSE | KA4: FALSE | KB4: FALSE | KC4: FALSE | KD4: FALSE | KE4: FALSE | KF4: FALSE | KG4: FALSE | KH4: FALSE | KI4: FALSE | KJ4: FALSE | KK4: FALSE | KL4: FALSE | KM4: FALSE | KN4: FALSE | KO4: FALSE | KP4: FALSE | KQ4: FALSE | KR4: FALSE | KS4: FALSE | KT4: FALSE | KU4: FALSE
D5: Long-term Period | E5: =COUNTIF(H5:KU5,TRUE) -> 267 | F5: =F14 -> 0.05 | H5: =H2>$E$12+$E$13 -> FALSE | I5: FALSE | J5: FALSE | K5: FALSE | L5: FALSE | M5: FALSE | N5: FALSE | O5: FALSE | P5: FALSE | Q5: FALSE | R5: FALSE | S5: FALSE | T5: FALSE | U5: FALSE | V5: FALSE | W5: FALSE | X5: FALSE | Y5: FALSE | Z5: FALSE | AA5: FALSE | AB5: FALSE | AC5: FALSE | AD5: FALSE | AE5: FALSE | AF5: FALSE | AG5: FALSE | AH5: FALSE | AI5: FALSE | AJ5: FALSE | AK5: FALSE | AL5: FALSE | AM5: FALSE | AN5: FALSE | AO5: TRUE | AP5: TRUE | AQ5: TRUE | AR5: TRUE | AS5: TRUE | AT5: TRUE | AU5: TRUE | AV5: TRUE | AW5: TRUE | AX5: TRUE | AY5: TRUE | AZ5: TRUE | BA5: TRUE | BB5: TRUE | BC5: TRUE | BD5: TRUE | BE5: TRUE | BF5: TRUE | BG5: TRUE | BH5: TRUE | BI5: TRUE | BJ5: TRUE | BK5: TRUE | BL5: TRUE | BM5: TRUE | BN5: TRUE | BO5: TRUE | BP5: TRUE | BQ5: TRUE | BR5: TRUE | BS5: TRUE | BT5: =BT2>$E$12+$E$13 -> TRUE | BU5: TRUE | BV5: TRUE | BW5: TRUE | BX5: TRUE | BY5: TRUE | BZ5: TRUE | CA5: TRUE | CB5: TRUE | CC5: TRUE | CD5: TRUE | CE5: TRUE | CF5: TRUE | CG5: TRUE | CH5: TRUE | CI5: TRUE | CJ5: TRUE | CK5: TRUE | CL5: TRUE | CM5: TRUE | CN5: TRUE | CO5: TRUE | CP5: TRUE | CQ5: TRUE | CR5: TRUE | CS5: TRUE | CT5: TRUE | CU5: TRUE | CV5: TRUE | CW5: TRUE | CX5: TRUE | CY5: TRUE | CZ5: TRUE | DA5: TRUE | DB5: TRUE | DC5: TRUE | DD5: TRUE | DE5: TRUE | DF5: TRUE | DG5: TRUE | DH5: TRUE | DI5: TRUE | DJ5: TRUE | DK5: TRUE | DL5: TRUE | DM5: TRUE | DN5: TRUE | DO5: TRUE | DP5: TRUE | DQ5: TRUE | DR5: TRUE | DS5: TRUE | DT5: TRUE | DU5: TRUE | DV5: TRUE | DW5: TRUE | DX5: TRUE | DY5: TRUE | DZ5: TRUE | EA5: TRUE | EB5: TRUE | EC5: TRUE | ED5: TRUE | EE5: TRUE | EF5: =EF2>$E$12+$E$13 -> TRUE | EG5: TRUE | EH5: TRUE | EI5: TRUE | EJ5: TRUE | EK5: TRUE | EL5: TRUE | EM5: TRUE | EN5: TRUE | EO5: TRUE | EP5: TRUE | EQ5: TRUE | ER5: TRUE | ES5: TRUE | ET5: TRUE | EU5: TRUE | EV5: TRUE | EW5: TRUE | EX5: TRUE | EY5: TRUE | EZ5: TRUE | FA5: TRUE | FB5: TRUE | FC5: TRUE | FD5: TRUE | FE5: TRUE | FF5: TRUE | FG5: TRUE | FH5: TRUE | FI5: TRUE | FJ5: TRUE | FK5: TRUE | FL5: TRUE | FM5: TRUE | FN5: TRUE | FO5: TRUE | FP5: TRUE | FQ5: TRUE | FR5: TRUE | FS5: TRUE | FT5: TRUE | FU5: TRUE | FV5: TRUE | FW5: TRUE | FX5: TRUE | FY5: TRUE | FZ5: TRUE | GA5: TRUE | GB5: TRUE | GC5: TRUE | GD5: TRUE | GE5: TRUE | GF5: TRUE | GG5: TRUE | GH5: TRUE | GI5: TRUE | GJ5: TRUE | GK5: TRUE | GL5: TRUE | GM5: TRUE | GN5: TRUE | GO5: TRUE | GP5: TRUE | GQ5: TRUE | GR5: =GR2>$E$12+$E$13 -> TRUE | GS5: TRUE | GT5: TRUE | GU5: TRUE | GV5: TRUE | GW5: TRUE | GX5: TRUE | GY5: TRUE | GZ5: TRUE | HA5: TRUE | HB5: TRUE | HC5: TRUE | HD5: TRUE | HE5: TRUE | HF5: TRUE | HG5: TRUE | HH5: TRUE | HI5: TRUE | HJ5: TRUE | HK5: TRUE | HL5: TRUE | HM5: TRUE | HN5: TRUE | HO5: TRUE | HP5: TRUE | HQ5: TRUE | HR5: TRUE | HS5: TRUE | HT5: TRUE | HU5: TRUE | HV5: TRUE | HW5: TRUE | HX5: TRUE | HY5: TRUE | HZ5: TRUE | IA5: TRUE | IB5: TRUE | IC5: TRUE | ID5: TRUE | IE5: TRUE | IF5: TRUE | IG5: TRUE | IH5: TRUE | II5: TRUE | IJ5: TRUE | IK5: TRUE | IL5: TRUE | IM5: TRUE | IN5: TRUE | IO5: TRUE | IP5: TRUE | IQ5: TRUE | IR5: TRUE | IS5: TRUE | IT5: TRUE | IU5: TRUE | IV5: TRUE | IW5: TRUE | IX5: TRUE | IY5: TRUE | IZ5: TRUE | JA5: TRUE | JB5: TRUE | JC5: TRUE | JD5: =JD2>$E$12+$E$13 -> TRUE | JE5: TRUE | JF5: TRUE | JG5: TRUE | JH5: TRUE | JI5: TRUE | JJ5: TRUE | JK5: TRUE | JL5: TRUE | JM5: TRUE | JN5: TRUE | JO5: TRUE | JP5: TRUE | JQ5: TRUE | JR5: TRUE | JS5: TRUE | JT5: TRUE | JU5: TRUE | JV5: TRUE | JW5: TRUE | JX5: TRUE | JY5: TRUE | JZ5: TRUE | KA5: TRUE | KB5: TRUE | KC5: TRUE | KD5: TRUE | KE5: TRUE | KF5: TRUE | KG5: TRUE | KH5: TRUE | KI5: TRUE | KJ5: TRUE | KK5: TRUE | KL5: TRUE | KM5: TRUE | KN5: TRUE | KO5: TRUE | KP5: TRUE | KQ5: TRUE | KR5: TRUE | KS5: TRUE | KT5: TRUE | KU5: TRUE
D6: Test | E6: =AND(H6:KU6) -> TRUE | H6: =SUMPRODUCT(H3:H5*1)=1 -> TRUE | I6: =SUMPRODUCT(I3:I5*1)=1 -> TRUE | J6: TRUE | K6: TRUE | L6: TRUE | M6: TRUE | N6: TRUE | O6: TRUE | P6: TRUE | Q6: TRUE | R6: TRUE | S6: TRUE | T6: TRUE | U6: TRUE | V6: TRUE | W6: TRUE | X6: TRUE | Y6: TRUE | Z6: TRUE | AA6: TRUE | AB6: TRUE | AC6: TRUE | AD6: TRUE | AE6: TRUE | AF6: TRUE | AG6: TRUE | AH6: TRUE | AI6: TRUE | AJ6: TRUE | AK6: TRUE | AL6: TRUE | AM6: TRUE | AN6: TRUE | AO6: TRUE | AP6: TRUE | AQ6: TRUE | AR6: TRUE | AS6: TRUE | AT6: TRUE | AU6: TRUE | AV6: TRUE | AW6: TRUE | AX6: TRUE | AY6: TRUE | AZ6: TRUE | BA6: TRUE | BB6: TRUE | BC6: TRUE | BD6: TRUE | BE6: TRUE | BF6: TRUE | BG6: TRUE | BH6: TRUE | BI6: TRUE | BJ6: TRUE | BK6: TRUE | BL6: TRUE | BM6: TRUE | BN6: TRUE | BO6: TRUE | BP6: TRUE | BQ6: TRUE | BR6: TRUE | BS6: TRUE | BT6: TRUE | BU6: =SUMPRODUCT(BU3:BU5*1)=1 -> TRUE | BV6: TRUE | BW6: TRUE | BX6: TRUE | BY6: TRUE | BZ6: TRUE | CA6: TRUE | CB6: TRUE | CC6: TRUE | CD6: TRUE | CE6: TRUE | CF6: TRUE | CG6: TRUE | CH6: TRUE | CI6: TRUE | CJ6: TRUE | CK6: TRUE | CL6: TRUE | CM6: TRUE | CN6: TRUE | CO6: TRUE | CP6: TRUE | CQ6: TRUE | CR6: TRUE | CS6: TRUE | CT6: TRUE | CU6: TRUE | CV6: TRUE | CW6: TRUE | CX6: TRUE | CY6: TRUE | CZ6: TRUE | DA6: TRUE | DB6: TRUE | DC6: TRUE | DD6: TRUE | DE6: TRUE | DF6: TRUE | DG6: TRUE | DH6: TRUE | DI6: TRUE | DJ6: TRUE | DK6: TRUE | DL6: TRUE | DM6: TRUE | DN6: TRUE | DO6: TRUE | DP6: TRUE | DQ6: TRUE | DR6: TRUE | DS6: TRUE | DT6: TRUE | DU6: TRUE | DV6: TRUE | DW6: TRUE | DX6: TRUE | DY6: TRUE | DZ6: TRUE | EA6: TRUE | EB6: TRUE | EC6: TRUE | ED6: TRUE | EE6: TRUE | EF6: TRUE | EG6: =SUMPRODUCT(EG3:EG5*1)=1 -> TRUE | EH6: TRUE | EI6: TRUE | EJ6: TRUE | EK6: TRUE | EL6: TRUE | EM6: TRUE | EN6: TRUE | EO6: TRUE | EP6: TRUE | EQ6: TRUE | ER6: TRUE | ES6: TRUE | ET6: TRUE | EU6: TRUE | EV6: TRUE | EW6: TRUE | EX6: TRUE | EY6: TRUE | EZ6: TRUE | FA6: TRUE | FB6: TRUE | FC6: TRUE | FD6: TRUE | FE6: TRUE | FF6: TRUE | FG6: TRUE | FH6: TRUE | FI6: TRUE | FJ6: TRUE | FK6: TRUE | FL6: TRUE | FM6: TRUE | FN6: TRUE | FO6: TRUE | FP6: TRUE | FQ6: TRUE | FR6: TRUE | FS6: TRUE | FT6: TRUE | FU6: TRUE | FV6: TRUE | FW6: TRUE | FX6: TRUE | FY6: TRUE | FZ6: TRUE | GA6: TRUE | GB6: TRUE | GC6: TRUE | GD6: TRUE | GE6: TRUE | GF6: TRUE | GG6: TRUE | GH6: TRUE | GI6: TRUE | GJ6: TRUE | GK6: TRUE | GL6: TRUE | GM6: TRUE | GN6: TRUE | GO6: TRUE | GP6: TRUE | GQ6: TRUE | GR6: TRUE | GS6: =SUMPRODUCT(GS3:GS5*1)=1 -> TRUE | GT6: TRUE | GU6: TRUE | GV6: TRUE | GW6: TRUE | GX6: TRUE | GY6: TRUE | GZ6: TRUE | HA6: TRUE | HB6: TRUE | HC6: TRUE | HD6: TRUE | HE6: TRUE | HF6: TRUE | HG6: TRUE | HH6: TRUE | HI6: TRUE | HJ6: TRUE | HK6: TRUE | HL6: TRUE | HM6: TRUE | HN6: TRUE | HO6: TRUE | HP6: TRUE | HQ6: TRUE | HR6: TRUE | HS6: TRUE | HT6: TRUE | HU6: TRUE | HV6: TRUE | HW6: TRUE | HX6: TRUE | HY6: TRUE | HZ6: TRUE | IA6: TRUE | IB6: TRUE | IC6: TRUE | ID6: TRUE | IE6: TRUE | IF6: TRUE | IG6: TRUE | IH6: TRUE | II6: TRUE | IJ6: TRUE | IK6: TRUE | IL6: TRUE | IM6: TRUE | IN6: TRUE | IO6: TRUE | IP6: TRUE | IQ6: TRUE | IR6: TRUE | IS6: TRUE | IT6: TRUE | IU6: TRUE | IV6: TRUE | IW6: TRUE | IX6: TRUE | IY6: TRUE | IZ6: TRUE | JA6: TRUE | JB6: TRUE | JC6: TRUE | JD6: TRUE | JE6: =SUMPRODUCT(JE3:JE5*1)=1 -> TRUE | JF6: TRUE | JG6: TRUE | JH6: TRUE | JI6: TRUE | JJ6: TRUE | JK6: TRUE | JL6: TRUE | JM6: TRUE | JN6: TRUE | JO6: TRUE | JP6: TRUE | JQ6: TRUE | JR6: TRUE | JS6: TRUE | JT6: TRUE | JU6: TRUE | JV6: TRUE | JW6: TRUE | JX6: TRUE | JY6: TRUE | JZ6: TRUE | KA6: TRUE | KB6: TRUE | KC6: TRUE | KD6: TRUE | KE6: TRUE | KF6: TRUE | KG6: TRUE | KH6: TRUE | KI6: TRUE | KJ6: TRUE | KK6: TRUE | KL6: TRUE | KM6: TRUE | KN6: TRUE | KO6: TRUE | KP6: TRUE | KQ6: TRUE | KR6: TRUE | KS6: TRUE | KT6: TRUE | KU6: TRUE
D7: Last Historic Period | H7: =H2=$E$3 -> FALSE | I7: =I2=$E$3 -> FALSE | J7: FALSE | K7: FALSE | L7: FALSE | M7: FALSE | N7: FALSE | O7: FALSE | P7: FALSE | Q7: FALSE | R7: FALSE | S7: FALSE | T7: FALSE | U7: FALSE | V7: FALSE | W7: TRUE | X7: FALSE | Y7: FALSE | Z7: FALSE | AA7: FALSE | AB7: FALSE | AC7: FALSE | AD7: FALSE | AE7: FALSE | AF7: FALSE | AG7: FALSE | AH7: FALSE | AI7: FALSE | AJ7: FALSE | AK7: FALSE | AL7: FALSE | AM7: FALSE | AN7: FALSE | AO7: FALSE | AP7: FALSE | AQ7: FALSE | AR7: FALSE | AS7: FALSE | AT7: FALSE | AU7: FALSE | AV7: FALSE | AW7: FALSE | AX7: FALSE | AY7: FALSE | AZ7: FALSE | BA7: FALSE | BB7: FALSE | BC7: FALSE | BD7: FALSE | BE7: FALSE | BF7: FALSE | BG7: FALSE | BH7: FALSE | BI7: FALSE | BJ7: FALSE | BK7: FALSE | BL7: FALSE | BM7: FALSE | BN7: FALSE | BO7: FALSE | BP7: FALSE | BQ7: FALSE | BR7: FALSE | BS7: FALSE | BT7: FALSE | BU7: =BU2=$E$3 -> FALSE | BV7: FALSE | BW7: FALSE | BX7: FALSE | BY7: FALSE | BZ7: FALSE | CA7: FALSE | CB7: FALSE | CC7: FALSE | CD7: FALSE | CE7: FALSE | CF7: FALSE | CG7: FALSE | CH7: FALSE | CI7: FALSE | CJ7: FALSE | CK7: FALSE | CL7: FALSE | CM7: FALSE | CN7: FALSE | CO7: FALSE | CP7: FALSE | CQ7: FALSE | CR7: FALSE | CS7: FALSE | CT7: FALSE | CU7: FALSE | CV7: FALSE | CW7: FALSE | CX7: FALSE | CY7: FALSE | CZ7: FALSE | DA7: FALSE | DB7: FALSE | DC7: FALSE | DD7: FALSE | DE7: FALSE | DF7: FALSE | DG7: FALSE | DH7: FALSE | DI7: FALSE | DJ7: FALSE | DK7: FALSE | DL7: FALSE | DM7: FALSE | DN7: FALSE | DO7: FALSE | DP7: FALSE | DQ7: FALSE | DR7: FALSE | DS7: FALSE | DT7: FALSE | DU7: FALSE | DV7: FALSE | DW7: FALSE | DX7: FALSE | DY7: FALSE | DZ7: FALSE | EA7: FALSE | EB7: FALSE | EC7: FALSE | ED7: FALSE | EE7: FALSE | EF7: FALSE | EG7: =EG2=$E$3 -> FALSE | EH7: FALSE | EI7: FALSE | EJ7: FALSE | EK7: FALSE | EL7: FALSE | EM7: FALSE | EN7: FALSE | EO7: FALSE | EP7: FALSE | EQ7: FALSE | ER7: FALSE | ES7: FALSE | ET7: FALSE | EU7: FALSE | EV7: FALSE | EW7: FALSE | EX7: FALSE | EY7: FALSE | EZ7: FALSE | FA7: FALSE | FB7: FALSE | FC7: FALSE | FD7: FALSE | FE7: FALSE | FF7: FALSE | FG7: FALSE | FH7: FALSE | FI7: FALSE | FJ7: FALSE | FK7: FALSE | FL7: FALSE | FM7: FALSE | FN7: FALSE | FO7: FALSE | FP7: FALSE | FQ7: FALSE | FR7: FALSE | FS7: FALSE | FT7: FALSE | FU7: FALSE | FV7: FALSE | FW7: FALSE | FX7: FALSE | FY7: FALSE | FZ7: FALSE | GA7: FALSE | GB7: FALSE | GC7: FALSE | GD7: FALSE | GE7: FALSE | GF7: FALSE | GG7: FALSE | GH7: FALSE | GI7: FALSE | GJ7: FALSE | GK7: FALSE | GL7: FALSE | GM7: FALSE | GN7: FALSE | GO7: FALSE | GP7: FALSE | GQ7: FALSE | GR7: FALSE | GS7: =GS2=$E$3 -> FALSE | GT7: FALSE | GU7: FALSE | GV7: FALSE | GW7: FALSE | GX7: FALSE | GY7: FALSE | GZ7: FALSE | HA7: FALSE | HB7: FALSE | HC7: FALSE | HD7: FALSE | HE7: FALSE | HF7: FALSE | HG7: FALSE | HH7: FALSE | HI7: FALSE | HJ7: FALSE | HK7: FALSE | HL7: FALSE | HM7: FALSE | HN7: FALSE | HO7: FALSE | HP7: FALSE | HQ7: FALSE | HR7: FALSE | HS7: FALSE | HT7: FALSE | HU7: FALSE | HV7: FALSE | HW7: FALSE | HX7: FALSE | HY7: FALSE | HZ7: FALSE | IA7: FALSE | IB7: FALSE | IC7: FALSE | ID7: FALSE | IE7: FALSE | IF7: FALSE | IG7: FALSE | IH7: FALSE | II7: FALSE | IJ7: FALSE | IK7: FALSE | IL7: FALSE | IM7: FALSE | IN7: FALSE | IO7: FALSE | IP7: FALSE | IQ7: FALSE | IR7: FALSE | IS7: FALSE | IT7: FALSE | IU7: FALSE | IV7: FALSE | IW7: FALSE | IX7: FALSE | IY7: FALSE | IZ7: FALSE | JA7: FALSE | JB7: FALSE | JC7: FALSE | JD7: FALSE | JE7: =JE2=$E$3 -> FALSE | JF7: FALSE | JG7: FALSE | JH7: FALSE | JI7: FALSE | JJ7: FALSE | JK7: FALSE | JL7: FALSE | JM7: FALSE | JN7: FALSE | JO7: FALSE | JP7: FALSE | JQ7: FALSE | JR7: FALSE | JS7: FALSE | JT7: FALSE | JU7: FALSE | JV7: FALSE | JW7: FALSE | JX7: FALSE | JY7: FALSE | JZ7: FALSE | KA7: FALSE | KB7: FALSE | KC7: FALSE | KD7: FALSE | KE7: FALSE | KF7: FALSE | KG7: FALSE | KH7: FALSE | KI7: FALSE | KJ7: FALSE | KK7: FALSE | KL7: FALSE | KM7: FALSE | KN7: FALSE | KO7: FALSE | KP7: FALSE | KQ7: FALSE | KR7: FALSE | KS7: FALSE | KT7: FALSE | KU7: FALSE
D8: First Modelled Period | H8: =H2=$E$3+1 -> FALSE | I8: =I2=$E$3+1 -> FALSE | J8: FALSE | K8: FALSE | L8: FALSE | M8: FALSE | N8: FALSE | O8: FALSE | P8: FALSE | Q8: FALSE | R8: FALSE | S8: FALSE | T8: FALSE | U8: FALSE | V8: FALSE | W8: FALSE | X8: TRUE | Y8: FALSE | Z8: FALSE | AA8: FALSE | AB8: FALSE | AC8: FALSE | AD8: FALSE | AE8: FALSE | AF8: FALSE | AG8: FALSE | AH8: FALSE | AI8: FALSE | AJ8: FALSE | AK8: FALSE | AL8: FALSE | AM8: FALSE | AN8: FALSE | AO8: FALSE | AP8: FALSE | AQ8: FALSE | AR8: FALSE | AS8: FALSE | AT8: FALSE | AU8: FALSE | AV8: FALSE | AW8: FALSE | AX8: FALSE | AY8: FALSE | AZ8: FALSE | BA8: FALSE | BB8: FALSE | BC8: FALSE | BD8: FALSE | BE8: FALSE | BF8: FALSE | BG8: FALSE | BH8: FALSE | BI8: FALSE | BJ8: FALSE | BK8: FALSE | BL8: FALSE | BM8: FALSE | BN8: FALSE | BO8: FALSE | BP8: FALSE | BQ8: FALSE | BR8: FALSE | BS8: FALSE | BT8: FALSE | BU8: =BU2=$E$3+1 -> FALSE | BV8: FALSE | BW8: FALSE | BX8: FALSE | BY8: FALSE | BZ8: FALSE | CA8: FALSE | CB8: FALSE | CC8: FALSE | CD8: FALSE | CE8: FALSE | CF8: FALSE | CG8: FALSE | CH8: FALSE | CI8: FALSE | CJ8: FALSE | CK8: FALSE | CL8: FALSE | CM8: FALSE | CN8: FALSE | CO8: FALSE | CP8: FALSE | CQ8: FALSE | CR8: FALSE | CS8: FALSE | CT8: FALSE | CU8: FALSE | CV8: FALSE | CW8: FALSE | CX8: FALSE | CY8: FALSE | CZ8: FALSE | DA8: FALSE | DB8: FALSE | DC8: FALSE | DD8: FALSE | DE8: FALSE | DF8: FALSE | DG8: FALSE | DH8: FALSE | DI8: FALSE | DJ8: FALSE | DK8: FALSE | DL8: FALSE | DM8: FALSE | DN8: FALSE | DO8: FALSE | DP8: FALSE | DQ8: FALSE | DR8: FALSE | DS8: FALSE | DT8: FALSE | DU8: FALSE | DV8: FALSE | DW8: FALSE | DX8: FALSE | DY8: FALSE | DZ8: FALSE | EA8: FALSE | EB8: FALSE | EC8: FALSE | ED8: FALSE | EE8: FALSE | EF8: FALSE | EG8: =EG2=$E$3+1 -> FALSE | EH8: FALSE | EI8: FALSE | EJ8: FALSE | EK8: FALSE | EL8: FALSE | EM8: FALSE | EN8: FALSE | EO8: FALSE | EP8: FALSE | EQ8: FALSE | ER8: FALSE | ES8: FALSE | ET8: FALSE | EU8: FALSE | EV8: FALSE | EW8: FALSE | EX8: FALSE | EY8: FALSE | EZ8: FALSE | FA8: FALSE | FB8: FALSE | FC8: FALSE | FD8: FALSE | FE8: FALSE | FF8: FALSE | FG8: FALSE | FH8: FALSE | FI8: FALSE | FJ8: FALSE | FK8: FALSE | FL8: FALSE | FM8: FALSE | FN8: FALSE | FO8: FALSE | FP8: FALSE | FQ8: FALSE | FR8: FALSE | FS8: FALSE | FT8: FALSE | FU8: FALSE | FV8: FALSE | FW8: FALSE | FX8: FALSE | FY8: FALSE | FZ8: FALSE | GA8: FALSE | GB8: FALSE | GC8: FALSE | GD8: FALSE | GE8: FALSE | GF8: FALSE | GG8: FALSE | GH8: FALSE | GI8: FALSE | GJ8: FALSE | GK8: FALSE | GL8: FALSE | GM8: FALSE | GN8: FALSE | GO8: FALSE | GP8: FALSE | GQ8: FALSE | GR8: FALSE | GS8: =GS2=$E$3+1 -> FALSE | GT8: FALSE | GU8: FALSE | GV8: FALSE | GW8: FALSE | GX8: FALSE | GY8: FALSE | GZ8: FALSE | HA8: FALSE | HB8: FALSE | HC8: FALSE | HD8: FALSE | HE8: FALSE | HF8: FALSE | HG8: FALSE | HH8: FALSE | HI8: FALSE | HJ8: FALSE | HK8: FALSE | HL8: FALSE | HM8: FALSE | HN8: FALSE | HO8: FALSE | HP8: FALSE | HQ8: FALSE | HR8: FALSE | HS8: FALSE | HT8: FALSE | HU8: FALSE | HV8: FALSE | HW8: FALSE | HX8: FALSE | HY8: FALSE | HZ8: FALSE | IA8: FALSE | IB8: FALSE | IC8: FALSE | ID8: FALSE | IE8: FALSE | IF8: FALSE | IG8: FALSE | IH8: FALSE | II8: FALSE | IJ8: FALSE | IK8: FALSE | IL8: FALSE | IM8: FALSE | IN8: FALSE | IO8: FALSE | IP8: FALSE | IQ8: FALSE | IR8: FALSE | IS8: FALSE | IT8: FALSE | IU8: FALSE | IV8: FALSE | IW8: FALSE | IX8: FALSE | IY8: FALSE | IZ8: FALSE | JA8: FALSE | JB8: FALSE | JC8: FALSE | JD8: FALSE | JE8: =JE2=$E$3+1 -> FALSE | JF8: FALSE | JG8: FALSE | JH8: FALSE | JI8: FALSE | JJ8: FALSE | JK8: FALSE | JL8: FALSE | JM8: FALSE | JN8: FALSE | JO8: FALSE | JP8: FALSE | JQ8: FALSE | JR8: FALSE | JS8: FALSE | JT8: FALSE | JU8: FALSE | JV8: FALSE | JW8: FALSE | JX8: FALSE | JY8: FALSE | JZ8: FALSE | KA8: FALSE | KB8: FALSE | KC8: FALSE | KD8: FALSE | KE8: FALSE | KF8: FALSE | KG8: FALSE | KH8: FALSE | KI8: FALSE | KJ8: FALSE | KK8: FALSE | KL8: FALSE | KM8: FALSE | KN8: FALSE | KO8: FALSE | KP8: FALSE | KQ8: FALSE | KR8: FALSE | KS8: FALSE | KT8: FALSE | KU8: FALSE
L10: Historic | M10: Modelled | N10: Long-term
C11: Periods | E11: Period | F11: Growth | K11: Accumulated Depreciation to Net Plant | L11: =INDEX(68:68,MATCH($E$12,$2:$2)) -> 0.3495340634 | M11: =INDEX(68:68,MATCH($E$12+$E$13,$2:$2)) -> 0.3828207077 | N11: =INDEX(68:68,MATCH(300,$2:$2)) -> 0.4126332132
D12: Historic Period | E12: 16 | F12: =G12/100 -> 0.15 | G12: 15 | K12: Net Plant Depreciation Rate | L12: 0.2562267243 | M12: 0.2562257671 | N12: 0.2745671825
D13: Modelled Period | E13: 17 | F13: =G13/100 -> 0.15 | G13: 15 | K13: Capital Expenditures to Depreciation | L13: 1.585421439 | M13: 0.9854214394 | N13: 0.8821048555
D14: Long-term Period | F14: =G14/100 -> 0.05 | G14: 5 | K14: Retirements as Percent of Depreciation | L14: 0.6854214394 | M14: 0.6854214394 | N14: 0.8821048555
K15: Retirements as Percent of Gross Plant | L15: 0.09933644049 | M15: 0.1087970539 | N15: 0.1470174759
C16: Initial Gross Plant | E16: 100 | K16: Retirements as Percent of Net Plant | L16: 0.1527158225 | M16: 0.1762811151 | N16: 0.2502992665
C17: Plant Life | E17: 6 | K17: Gross Plant Depreciation Rate | L17: =1/$E$17 -> 0.1666666667 | M17: =1/$E$17 -> 0.1666666667 | N17: =1/$E$17 -> 0.1666666667
C18: Accumulated Depreciation | E18: =Fixed*E16 -> 34.95535319
C19: Random Factor | E19: 0
C20: Compound Growth | E20: =(INDEX(25:25,MATCH(E12,2:2))/H25)^(1/(E12-1))-1 -> 0.15
C21: Return | E21: 0.12
A23: Analysis
D24: Growth Rate | H24: =IF(H3,SUMPRODUCT(H3:H5*$F$3:$F$5)+(RAND()-0.5)*$E$19,SUMPRODUCT(H3:H5*$F$3:$F$5)) -> 0.15 | I24: =IF(I3,SUMPRODUCT(I3:I5*$F$3:$F$5)+(RAND()-0.5)*$E$19,SUMPRODUCT(I3:I5*$F$3:$F$5)) -> 0.15 | J24: 0.15 | K24: 0.15 | L24: 0.15 | M24: 0.15 | N24: 0.15 | O24: 0.15 | P24: 0.15 | Q24: 0.15 | R24: 0.15 | S24: 0.15 | T24: 0.15 | U24: 0.15 | V24: 0.15 | W24: 0.15 | X24: 0.15 | Y24: 0.15 | Z24: 0.15 | AA24: 0.15 | AB24: 0.15 | AC24: 0.15 | AD24: 0.15 | AE24: 0.15 | AF24: 0.15 | AG24: 0.15 | AH24: 0.15 | AI24: 0.15 | AJ24: 0.15 | AK24: 0.15 | AL24: 0.15 | AM24: 0.15 | AN24: 0.15 | AO24: 0.05 | AP24: 0.05 | AQ24: 0.05 | AR24: 0.05 | AS24: 0.05 | AT24: 0.05 | AU24: 0.05 | AV24: 0.05 | AW24: 0.05 | AX24: 0.05 | AY24: 0.05 | AZ24: 0.05 | BA24: 0.05 | BB24: 0.05 | BC24: 0.05 | BD24: 0.05 | BE24: 0.05 | BF24: 0.05 | BG24: 0.05 | BH24: 0.05 | BI24: 0.05 | BJ24: 0.05 | BK24: 0.05 | BL24: 0.05 | BM24: 0.05 | BN24: 0.05 | BO24: 0.05 | BP24: 0.05 | BQ24: 0.05 | BR24: 0.05 | BS24: 0.05 | BT24: 0.05 | BU24: =IF(BU3,SUMPRODUCT(BU3:BU5*$F$3:$F$5)+(RAND()-0.5)*$E$19,SUMPRODUCT(BU3:BU5*$F$3:$F$5)) -> 0.05 | BV24: 0.05 | BW24: 0.05 | BX24: 0.05 | BY24: 0.05 | BZ24: 0.05 | CA24: 0.05 | CB24: 0.05 | CC24: 0.05 | CD24: 0.05 | CE24: 0.05 | CF24: 0.05 | CG24: 0.05 | CH24: 0.05 | CI24: 0.05 | CJ24: 0.05 | CK24: 0.05 | CL24: 0.05 | CM24: 0.05 | CN24: 0.05 | CO24: 0.05 | CP24: 0.05 | CQ24: 0.05 | CR24: 0.05 | CS24: 0.05 | CT24: 0.05 | CU24: 0.05 | CV24: 0.05 | CW24: 0.05 | CX24: 0.05 | CY24: 0.05 | CZ24: 0.05 | DA24: 0.05 | DB24: 0.05 | DC24: 0.05 | DD24: 0.05 | DE24: 0.05 | DF24: 0.05 | DG24: 0.05 | DH24: 0.05 | DI24: 0.05 | DJ24: 0.05 | DK24: 0.05 | DL24: 0.05 | DM24: 0.05 | DN24: 0.05 | DO24: 0.05 | DP24: 0.05 | DQ24: 0.05 | DR24: 0.05 | DS24: 0.05 | DT24: 0.05 | DU24: 0.05 | DV24: 0.05 | DW24: 0.05 | DX24: 0.05 | DY24: 0.05 | DZ24: 0.05 | EA24: 0.05 | EB24: 0.05 | EC24: 0.05 | ED24: 0.05 | EE24: 0.05 | EF24: 0.05 | EG24: =IF(EG3,SUMPRODUCT(EG3:EG5*$F$3:$F$5)+(RAND()-0.5)*$E$19,SUMPRODUCT(EG3:EG5*$F$3:$F$5)) -> 0.05 | EH24: 0.05 | EI24: 0.05 | EJ24: 0.05 | EK24: 0.05 | EL24: 0.05 | EM24: 0.05 | EN24: 0.05 | EO24: 0.05 | EP24: 0.05 | EQ24: 0.05 | ER24: 0.05 | ES24: 0.05 | ET24: 0.05 | EU24: 0.05 | EV24: 0.05 | EW24: 0.05 | EX24: 0.05 | EY24: 0.05 | EZ24: 0.05 | FA24: 0.05 | FB24: 0.05 | FC24: 0.05 | FD24: 0.05 | FE24: 0.05 | FF24: 0.05 | FG24: 0.05 | FH24: 0.05 | FI24: 0.05 | FJ24: 0.05 | FK24: 0.05 | FL24: 0.05 | FM24: 0.05 | FN24: 0.05 | FO24: 0.05 | FP24: 0.05 | FQ24: 0.05 | FR24: 0.05 | FS24: 0.05 | FT24: 0.05 | FU24: 0.05 | FV24: 0.05 | FW24: 0.05 | FX24: 0.05 | FY24: 0.05 | FZ24: 0.05 | GA24: 0.05 | GB24: 0.05 | GC24: 0.05 | GD24: 0.05 | GE24: 0.05 | GF24: 0.05 | GG24: 0.05 | GH24: 0.05 | GI24: 0.05 | GJ24: 0.05 | GK24: 0.05 | GL24: 0.05 | GM24: 0.05 | GN24: 0.05 | GO24: 0.05 | GP24: 0.05 | GQ24: 0.05 | GR24: 0.05 | GS24: =IF(GS3,SUMPRODUCT(GS3:GS5*$F$3:$F$5)+(RAND()-0.5)*$E$19,SUMPRODUCT(GS3:GS5*$F$3:$F$5)) -> 0.05 | GT24: 0.05 | GU24: 0.05 | GV24: 0.05 | GW24: 0.05 | GX24: 0.05 | GY24: 0.05 | GZ24: 0.05 | HA24: 0.05 | HB24: 0.05 | HC24: 0.05 | HD24: 0.05 | HE24: 0.05 | HF24: 0.05 | HG24: 0.05 | HH24: 0.05 | HI24: 0.05 | HJ24: 0.05 | HK24: 0.05 | HL24: 0.05 | HM24: 0.05 | HN24: 0.05 | HO24: 0.05 | HP24: 0.05 | HQ24: 0.05 | HR24: 0.05 | HS24: 0.05 | HT24: 0.05 | HU24: 0.05 | HV24: 0.05 | HW24: 0.05 | HX24: 0.05 | HY24: 0.05 | HZ24: 0.05 | IA24: 0.05 | IB24: 0.05 | IC24: 0.05 | ID24: 0.05 | IE24: 0.05 | IF24: 0.05 | IG24: 0.05 | IH24: 0.05 | II24: 0.05 | IJ24: 0.05 | IK24: 0.05 | IL24: 0.05 | IM24: 0.05 | IN24: 0.05 | IO24: 0.05 | IP24: 0.05 | IQ24: 0.05 | IR24: 0.05 | IS24: 0.05 | IT24: 0.05 | IU24: 0.05 | IV24: 0.05 | IW24: 0.05 | IX24: 0.05 | IY24: 0.05 | IZ24: 0.05 | JA24: 0.05 | JB24: 0.05 | JC24: 0.05 | JD24: 0.05 | JE24: =IF(JE3,SUMPRODUCT(JE3:JE5*$F$3:$F$5)+(RAND()-0.5)*$E$19,SUMPRODUCT(JE3:JE5*$F$3:$F$5)) -> 0.05 | JF24: 0.05 | JG24: 0.05 | JH24: 0.05 | JI24: 0.05 | JJ24: 0.05 | JK24: 0.05 | JL24: 0.05 | JM24: 0.05 | JN24: 0.05 | JO24: 0.05 | JP24: 0.05 | JQ24: 0.05 | JR24: 0.05 | JS24: 0.05 | JT24: 0.05 | JU24: 0.05 | JV24: 0.05 | JW24: 0.05 | JX24: 0.05 | JY24: 0.05 | JZ24: 0.05 | KA24: 0.05 | KB24: 0.05 | KC24: 0.05 | KD24: 0.05 | KE24: 0.05 | KF24: 0.05 | KG24: 0.05 | KH24: 0.05 | KI24: 0.05 | KJ24: 0.05 | KK24: 0.05 | KL24: 0.05 | KM24: 0.05 | KN24: 0.05 | KO24: 0.05 | KP24: 0.05 | KQ24: 0.05 | KR24: 0.05 | KS24: 0.05 | KT24: 0.05 | KU24: 0.05
D25: Gross Plant | G25: =E16 -> 100 | H25: =G25*(1+I24) -> 115 | I25: =H25*(1+J24) -> 132.25 | J25: 152.0875 | K25: 174.900625 | L25: 201.1357187 | M25: 231.3060766 | N25: 266.001988 | O25: 305.9022863 | P25: 351.7876292 | Q25: 404.5557736 | R25: 465.2391396 | S25: 535.0250105 | T25: 615.2787621 | U25: 707.5705764 | V25: 813.7061629 | W25: 935.7620874 | X25: 1076.1264 | Y25: 1237.545361 | Z25: 1423.177165 | AA25: 1636.653739 | AB25: 1882.1518 | AC25: 2164.47457 | AD25: 2489.145756 | AE25: 2862.517619 | AF25: 3291.895262 | AG25: 3785.679551 | AH25: 4353.531484 | AI25: 5006.561207 | AJ25: 5757.545388 | AK25: 6621.177196 | AL25: 7614.353775 | AM25: 8756.506841 | AN25: 9194.332183 | AO25: 9654.048793 | AP25: 10136.75123 | AQ25: 10643.58879 | AR25: 11175.76823 | AS25: 11734.55665 | AT25: 12321.28448 | AU25: 12937.3487 | AV25: 13584.21614 | AW25: 14263.42694 | AX25: 14976.59829 | AY25: 15725.4282 | AZ25: 16511.69962 | BA25: 17337.2846 | BB25: 18204.14883 | BC25: 19114.35627 | BD25: 20070.07408 | BE25: 21073.57778 | BF25: 22127.25667 | BG25: 23233.61951 | BH25: 24395.30048 | BI25: 25615.06551 | BJ25: 26895.81878 | BK25: 28240.60972 | BL25: 29652.64021 | BM25: 31135.27222 | BN25: 32692.03583 | BO25: 34326.63762 | BP25: 36042.9695 | BQ25: 37845.11798 | BR25: 39737.37387 | BS25: 41724.24257 | BT25: 43810.4547 | BU25: =BT25*(1+BV24) -> 46000.97743 | BV25: 48301.0263 | BW25: 50716.07762 | BX25: 53251.8815 | BY25: 55914.47557 | BZ25: 58710.19935 | CA25: 61645.70932 | CB25: 64727.99479 | CC25: 67964.39453 | CD25: 71362.61425 | CE25: 74930.74496 | CF25: 78677.28221 | CG25: 82611.14632 | CH25: 86741.70364 | CI25: 91078.78882 | CJ25: 95632.72826 | CK25: 100414.3647 | CL25: 105435.0829 | CM25: 110706.8371 | CN25: 116242.1789 | CO25: 122054.2879 | CP25: 128157.0022 | CQ25: 134564.8524 | CR25: 141293.095 | CS25: 148357.7497 | CT25: 155775.6372 | CU25: 163564.4191 | CV25: 171742.64 | CW25: 180329.772 | CX25: 189346.2606 | CY25: 198813.5737 | CZ25: 208754.2523 | DA25: 219191.965 | DB25: 230151.5632 | DC25: 241659.1414 | DD25: 253742.0984 | DE25: 266429.2034 | DF25: 279750.6635 | DG25: 293738.1967 | DH25: 308425.1065 | DI25: 323846.3619 | DJ25: 340038.68 | DK25: 357040.614 | DL25: 374892.6447 | DM25: 393637.2769 | DN25: 413319.1407 | DO25: 433985.0978 | DP25: 455684.3527 | DQ25: 478468.5703 | DR25: 502391.9988 | DS25: 527511.5987 | DT25: 553887.1787 | DU25: 581581.5376 | DV25: 610660.6145 | DW25: 641193.6452 | DX25: 673253.3275 | DY25: 706915.9939 | DZ25: 742261.7935 | EA25: 779374.8832 | EB25: 818343.6274 | EC25: 859260.8088 | ED25: 902223.8492 | EE25: 947335.0416 | EF25: 994701.7937 | EG25: =EF25*(1+EH24) -> 1044436.883 | EH25: 1096658.728 | EI25: 1151491.664 | EJ25: 1209066.247 | EK25: 1269519.56 | EL25: 1332995.538 | EM25: 1399645.314 | EN25: 1469627.58 | EO25: 1543108.959 | EP25: 1620264.407 | EQ25: 1701277.627 | ER25: 1786341.509 | ES25: 1875658.584 | ET25: 1969441.513 | EU25: 2067913.589 | EV25: 2171309.269 | EW25: 2279874.732 | EX25: 2393868.469 | EY25: 2513561.892 | EZ25: 2639239.987 | FA25: 2771201.986 | FB25: 2909762.085 | FC25: 3055250.19 | FD25: 3208012.699 | FE25: 3368413.334 | FF25: 3536834.001 | FG25: 3713675.701 | FH25: 3899359.486 | FI25: 4094327.46 | FJ25: 4299043.833 | FK25: 4513996.025 | FL25: 4739695.826 | FM25: 4976680.617 | FN25: 5225514.648 | FO25: 5486790.38 | FP25: 5761129.899 | FQ25: 6049186.394 | FR25: 6351645.714 | FS25: 6669228 | FT25: 7002689.4 | FU25: 7352823.87 | FV25: 7720465.063 | FW25: 8106488.316 | FX25: 8511812.732 | FY25: 8937403.369 | FZ25: 9384273.537 | GA25: 9853487.214 | GB25: 10346161.57 | GC25: 10863469.65 | GD25: 11406643.14 | GE25: 11976975.29 | GF25: 12575824.06 | GG25: 13204615.26 | GH25: 13864846.02 | GI25: 14558088.32 | GJ25: 15285992.74 | GK25: 16050292.38 | GL25: 16852807 | GM25: 17695447.35 | GN25: 18580219.71 | GO25: 19509230.7 | GP25: 20484692.24 | GQ25: 21508926.85 | GR25: 22584373.19 | GS25: =GR25*(1+GT24) -> 23713591.85 | GT25: 24899271.44 | GU25: 26144235.01 | GV25: 27451446.76 | GW25: 28824019.1 | GX25: 30265220.06 | GY25: 31778481.06 | GZ25: 33367405.11 | HA25: 35035775.37 | HB25: 36787564.14 | HC25: 38626942.34 | HD25: 40558289.46 | HE25: 42586203.93 | HF25: 44715514.13 | HG25: 46951289.84 | HH25: 49298854.33 | HI25: 51763797.05 | HJ25: 54351986.9 | HK25: 57069586.24 | HL25: 59923065.55 | HM25: 62919218.83 | HN25: 66065179.77 | HO25: 69368438.76 | HP25: 72836860.7 | HQ25: 76478703.74 | HR25: 80302638.92 | HS25: 84317770.87 | HT25: 88533659.41 | HU25: 92960342.38 | HV25: 97608359.5 | HW25: 102488777.5 | HX25: 107613216.4 | HY25: 112993877.2 | HZ25: 118643571 | IA25: 124575749.6 | IB25: 130804537.1 | IC25: 137344763.9 | ID25: 144212002.1 | IE25: 151422602.2 | IF25: 158993732.3 | IG25: 166943418.9 | IH25: 175290589.9 | II25: 184055119.4 | IJ25: 193257875.3 | IK25: 202920769.1 | IL25: 213066807.6 | IM25: 223720147.9 | IN25: 234906155.3 | IO25: 246651463.1 | IP25: 258984036.3 | IQ25: 271933238.1 | IR25: 285529900 | IS25: 299806395 | IT25: 314796714.7 | IU25: 330536550.5 | IV25: 347063378 | IW25: 364416546.9 | IX25: 382637374.2 | IY25: 401769243 | IZ25: 421857705.1 | JA25: 442950590.4 | JB25: 465098119.9 | JC25: 488353025.9 | JD25: 512770677.2 | JE25: =JD25*(1+JF24) -> 538409211 | JF25: 565329671.6 | JG25: 593596155.2 | JH25: 623275962.9 | JI25: 654439761.1 | JJ25: 687161749.1 | JK25: 721519836.6 | JL25: 757595828.4 | JM25: 795475619.8 | JN25: 835249400.8 | JO25: 877011870.8 | JP25: 920862464.4 | JQ25: 966905587.6 | JR25: 1015250867 | JS25: 1066013410 | JT25: 1119314081 | JU25: 1175279785 | JV25: 1234043774 | JW25: 1295745963 | JX25: 1360533261 | JY25: 1428559924 | JZ25: 1499987920 | KA25: 1574987316 | KB25: 1653736682 | KC25: 1736423516 | KD25: 1823244692 | KE25: 1914406927 | KF25: 2010127273 | KG25: 2110633637 | KH25: 2216165318 | KI25: 2326973584 | KJ25: 2443322263 | KK25: 2565488377 | KL25: 2693762796 | KM25: 2828450935 | KN25: 2969873482 | KO25: 3118367156 | KP25: 3274285514 | KQ25: 3437999790 | KR25: 3609899779 | KS25: 3790394768 | KT25: 3979914506 | KU25: 3979914506
D26: Change in Plant | H26: =H25-G25 -> 15 | I26: =I25-H25 -> 17.25 | J26: =J25-I25 -> 19.8375 | K26: 22.813125 | L26: 26.23509375 | M26: 30.17035781 | N26: 34.69591148 | O26: 39.90029821 | P26: 45.88534294 | Q26: 52.76814438 | R26: 60.68336604 | S26: 69.78587094 | T26: 80.25375158 | U26: 92.29181432 | V26: 106.1355865 | W26: 122.0559244 | X26: 140.3643131 | Y26: 161.4189601 | Z26: 185.6318041 | AA26: 213.4765747 | AB26: 245.4980609 | AC26: 282.32277 | AD26: 324.6711855 | AE26: 373.3718634 | AF26: 429.3776429 | AG26: 493.7842893 | AH26: 567.8519327 | AI26: 653.0297226 | AJ26: 750.984181 | AK26: 863.6318081 | AL26: 993.1765794 | AM26: 1142.153066 | AN26: 437.8253421 | AO26: =AO25-AN25 -> 459.7166092 | AP26: 482.7024396 | AQ26: 506.8375616 | AR26: 532.1794397 | AS26: 558.7884117 | AT26: 586.7278323 | AU26: 616.0642239 | AV26: 646.8674351 | AW26: 679.2108068 | AX26: 713.1713472 | AY26: 748.8299145 | AZ26: 786.2714102 | BA26: 825.5849808 | BB26: 866.8642298 | BC26: 910.2074413 | BD26: 955.7178133 | BE26: 1003.503704 | BF26: 1053.678889 | BG26: 1106.362834 | BH26: 1161.680975 | BI26: 1219.765024 | BJ26: 1280.753275 | BK26: 1344.790939 | BL26: 1412.030486 | BM26: 1482.63201 | BN26: 1556.763611 | BO26: 1634.601791 | BP26: 1716.331881 | BQ26: 1802.148475 | BR26: 1892.255899 | BS26: 1986.868694 | BT26: 2086.212128 | BU26: =BU25-BT25 -> 2190.522735 | BV26: 2300.048872 | BW26: 2415.051315 | BX26: 2535.803881 | BY26: 2662.594075 | BZ26: 2795.723779 | CA26: 2935.509968 | CB26: 3082.285466 | CC26: 3236.399739 | CD26: 3398.219726 | CE26: 3568.130713 | CF26: 3746.537248 | CG26: 3933.864111 | CH26: 4130.557316 | CI26: 4337.085182 | CJ26: 4553.939441 | CK26: 4781.636413 | CL26: 5020.718234 | CM26: 5271.754145 | CN26: 5535.341853 | CO26: 5812.108945 | CP26: 6102.714393 | CQ26: 6407.850112 | CR26: 6728.242618 | CS26: 7064.654749 | CT26: 7417.887486 | CU26: 7788.781861 | CV26: 8178.220954 | CW26: 8587.132001 | CX26: 9016.488601 | CY26: 9467.313031 | CZ26: 9940.678683 | DA26: 10437.71262 | DB26: 10959.59825 | DC26: 11507.57816 | DD26: 12082.95707 | DE26: 12687.10492 | DF26: 13321.46017 | DG26: 13987.53318 | DH26: 14686.90984 | DI26: 15421.25533 | DJ26: 16192.31809 | DK26: 17001.934 | DL26: 17852.0307 | DM26: 18744.63223 | DN26: 19681.86384 | DO26: 20665.95704 | DP26: 21699.25489 | DQ26: 22784.21763 | DR26: 23923.42851 | DS26: 25119.59994 | DT26: 26375.57994 | DU26: 27694.35893 | DV26: 29079.07688 | DW26: 30533.03072 | DX26: 32059.68226 | DY26: 33662.66637 | DZ26: 35345.79969 | EA26: 37113.08968 | EB26: 38968.74416 | EC26: 40917.18137 | ED26: 42963.04044 | EE26: 45111.19246 | EF26: 47366.75208 | EG26: =EG25-EF25 -> 49735.08969 | EH26: 52221.84417 | EI26: 54832.93638 | EJ26: 57574.5832 | EK26: 60453.31236 | EL26: 63475.97798 | EM26: 66649.77688 | EN26: 69982.26572 | EO26: 73481.379 | EP26: 77155.44796 | EQ26: 81013.22035 | ER26: 85063.88137 | ES26: 89317.07544 | ET26: 93782.92921 | EU26: 98472.07567 | EV26: 103395.6795 | EW26: 108565.4634 | EX26: 113993.7366 | EY26: 119693.4234 | EZ26: 125678.0946 | FA26: 131961.9993 | FB26: 138560.0993 | FC26: 145488.1043 | FD26: 152762.5095 | FE26: 160400.6349 | FF26: 168420.6667 | FG26: 176841.7 | FH26: 185683.785 | FI26: 194967.9743 | FJ26: 204716.373 | FK26: 214952.1916 | FL26: 225699.8012 | FM26: 236984.7913 | FN26: 248834.0309 | FO26: 261275.7324 | FP26: 274339.519 | FQ26: 288056.495 | FR26: 302459.3197 | FS26: 317582.2857 | FT26: 333461.4 | FU26: 350134.47 | FV26: 367641.1935 | FW26: 386023.2532 | FX26: 405324.4158 | FY26: 425590.6366 | FZ26: 446870.1684 | GA26: 469213.6769 | GB26: 492674.3607 | GC26: 517308.0787 | GD26: 543173.4827 | GE26: 570332.1568 | GF26: 598848.7647 | GG26: 628791.2029 | GH26: 660230.763 | GI26: 693242.3012 | GJ26: 727904.4162 | GK26: 764299.6371 | GL26: 802514.6189 | GM26: 842640.3499 | GN26: 884772.3673 | GO26: 929010.9857 | GP26: 975461.535 | GQ26: 1024234.612 | GR26: 1075446.342 | GS26: =GS25-GR25 -> 1129218.659 | GT26: 1185679.592 | GU26: 1244963.572 | GV26: 1307211.751 | GW26: 1372572.338 | GX26: 1441200.955 | GY26: 1513261.003 | GZ26: 1588924.053 | HA26: 1668370.256 | HB26: 1751788.768 | HC26: 1839378.207 | HD26: 1931347.117 | HE26: 2027914.473 | HF26: 2129310.197 | HG26: 2235775.707 | HH26: 2347564.492 | HI26: 2464942.716 | HJ26: 2588189.852 | HK26: 2717599.345 | HL26: 2853479.312 | HM26: 2996153.278 | HN26: 3145960.942 | HO26: 3303258.989 | HP26: 3468421.938 | HQ26: 3641843.035 | HR26: 3823935.187 | HS26: 4015131.946 | HT26: 4215888.543 | HU26: 4426682.971 | HV26: 4648017.119 | HW26: 4880417.975 | HX26: 5124438.874 | HY26: 5380660.818 | HZ26: 5649693.858 | IA26: 5932178.551 | IB26: 6228787.479 | IC26: 6540226.853 | ID26: 6867238.196 | IE26: 7210600.105 | IF26: 7571130.111 | IG26: 7949686.616 | IH26: 8347170.947 | II26: 8764529.494 | IJ26: 9202755.969 | IK26: 9662893.767 | IL26: 10146038.46 | IM26: 10653340.38 | IN26: 11186007.4 | IO26: 11745307.77 | IP26: 12332573.16 | IQ26: 12949201.81 | IR26: 13596661.9 | IS26: 14276495 | IT26: 14990319.75 | IU26: 15739835.74 | IV26: 16526827.52 | IW26: 17353168.9 | IX26: 18220827.34 | IY26: 19131868.71 | IZ26: 20088462.15 | JA26: 21092885.26 | JB26: 22147529.52 | JC26: 23254905.99 | JD26: 24417651.29 | JE26: =JE25-JD25 -> 25638533.86 | JF26: 26920460.55 | JG26: 28266483.58 | JH26: 29679807.76 | JI26: 31163798.15 | JJ26: 32721988.05 | JK26: 34358087.46 | JL26: 36075991.83 | JM26: 37879791.42 | JN26: 39773780.99 | JO26: 41762470.04 | JP26: 43850593.54 | JQ26: 46043123.22 | JR26: 48345279.38 | JS26: 50762543.35 | JT26: 53300670.52 | JU26: 55965704.04 | JV26: 58763989.24 | JW26: 61702188.71 | JX26: 64787298.14 | JY26: 68026663.05 | JZ26: 71427996.2 | KA26: 74999396.01 | KB26: 78749365.81 | KC26: 82686834.1 | KD26: 86821175.81 | KE26: 91162234.6 | KF26: 95720346.33 | KG26: 100506363.6 | KH26: 105531681.8 | KI26: 110808265.9 | KJ26: 116348679.2 | KK26: 122166113.2 | KL26: 128274418.8 | KM26: 134688139.8 | KN26: 141422546.8 | KO26: 148493674.1 | KP26: 155918357.8 | KQ26: 163714275.7 | KR26: 171899989.5 | KS26: 180494989 | KT26: 189519738.4 | KU26: 0
D28: Capital Expenditures | H28: =H26+H33 -> 26.42369066 | I28: =I26+I33 -> 30.38724425 | J28: 34.94533089 | K28: 40.18713053 | L28: 46.2152001 | M28: 53.14748012 | N28: 61.11960214 | O28: 70.28754246 | P28: 80.83067383 | Q28: 92.9552749 | R28: 106.8985661 | S28: 122.9333511 | T28: 141.3733537 | U28: 162.5793568 | V28: 186.9662603 | W28: 215.0111993 | X28: 247.2628792 | Y28: 284.3523111 | Z28: 327.0051578 | AA28: 376.0559315 | AB28: 432.4643212 | AC28: 497.3339694 | AD28: 571.9340648 | AE28: 657.7241745 | AF28: 756.3828007 | AG28: 869.8402208 | AH28: 1000.316254 | AI28: 1150.363692 | AJ28: 1322.918246 | AK28: 1521.355983 | AL28: 1749.55938 | AM28: 2011.993287 | AN28: 1438.141596 | AO28: =AO26+AO33 -> 1610.080301 | AP28: 1805.620685 | AQ28: 2028.193544 | AR28: 2281.73882 | AS28: 2570.781699 | AT28: 2024.869428 | AU28: 2226.144525 | AV28: 2452.48812 | AW28: 2707.404351 | AX28: 2994.910167 | AY28: 3319.611613 | AZ28: 2811.140838 | BA28: 3051.729506 | BB28: 3319.35235 | BC28: 3617.611792 | BD28: 3950.62798 | BE28: 4323.115317 | BF28: 3864.819728 | BG28: 4158.092339 | BH28: 4481.033326 | BI28: 4837.376816 | BJ28: 5231.381256 | BK28: 5667.906256 | BL28: 5276.850214 | BM28: 5640.72435 | BN28: 6037.796936 | BO28: 6471.978608 | BP28: 6947.713137 | BQ28: 7470.054731 | BR28: 7169.106112 | BS28: 7627.593043 | BT28: 8124.009065 | BU28: =BU26+BU33 -> 8662.501343 | BV28: 9247.762008 | BW28: 9885.106046 | BX28: 9704.909993 | BY28: 10290.18712 | BZ28: 10919.73284 | CA28: 11598.01131 | CB28: 12330.04747 | CC28: 13121.50579 | CD28: 13103.12972 | CE28: 13858.31783 | CF28: 14666.27009 | CG28: 15531.87542 | CH28: 16460.60479 | CI28: 17458.59097 | CJ28: 17657.06916 | CK28: 18639.95424 | CL28: 19686.98833 | CM28: 20803.62957 | CN28: 21995.94664 | CO28: 23270.69991 | CP28: 23759.78355 | CQ28: 25047.80436 | CR28: 26415.23094 | CS28: 27868.28432 | CT28: 29413.83413 | CU28: 31059.48177 | CV28: 31938.00451 | CW28: 33634.93636 | CX28: 35431.71954 | CY28: 37335.59735 | CZ28: 39354.51281 | DA28: 41497.19439 | DB28: 42897.60275 | DC28: 45142.51452 | DD28: 47514.67661 | DE28: 50022.70227 | DF28: 52675.97298 | DG28: 55484.72757 | DH28: 57584.51259 | DI28: 60563.76984 | DJ28: 63706.99471 | DK28: 67024.63627 | DL28: 70528.00368 | DM28: 74229.3598 | DN28: 77266.37643 | DO28: 81229.72688 | DP28: 85406.24959 | DQ28: 89808.8539 | DR28: 94451.43219 | DS28: 99348.95974 | DT28: 103641.9564 | DU28: 108924.0858 | DV28: 114485.3265 | DW28: 120341.8846 | DX28: 126511.1145 | DY28: 133011.6261 | DZ28: 138987.7561 | EA28: 146037.1755 | EB28: 153454.0706 | EC28: 161259.066 | ED28: 169474.1549 | EE28: 178122.8186 | EF28: 186354.5081 | EG28: =EG26+EG33 -> 195772.2652 | EH28: 205675.9148 | EI28: 216092.0024 | EJ28: 227048.7381 | EK28: 238576.1309 | EL28: 249830.4861 | EM28: 262422.0421 | EN28: 275658.1805 | EO28: 289573.3814 | EP28: 304204.186 | EQ28: 319589.3513 | ER28: 334894.3675 | ES28: 351739.1175 | ET28: 369441.1097 | EU28: 388045.457 | EV28: 407599.8655 | EW28: 428154.8147 | EX28: 448888.1041 | EY28: 471432.5409 | EZ28: 495119.2043 | FA28: 520007.4564 | FB28: 546159.9648 | FC28: 573642.919 | FD28: 601650.6136 | FE28: 631833.1759 | FF28: 663539.871 | FG28: 696849.1564 | FH28: 731843.7498 | FI28: 768610.8933 | FJ28: 806366.9866 | FK28: 846785.3675 | FL28: 889239.6723 | FM28: 933833.9477 | FN28: 980677.7807 | FO28: 1029886.626 | FP28: 1080706.506 | FQ28: 1134841.862 | FR28: 1191698.992 | FS28: 1251416.233 | FT28: 1314139.181 | FU28: 1380021.096 | FV28: 1448347.699 | FW28: 1520865.116 | FX28: 1597023.408 | FY28: 1677006.87 | FZ28: 1761009.349 | GA28: 1849234.773 | GB28: 1941022.06 | GC28: 2038173.194 | GD28: 2140196.89 | GE28: 2247339.027 | GF28: 2359858.114 | GG28: 2478025.975 | GH28: 2601252.823 | GI28: 2731415.496 | GJ28: 2868101.307 | GK28: 3011638.664 | GL28: 3162372.733 | GM28: 3320666.325 | GN28: 3486025.19 | GO28: 3660426.481 | GP28: 3843562.842 | GQ28: 4035873.276 | GR28: 4237819.075 | GS28: =GS26+GS33 -> 4449884.985 | GT28: 4671704.783 | GU28: 4905390.053 | GV28: 5150774.592 | GW28: 5408445.614 | GX28: 5679020.03 | GY28: 5963145.988 | GZ28: 6260628.836 | HA28: 6573760.309 | HB28: 6902563.361 | HC28: 7247823.821 | HD28: 7610367.147 | HE28: 7991060.461 | HF28: 8389939.032 | HG28: 8809536.016 | HH28: 9250127.853 | HI28: 9712766.537 | HJ28: 10198557 | HK28: 10708659.81 | HL28: 11243418.34 | HM28: 11805689.29 | HN28: 12396088.79 | HO28: 13016025.53 | HP28: 13666978.94 | HQ28: 14350502.84 | HR28: 15067353.53 | HS28: 15820821.24 | HT28: 16611977.34 | HU28: 17442708.5 | HV28: 18314996.06 | HW28: 19230920.82 | HX28: 20191792.41 | HY28: 21201482.06 | HZ28: 22261671.2 | IA28: 23374887.05 | IB28: 24543783.54 | IC28: 25771147.67 | ID28: 27059030.6 | IE28: 28412082.16 | IF28: 29832801.31 | IG28: 31324573.66 | IH28: 32890954.48 | II28: 34535677.16 | IJ28: 36261786.57 | IK28: 38074975.93 | IL28: 39978839.76 | IM28: 41977914.04 | IN28: 44076961.88 | IO28: 46280984.93 | IP28: 48594359.73 | IQ28: 51024177.74 | IR28: 53575501.67 | IS28: 56254409.04 | IT28: 59067281.63 | IU28: 62020820.67 | IV28: 65121187.25 | IW28: 68377346.64 | IX28: 71796329.01 | IY28: 75386277.75 | IZ28: 79155743.78 | JA28: 83113705.92 | JB28: 87268716.77 | JC28: 91632252.64 | JD28: 96213980.31 | JE28: =JE26+JE33 -> 101024811.6 | JF28: 106076204.3 | JG28: 111380189.5 | JH28: 116948524.5 | JI28: 122796050.8 | JJ28: 128935968.4 | JK28: 135382899.1 | JL28: 142152196.2 | JM28: 149259980.9 | JN28: 156722305.5 | JO28: 164558520.8 | JP28: 172786561.9 | JQ28: 181426022.3 | JR28: 190497475.5 | JS28: 200022524.3 | JT28: 210022976 | JU28: 220524224.9 | JV28: 231550551.1 | JW28: 243128211 | JX28: 255284773.7 | JY28: 268049187.3 | JZ28: 281450972.2 | KA28: 295523620.9 | KB28: 310299917 | KC28: 325815045.1 | KD28: 342105949.5 | KE28: 359211421.9 | KF28: 377171318.6 | KG28: 396029984.5 | KH28: 415831598.8 | KI28: 436623311 | KJ28: 458454628.7 | KK28: 481377535.1 | KL28: 505445737.4 | KM28: 530718124.3 | KN28: 557254145.5 | KO28: 585116985.1 | KP28: 614372986.5 | KQ28: 645091810.8 | KR28: 677345726.9 | KS28: 711213113.3 | KT28: 746773884 | KU28: 585116985.1
D29: Capital Expenditure Growth | I29: =I28/H28-1 -> 0.15 | J29: =J28/I28-1 -> 0.15 | K29: 0.15 | L29: 0.15 | M29: 0.15 | N29: 0.15 | O29: 0.15 | P29: 0.15 | Q29: 0.15 | R29: 0.15 | S29: 0.15 | T29: 0.15 | U29: 0.15 | V29: 0.15 | W29: 0.15 | X29: 0.15 | Y29: 0.15 | Z29: 0.15 | AA29: 0.15 | AB29: 0.15 | AC29: 0.15 | AD29: 0.15 | AE29: 0.15 | AF29: 0.15 | AG29: 0.15 | AH29: 0.15 | AI29: 0.15 | AJ29: 0.15 | AK29: 0.15 | AL29: 0.15 | AM29: 0.15 | AN29: -0.2852155098 | AO29: 0.1195561728 | AP29: 0.1214475974 | AQ29: 0.1232666754 | AR29: 0.1250103947 | AS29: 0.1266765839 | AT29: -0.2123526361 | AU29: 0.09940151893 | AV29: 0.1016751576 | AW29: 0.1039418819 | AX29: 0.1061924185 | AY29: 0.1084177582 | AZ29: -0.1531717665 | BA29: 0.08558399637 | BB29: 0.0876954671 | BC29: 0.08985470978 | BD29: 0.09205415257 | BE29: 0.0942856019 | BF29: -0.1060104938 | BG29: 0.07588261095 | BH29: 0.07766566007 | BI29: 0.07952261565 | BJ29: 0.08145002013 | BK29: 0.08344354568 | BL29: -0.06899479718 | BM29: 0.06895669222 | BN29: 0.07039390016 | BO29: 0.07191061176 | BP29: 0.07350681414 | BQ29: 0.07518180221 | BR29: -0.04028733787 | BS29: 0.06395315173 | BT29: 0.06508160812 | BU29: 0.06628405674 | BV29: =BV28/BU28-1 -> 0.0675625483 | BW29: 0.06891873275 | BX29: -0.01822904603 | BY29: 0.06030732129 | BZ29: 0.06117923006 | CA29: 0.06211493234 | CB29: 0.06311738661 | CC29: 0.06418939695 | CD29: -0.001400454066 | CE29: 0.05763417806 | CF29: 0.0583008898 | CG29: 0.05902014103 | CH29: 0.05979505656 | CI29: 0.0606287673 | CJ29: 0.01136851154 | CK29: 0.05566524515 | CL29: 0.05617149418 | CM29: 0.05671975939 | CN29: 0.05731293536 | CO29: 0.05795400811 | CP29: 0.02101714353 | CQ29: 0.0542101236 | CR29: 0.05459267278 | CS29: 0.0550081646 | CT29: 0.05545909452 | CU29: 0.05594808338 | CV29: 0.02828517036 | CW29: 0.05313205621 | CX29: 0.05342014529 | CY29: 0.05373371167 | CZ29: 0.05407481356 | DA29: 0.05444563852 | DB29: 0.03374706133 | DC29: 0.05233186982 | DD29: 0.05254829334 | DE29: 0.05278423077 | DF29: 0.05304133106 | DG29: 0.0533213613 | DH29: 0.03784437835 | DI29: 0.05173712724 | DJ29: 0.05189942551 | DK29: 0.05207656671 | DL29: 0.05226984594 | DM29: 0.05248065915 | DN29: 0.0409139543 | DO29: 0.05129463332 | DP29: 0.0514161856 | DQ29: 0.05154897124 | DR29: 0.05169399332 | DS29: 0.05185233759 | DT29: 0.04321128921 | DU29: 0.05096516535 | DV29: 0.05105611508 | DW29: 0.0511555352 | DX29: 0.05126419491 | DY29: 0.05138292939 | DZ29: 0.04492938042 | EA29: 0.05071971538 | EB29: 0.05078771976 | EC29: 0.05086209394 | ED29: 0.05094342354 | EE29: 0.05103234584 | EF29: 0.04621356005 | EG29: 0.05053678135 | EH29: =EH28/EG28-1 -> 0.05058760299 | EI29: 0.05064320523 | EJ29: 0.0507040316 | EK29: 0.05077056556 | EL29: 0.04717301411 | EM29: 0.05040039799 | EN29: 0.05043836397 | EO29: 0.05047991257 | EP29: 0.05052537839 | EQ29: 0.05057512666 | ER29: 0.04788963133 | ES29: 0.05029869605 | ET29: 0.05032705026 | EU29: 0.05035808637 | EV29: 0.05039205613 | EW29: 0.05042923453 | EX29: 0.04842474887 | EY29: 0.05022284312 | EZ29: 0.05024401449 | FA29: 0.05026719187 | FB29: 0.05029256426 | FC29: 0.05032033827 | FD29: 0.04882426622 | FE29: 0.05016626199 | FF29: 0.05018206763 | FG29: 0.05019937283 | FH29: 0.05021831927 | FI29: 0.05023906187 | FJ29: 0.04912250612 | FK29: 0.05012405223 | FL29: 0.05013585068 | FM29: 0.05014876959 | FN29: 0.05016291504 | FO29: 0.05017840308 | FP29: 0.04934512077 | FQ29: 0.05009256132 | FR29: 0.05010136775 | FS29: 0.05011101111 | FT29: 0.05012157074 | FU29: 0.05013313349 | FV29: 0.0495112746 | FW29: 0.05006906603 | FX29: 0.05007563877 | FY29: 0.0500828365 | FZ29: 0.05009071853 | GA29: 0.05009934981 | GB29: 0.04963528084 | GC29: 0.05005153554 | GD29: 0.05005644092 | GE29: 0.05006181292 | GF29: 0.05006769588 | GG29: 0.05007413833 | GH29: 0.04972782716 | GI29: 0.05003845517 | GJ29: 0.05004211603 | GK29: 0.05004612523 | GL29: 0.05005051589 | GM29: 0.05005532426 | GN29: 0.04979689277 | GO29: 0.05002869504 | GP29: 0.05003142704 | GQ29: 0.05003441906 | GR29: 0.05003769583 | GS29: 0.05004128443 | GT29: =GT28/GS28-1 -> 0.04984843398 | GU29: 0.05002141223 | GV29: 0.05002345101 | GW29: 0.05002568387 | GX29: 0.05002812926 | GY29: 0.05003080742 | GZ29: 0.04988689672 | HA29: 0.05001597789 | HB29: 0.05001749933 | HC29: 0.05001916561 | HD29: 0.05002099052 | HE29: 0.05002298916 | HF29: 0.04991559927 | HG29: 0.05001192281 | HH29: 0.05001305816 | HI29: 0.05001430162 | HJ29: 0.05001566347 | HK29: 0.05001715497 | HL29: 0.04993701814 | HM29: 0.05000889691 | HN29: 0.05000974415 | HO29: 0.05001067206 | HP29: 0.05001168833 | HQ29: 0.05001280136 | HR29: 0.04995300155 | HS29: 0.05000663896 | HT29: 0.0500072712 | HU29: 0.05000796364 | HV29: 0.05000872202 | HW29: 0.05000955261 | HX29: 0.04996492881 | HY29: 0.05000495407 | HZ29: 0.05000542586 | IA29: 0.05000594258 | IB29: 0.05000650851 | IC29: 0.05000712832 | ID29: 0.04997382921 | IE29: 0.05000369679 | IF29: 0.05000404885 | IG29: 0.05000443444 | IH29: 0.05000485675 | II29: 0.05000531927 | IJ29: 0.04998047088 | IK29: 0.0500027586 | IL29: 0.05000302131 | IM29: 0.05000330905 | IN29: 0.05000362418 | IO29: 0.05000396933 | IP29: 0.04998542703 | IQ29: 0.0500020585 | IR29: 0.05000225455 | IS29: 0.05000246926 | IT29: 0.05000270442 | IU29: 0.05000296198 | IV29: 0.0499891254 | IW29: 0.05000153608 | IX29: 0.05000168238 | IY29: 0.0500018426 | IZ29: 0.05000201808 | JA29: 0.05000221027 | JB29: 0.0499918852 | JC29: 0.05000114625 | JD29: 0.05000125541 | JE29: 0.05000137498 | JF29: =JF28/JE28-1 -> 0.05000150592 | JG29: 0.05000164934 | JH29: 0.0499939446 | JI29: 0.05000085535 | JJ29: 0.05000093681 | JK29: 0.05000102603 | JL29: 0.05000112374 | JM29: 0.05000123076 | JN29: 0.04999548137 | JO29: 0.05000063827 | JP29: 0.05000069906 | JQ29: 0.05000076564 | JR29: 0.05000083855 | JS29: 0.05000091842 | JT29: 0.04999662812 | JU29: 0.05000047629 | JV29: 0.05000052165 | JW29: 0.05000057133 | JX29: 0.05000062574 | JY29: 0.05000068534 | JZ29: 0.04999748385 | KA29: 0.05000035541 | KB29: 0.05000038926 | KC29: 0.05000042634 | KD29: 0.05000046694 | KE29: 0.05000051141 | KF29: 0.04999812241 | KG29: 0.05000026522 | KH29: 0.05000029047 | KI29: 0.05000031814 | KJ29: 0.05000034844 | KK29: 0.05000038162 | KL29: 0.04999859891 | KM29: 0.05000019791 | KN29: 0.05000021676 | KO29: 0.0500002374 | KP29: 0.05000026001 | KQ29: 0.05000028477 | KR29: 0.04999895449 | KS29: 0.05000014768 | KT29: 0.05000016175 | KU29: -0.2164736908
D31: Retirements - Base | E31: =find_base(F12,E17) -> 0.1142369066 | H31: =E31*$E$16 -> 11.42369066 | I31: =IF(I2<=$E$17,H31*(1+$F$12)) -> 13.13724425 | J31: 15.10783089 | K31: 17.37400553 | L31: 19.98010635 | M31: 22.97712231 | N31: FALSE | O31: FALSE | P31: FALSE | Q31: FALSE | R31: FALSE | S31: FALSE | T31: FALSE | U31: FALSE | V31: FALSE | W31: FALSE | X31: FALSE | Y31: FALSE | Z31: FALSE | AA31: FALSE | AB31: FALSE | AC31: FALSE | AD31: FALSE | AE31: FALSE | AF31: FALSE | AG31: FALSE | AH31: FALSE | AI31: FALSE | AJ31: FALSE | AK31: FALSE | AL31: FALSE | AM31: FALSE | AN31: FALSE | AO31: FALSE | AP31: FALSE | AQ31: FALSE | AR31: FALSE | AS31: FALSE | AT31: FALSE | AU31: FALSE | AV31: FALSE | AW31: FALSE | AX31: FALSE | AY31: FALSE | AZ31: FALSE | BA31: FALSE | BB31: FALSE | BC31: FALSE | BD31: FALSE | BE31: FALSE | BF31: FALSE | BG31: FALSE | BH31: FALSE | BI31: FALSE | BJ31: FALSE | BK31: FALSE | BL31: FALSE | BM31: FALSE | BN31: FALSE | BO31: FALSE | BP31: FALSE | BQ31: FALSE | BR31: FALSE | BS31: FALSE | BT31: FALSE | BU31: =IF(BU2<=$E$17,BT31*(1+$F$12)) -> FALSE | BV31: FALSE | BW31: FALSE | BX31: FALSE | BY31: FALSE | BZ31: FALSE | CA31: FALSE | CB31: FALSE | CC31: FALSE | CD31: FALSE | CE31: FALSE | CF31: FALSE | CG31: FALSE | CH31: FALSE | CI31: FALSE | CJ31: FALSE | CK31: FALSE | CL31: FALSE | CM31: FALSE | CN31: FALSE | CO31: FALSE | CP31: FALSE | CQ31: FALSE | CR31: FALSE | CS31: FALSE | CT31: FALSE | CU31: FALSE | CV31: FALSE | CW31: FALSE | CX31: FALSE | CY31: FALSE | CZ31: FALSE | DA31: FALSE | DB31: FALSE | DC31: FALSE | DD31: FALSE | DE31: FALSE | DF31: FALSE | DG31: FALSE | DH31: FALSE | DI31: FALSE | DJ31: FALSE | DK31: FALSE | DL31: FALSE | DM31: FALSE | DN31: FALSE | DO31: FALSE | DP31: FALSE | DQ31: FALSE | DR31: FALSE | DS31: FALSE | DT31: FALSE | DU31: FALSE | DV31: FALSE | DW31: FALSE | DX31: FALSE | DY31: FALSE | DZ31: FALSE | EA31: FALSE | EB31: FALSE | EC31: FALSE | ED31: FALSE | EE31: FALSE | EF31: FALSE | EG31: =IF(EG2<=$E$17,EF31*(1+$F$12)) -> FALSE | EH31: FALSE | EI31: FALSE | EJ31: FALSE | EK31: FALSE | EL31: FALSE | EM31: FALSE | EN31: FALSE | EO31: FALSE | EP31: FALSE | EQ31: FALSE | ER31: FALSE | ES31: FALSE | ET31: FALSE | EU31: FALSE | EV31: FALSE | EW31: FALSE | EX31: FALSE | EY31: FALSE | EZ31: FALSE | FA31: FALSE | FB31: FALSE | FC31: FALSE | FD31: FALSE | FE31: FALSE | FF31: FALSE | FG31: FALSE | FH31: FALSE | FI31: FALSE | FJ31: FALSE | FK31: FALSE | FL31: FALSE | FM31: FALSE | FN31: FALSE | FO31: FALSE | FP31: FALSE | FQ31: FALSE | FR31: FALSE | FS31: FALSE | FT31: FALSE | FU31: FALSE | FV31: FALSE | FW31: FALSE | FX31: FALSE | FY31: FALSE | FZ31: FALSE | GA31: FALSE | GB31: FALSE | GC31: FALSE | GD31: FALSE | GE31: FALSE | GF31: FALSE | GG31: FALSE | GH31: FALSE | GI31: FALSE | GJ31: FALSE | GK31: FALSE | GL31: FALSE | GM31: FALSE | GN31: FALSE | GO31: FALSE | GP31: FALSE | GQ31: FALSE | GR31: FALSE | GS31: =IF(GS2<=$E$17,GR31*(1+$F$12)) -> FALSE | GT31: FALSE | GU31: FALSE | GV31: FALSE | GW31: FALSE | GX31: FALSE | GY31: FALSE | GZ31: FALSE | HA31: FALSE | HB31: FALSE | HC31: FALSE | HD31: FALSE | HE31: FALSE | HF31: FALSE | HG31: FALSE | HH31: FALSE | HI31: FALSE | HJ31: FALSE | HK31: FALSE | HL31: FALSE | HM31: FALSE | HN31: FALSE | HO31: FALSE | HP31: FALSE | HQ31: FALSE | HR31: FALSE | HS31: FALSE | HT31: FALSE | HU31: FALSE | HV31: FALSE | HW31: FALSE | HX31: FALSE | HY31: FALSE | HZ31: FALSE | IA31: FALSE | IB31: FALSE | IC31: FALSE | ID31: FALSE | IE31: FALSE | IF31: FALSE | IG31: FALSE | IH31: FALSE | II31: FALSE | IJ31: FALSE | IK31: FALSE | IL31: FALSE | IM31: FALSE | IN31: FALSE | IO31: FALSE | IP31: FALSE | IQ31: FALSE | IR31: FALSE | IS31: FALSE | IT31: FALSE | IU31: FALSE | IV31: FALSE | IW31: FALSE | IX31: FALSE | IY31: FALSE | IZ31: FALSE | JA31: FALSE | JB31: FALSE | JC31: FALSE | JD31: FALSE | JE31: =IF(JE2<=$E$17,JD31*(1+$F$12)) -> FALSE | JF31: FALSE | JG31: FALSE | JH31: FALSE | JI31: FALSE | JJ31: FALSE | JK31: FALSE | JL31: FALSE | JM31: FALSE | JN31: FALSE | JO31: FALSE | JP31: FALSE | JQ31: FALSE | JR31: FALSE | JS31: FALSE | JT31: FALSE | JU31: FALSE | JV31: FALSE | JW31: FALSE | JX31: FALSE | JY31: FALSE | JZ31: FALSE | KA31: FALSE | KB31: FALSE | KC31: FALSE | KD31: FALSE | KE31: FALSE | KF31: FALSE | KG31: FALSE | KH31: FALSE | KI31: FALSE | KJ31: FALSE | KK31: FALSE | KL31: FALSE | KM31: FALSE | KN31: FALSE | KO31: FALSE | KP31: FALSE | KQ31: FALSE | KR31: FALSE | KS31: FALSE | KT31: FALSE | KU31: FALSE
D32: Retirements -Simulated | H32: =IF(H2>=$E$17,OFFSET(H28,0,-$E$17)) -> FALSE | I32: FALSE | J32: FALSE | K32: FALSE | L32: FALSE | M32: 0 | N32: 26.42369066 | O32: 30.38724425 | P32: 34.94533089 | Q32: 40.18713053 | R32: 46.2152001 | S32: 53.14748012 | T32: 61.11960214 | U32: 70.28754246 | V32: 80.83067383 | W32: 92.9552749 | X32: 106.8985661 | Y32: 122.9333511 | Z32: 141.3733537 | AA32: 162.5793568 | AB32: 186.9662603 | AC32: 215.0111993 | AD32: 247.2628792 | AE32: 284.3523111 | AF32: 327.0051578 | AG32: 376.0559315 | AH32: 432.4643212 | AI32: 497.3339694 | AJ32: 571.9340648 | AK32: 657.7241745 | AL32: 756.3828007 | AM32: 869.8402208 | AN32: 1000.316254 | AO32: 1150.363692 | AP32: 1322.918246 | AQ32: 1521.355983 | AR32: 1749.55938 | AS32: 2011.993287 | AT32: 1438.141596 | AU32: 1610.080301 | AV32: 1805.620685 | AW32: 2028.193544 | AX32: 2281.73882 | AY32: 2570.781699 | AZ32: 2024.869428 | BA32: 2226.144525 | BB32: 2452.48812 | BC32: 2707.404351 | BD32: 2994.910167 | BE32: 3319.611613 | BF32: 2811.140838 | BG32: 3051.729506 | BH32: 3319.35235 | BI32: 3617.611792 | BJ32: 3950.62798 | BK32: 4323.115317 | BL32: 3864.819728 | BM32: 4158.092339 | BN32: 4481.033326 | BO32: 4837.376816 | BP32: 5231.381256 | BQ32: 5667.906256 | BR32: 5276.850214 | BS32: 5640.72435 | BT32: =IF(BT2>=$E$17,OFFSET(BT28,0,-$E$17)) -> 6037.796936 | BU32: 6471.978608 | BV32: 6947.713137 | BW32: 7470.054731 | BX32: 7169.106112 | BY32: 7627.593043 | BZ32: 8124.009065 | CA32: 8662.501343 | CB32: 9247.762008 | CC32: 9885.106046 | CD32: 9704.909993 | CE32: 10290.18712 | CF32: 10919.73284 | CG32: 11598.01131 | CH32: 12330.04747 | CI32: 13121.50579 | CJ32: 13103.12972 | CK32: 13858.31783 | CL32: 14666.27009 | CM32: 15531.87542 | CN32: 16460.60479 | CO32: 17458.59097 | CP32: 17657.06916 | CQ32: 18639.95424 | CR32: 19686.98833 | CS32: 20803.62957 | CT32: 21995.94664 | CU32: 23270.69991 | CV32: 23759.78355 | CW32: 25047.80436 | CX32: 26415.23094 | CY32: 27868.28432 | CZ32: 29413.83413 | DA32: 31059.48177 | DB32: 31938.00451 | DC32: 33634.93636 | DD32: 35431.71954 | DE32: 37335.59735 | DF32: 39354.51281 | DG32: 41497.19439 | DH32: 42897.60275 | DI32: 45142.51452 | DJ32: 47514.67661 | DK32: 50022.70227 | DL32: 52675.97298 | DM32: 55484.72757 | DN32: 57584.51259 | DO32: 60563.76984 | DP32: 63706.99471 | DQ32: 67024.63627 | DR32: 70528.00368 | DS32: 74229.3598 | DT32: 77266.37643 | DU32: 81229.72688 | DV32: 85406.24959 | DW32: 89808.8539 | DX32: 94451.43219 | DY32: 99348.95974 | DZ32: 103641.9564 | EA32: 108924.0858 | EB32: 114485.3265 | EC32: 120341.8846 | ED32: 126511.1145 | EE32: 133011.6261 | EF32: =IF(EF2>=$E$17,OFFSET(EF28,0,-$E$17)) -> 138987.7561 | EG32: 146037.1755 | EH32: 153454.0706 | EI32: 161259.066 | EJ32: 169474.1549 | EK32: 178122.8186 | EL32: 186354.5081 | EM32: 195772.2652 | EN32: 205675.9148 | EO32: 216092.0024 | EP32: 227048.7381 | EQ32: 238576.1309 | ER32: 249830.4861 | ES32: 262422.0421 | ET32: 275658.1805 | EU32: 289573.3814 | EV32: 304204.186 | EW32: 319589.3513 | EX32: 334894.3675 | EY32: 351739.1175 | EZ32: 369441.1097 | FA32: 388045.457 | FB32: 407599.8655 | FC32: 428154.8147 | FD32: 448888.1041 | FE32: 471432.5409 | FF32: 495119.2043 | FG32: 520007.4564 | FH32: 546159.9648 | FI32: 573642.919 | FJ32: 601650.6136 | FK32: 631833.1759 | FL32: 663539.871 | FM32: 696849.1564 | FN32: 731843.7498 | FO32: 768610.8933 | FP32: 806366.9866 | FQ32: 846785.3675 | FR32: 889239.6723 | FS32: 933833.9477 | FT32: 980677.7807 | FU32: 1029886.626 | FV32: 1080706.506 | FW32: 1134841.862 | FX32: 1191698.992 | FY32: 1251416.233 | FZ32: 1314139.181 | GA32: 1380021.096 | GB32: 1448347.699 | GC32: 1520865.116 | GD32: 1597023.408 | GE32: 1677006.87 | GF32: 1761009.349 | GG32: 1849234.773 | GH32: 1941022.06 | GI32: 2038173.194 | GJ32: 2140196.89 | GK32: 2247339.027 | GL32: 2359858.114 | GM32: 2478025.975 | GN32: 2601252.823 | GO32: 2731415.496 | GP32: 2868101.307 | GQ32: 3011638.664 | GR32: =IF(GR2>=$E$17,OFFSET(GR28,0,-$E$17)) -> 3162372.733 | GS32: 3320666.325 | GT32: 3486025.19 | GU32: 3660426.481 | GV32: 3843562.842 | GW32: 4035873.276 | GX32: 4237819.075 | GY32: 4449884.985 | GZ32: 4671704.783 | HA32: 4905390.053 | HB32: 5150774.592 | HC32: 5408445.614 | HD32: 5679020.03 | HE32: 5963145.988 | HF32: 6260628.836 | HG32: 6573760.309 | HH32: 6902563.361 | HI32: 7247823.821 | HJ32: 7610367.147 | HK32: 7991060.461 | HL32: 8389939.032 | HM32: 8809536.016 | HN32: 9250127.853 | HO32: 9712766.537 | HP32: 10198557 | HQ32: 10708659.81 | HR32: 11243418.34 | HS32: 11805689.29 | HT32: 12396088.79 | HU32: 13016025.53 | HV32: 13666978.94 | HW32: 14350502.84 | HX32: 15067353.53 | HY32: 15820821.24 | HZ32: 16611977.34 | IA32: 17442708.5 | IB32: 18314996.06 | IC32: 19230920.82 | ID32: 20191792.41 | IE32: 21201482.06 | IF32: 22261671.2 | IG32: 23374887.05 | IH32: 24543783.54 | II32: 25771147.67 | IJ32: 27059030.6 | IK32: 28412082.16 | IL32: 29832801.31 | IM32: 31324573.66 | IN32: 32890954.48 | IO32: 34535677.16 | IP32: 36261786.57 | IQ32: 38074975.93 | IR32: 39978839.76 | IS32: 41977914.04 | IT32: 44076961.88 | IU32: 46280984.93 | IV32: 48594359.73 | IW32: 51024177.74 | IX32: 53575501.67 | IY32: 56254409.04 | IZ32: 59067281.63 | JA32: 62020820.67 | JB32: 65121187.25 | JC32: 68377346.64 | JD32: =IF(JD2>=$E$17,OFFSET(JD28,0,-$E$17)) -> 71796329.01 | JE32: 75386277.75 | JF32: 79155743.78 | JG32: 83113705.92 | JH32: 87268716.77 | JI32: 91632252.64 | JJ32: 96213980.31 | JK32: 101024811.6 | JL32: 106076204.3 | JM32: 111380189.5 | JN32: 116948524.5 | JO32: 122796050.8 | JP32: 128935968.4 | JQ32: 135382899.1 | JR32: 142152196.2 | JS32: 149259980.9 | JT32: 156722305.5 | JU32: 164558520.8 | JV32: 172786561.9 | JW32: 181426022.3 | JX32: 190497475.5 | JY32: 200022524.3 | JZ32: 210022976 | KA32: 220524224.9 | KB32: 231550551.1 | KC32: 243128211 | KD32: 255284773.7 | KE32: 268049187.3 | KF32: 281450972.2 | KG32: 295523620.9 | KH32: 310299917 | KI32: 325815045.1 | KJ32: 342105949.5 | KK32: 359211421.9 | KL32: 377171318.6 | KM32: 396029984.5 | KN32: 415831598.8 | KO32: 436623311 | KP32: 458454628.7 | KQ32: 481377535.1 | KR32: 505445737.4 | KS32: 530718124.3 | KT32: 557254145.5 | KU32: 585116985.1
D33: Total Retirements | H33: =H31+H32 -> 11.42369066 | I33: =I31+I32 -> 13.13724425 | J33: 15.10783089 | K33: 17.37400553 | L33: 19.98010635 | M33: 22.97712231 | N33: 26.42369066 | O33: 30.38724425 | P33: 34.94533089 | Q33: 40.18713053 | R33: 46.2152001 | S33: 53.14748012 | T33: 61.11960214 | U33: 70.28754246 | V33: 80.83067383 | W33: 92.9552749 | X33: 106.8985661 | Y33: 122.9333511 | Z33: 141.3733537 | AA33: 162.5793568 | AB33: 186.9662603 | AC33: 215.0111993 | AD33: 247.2628792 | AE33: 284.3523111 | AF33: 327.0051578 | AG33: 376.0559315 | AH33: 432.4643212 | AI33: 497.3339694 | AJ33: 571.9340648 | AK33: 657.7241745 | AL33: 756.3828007 | AM33: 869.8402208 | AN33: 1000.316254 | AO33: 1150.363692 | AP33: 1322.918246 | AQ33: 1521.355983 | AR33: 1749.55938 | AS33: 2011.993287 | AT33: 1438.141596 | AU33: 1610.080301 | AV33: 1805.620685 | AW33: 2028.193544 | AX33: 2281.73882 | AY33: 2570.781699 | AZ33: 2024.869428 | BA33: 2226.144525 | BB33: 2452.48812 | BC33: 2707.404351 | BD33: 2994.910167 | BE33: 3319.611613 | BF33: 2811.140838 | BG33: 3051.729506 | BH33: 3319.35235 | BI33: 3617.611792 | BJ33: 3950.62798 | BK33: 4323.115317 | BL33: 3864.819728 | BM33: 4158.092339 | BN33: 4481.033326 | BO33: 4837.376816 | BP33: 5231.381256 | BQ33: 5667.906256 | BR33: 5276.850214 | BS33: 5640.72435 | BT33: 6037.796936 | BU33: =BU31+BU32 -> 6471.978608 | BV33: 6947.713137 | BW33: 7470.054731 | BX33: 7169.106112 | BY33: 7627.593043 | BZ33: 8124.009065 | CA33: 8662.501343 | CB33: 9247.762008 | CC33: 9885.106046 | CD33: 9704.909993 | CE33: 10290.18712 | CF33: 10919.73284 | CG33: 11598.01131 | CH33: 12330.04747 | CI33: 13121.50579 | CJ33: 13103.12972 | CK33: 13858.31783 | CL33: 14666.27009 | CM33: 15531.87542 | CN33: 16460.60479 | CO33: 17458.59097 | CP33: 17657.06916 | CQ33: 18639.95424 | CR33: 19686.98833 | CS33: 20803.62957 | CT33: 21995.94664 | CU33: 23270.69991 | CV33: 23759.78355 | CW33: 25047.80436 | CX33: 26415.23094 | CY33: 27868.28432 | CZ33: 29413.83413 | DA33: 31059.48177 | DB33: 31938.00451 | DC33: 33634.93636 | DD33: 35431.71954 | DE33: 37335.59735 | DF33: 39354.51281 | DG33: 41497.19439 | DH33: 42897.60275 | DI33: 45142.51452 | DJ33: 47514.67661 | DK33: 50022.70227 | DL33: 52675.97298 | DM33: 55484.72757 | DN33: 57584.51259 | DO33: 60563.76984 | DP33: 63706.99471 | DQ33: 67024.63627 | DR33: 70528.00368 | DS33: 74229.3598 | DT33: 77266.37643 | DU33: 81229.72688 | DV33: 85406.24959 | DW33: 89808.8539 | DX33: 94451.43219 | DY33: 99348.95974 | DZ33: 103641.9564 | EA33: 108924.0858 | EB33: 114485.3265 | EC33: 120341.8846 | ED33: 126511.1145 | EE33: 133011.6261 | EF33: 138987.7561 | EG33: =EG31+EG32 -> 146037.1755 | EH33: 153454.0706 | EI33: 161259.066 | EJ33: 169474.1549 | EK33: 178122.8186 | EL33: 186354.5081 | EM33: 195772.2652 | EN33: 205675.9148 | EO33: 216092.0024 | EP33: 227048.7381 | EQ33: 238576.1309 | ER33: 249830.4861 | ES33: 262422.0421 | ET33: 275658.1805 | EU33: 289573.3814 | EV33: 304204.186 | EW33: 319589.3513 | EX33: 334894.3675 | EY33: 351739.1175 | EZ33: 369441.1097 | FA33: 388045.457 | FB33: 407599.8655 | FC33: 428154.8147 | FD33: 448888.1041 | FE33: 471432.5409 | FF33: 495119.2043 | FG33: 520007.4564 | FH33: 546159.9648 | FI33: 573642.919 | FJ33: 601650.6136 | FK33: 631833.1759 | FL33: 663539.871 | FM33: 696849.1564 | FN33: 731843.7498 | FO33: 768610.8933 | FP33: 806366.9866 | FQ33: 846785.3675 | FR33: 889239.6723 | FS33: 933833.9477 | FT33: 980677.7807 | FU33: 1029886.626 | FV33: 1080706.506 | FW33: 1134841.862 | FX33: 1191698.992 | FY33: 1251416.233 | FZ33: 1314139.181 | GA33: 1380021.096 | GB33: 1448347.699 | GC33: 1520865.116 | GD33: 1597023.408 | GE33: 1677006.87 | GF33: 1761009.349 | GG33: 1849234.773 | GH33: 1941022.06 | GI33: 2038173.194 | GJ33: 2140196.89 | GK33: 2247339.027 | GL33: 2359858.114 | GM33: 2478025.975 | GN33: 2601252.823 | GO33: 2731415.496 | GP33: 2868101.307 | GQ33: 3011638.664 | GR33: 3162372.733 | GS33: =GS31+GS32 -> 3320666.325 | GT33: 3486025.19 | GU33: 3660426.481 | GV33: 3843562.842 | GW33: 4035873.276 | GX33: 4237819.075 | GY33: 4449884.985 | GZ33: 4671704.783 | HA33: 4905390.053 | HB33: 5150774.592 | HC33: 5408445.614 | HD33: 5679020.03 | HE33: 5963145.988 | HF33: 6260628.836 | HG33: 6573760.309 | HH33: 6902563.361 | HI33: 7247823.821 | HJ33: 7610367.147 | HK33: 7991060.461 | HL33: 8389939.032 | HM33: 8809536.016 | HN33: 9250127.853 | HO33: 9712766.537 | HP33: 10198557 | HQ33: 10708659.81 | HR33: 11243418.34 | HS33: 11805689.29 | HT33: 12396088.79 | HU33: 13016025.53 | HV33: 13666978.94 | HW33: 14350502.84 | HX33: 15067353.53 | HY33: 15820821.24 | HZ33: 16611977.34 | IA33: 17442708.5 | IB33: 18314996.06 | IC33: 19230920.82 | ID33: 20191792.41 | IE33: 21201482.06 | IF33: 22261671.2 | IG33: 23374887.05 | IH33: 24543783.54 | II33: 25771147.67 | IJ33: 27059030.6 | IK33: 28412082.16 | IL33: 29832801.31 | IM33: 31324573.66 | IN33: 32890954.48 | IO33: 34535677.16 | IP33: 36261786.57 | IQ33: 38074975.93 | IR33: 39978839.76 | IS33: 41977914.04 | IT33: 44076961.88 | IU33: 46280984.93 | IV33: 48594359.73 | IW33: 51024177.74 | IX33: 53575501.67 | IY33: 56254409.04 | IZ33: 59067281.63 | JA33: 62020820.67 | JB33: 65121187.25 | JC33: 68377346.64 | JD33: 71796329.01 | JE33: =JE31+JE32 -> 75386277.75 | JF33: 79155743.78 | JG33: 83113705.92 | JH33: 87268716.77 | JI33: 91632252.64 | JJ33: 96213980.31 | JK33: 101024811.6 | JL33: 106076204.3 | JM33: 111380189.5 | JN33: 116948524.5 | JO33: 122796050.8 | JP33: 128935968.4 | JQ33: 135382899.1 | JR33: 142152196.2 | JS33: 149259980.9 | JT33: 156722305.5 | JU33: 164558520.8 | JV33: 172786561.9 | JW33: 181426022.3 | JX33: 190497475.5 | JY33: 200022524.3 | JZ33: 210022976 | KA33: 220524224.9 | KB33: 231550551.1 | KC33: 243128211 | KD33: 255284773.7 | KE33: 268049187.3 | KF33: 281450972.2 | KG33: 295523620.9 | KH33: 310299917 | KI33: 325815045.1 | KJ33: 342105949.5 | KK33: 359211421.9 | KL33: 377171318.6 | KM33: 396029984.5 | KN33: 415831598.8 | KO33: 436623311 | KP33: 458454628.7 | KQ33: 481377535.1 | KR33: 505445737.4 | KS33: 530718124.3 | KT33: 557254145.5 | KU33: 585116985.1
B35: Depreciation Expense - True Value
C36: Plant Balance
D37: Opening Balance | H37: =G40 -> 100 | I37: =H40 -> 115 | J37: 132.25 | K37: 152.0875 | L37: 174.900625 | M37: 201.1357187 | N37: 231.3060766 | O37: 266.001988 | P37: 305.9022863 | Q37: 351.7876292 | R37: 404.5557736 | S37: 465.2391396 | T37: 535.0250105 | U37: 615.2787621 | V37: 707.5705764 | W37: 813.7061629 | X37: 935.7620874 | Y37: 1076.1264 | Z37: 1237.545361 | AA37: 1423.177165 | AB37: 1636.653739 | AC37: 1882.1518 | AD37: 2164.47457 | AE37: 2489.145756 | AF37: 2862.517619 | AG37: 3291.895262 | AH37: 3785.679551 | AI37: 4353.531484 | AJ37: 5006.561207 | AK37: 5757.545388 | AL37: 6621.177196 | AM37: 7614.353775 | AN37: 8756.506841 | AO37: 9194.332183 | AP37: 9654.048793 | AQ37: 10136.75123 | AR37: 10643.58879 | AS37: 11175.76823 | AT37: 11734.55665 | AU37: 12321.28448 | AV37: 12937.3487 | AW37: 13584.21614 | AX37: 14263.42694 | AY37: 14976.59829 | AZ37: 15725.4282 | BA37: 16511.69962 | BB37: 17337.2846 | BC37: 18204.14883 | BD37: 19114.35627 | BE37: 20070.07408 | BF37: 21073.57778 | BG37: 22127.25667 | BH37: 23233.61951 | BI37: 24395.30048 | BJ37: 25615.06551 | BK37: 26895.81878 | BL37: 28240.60972 | BM37: 29652.64021 | BN37: 31135.27222 | BO37: 32692.03583 | BP37: 34326.63762 | BQ37: 36042.9695 | BR37: 37845.11798 | BS37: 39737.37387 | BT37: 41724.24257 | BU37: =BT40 -> 43810.4547 | BV37: 46000.97743 | BW37: 48301.0263 | BX37: 50716.07762 | BY37: 53251.8815 | BZ37: 55914.47557 | CA37: 58710.19935 | CB37: 61645.70932 | CC37: 64727.99479 | CD37: 67964.39453 | CE37: 71362.61425 | CF37: 74930.74496 | CG37: 78677.28221 | CH37: 82611.14632 | CI37: 86741.70364 | CJ37: 91078.78882 | CK37: 95632.72826 | CL37: 100414.3647 | CM37: 105435.0829 | CN37: 110706.8371 | CO37: 116242.1789 | CP37: 122054.2879 | CQ37: 128157.0022 | CR37: 134564.8524 | CS37: 141293.095 | CT37: 148357.7497 | CU37: 155775.6372 | CV37: 163564.4191 | CW37: 171742.64 | CX37: 180329.772 | CY37: 189346.2606 | CZ37: 198813.5737 | DA37: 208754.2523 | DB37: 219191.965 | DC37: 230151.5632 | DD37: 241659.1414 | DE37: 253742.0984 | DF37: 266429.2034 | DG37: 279750.6635 | DH37: 293738.1967 | DI37: 308425.1065 | DJ37: 323846.3619 | DK37: 340038.68 | DL37: 357040.614 | DM37: 374892.6447 | DN37: 393637.2769 | DO37: 413319.1407 | DP37: 433985.0978 | DQ37: 455684.3527 | DR37: 478468.5703 | DS37: 502391.9988 | DT37: 527511.5987 | DU37: 553887.1787 | DV37: 581581.5376 | DW37: 610660.6145 | DX37: 641193.6452 | DY37: 673253.3275 | DZ37: 706915.9939 | EA37: 742261.7935 | EB37: 779374.8832 | EC37: 818343.6274 | ED37: 859260.8088 | EE37: 902223.8492 | EF37: 947335.0416 | EG37: =EF40 -> 994701.7937 | EH37: 1044436.883 | EI37: 1096658.728 | EJ37: 1151491.664 | EK37: 1209066.247 | EL37: 1269519.56 | EM37: 1332995.538 | EN37: 1399645.314 | EO37: 1469627.58 | EP37: 1543108.959 | EQ37: 1620264.407 | ER37: 1701277.627 | ES37: 1786341.509 | ET37: 1875658.584 | EU37: 1969441.513 | EV37: 2067913.589 | EW37: 2171309.269 | EX37: 2279874.732 | EY37: 2393868.469 | EZ37: 2513561.892 | FA37: 2639239.987 | FB37: 2771201.986 | FC37: 2909762.085 | FD37: 3055250.19 | FE37: 3208012.699 | FF37: 3368413.334 | FG37: 3536834.001 | FH37: 3713675.701 | FI37: 3899359.486 | FJ37: 4094327.46 | FK37: 4299043.833 | FL37: 4513996.025 | FM37: 4739695.826 | FN37: 4976680.617 | FO37: 5225514.648 | FP37: 5486790.38 | FQ37: 5761129.899 | FR37: 6049186.394 | FS37: 6351645.714 | FT37: 6669228 | FU37: 7002689.4 | FV37: 7352823.87 | FW37: 7720465.063 | FX37: 8106488.316 | FY37: 8511812.732 | FZ37: 8937403.369 | GA37: 9384273.537 | GB37: 9853487.214 | GC37: 10346161.57 | GD37: 10863469.65 | GE37: 11406643.14 | GF37: 11976975.29 | GG37: 12575824.06 | GH37: 13204615.26 | GI37: 13864846.02 | GJ37: 14558088.32 | GK37: 15285992.74 | GL37: 16050292.38 | GM37: 16852807 | GN37: 17695447.35 | GO37: 18580219.71 | GP37: 19509230.7 | GQ37: 20484692.24 | GR37: 21508926.85 | GS37: =GR40 -> 22584373.19 | GT37: 23713591.85 | GU37: 24899271.44 | GV37: 26144235.01 | GW37: 27451446.76 | GX37: 28824019.1 | GY37: 30265220.06 | GZ37: 31778481.06 | HA37: 33367405.11 | HB37: 35035775.37 | HC37: 36787564.14 | HD37: 38626942.34 | HE37: 40558289.46 | HF37: 42586203.93 | HG37: 44715514.13 | HH37: 46951289.84 | HI37: 49298854.33 | HJ37: 51763797.05 | HK37: 54351986.9 | HL37: 57069586.24 | HM37: 59923065.55 | HN37: 62919218.83 | HO37: 66065179.77 | HP37: 69368438.76 | HQ37: 72836860.7 | HR37: 76478703.74 | HS37: 80302638.92 | HT37: 84317770.87 | HU37: 88533659.41 | HV37: 92960342.38 | HW37: 97608359.5 | HX37: 102488777.5 | HY37: 107613216.4 | HZ37: 112993877.2 | IA37: 118643571 | IB37: 124575749.6 | IC37: 130804537.1 | ID37: 137344763.9 | IE37: 144212002.1 | IF37: 151422602.2 | IG37: 158993732.3 | IH37: 166943418.9 | II37: 175290589.9 | IJ37: 184055119.4 | IK37: 193257875.3 | IL37: 202920769.1 | IM37: 213066807.6 | IN37: 223720147.9 | IO37: 234906155.3 | IP37: 246651463.1 | IQ37: 258984036.3 | IR37: 271933238.1 | IS37: 285529900 | IT37: 299806395 | IU37: 314796714.7 | IV37: 330536550.5 | IW37: 347063378 | IX37: 364416546.9 | IY37: 382637374.2 | IZ37: 401769243 | JA37: 421857705.1 | JB37: 442950590.4 | JC37: 465098119.9 | JD37: 488353025.9 | JE37: =JD40 -> 512770677.2 | JF37: 538409211 | JG37: 565329671.6 | JH37: 593596155.2 | JI37: 623275962.9 | JJ37: 654439761.1 | JK37: 687161749.1 | JL37: 721519836.6 | JM37: 757595828.4 | JN37: 795475619.8 | JO37: 835249400.8 | JP37: 877011870.8 | JQ37: 920862464.4 | JR37: 966905587.6 | JS37: 1015250867 | JT37: 1066013410 | JU37: 1119314081 | JV37: 1175279785 | JW37: 1234043774 | JX37: 1295745963 | JY37: 1360533261 | JZ37: 1428559924 | KA37: 1499987920 | KB37: 1574987316 | KC37: 1653736682 | KD37: 1736423516 | KE37: 1823244692 | KF37: 1914406927 | KG37: 2010127273 | KH37: 2110633637 | KI37: 2216165318 | KJ37: 2326973584 | KK37: 2443322263 | KL37: 2565488377 | KM37: 2693762796 | KN37: 2828450935 | KO37: 2969873482 | KP37: 3118367156 | KQ37: 3274285514 | KR37: 3437999790 | KS37: 3609899779 | KT37: 3790394768 | KU37: 3979914506
D38: Add: Capital Expenditures | H38: =H28 -> 26.42369066 | I38: =I28 -> 30.38724425 | J38: 34.94533089 | K38: 40.18713053 | L38: 46.2152001 | M38: 53.14748012 | N38: 61.11960214 | O38: 70.28754246 | P38: 80.83067383 | Q38: 92.9552749 | R38: 106.8985661 | S38: 122.9333511 | T38: 141.3733537 | U38: 162.5793568 | V38: 186.9662603 | W38: 215.0111993 | X38: 247.2628792 | Y38: 284.3523111 | Z38: 327.0051578 | AA38: 376.0559315 | AB38: 432.4643212 | AC38: 497.3339694 | AD38: 571.9340648 | AE38: 657.7241745 | AF38: 756.3828007 | AG38: 869.8402208 | AH38: 1000.316254 | AI38: 1150.363692 | AJ38: 1322.918246 | AK38: 1521.355983 | AL38: 1749.55938 | AM38: 2011.993287 | AN38: 1438.141596 | AO38: 1610.080301 | AP38: 1805.620685 | AQ38: 2028.193544 | AR38: 2281.73882 | AS38: 2570.781699 | AT38: 2024.869428 | AU38: 2226.144525 | AV38: 2452.48812 | AW38: 2707.404351 | AX38: 2994.910167 | AY38: 3319.611613 | AZ38: 2811.140838 | BA38: 3051.729506 | BB38: 3319.35235 | BC38: 3617.611792 | BD38: 3950.62798 | BE38: 4323.115317 | BF38: 3864.819728 | BG38: 4158.092339 | BH38: 4481.033326 | BI38: 4837.376816 | BJ38: 5231.381256 | BK38: 5667.906256 | BL38: 5276.850214 | BM38: 5640.72435 | BN38: 6037.796936 | BO38: 6471.978608 | BP38: 6947.713137 | BQ38: 7470.054731 | BR38: 7169.106112 | BS38: 7627.593043 | BT38: 8124.009065 | BU38: =BU28 -> 8662.501343 | BV38: 9247.762008 | BW38: 9885.106046 | BX38: 9704.909993 | BY38: 10290.18712 | BZ38: 10919.73284 | CA38: 11598.01131 | CB38: 12330.04747 | CC38: 13121.50579 | CD38: 13103.12972 | CE38: 13858.31783 | CF38: 14666.27009 | CG38: 15531.87542 | CH38: 16460.60479 | CI38: 17458.59097 | CJ38: 17657.06916 | CK38: 18639.95424 | CL38: 19686.98833 | CM38: 20803.62957 | CN38: 21995.94664 | CO38: 23270.69991 | CP38: 23759.78355 | CQ38: 25047.80436 | CR38: 26415.23094 | CS38: 27868.28432 | CT38: 29413.83413 | CU38: 31059.48177 | CV38: 31938.00451 | CW38: 33634.93636 | CX38: 35431.71954 | CY38: 37335.59735 | CZ38: 39354.51281 | DA38: 41497.19439 | DB38: 42897.60275 | DC38: 45142.51452 | DD38: 47514.67661 | DE38: 50022.70227 | DF38: 52675.97298 | DG38: 55484.72757 | DH38: 57584.51259 | DI38: 60563.76984 | DJ38: 63706.99471 | DK38: 67024.63627 | DL38: 70528.00368 | DM38: 74229.3598 | DN38: 77266.37643 | DO38: 81229.72688 | DP38: 85406.24959 | DQ38: 89808.8539 | DR38: 94451.43219 | DS38: 99348.95974 | DT38: 103641.9564 | DU38: 108924.0858 | DV38: 114485.3265 | DW38: 120341.8846 | DX38: 126511.1145 | DY38: 133011.6261 | DZ38: 138987.7561 | EA38: 146037.1755 | EB38: 153454.0706 | EC38: 161259.066 | ED38: 169474.1549 | EE38: 178122.8186 | EF38: 186354.5081 | EG38: =EG28 -> 195772.2652 | EH38: 205675.9148 | EI38: 216092.0024 | EJ38: 227048.7381 | EK38: 238576.1309 | EL38: 249830.4861 | EM38: 262422.0421 | EN38: 275658.1805 | EO38: 289573.3814 | EP38: 304204.186 | EQ38: 319589.3513 | ER38: 334894.3675 | ES38: 351739.1175 | ET38: 369441.1097 | EU38: 388045.457 | EV38: 407599.8655 | EW38: 428154.8147 | EX38: 448888.1041 | EY38: 471432.5409 | EZ38: 495119.2043 | FA38: 520007.4564 | FB38: 546159.9648 | FC38: 573642.919 | FD38: 601650.6136 | FE38: 631833.1759 | FF38: 663539.871 | FG38: 696849.1564 | FH38: 731843.7498 | FI38: 768610.8933 | FJ38: 806366.9866 | FK38: 846785.3675 | FL38: 889239.6723 | FM38: 933833.9477 | FN38: 980677.7807 | FO38: 1029886.626 | FP38: 1080706.506 | FQ38: 1134841.862 | FR38: 1191698.992 | FS38: 1251416.233 | FT38: 1314139.181 | FU38: 1380021.096 | FV38: 1448347.699 | FW38: 1520865.116 | FX38: 1597023.408 | FY38: 1677006.87 | FZ38: 1761009.349 | GA38: 1849234.773 | GB38: 1941022.06 | GC38: 2038173.194 | GD38: 2140196.89 | GE38: 2247339.027 | GF38: 2359858.114 | GG38: 2478025.975 | GH38: 2601252.823 | GI38: 2731415.496 | GJ38: 2868101.307 | GK38: 3011638.664 | GL38: 3162372.733 | GM38: 3320666.325 | GN38: 3486025.19 | GO38: 3660426.481 | GP38: 3843562.842 | GQ38: 4035873.276 | GR38: 4237819.075 | GS38: =GS28 -> 4449884.985 | GT38: 4671704.783 | GU38: 4905390.053 | GV38: 5150774.592 | GW38: 5408445.614 | GX38: 5679020.03 | GY38: 5963145.988 | GZ38: 6260628.836 | HA38: 6573760.309 | HB38: 6902563.361 | HC38: 7247823.821 | HD38: 7610367.147 | HE38: 7991060.461 | HF38: 8389939.032 | HG38: 8809536.016 | HH38: 9250127.853 | HI38: 9712766.537 | HJ38: 10198557 | HK38: 10708659.81 | HL38: 11243418.34 | HM38: 11805689.29 | HN38: 12396088.79 | HO38: 13016025.53 | HP38: 13666978.94 | HQ38: 14350502.84 | HR38: 15067353.53 | HS38: 15820821.24 | HT38: 16611977.34 | HU38: 17442708.5 | HV38: 18314996.06 | HW38: 19230920.82 | HX38: 20191792.41 | HY38: 21201482.06 | HZ38: 22261671.2 | IA38: 23374887.05 | IB38: 24543783.54 | IC38: 25771147.67 | ID38: 27059030.6 | IE38: 28412082.16 | IF38: 29832801.31 | IG38: 31324573.66 | IH38: 32890954.48 | II38: 34535677.16 | IJ38: 36261786.57 | IK38: 38074975.93 | IL38: 39978839.76 | IM38: 41977914.04 | IN38: 44076961.88 | IO38: 46280984.93 | IP38: 48594359.73 | IQ38: 51024177.74 | IR38: 53575501.67 | IS38: 56254409.04 | IT38: 59067281.63 | IU38: 62020820.67 | IV38: 65121187.25 | IW38: 68377346.64 | IX38: 71796329.01 | IY38: 75386277.75 | IZ38: 79155743.78 | JA38: 83113705.92 | JB38: 87268716.77 | JC38: 91632252.64 | JD38: 96213980.31 | JE38: =JE28 -> 101024811.6 | JF38: 106076204.3 | JG38: 111380189.5 | JH38: 116948524.5 | JI38: 122796050.8 | JJ38: 128935968.4 | JK38: 135382899.1 | JL38: 142152196.2 | JM38: 149259980.9 | JN38: 156722305.5 | JO38: 164558520.8 | JP38: 172786561.9 | JQ38: 181426022.3 | JR38: 190497475.5 | JS38: 200022524.3 | JT38: 210022976 | JU38: 220524224.9 | JV38: 231550551.1 | JW38: 243128211 | JX38: 255284773.7 | JY38: 268049187.3 | JZ38: 281450972.2 | KA38: 295523620.9 | KB38: 310299917 | KC38: 325815045.1 | KD38: 342105949.5 | KE38: 359211421.9 | KF38: 377171318.6 | KG38: 396029984.5 | KH38: 415831598.8 | KI38: 436623311 | KJ38: 458454628.7 | KK38: 481377535.1 | KL38: 505445737.4 | KM38: 530718124.3 | KN38: 557254145.5 | KO38: 585116985.1 | KP38: 614372986.5 | KQ38: 645091810.8 | KR38: 677345726.9 | KS38: 711213113.3 | KT38: 746773884 | KU38: 585116985.1
D39: Less: Retirements | H39: =H33 -> 11.42369066 | I39: =I33 -> 13.13724425 | J39: 15.10783089 | K39: 17.37400553 | L39: 19.98010635 | M39: 22.97712231 | N39: 26.42369066 | O39: 30.38724425 | P39: 34.94533089 | Q39: 40.18713053 | R39: 46.2152001 | S39: 53.14748012 | T39: 61.11960214 | U39: 70.28754246 | V39: 80.83067383 | W39: 92.9552749 | X39: 106.8985661 | Y39: 122.9333511 | Z39: 141.3733537 | AA39: 162.5793568 | AB39: 186.9662603 | AC39: 215.0111993 | AD39: 247.2628792 | AE39: 284.3523111 | AF39: 327.0051578 | AG39: 376.0559315 | AH39: 432.4643212 | AI39: 497.3339694 | AJ39: 571.9340648 | AK39: 657.7241745 | AL39: 756.3828007 | AM39: 869.8402208 | AN39: 1000.316254 | AO39: 1150.363692 | AP39: 1322.918246 | AQ39: 1521.355983 | AR39: 1749.55938 | AS39: 2011.993287 | AT39: 1438.141596 | AU39: 1610.080301 | AV39: 1805.620685 | AW39: 2028.193544 | AX39: 2281.73882 | AY39: 2570.781699 | AZ39: 2024.869428 | BA39: 2226.144525 | BB39: 2452.48812 | BC39: 2707.404351 | BD39: 2994.910167 | BE39: 3319.611613 | BF39: 2811.140838 | BG39: 3051.729506 | BH39: 3319.35235 | BI39: 3617.611792 | BJ39: 3950.62798 | BK39: 4323.115317 | BL39: 3864.819728 | BM39: 4158.092339 | BN39: 4481.033326 | BO39: 4837.376816 | BP39: 5231.381256 | BQ39: 5667.906256 | BR39: 5276.850214 | BS39: 5640.72435 | BT39: 6037.796936 | BU39: =BU33 -> 6471.978608 | BV39: 6947.713137 | BW39: 7470.054731 | BX39: 7169.106112 | BY39: 7627.593043 | BZ39: 8124.009065 | CA39: 8662.501343 | CB39: 9247.762008 | CC39: 9885.106046 | CD39: 9704.909993 | CE39: 10290.18712 | CF39: 10919.73284 | CG39: 11598.01131 | CH39: 12330.04747 | CI39: 13121.50579 | CJ39: 13103.12972 | CK39: 13858.31783 | CL39: 14666.27009 | CM39: 15531.87542 | CN39: 16460.60479 | CO39: 17458.59097 | CP39: 17657.06916 | CQ39: 18639.95424 | CR39: 19686.98833 | CS39: 20803.62957 | CT39: 21995.94664 | CU39: 23270.69991 | CV39: 23759.78355 | CW39: 25047.80436 | CX39: 26415.23094 | CY39: 27868.28432 | CZ39: 29413.83413 | DA39: 31059.48177 | DB39: 31938.00451 | DC39: 33634.93636 | DD39: 35431.71954 | DE39: 37335.59735 | DF39: 39354.51281 | DG39: 41497.19439 | DH39: 42897.60275 | DI39: 45142.51452 | DJ39: 47514.67661 | DK39: 50022.70227 | DL39: 52675.97298 | DM39: 55484.72757 | DN39: 57584.51259 | DO39: 60563.76984 | DP39: 63706.99471 | DQ39: 67024.63627 | DR39: 70528.00368 | DS39: 74229.3598 | DT39: 77266.37643 | DU39: 81229.72688 | DV39: 85406.24959 | DW39: 89808.8539 | DX39: 94451.43219 | DY39: 99348.95974 | DZ39: 103641.9564 | EA39: 108924.0858 | EB39: 114485.3265 | EC39: 120341.8846 | ED39: 126511.1145 | EE39: 133011.6261 | EF39: 138987.7561 | EG39: =EG33 -> 146037.1755 | EH39: 153454.0706 | EI39: 161259.066 | EJ39: 169474.1549 | EK39: 178122.8186 | EL39: 186354.5081 | EM39: 195772.2652 | EN39: 205675.9148 | EO39: 216092.0024 | EP39: 227048.7381 | EQ39: 238576.1309 | ER39: 249830.4861 | ES39: 262422.0421 | ET39: 275658.1805 | EU39: 289573.3814 | EV39: 304204.186 | EW39: 319589.3513 | EX39: 334894.3675 | EY39: 351739.1175 | EZ39: 369441.1097 | FA39: 388045.457 | FB39: 407599.8655 | FC39: 428154.8147 | FD39: 448888.1041 | FE39: 471432.5409 | FF39: 495119.2043 | FG39: 520007.4564 | FH39: 546159.9648 | FI39: 573642.919 | FJ39: 601650.6136 | FK39: 631833.1759 | FL39: 663539.871 | FM39: 696849.1564 | FN39: 731843.7498 | FO39: 768610.8933 | FP39: 806366.9866 | FQ39: 846785.3675 | FR39: 889239.6723 | FS39: 933833.9477 | FT39: 980677.7807 | FU39: 1029886.626 | FV39: 1080706.506 | FW39: 1134841.862 | FX39: 1191698.992 | FY39: 1251416.233 | FZ39: 1314139.181 | GA39: 1380021.096 | GB39: 1448347.699 | GC39: 1520865.116 | GD39: 1597023.408 | GE39: 1677006.87 | GF39: 1761009.349 | GG39: 1849234.773 | GH39: 1941022.06 | GI39: 2038173.194 | GJ39: 2140196.89 | GK39: 2247339.027 | GL39: 2359858.114 | GM39: 2478025.975 | GN39: 2601252.823 | GO39: 2731415.496 | GP39: 2868101.307 | GQ39: 3011638.664 | GR39: 3162372.733 | GS39: =GS33 -> 3320666.325 | GT39: 3486025.19 | GU39: 3660426.481 | GV39: 3843562.842 | GW39: 4035873.276 | GX39: 4237819.075 | GY39: 4449884.985 | GZ39: 4671704.783 | HA39: 4905390.053 | HB39: 5150774.592 | HC39: 5408445.614 | HD39: 5679020.03 | HE39: 5963145.988 | HF39: 6260628.836 | HG39: 6573760.309 | HH39: 6902563.361 | HI39: 7247823.821 | HJ39: 7610367.147 | HK39: 7991060.461 | HL39: 8389939.032 | HM39: 8809536.016 | HN39: 9250127.853 | HO39: 9712766.537 | HP39: 10198557 | HQ39: 10708659.81 | HR39: 11243418.34 | HS39: 11805689.29 | HT39: 12396088.79 | HU39: 13016025.53 | HV39: 13666978.94 | HW39: 14350502.84 | HX39: 15067353.53 | HY39: 15820821.24 | HZ39: 16611977.34 | IA39: 17442708.5 | IB39: 18314996.06 | IC39: 19230920.82 | ID39: 20191792.41 | IE39: 21201482.06 | IF39: 22261671.2 | IG39: 23374887.05 | IH39: 24543783.54 | II39: 25771147.67 | IJ39: 27059030.6 | IK39: 28412082.16 | IL39: 29832801.31 | IM39: 31324573.66 | IN39: 32890954.48 | IO39: 34535677.16 | IP39: 36261786.57 | IQ39: 38074975.93 | IR39: 39978839.76 | IS39: 41977914.04 | IT39: 44076961.88 | IU39: 46280984.93 | IV39: 48594359.73 | IW39: 51024177.74 | IX39: 53575501.67 | IY39: 56254409.04 | IZ39: 59067281.63 | JA39: 62020820.67 | JB39: 65121187.25 | JC39: 68377346.64 | JD39: 71796329.01 | JE39: =JE33 -> 75386277.75 | JF39: 79155743.78 | JG39: 83113705.92 | JH39: 87268716.77 | JI39: 91632252.64 | JJ39: 96213980.31 | JK39: 101024811.6 | JL39: 106076204.3 | JM39: 111380189.5 | JN39: 116948524.5 | JO39: 122796050.8 | JP39: 128935968.4 | JQ39: 135382899.1 | JR39: 142152196.2 | JS39: 149259980.9 | JT39: 156722305.5 | JU39: 164558520.8 | JV39: 172786561.9 | JW39: 181426022.3 | JX39: 190497475.5 | JY39: 200022524.3 | JZ39: 210022976 | KA39: 220524224.9 | KB39: 231550551.1 | KC39: 243128211 | KD39: 255284773.7 | KE39: 268049187.3 | KF39: 281450972.2 | KG39: 295523620.9 | KH39: 310299917 | KI39: 325815045.1 | KJ39: 342105949.5 | KK39: 359211421.9 | KL39: 377171318.6 | KM39: 396029984.5 | KN39: 415831598.8 | KO39: 436623311 | KP39: 458454628.7 | KQ39: 481377535.1 | KR39: 505445737.4 | KS39: 530718124.3 | KT39: 557254145.5 | KU39: 585116985.1
D40: Closing Balance | G40: =G25 -> 100 | H40: =H37+H38-H39 -> 115 | I40: =I37+I38-I39 -> 132.25 | J40: 152.0875 | K40: 174.900625 | L40: 201.1357187 | M40: 231.3060766 | N40: 266.001988 | O40: 305.9022863 | P40: 351.7876292 | Q40: 404.5557736 | R40: 465.2391396 | S40: 535.0250105 | T40: 615.2787621 | U40: 707.5705764 | V40: 813.7061629 | W40: 935.7620874 | X40: 1076.1264 | Y40: 1237.545361 | Z40: 1423.177165 | AA40: 1636.653739 | AB40: 1882.1518 | AC40: 2164.47457 | AD40: 2489.145756 | AE40: 2862.517619 | AF40: 3291.895262 | AG40: 3785.679551 | AH40: 4353.531484 | AI40: 5006.561207 | AJ40: 5757.545388 | AK40: 6621.177196 | AL40: 7614.353775 | AM40: 8756.506841 | AN40: 9194.332183 | AO40: 9654.048793 | AP40: 10136.75123 | AQ40: 10643.58879 | AR40: 11175.76823 | AS40: 11734.55665 | AT40: 12321.28448 | AU40: 12937.3487 | AV40: 13584.21614 | AW40: 14263.42694 | AX40: 14976.59829 | AY40: 15725.4282 | AZ40: 16511.69962 | BA40: 17337.2846 | BB40: 18204.14883 | BC40: 19114.35627 | BD40: 20070.07408 | BE40: 21073.57778 | BF40: 22127.25667 | BG40: 23233.61951 | BH40: 24395.30048 | BI40: 25615.06551 | BJ40: 26895.81878 | BK40: 28240.60972 | BL40: 29652.64021 | BM40: 31135.27222 | BN40: 32692.03583 | BO40: 34326.63762 | BP40: 36042.9695 | BQ40: 37845.11798 | BR40: 39737.37387 | BS40: 41724.24257 | BT40: 43810.4547 | BU40: =BU37+BU38-BU39 -> 46000.97743 | BV40: 48301.0263 | BW40: 50716.07762 | BX40: 53251.8815 | BY40: 55914.47557 | BZ40: 58710.19935 | CA40: 61645.70932 | CB40: 64727.99479 | CC40: 67964.39453 | CD40: 71362.61425 | CE40: 74930.74496 | CF40: 78677.28221 | CG40: 82611.14632 | CH40: 86741.70364 | CI40: 91078.78882 | CJ40: 95632.72826 | CK40: 100414.3647 | CL40: 105435.0829 | CM40: 110706.8371 | CN40: 116242.1789 | CO40: 122054.2879 | CP40: 128157.0022 | CQ40: 134564.8524 | CR40: 141293.095 | CS40: 148357.7497 | CT40: 155775.6372 | CU40: 163564.4191 | CV40: 171742.64 | CW40: 180329.772 | CX40: 189346.2606 | CY40: 198813.5737 | CZ40: 208754.2523 | DA40: 219191.965 | DB40: 230151.5632 | DC40: 241659.1414 | DD40: 253742.0984 | DE40: 266429.2034 | DF40: 279750.6635 | DG40: 293738.1967 | DH40: 308425.1065 | DI40: 323846.3619 | DJ40: 340038.68 | DK40: 357040.614 | DL40: 374892.6447 | DM40: 393637.2769 | DN40: 413319.1407 | DO40: 433985.0978 | DP40: 455684.3527 | DQ40: 478468.5703 | DR40: 502391.9988 | DS40: 527511.5987 | DT40: 553887.1787 | DU40: 581581.5376 | DV40: 610660.6145 | DW40: 641193.6452 | DX40: 673253.3275 | DY40: 706915.9939 | DZ40: 742261.7935 | EA40: 779374.8832 | EB40: 818343.6274 | EC40: 859260.8088 | ED40: 902223.8492 | EE40: 947335.0416 | EF40: 994701.7937 | EG40: =EG37+EG38-EG39 -> 1044436.883 | EH40: 1096658.728 | EI40: 1151491.664 | EJ40: 1209066.247 | EK40: 1269519.56 | EL40: 1332995.538 | EM40: 1399645.314 | EN40: 1469627.58 | EO40: 1543108.959 | EP40: 1620264.407 | EQ40: 1701277.627 | ER40: 1786341.509 | ES40: 1875658.584 | ET40: 1969441.513 | EU40: 2067913.589 | EV40: 2171309.269 | EW40: 2279874.732 | EX40: 2393868.469 | EY40: 2513561.892 | EZ40: 2639239.987 | FA40: 2771201.986 | FB40: 2909762.085 | FC40: 3055250.19 | FD40: 3208012.699 | FE40: 3368413.334 | FF40: 3536834.001 | FG40: 3713675.701 | FH40: 3899359.486 | FI40: 4094327.46 | FJ40: 4299043.833 | FK40: 4513996.025 | FL40: 4739695.826 | FM40: 4976680.617 | FN40: 5225514.648 | FO40: 5486790.38 | FP40: 5761129.899 | FQ40: 6049186.394 | FR40: 6351645.714 | FS40: 6669228 | FT40: 7002689.4 | FU40: 7352823.87 | FV40: 7720465.063 | FW40: 8106488.316 | FX40: 8511812.732 | FY40: 8937403.369 | FZ40: 9384273.537 | GA40: 9853487.214 | GB40: 10346161.57 | GC40: 10863469.65 | GD40: 11406643.14 | GE40: 11976975.29 | GF40: 12575824.06 | GG40: 13204615.26 | GH40: 13864846.02 | GI40: 14558088.32 | GJ40: 15285992.74 | GK40: 16050292.38 | GL40: 16852807 | GM40: 17695447.35 | GN40: 18580219.71 | GO40: 19509230.7 | GP40: 20484692.24 | GQ40: 21508926.85 | GR40: 22584373.19 | GS40: =GS37+GS38-GS39 -> 23713591.85 | GT40: 24899271.44 | GU40: 26144235.01 | GV40: 27451446.76 | GW40: 28824019.1 | GX40: 30265220.06 | GY40: 31778481.06 | GZ40: 33367405.11 | HA40: 35035775.37 | HB40: 36787564.14 | HC40: 38626942.34 | HD40: 40558289.46 | HE40: 42586203.93 | HF40: 44715514.13 | HG40: 46951289.84 | HH40: 49298854.33 | HI40: 51763797.05 | HJ40: 54351986.9 | HK40: 57069586.24 | HL40: 59923065.55 | HM40: 62919218.83 | HN40: 66065179.77 | HO40: 69368438.76 | HP40: 72836860.7 | HQ40: 76478703.74 | HR40: 80302638.92 | HS40: 84317770.87 | HT40: 88533659.41 | HU40: 92960342.38 | HV40: 97608359.5 | HW40: 102488777.5 | HX40: 107613216.4 | HY40: 112993877.2 | HZ40: 118643571 | IA40: 124575749.6 | IB40: 130804537.1 | IC40: 137344763.9 | ID40: 144212002.1 | IE40: 151422602.2 | IF40: 158993732.3 | IG40: 166943418.9 | IH40: 175290589.9 | II40: 184055119.4 | IJ40: 193257875.3 | IK40: 202920769.1 | IL40: 213066807.6 | IM40: 223720147.9 | IN40: 234906155.3 | IO40: 246651463.1 | IP40: 258984036.3 | IQ40: 271933238.1 | IR40: 285529900 | IS40: 299806395 | IT40: 314796714.7 | IU40: 330536550.5 | IV40: 347063378 | IW40: 364416546.9 | IX40: 382637374.2 | IY40: 401769243 | IZ40: 421857705.1 | JA40: 442950590.4 | JB40: 465098119.9 | JC40: 488353025.9 | JD40: 512770677.2 | JE40: =JE37+JE38-JE39 -> 538409211 | JF40: 565329671.6 | JG40: 593596155.2 | JH40: 623275962.9 | JI40: 654439761.1 | JJ40: 687161749.1 | JK40: 721519836.6 | JL40: 757595828.4 | JM40: 795475619.8 | JN40: 835249400.8 | JO40: 877011870.8 | JP40: 920862464.4 | JQ40: 966905587.6 | JR40: 1015250867 | JS40: 1066013410 | JT40: 1119314081 | JU40: 1175279785 | JV40: 1234043774 | JW40: 1295745963 | JX40: 1360533261 | JY40: 1428559924 | JZ40: 1499987920 | KA40: 1574987316 | KB40: 1653736682 | KC40: 1736423516 | KD40: 1823244692 | KE40: 1914406927 | KF40: 2010127273 | KG40: 2110633637 | KH40: 2216165318 | KI40: 2326973584 | KJ40: 2443322263 | KK40: 2565488377 | KL40: 2693762796 | KM40: 2828450935 | KN40: 2969873482 | KO40: 3118367156 | KP40: 3274285514 | KQ40: 3437999790 | KR40: 3609899779 | KS40: 3790394768 | KT40: 3979914506 | KU40: 3979914506
D42: Depreciation Rate | H42: =1/$E$17 -> 0.1666666667 | I42: =1/$E$17 -> 0.1666666667 | J42: 0.1666666667 | K42: 0.1666666667 | L42: 0.1666666667 | M42: 0.1666666667 | N42: 0.1666666667 | O42: 0.1666666667 | P42: 0.1666666667 | Q42: 0.1666666667 | R42: 0.1666666667 | S42: 0.1666666667 | T42: 0.1666666667 | U42: 0.1666666667 | V42: 0.1666666667 | W42: 0.1666666667 | X42: 0.1666666667 | Y42: 0.1666666667 | Z42: 0.1666666667 | AA42: 0.1666666667 | AB42: 0.1666666667 | AC42: 0.1666666667 | AD42: 0.1666666667 | AE42: 0.1666666667 | AF42: 0.1666666667 | AG42: 0.1666666667 | AH42: 0.1666666667 | AI42: 0.1666666667 | AJ42: 0.1666666667 | AK42: 0.1666666667 | AL42: 0.1666666667 | AM42: 0.1666666667 | AN42: 0.1666666667 | AO42: 0.1666666667 | AP42: 0.1666666667 | AQ42: 0.1666666667 | AR42: 0.1666666667 | AS42: 0.1666666667 | AT42: 0.1666666667 | AU42: 0.1666666667 | AV42: 0.1666666667 | AW42: 0.1666666667 | AX42: 0.1666666667 | AY42: 0.1666666667 | AZ42: 0.1666666667 | BA42: 0.1666666667 | BB42: 0.1666666667 | BC42: 0.1666666667 | BD42: 0.1666666667 | BE42: 0.1666666667 | BF42: 0.1666666667 | BG42: 0.1666666667 | BH42: 0.1666666667 | BI42: 0.1666666667 | BJ42: 0.1666666667 | BK42: 0.1666666667 | BL42: 0.1666666667 | BM42: 0.1666666667 | BN42: 0.1666666667 | BO42: 0.1666666667 | BP42: 0.1666666667 | BQ42: 0.1666666667 | BR42: 0.1666666667 | BS42: 0.1666666667 | BT42: 0.1666666667 | BU42: =1/$E$17 -> 0.1666666667 | BV42: 0.1666666667 | BW42: 0.1666666667 | BX42: 0.1666666667 | BY42: 0.1666666667 | BZ42: 0.1666666667 | CA42: 0.1666666667 | CB42: 0.1666666667 | CC42: 0.1666666667 | CD42: 0.1666666667 | CE42: 0.1666666667 | CF42: 0.1666666667 | CG42: 0.1666666667 | CH42: 0.1666666667 | CI42: 0.1666666667 | CJ42: 0.1666666667 | CK42: 0.1666666667 | CL42: 0.1666666667 | CM42: 0.1666666667 | CN42: 0.1666666667 | CO42: 0.1666666667 | CP42: 0.1666666667 | CQ42: 0.1666666667 | CR42: 0.1666666667 | CS42: 0.1666666667 | CT42: 0.1666666667 | CU42: 0.1666666667 | CV42: 0.1666666667 | CW42: 0.1666666667 | CX42: 0.1666666667 | CY42: 0.1666666667 | CZ42: 0.1666666667 | DA42: 0.1666666667 | DB42: 0.1666666667 | DC42: 0.1666666667 | DD42: 0.1666666667 | DE42: 0.1666666667 | DF42: 0.1666666667 | DG42: 0.1666666667 | DH42: 0.1666666667 | DI42: 0.1666666667 | DJ42: 0.1666666667 | DK42: 0.1666666667 | DL42: 0.1666666667 | DM42: 0.1666666667 | DN42: 0.1666666667 | DO42: 0.1666666667 | DP42: 0.1666666667 | DQ42: 0.1666666667 | DR42: 0.1666666667 | DS42: 0.1666666667 | DT42: 0.1666666667 | DU42: 0.1666666667 | DV42: 0.1666666667 | DW42: 0.1666666667 | DX42: 0.1666666667 | DY42: 0.1666666667 | DZ42: 0.1666666667 | EA42: 0.1666666667 | EB42: 0.1666666667 | EC42: 0.1666666667 | ED42: 0.1666666667 | EE42: 0.1666666667 | EF42: 0.1666666667 | EG42: =1/$E$17 -> 0.1666666667 | EH42: 0.1666666667 | EI42: 0.1666666667 | EJ42: 0.1666666667 | EK42: 0.1666666667 | EL42: 0.1666666667 | EM42: 0.1666666667 | EN42: 0.1666666667 | EO42: 0.1666666667 | EP42: 0.1666666667 | EQ42: 0.1666666667 | ER42: 0.1666666667 | ES42: 0.1666666667 | ET42: 0.1666666667 | EU42: 0.1666666667 | EV42: 0.1666666667 | EW42: 0.1666666667 | EX42: 0.1666666667 | EY42: 0.1666666667 | EZ42: 0.1666666667 | FA42: 0.1666666667 | FB42: 0.1666666667 | FC42: 0.1666666667 | FD42: 0.1666666667 | FE42: 0.1666666667 | FF42: 0.1666666667 | FG42: 0.1666666667 | FH42: 0.1666666667 | FI42: 0.1666666667 | FJ42: 0.1666666667 | FK42: 0.1666666667 | FL42: 0.1666666667 | FM42: 0.1666666667 | FN42: 0.1666666667 | FO42: 0.1666666667 | FP42: 0.1666666667 | FQ42: 0.1666666667 | FR42: 0.1666666667 | FS42: 0.1666666667 | FT42: 0.1666666667 | FU42: 0.1666666667 | FV42: 0.1666666667 | FW42: 0.1666666667 | FX42: 0.1666666667 | FY42: 0.1666666667 | FZ42: 0.1666666667 | GA42: 0.1666666667 | GB42: 0.1666666667 | GC42: 0.1666666667 | GD42: 0.1666666667 | GE42: 0.1666666667 | GF42: 0.1666666667 | GG42: 0.1666666667 | GH42: 0.1666666667 | GI42: 0.1666666667 | GJ42: 0.1666666667 | GK42: 0.1666666667 | GL42: 0.1666666667 | GM42: 0.1666666667 | GN42: 0.1666666667 | GO42: 0.1666666667 | GP42: 0.1666666667 | GQ42: 0.1666666667 | GR42: 0.1666666667 | GS42: =1/$E$17 -> 0.1666666667 | GT42: 0.1666666667 | GU42: 0.1666666667 | GV42: 0.1666666667 | GW42: 0.1666666667 | GX42: 0.1666666667 | GY42: 0.1666666667 | GZ42: 0.1666666667 | HA42: 0.1666666667 | HB42: 0.1666666667 | HC42: 0.1666666667 | HD42: 0.1666666667 | HE42: 0.1666666667 | HF42: 0.1666666667 | HG42: 0.1666666667 | HH42: 0.1666666667 | HI42: 0.1666666667 | HJ42: 0.1666666667 | HK42: 0.1666666667 | HL42: 0.1666666667 | HM42: 0.1666666667 | HN42: 0.1666666667 | HO42: 0.1666666667 | HP42: 0.1666666667 | HQ42: 0.1666666667 | HR42: 0.1666666667 | HS42: 0.1666666667 | HT42: 0.1666666667 | HU42: 0.1666666667 | HV42: 0.1666666667 | HW42: 0.1666666667 | HX42: 0.1666666667 | HY42: 0.1666666667 | HZ42: 0.1666666667 | IA42: 0.1666666667 | IB42: 0.1666666667 | IC42: 0.1666666667 | ID42: 0.1666666667 | IE42: 0.1666666667 | IF42: 0.1666666667 | IG42: 0.1666666667 | IH42: 0.1666666667 | II42: 0.1666666667 | IJ42: 0.1666666667 | IK42: 0.1666666667 | IL42: 0.1666666667 | IM42: 0.1666666667 | IN42: 0.1666666667 | IO42: 0.1666666667 | IP42: 0.1666666667 | IQ42: 0.1666666667 | IR42: 0.1666666667 | IS42: 0.1666666667 | IT42: 0.1666666667 | IU42: 0.1666666667 | IV42: 0.1666666667 | IW42: 0.1666666667 | IX42: 0.1666666667 | IY42: 0.1666666667 | IZ42: 0.1666666667 | JA42: 0.1666666667 | JB42: 0.1666666667 | JC42: 0.1666666667 | JD42: 0.1666666667 | JE42: =1/$E$17 -> 0.1666666667 | JF42: 0.1666666667 | JG42: 0.1666666667 | JH42: 0.1666666667 | JI42: 0.1666666667 | JJ42: 0.1666666667 | JK42: 0.1666666667 | JL42: 0.1666666667 | JM42: 0.1666666667 | JN42: 0.1666666667 | JO42: 0.1666666667 | JP42: 0.1666666667 | JQ42: 0.1666666667 | JR42: 0.1666666667 | JS42: 0.1666666667 | JT42: 0.1666666667 | JU42: 0.1666666667 | JV42: 0.1666666667 | JW42: 0.1666666667 | JX42: 0.1666666667 | JY42: 0.1666666667 | JZ42: 0.1666666667 | KA42: 0.1666666667 | KB42: 0.1666666667 | KC42: 0.1666666667 | KD42: 0.1666666667 | KE42: 0.1666666667 | KF42: 0.1666666667 | KG42: 0.1666666667 | KH42: 0.1666666667 | KI42: 0.1666666667 | KJ42: 0.1666666667 | KK42: 0.1666666667 | KL42: 0.1666666667 | KM42: 0.1666666667 | KN42: 0.1666666667 | KO42: 0.1666666667 | KP42: 0.1666666667 | KQ42: 0.1666666667 | KR42: 0.1666666667 | KS42: 0.1666666667 | KT42: 0.1666666667 | KU42: 0.1666666667
D43: Depreciation Expense | H43: =H42*H37 -> 16.66666667 | I43: =I42*I37 -> 19.16666667 | J43: 22.04166667 | K43: 25.34791667 | L43: 29.15010417 | M43: 33.52261979 | N43: 38.55101276 | O43: 44.33366467 | P43: 50.98371438 | Q43: 58.63127153 | R43: 67.42596226 | S43: 77.5398566 | T43: 89.17083509 | U43: 102.5464604 | V43: 117.9284294 | W43: 135.6176938 | X43: 155.9603479 | Y43: 179.3544001 | Z43: 206.2575601 | AA43: 237.1961941 | AB43: 272.7756232 | AC43: 313.6919667 | AD43: 360.7457617 | AE43: 414.857626 | AF43: 477.0862699 | AG43: 548.6492103 | AH43: 630.9465919 | AI43: 725.5885807 | AJ43: 834.4268678 | AK43: 959.5908979 | AL43: 1103.529533 | AM43: 1269.058963 | AN43: 1459.417807 | AO43: 1532.388697 | AP43: 1609.008132 | AQ43: 1689.458539 | AR43: 1773.931466 | AS43: 1862.628039 | AT43: 1955.759441 | AU43: 2053.547413 | AV43: 2156.224784 | AW43: 2264.036023 | AX43: 2377.237824 | AY43: 2496.099715 | AZ43: 2620.904701 | BA43: 2751.949936 | BB43: 2889.547433 | BC43: 3034.024804 | BD43: 3185.726044 | BE43: 3345.012347 | BF43: 3512.262964 | BG43: 3687.876112 | BH43: 3872.269918 | BI43: 4065.883414 | BJ43: 4269.177584 | BK43: 4482.636464 | BL43: 4706.768287 | BM43: 4942.106701 | BN43: 5189.212036 | BO43: 5448.672638 | BP43: 5721.10627 | BQ43: 6007.161583 | BR43: 6307.519663 | BS43: 6622.895646 | BT43: 6954.040428 | BU43: =BU42*BU37 -> 7301.742449 | BV43: 7666.829572 | BW43: 8050.17105 | BX43: 8452.679603 | BY43: 8875.313583 | BZ43: 9319.079262 | CA43: 9785.033225 | CB43: 10274.28489 | CC43: 10787.99913 | CD43: 11327.39909 | CE43: 11893.76904 | CF43: 12488.45749 | CG43: 13112.88037 | CH43: 13768.52439 | CI43: 14456.95061 | CJ43: 15179.79814 | CK43: 15938.78804 | CL43: 16735.72745 | CM43: 17572.51382 | CN43: 18451.13951 | CO43: 19373.69648 | CP43: 20342.38131 | CQ43: 21359.50037 | CR43: 22427.47539 | CS43: 23548.84916 | CT43: 24726.29162 | CU43: 25962.6062 | CV43: 27260.73651 | CW43: 28623.77334 | CX43: 30054.962 | CY43: 31557.7101 | CZ43: 33135.59561 | DA43: 34792.37539 | DB43: 36531.99416 | DC43: 38358.59387 | DD43: 40276.52356 | DE43: 42290.34974 | DF43: 44404.86723 | DG43: 46625.11059 | DH43: 48956.36612 | DI43: 51404.18442 | DJ43: 53974.39364 | DK43: 56673.11333 | DL43: 59506.76899 | DM43: 62482.10744 | DN43: 65606.21281 | DO43: 68886.52345 | DP43: 72330.84963 | DQ43: 75947.39211 | DR43: 79744.76171 | DS43: 83731.9998 | DT43: 87918.59979 | DU43: 92314.52978 | DV43: 96930.25627 | DW43: 101776.7691 | DX43: 106865.6075 | DY43: 112208.8879 | DZ43: 117819.3323 | EA43: 123710.2989 | EB43: 129895.8139 | EC43: 136390.6046 | ED43: 143210.1348 | EE43: 150370.6415 | EF43: 157889.1736 | EG43: =EG42*EG37 -> 165783.6323 | EH43: 174072.8139 | EI43: 182776.4546 | EJ43: 191915.2773 | EK43: 201511.0412 | EL43: 211586.5933 | EM43: 222165.9229 | EN43: 233274.2191 | EO43: 244937.93 | EP43: 257184.8265 | EQ43: 270044.0678 | ER43: 283546.2712 | ES43: 297723.5848 | ET43: 312609.764 | EU43: 328240.2522 | EV43: 344652.2649 | EW43: 361884.8781 | EX43: 379979.122 | EY43: 398978.0781 | EZ43: 418926.982 | FA43: 439873.3311 | FB43: 461866.9977 | FC43: 484960.3475 | FD43: 509208.3649 | FE43: 534668.7832 | FF43: 561402.2223 | FG43: 589472.3334 | FH43: 618945.9501 | FI43: 649893.2476 | FJ43: 682387.91 | FK43: 716507.3055 | FL43: 752332.6708 | FM43: 789949.3043 | FN43: 829446.7695 | FO43: 870919.108 | FP43: 914465.0634 | FQ43: 960188.3166 | FR43: 1008197.732 | FS43: 1058607.619 | FT43: 1111538 | FU43: 1167114.9 | FV43: 1225470.645 | FW43: 1286744.177 | FX43: 1351081.386 | FY43: 1418635.455 | FZ43: 1489567.228 | GA43: 1564045.59 | GB43: 1642247.869 | GC43: 1724360.262 | GD43: 1810578.276 | GE43: 1901107.189 | GF43: 1996162.549 | GG43: 2095970.676 | GH43: 2200769.21 | GI43: 2310807.671 | GJ43: 2426348.054 | GK43: 2547665.457 | GL43: 2675048.73 | GM43: 2808801.166 | GN43: 2949241.224 | GO43: 3096703.286 | GP43: 3251538.45 | GQ43: 3414115.373 | GR43: 3584821.141 | GS43: =GS42*GS37 -> 3764062.198 | GT43: 3952265.308 | GU43: 4149878.574 | GV43: 4357372.502 | GW43: 4575241.127 | GX43: 4804003.184 | GY43: 5044203.343 | GZ43: 5296413.51 | HA43: 5561234.185 | HB43: 5839295.895 | HC43: 6131260.689 | HD43: 6437823.724 | HE43: 6759714.91 | HF43: 7097700.656 | HG43: 7452585.688 | HH43: 7825214.973 | HI43: 8216475.722 | HJ43: 8627299.508 | HK43: 9058664.483 | HL43: 9511597.707 | HM43: 9987177.592 | HN43: 10486536.47 | HO43: 11010863.3 | HP43: 11561406.46 | HQ43: 12139476.78 | HR43: 12746450.62 | HS43: 13383773.15 | HT43: 14052961.81 | HU43: 14755609.9 | HV43: 15493390.4 | HW43: 16268059.92 | HX43: 17081462.91 | HY43: 17935536.06 | HZ43: 18832312.86 | IA43: 19773928.5 | IB43: 20762624.93 | IC43: 21800756.18 | ID43: 22890793.99 | IE43: 24035333.68 | IF43: 25237100.37 | IG43: 26498955.39 | IH43: 27823903.16 | II43: 29215098.31 | IJ43: 30675853.23 | IK43: 32209645.89 | IL43: 33820128.19 | IM43: 35511134.6 | IN43: 37286691.32 | IO43: 39151025.89 | IP43: 41108577.19 | IQ43: 43164006.05 | IR43: 45322206.35 | IS43: 47588316.66 | IT43: 49967732.5 | IU43: 52466119.12 | IV43: 55089425.08 | IW43: 57843896.33 | IX43: 60736091.15 | IY43: 63772895.71 | IZ43: 66961540.49 | JA43: 70309617.52 | JB43: 73825098.39 | JC43: 77516353.31 | JD43: 81392170.98 | JE43: =JE42*JE37 -> 85461779.53 | JF43: 89734868.5 | JG43: 94221611.93 | JH43: 98932692.53 | JI43: 103879327.2 | JJ43: 109073293.5 | JK43: 114526958.2 | JL43: 120253306.1 | JM43: 126265971.4 | JN43: 132579270 | JO43: 139208233.5 | JP43: 146168645.1 | JQ43: 153477077.4 | JR43: 161150931.3 | JS43: 169208477.8 | JT43: 177668901.7 | JU43: 186552346.8 | JV43: 195879964.1 | JW43: 205673962.4 | JX43: 215957660.5 | JY43: 226755543.5 | JZ43: 238093320.7 | KA43: 249997986.7 | KB43: 262497886 | KC43: 275622780.3 | KD43: 289403919.4 | KE43: 303874115.3 | KF43: 319067821.1 | KG43: 335021212.1 | KH43: 351772272.8 | KI43: 369360886.4 | KJ43: 387828930.7 | KK43: 407220377.2 | KL43: 427581396.1 | KM43: 448960465.9 | KN43: 471408489.2 | KO43: 494978913.7 | KP43: 519727859.4 | KQ43: 545714252.3 | KR43: 572999964.9 | KS43: 601649963.2 | KT43: 631732461.3 | KU43: 663319084.4
C45: Accumulated Depreciation
D46: Opening Balance | H46: =G49 -> 34.95535319 | I46: =H49 -> 40.1983292 | J46: 46.22775161 | K46: 53.16158739 | L46: 61.13549853 | M46: 70.30549634 | N46: 80.85099382 | O46: 92.97831593 | P46: 106.9247363 | Q46: 122.9631198 | R46: 141.4072608 | S46: 162.618023 | T46: 187.0103995 | U46: 215.0616324 | V46: 247.3205503 | W46: 284.4183059 | X46: 327.0807248 | Y46: 376.1425066 | Z46: 432.5635556 | AA46: 497.4477619 | AB46: 572.0645993 | AC46: 657.8739622 | AD46: 756.5547295 | AE46: 870.037612 | AF46: 1000.542927 | AG46: 1150.624039 | AH46: 1323.217318 | AI46: 1521.699588 | AJ46: 1749.9542 | AK46: 2012.447003 | AL46: 2314.313726 | AM46: 2661.460458 | AN46: 3060.6792 | AO46: 3519.780753 | AP46: 3901.805758 | AQ46: 4187.895644 | AR46: 4355.9982 | AS46: 4380.370286 | AT46: 4231.005038 | AU46: 4748.622883 | AV46: 5192.089995 | AW46: 5542.694093 | AX46: 5778.536571 | AY46: 5874.035575 | AZ46: 5799.353592 | BA46: 6395.388864 | BB46: 6921.194275 | BC46: 7358.253587 | BD46: 7684.874041 | BE46: 7875.689918 | BF46: 7901.090652 | BG46: 8602.212777 | BH46: 9238.359384 | BI46: 9791.276951 | BJ46: 10239.54857 | BK46: 10558.09818 | BL46: 10717.61932 | BM46: 11559.56788 | BN46: 12343.58224 | BO46: 13051.76095 | BP46: 13663.05678 | BQ46: 14152.78179 | BR46: 14492.03712 | BS46: 15522.70657 | BT46: 16504.87786 | BU46: =BT49 -> 17421.12135 | BV46: 18250.8852 | BW46: 18970.00163 | BX46: 19550.11795 | BY46: 20833.69144 | BZ46: 22081.41198 | CA46: 23276.48218 | CB46: 24399.01406 | CC46: 25425.53694 | CD46: 26328.43002 | CE46: 27950.91912 | CF46: 29554.50104 | CG46: 31123.22569 | CH46: 32638.09475 | CI46: 34076.57166 | CJ46: 35412.01648 | CK46: 37488.6849 | CL46: 39569.15511 | CM46: 41638.61247 | CN46: 43679.25087 | CO46: 45669.78559 | CP46: 47584.8911 | CQ46: 50270.20325 | CR46: 52989.74938 | CS46: 55730.23645 | CT46: 58475.45604 | CU46: 61205.80102 | CV46: 63897.70731 | CW46: 67398.66027 | CX46: 70974.62925 | CY46: 74614.36031 | CZ46: 78303.7861 | DA46: 82025.54758 | DB46: 85758.4412 | DC46: 90352.43085 | DD46: 95076.08836 | DE46: 99920.89238 | DF46: 104875.6448 | DG46: 109925.9992 | DH46: 115053.9154 | DI46: 121112.6787 | DJ46: 127374.3486 | DK46: 133834.0657 | DL46: 140484.4767 | DM46: 147315.2727 | DN46: 154312.6526 | DO46: 162334.3528 | DP46: 170657.1065 | DQ46: 179280.9614 | DR46: 188203.7172 | DS46: 197420.4753 | DT46: 206923.1153 | DU46: 217575.3386 | DV46: 228660.1415 | DW46: 240184.1482 | DX46: 252152.0634 | DY46: 264566.2387 | DZ46: 277426.1669 | EA46: 291603.5428 | EB46: 306389.7559 | EC46: 321800.2433 | ED46: 337848.9633 | EE46: 354547.9836 | EF46: 371906.999 | EG46: =EF49 -> 390808.4166 | EH46: 410554.8734 | EI46: 431173.6166 | EJ46: 452691.0052 | EK46: 475132.1277 | EL46: 498520.3503 | EM46: 523752.4354 | EN46: 550146.0931 | EO46: 577744.3974 | EP46: 606590.325 | EQ46: 636726.4135 | ER46: 668194.3504 | ES46: 701910.1355 | ET46: 737211.6782 | EU46: 774163.2617 | EV46: 812830.1326 | EW46: 853278.2114 | EX46: 895573.7382 | EY46: 940658.4927 | EZ46: 987897.4533 | FA46: 1037383.326 | FB46: 1089211.2 | FC46: 1143478.332 | FD46: 1200283.865 | FE46: 1260604.125 | FF46: 1323840.368 | FG46: 1390123.386 | FH46: 1459588.263 | FI46: 1532374.248 | FJ46: 1608624.577 | FK46: 1689361.873 | FL46: 1774036.003 | FM46: 1862828.802 | FN46: 1955928.95 | FO46: 2053531.97 | FP46: 2155840.185 | FQ46: 2263938.262 | FR46: 2377341.211 | FS46: 2496299.271 | FT46: 2621072.942 | FU46: 2751933.161 | FV46: 2889161.436 | FW46: 3033925.575 | FX46: 3185827.89 | FY46: 3345210.284 | FZ46: 3512429.506 | GA46: 3687857.553 | GB46: 3871882.047 | GC46: 4065782.217 | GD46: 4269277.364 | GE46: 4482832.232 | GF46: 4706932.551 | GG46: 4942085.751 | GH46: 5188821.655 | GI46: 5448568.805 | GJ46: 5721203.281 | GK46: 6007354.445 | GL46: 6307680.875 | GM46: 6622871.491 | GN46: 6953646.682 | GO46: 7301635.083 | GP46: 7666922.874 | GQ46: 8050360.017 | GR46: 8452836.725 | GS46: =GR49 -> 8875285.134 | GT46: 9318681.007 | GU46: 9784921.125 | GV46: 10274373.22 | GW46: 10788182.88 | GX46: 11327550.73 | GY46: 11893734.84 | GZ46: 12488053.2 | HA46: 13112761.92 | HB46: 13768606.06 | HC46: 14457127.36 | HD46: 15179942.43 | HE46: 15938746.13 | HF46: 16735315.05 | HG46: 17572386.87 | HH46: 18451212.25 | HI46: 19373863.86 | HJ46: 20342515.76 | HK46: 21359448.12 | HL46: 22427052.14 | HM46: 23548710.82 | HN46: 24726352.4 | HO46: 25962761.02 | HP46: 27260857.77 | HQ46: 28623707.24 | HR46: 30054524.21 | HS46: 31557556.49 | HT46: 33135640.35 | HU46: 34792513.37 | HV46: 36532097.75 | HW46: 38358509.21 | HX46: 40276066.28 | HY46: 42290175.66 | HZ46: 44404890.48 | IA46: 46625226.01 | IB46: 48956446.01 | IC46: 51404074.89 | ID46: 53973910.25 | IE46: 56672911.83 | IF46: 59506763.46 | IG46: 62482192.63 | IH46: 65606260.97 | II46: 68886380.59 | IJ46: 72330331.23 | IK46: 75947153.86 | IL46: 79744717.59 | IM46: 83732044.47 | IN46: 87918605.4 | IO46: 92314342.24 | IP46: 96929690.97 | IQ46: 101776481.6 | IR46: 106865511.7 | IS46: 112208878.3 | IT46: 117819280.9 | IU46: 123710051.5 | IV46: 129895185.7 | IW46: 136390251.1 | IX46: 143209969.7 | IY46: 150370559.1 | IZ46: 157889045.8 | JA46: 165783304.7 | JB46: 174072101.5 | JC46: 182776012.7 | JD46: 191915019.3 | JE46: =JD49 -> 201510861.3 | JF46: 211586363.1 | JG46: 222165487.8 | JH46: 233273393.8 | JI46: 244937369.6 | JJ46: 257184444.1 | JK46: 270043757.3 | JL46: 283545903.9 | JM46: 297723005.6 | JN46: 312608787.5 | JO46: 328239533 | JP46: 344651715.6 | JQ46: 361884392.4 | JR46: 379978570.8 | JS46: 398977305.9 | JT46: 418925802.8 | JU46: 439872399 | JV46: 461866225 | JW46: 484959627.2 | JX46: 509207567.3 | JY46: 534667752.2 | JZ46: 561400771.5 | KA46: 589471116.1 | KB46: 618944877.9 | KC46: 649892212.8 | KD46: 682386782.2 | KE46: 716505927.9 | KF46: 752330855.9 | KG46: 789947704.7 | KH46: 829445296 | KI46: 870917651.8 | KJ46: 914463493.1 | KK46: 960186474.3 | KL46: 1008195430 | KM46: 1058605507 | KN46: 1111535989 | KO46: 1167112879 | KP46: 1225468482 | KQ46: 1286741712 | KR46: 1351078430 | KS46: 1418632657 | KT46: 1489564496 | KU46: 1564042812
D47: Add: Depreciation Expense | H47: =H43 -> 16.66666667 | I47: =I43 -> 19.16666667 | J47: 22.04166667 | K47: 25.34791667 | L47: 29.15010417 | M47: 33.52261979 | N47: 38.55101276 | O47: 44.33366467 | P47: 50.98371438 | Q47: 58.63127153 | R47: 67.42596226 | S47: 77.5398566 | T47: 89.17083509 | U47: 102.5464604 | V47: 117.9284294 | W47: 135.6176938 | X47: 155.9603479 | Y47: 179.3544001 | Z47: 206.2575601 | AA47: 237.1961941 | AB47: 272.7756232 | AC47: 313.6919667 | AD47: 360.7457617 | AE47: 414.857626 | AF47: 477.0862699 | AG47: 548.6492103 | AH47: 630.9465919 | AI47: 725.5885807 | AJ47: 834.4268678 | AK47: 959.5908979 | AL47: 1103.529533 | AM47: 1269.058963 | AN47: 1459.417807 | AO47: 1532.388697 | AP47: 1609.008132 | AQ47: 1689.458539 | AR47: 1773.931466 | AS47: 1862.628039 | AT47: 1955.759441 | AU47: 2053.547413 | AV47: 2156.224784 | AW47: 2264.036023 | AX47: 2377.237824 | AY47: 2496.099715 | AZ47: 2620.904701 | BA47: 2751.949936 | BB47: 2889.547433 | BC47: 3034.024804 | BD47: 3185.726044 | BE47: 3345.012347 | BF47: 3512.262964 | BG47: 3687.876112 | BH47: 3872.269918 | BI47: 4065.883414 | BJ47: 4269.177584 | BK47: 4482.636464 | BL47: 4706.768287 | BM47: 4942.106701 | BN47: 5189.212036 | BO47: 5448.672638 | BP47: 5721.10627 | BQ47: 6007.161583 | BR47: 6307.519663 | BS47: 6622.895646 | BT47: 6954.040428 | BU47: =BU43 -> 7301.742449 | BV47: 7666.829572 | BW47: 8050.17105 | BX47: 8452.679603 | BY47: 8875.313583 | BZ47: 9319.079262 | CA47: 9785.033225 | CB47: 10274.28489 | CC47: 10787.99913 | CD47: 11327.39909 | CE47: 11893.76904 | CF47: 12488.45749 | CG47: 13112.88037 | CH47: 13768.52439 | CI47: 14456.95061 | CJ47: 15179.79814 | CK47: 15938.78804 | CL47: 16735.72745 | CM47: 17572.51382 | CN47: 18451.13951 | CO47: 19373.69648 | CP47: 20342.38131 | CQ47: 21359.50037 | CR47: 22427.47539 | CS47: 23548.84916 | CT47: 24726.29162 | CU47: 25962.6062 | CV47: 27260.73651 | CW47: 28623.77334 | CX47: 30054.962 | CY47: 31557.7101 | CZ47: 33135.59561 | DA47: 34792.37539 | DB47: 36531.99416 | DC47: 38358.59387 | DD47: 40276.52356 | DE47: 42290.34974 | DF47: 44404.86723 | DG47: 46625.11059 | DH47: 48956.36612 | DI47: 51404.18442 | DJ47: 53974.39364 | DK47: 56673.11333 | DL47: 59506.76899 | DM47: 62482.10744 | DN47: 65606.21281 | DO47: 68886.52345 | DP47: 72330.84963 | DQ47: 75947.39211 | DR47: 79744.76171 | DS47: 83731.9998 | DT47: 87918.59979 | DU47: 92314.52978 | DV47: 96930.25627 | DW47: 101776.7691 | DX47: 106865.6075 | DY47: 112208.8879 | DZ47: 117819.3323 | EA47: 123710.2989 | EB47: 129895.8139 | EC47: 136390.6046 | ED47: 143210.1348 | EE47: 150370.6415 | EF47: 157889.1736 | EG47: =EG43 -> 165783.6323 | EH47: 174072.8139 | EI47: 182776.4546 | EJ47: 191915.2773 | EK47: 201511.0412 | EL47: 211586.5933 | EM47: 222165.9229 | EN47: 233274.2191 | EO47: 244937.93 | EP47: 257184.8265 | EQ47: 270044.0678 | ER47: 283546.2712 | ES47: 297723.5848 | ET47: 312609.764 | EU47: 328240.2522 | EV47: 344652.2649 | EW47: 361884.8781 | EX47: 379979.122 | EY47: 398978.0781 | EZ47: 418926.982 | FA47: 439873.3311 | FB47: 461866.9977 | FC47: 484960.3475 | FD47: 509208.3649 | FE47: 534668.7832 | FF47: 561402.2223 | FG47: 589472.3334 | FH47: 618945.9501 | FI47: 649893.2476 | FJ47: 682387.91 | FK47: 716507.3055 | FL47: 752332.6708 | FM47: 789949.3043 | FN47: 829446.7695 | FO47: 870919.108 | FP47: 914465.0634 | FQ47: 960188.3166 | FR47: 1008197.732 | FS47: 1058607.619 | FT47: 1111538 | FU47: 1167114.9 | FV47: 1225470.645 | FW47: 1286744.177 | FX47: 1351081.386 | FY47: 1418635.455 | FZ47: 1489567.228 | GA47: 1564045.59 | GB47: 1642247.869 | GC47: 1724360.262 | GD47: 1810578.276 | GE47: 1901107.189 | GF47: 1996162.549 | GG47: 2095970.676 | GH47: 2200769.21 | GI47: 2310807.671 | GJ47: 2426348.054 | GK47: 2547665.457 | GL47: 2675048.73 | GM47: 2808801.166 | GN47: 2949241.224 | GO47: 3096703.286 | GP47: 3251538.45 | GQ47: 3414115.373 | GR47: 3584821.141 | GS47: =GS43 -> 3764062.198 | GT47: 3952265.308 | GU47: 4149878.574 | GV47: 4357372.502 | GW47: 4575241.127 | GX47: 4804003.184 | GY47: 5044203.343 | GZ47: 5296413.51 | HA47: 5561234.185 | HB47: 5839295.895 | HC47: 6131260.689 | HD47: 6437823.724 | HE47: 6759714.91 | HF47: 7097700.656 | HG47: 7452585.688 | HH47: 7825214.973 | HI47: 8216475.722 | HJ47: 8627299.508 | HK47: 9058664.483 | HL47: 9511597.707 | HM47: 9987177.592 | HN47: 10486536.47 | HO47: 11010863.3 | HP47: 11561406.46 | HQ47: 12139476.78 | HR47: 12746450.62 | HS47: 13383773.15 | HT47: 14052961.81 | HU47: 14755609.9 | HV47: 15493390.4 | HW47: 16268059.92 | HX47: 17081462.91 | HY47: 17935536.06 | HZ47: 18832312.86 | IA47: 19773928.5 | IB47: 20762624.93 | IC47: 21800756.18 | ID47: 22890793.99 | IE47: 24035333.68 | IF47: 25237100.37 | IG47: 26498955.39 | IH47: 27823903.16 | II47: 29215098.31 | IJ47: 30675853.23 | IK47: 32209645.89 | IL47: 33820128.19 | IM47: 35511134.6 | IN47: 37286691.32 | IO47: 39151025.89 | IP47: 41108577.19 | IQ47: 43164006.05 | IR47: 45322206.35 | IS47: 47588316.66 | IT47: 49967732.5 | IU47: 52466119.12 | IV47: 55089425.08 | IW47: 57843896.33 | IX47: 60736091.15 | IY47: 63772895.71 | IZ47: 66961540.49 | JA47: 70309617.52 | JB47: 73825098.39 | JC47: 77516353.31 | JD47: 81392170.98 | JE47: =JE43 -> 85461779.53 | JF47: 89734868.5 | JG47: 94221611.93 | JH47: 98932692.53 | JI47: 103879327.2 | JJ47: 109073293.5 | JK47: 114526958.2 | JL47: 120253306.1 | JM47: 126265971.4 | JN47: 132579270 | JO47: 139208233.5 | JP47: 146168645.1 | JQ47: 153477077.4 | JR47: 161150931.3 | JS47: 169208477.8 | JT47: 177668901.7 | JU47: 186552346.8 | JV47: 195879964.1 | JW47: 205673962.4 | JX47: 215957660.5 | JY47: 226755543.5 | JZ47: 238093320.7 | KA47: 249997986.7 | KB47: 262497886 | KC47: 275622780.3 | KD47: 289403919.4 | KE47: 303874115.3 | KF47: 319067821.1 | KG47: 335021212.1 | KH47: 351772272.8 | KI47: 369360886.4 | KJ47: 387828930.7 | KK47: 407220377.2 | KL47: 427581396.1 | KM47: 448960465.9 | KN47: 471408489.2 | KO47: 494978913.7 | KP47: 519727859.4 | KQ47: 545714252.3 | KR47: 572999964.9 | KS47: 601649963.2 | KT47: 631732461.3 | KU47: 663319084.4
D48: Less: Retirements | E48: Fixed | F48: Computed | H48: =H39 -> 11.42369066 | I48: =I39 -> 13.13724425 | J48: 15.10783089 | K48: 17.37400553 | L48: 19.98010635 | M48: 22.97712231 | N48: 26.42369066 | O48: 30.38724425 | P48: 34.94533089 | Q48: 40.18713053 | R48: 46.2152001 | S48: 53.14748012 | T48: 61.11960214 | U48: 70.28754246 | V48: 80.83067383 | W48: 92.9552749 | X48: 106.8985661 | Y48: 122.9333511 | Z48: 141.3733537 | AA48: 162.5793568 | AB48: 186.9662603 | AC48: 215.0111993 | AD48: 247.2628792 | AE48: 284.3523111 | AF48: 327.0051578 | AG48: 376.0559315 | AH48: 432.4643212 | AI48: 497.3339694 | AJ48: 571.9340648 | AK48: 657.7241745 | AL48: 756.3828007 | AM48: 869.8402208 | AN48: 1000.316254 | AO48: 1150.363692 | AP48: 1322.918246 | AQ48: 1521.355983 | AR48: 1749.55938 | AS48: 2011.993287 | AT48: 1438.141596 | AU48: 1610.080301 | AV48: 1805.620685 | AW48: 2028.193544 | AX48: 2281.73882 | AY48: 2570.781699 | AZ48: 2024.869428 | BA48: 2226.144525 | BB48: 2452.48812 | BC48: 2707.404351 | BD48: 2994.910167 | BE48: 3319.611613 | BF48: 2811.140838 | BG48: 3051.729506 | BH48: 3319.35235 | BI48: 3617.611792 | BJ48: 3950.62798 | BK48: 4323.115317 | BL48: 3864.819728 | BM48: 4158.092339 | BN48: 4481.033326 | BO48: 4837.376816 | BP48: 5231.381256 | BQ48: 5667.906256 | BR48: 5276.850214 | BS48: 5640.72435 | BT48: 6037.796936 | BU48: =BU39 -> 6471.978608 | BV48: 6947.713137 | BW48: 7470.054731 | BX48: 7169.106112 | BY48: 7627.593043 | BZ48: 8124.009065 | CA48: 8662.501343 | CB48: 9247.762008 | CC48: 9885.106046 | CD48: 9704.909993 | CE48: 10290.18712 | CF48: 10919.73284 | CG48: 11598.01131 | CH48: 12330.04747 | CI48: 13121.50579 | CJ48: 13103.12972 | CK48: 13858.31783 | CL48: 14666.27009 | CM48: 15531.87542 | CN48: 16460.60479 | CO48: 17458.59097 | CP48: 17657.06916 | CQ48: 18639.95424 | CR48: 19686.98833 | CS48: 20803.62957 | CT48: 21995.94664 | CU48: 23270.69991 | CV48: 23759.78355 | CW48: 25047.80436 | CX48: 26415.23094 | CY48: 27868.28432 | CZ48: 29413.83413 | DA48: 31059.48177 | DB48: 31938.00451 | DC48: 33634.93636 | DD48: 35431.71954 | DE48: 37335.59735 | DF48: 39354.51281 | DG48: 41497.19439 | DH48: 42897.60275 | DI48: 45142.51452 | DJ48: 47514.67661 | DK48: 50022.70227 | DL48: 52675.97298 | DM48: 55484.72757 | DN48: 57584.51259 | DO48: 60563.76984 | DP48: 63706.99471 | DQ48: 67024.63627 | DR48: 70528.00368 | DS48: 74229.3598 | DT48: 77266.37643 | DU48: 81229.72688 | DV48: 85406.24959 | DW48: 89808.8539 | DX48: 94451.43219 | DY48: 99348.95974 | DZ48: 103641.9564 | EA48: 108924.0858 | EB48: 114485.3265 | EC48: 120341.8846 | ED48: 126511.1145 | EE48: 133011.6261 | EF48: 138987.7561 | EG48: =EG39 -> 146037.1755 | EH48: 153454.0706 | EI48: 161259.066 | EJ48: 169474.1549 | EK48: 178122.8186 | EL48: 186354.5081 | EM48: 195772.2652 | EN48: 205675.9148 | EO48: 216092.0024 | EP48: 227048.7381 | EQ48: 238576.1309 | ER48: 249830.4861 | ES48: 262422.0421 | ET48: 275658.1805 | EU48: 289573.3814 | EV48: 304204.186 | EW48: 319589.3513 | EX48: 334894.3675 | EY48: 351739.1175 | EZ48: 369441.1097 | FA48: 388045.457 | FB48: 407599.8655 | FC48: 428154.8147 | FD48: 448888.1041 | FE48: 471432.5409 | FF48: 495119.2043 | FG48: 520007.4564 | FH48: 546159.9648 | FI48: 573642.919 | FJ48: 601650.6136 | FK48: 631833.1759 | FL48: 663539.871 | FM48: 696849.1564 | FN48: 731843.7498 | FO48: 768610.8933 | FP48: 806366.9866 | FQ48: 846785.3675 | FR48: 889239.6723 | FS48: 933833.9477 | FT48: 980677.7807 | FU48: 1029886.626 | FV48: 1080706.506 | FW48: 1134841.862 | FX48: 1191698.992 | FY48: 1251416.233 | FZ48: 1314139.181 | GA48: 1380021.096 | GB48: 1448347.699 | GC48: 1520865.116 | GD48: 1597023.408 | GE48: 1677006.87 | GF48: 1761009.349 | GG48: 1849234.773 | GH48: 1941022.06 | GI48: 2038173.194 | GJ48: 2140196.89 | GK48: 2247339.027 | GL48: 2359858.114 | GM48: 2478025.975 | GN48: 2601252.823 | GO48: 2731415.496 | GP48: 2868101.307 | GQ48: 3011638.664 | GR48: 3162372.733 | GS48: =GS39 -> 3320666.325 | GT48: 3486025.19 | GU48: 3660426.481 | GV48: 3843562.842 | GW48: 4035873.276 | GX48: 4237819.075 | GY48: 4449884.985 | GZ48: 4671704.783 | HA48: 4905390.053 | HB48: 5150774.592 | HC48: 5408445.614 | HD48: 5679020.03 | HE48: 5963145.988 | HF48: 6260628.836 | HG48: 6573760.309 | HH48: 6902563.361 | HI48: 7247823.821 | HJ48: 7610367.147 | HK48: 7991060.461 | HL48: 8389939.032 | HM48: 8809536.016 | HN48: 9250127.853 | HO48: 9712766.537 | HP48: 10198557 | HQ48: 10708659.81 | HR48: 11243418.34 | HS48: 11805689.29 | HT48: 12396088.79 | HU48: 13016025.53 | HV48: 13666978.94 | HW48: 14350502.84 | HX48: 15067353.53 | HY48: 15820821.24 | HZ48: 16611977.34 | IA48: 17442708.5 | IB48: 18314996.06 | IC48: 19230920.82 | ID48: 20191792.41 | IE48: 21201482.06 | IF48: 22261671.2 | IG48: 23374887.05 | IH48: 24543783.54 | II48: 25771147.67 | IJ48: 27059030.6 | IK48: 28412082.16 | IL48: 29832801.31 | IM48: 31324573.66 | IN48: 32890954.48 | IO48: 34535677.16 | IP48: 36261786.57 | IQ48: 38074975.93 | IR48: 39978839.76 | IS48: 41977914.04 | IT48: 44076961.88 | IU48: 46280984.93 | IV48: 48594359.73 | IW48: 51024177.74 | IX48: 53575501.67 | IY48: 56254409.04 | IZ48: 59067281.63 | JA48: 62020820.67 | JB48: 65121187.25 | JC48: 68377346.64 | JD48: 71796329.01 | JE48: =JE39 -> 75386277.75 | JF48: 79155743.78 | JG48: 83113705.92 | JH48: 87268716.77 | JI48: 91632252.64 | JJ48: 96213980.31 | JK48: 101024811.6 | JL48: 106076204.3 | JM48: 111380189.5 | JN48: 116948524.5 | JO48: 122796050.8 | JP48: 128935968.4 | JQ48: 135382899.1 | JR48: 142152196.2 | JS48: 149259980.9 | JT48: 156722305.5 | JU48: 164558520.8 | JV48: 172786561.9 | JW48: 181426022.3 | JX48: 190497475.5 | JY48: 200022524.3 | JZ48: 210022976 | KA48: 220524224.9 | KB48: 231550551.1 | KC48: 243128211 | KD48: 255284773.7 | KE48: 268049187.3 | KF48: 281450972.2 | KG48: 295523620.9 | KH48: 310299917 | KI48: 325815045.1 | KJ48: 342105949.5 | KK48: 359211421.9 | KL48: 377171318.6 | KM48: 396029984.5 | KN48: 415831598.8 | KO48: 436623311 | KP48: 458454628.7 | KQ48: 481377535.1 | KR48: 505445737.4 | KS48: 530718124.3 | KT48: 557254145.5 | KU48: 585116985.1
D49: Closing Balance | E49: 0.3495535319 | F49: =L11 -> 0.3495340634 | G49: =E49*G40 -> 34.95535319 | H49: =H46+H47-H48 -> 40.1983292 | I49: =I46+I47-I48 -> 46.22775161 | J49: 53.16158739 | K49: 61.13549853 | L49: 70.30549634 | M49: 80.85099382 | N49: 92.97831593 | O49: 106.9247363 | P49: 122.9631198 | Q49: 141.4072608 | R49: 162.618023 | S49: 187.0103995 | T49: 215.0616324 | U49: 247.3205503 | V49: 284.4183059 | W49: 327.0807248 | X49: 376.1425066 | Y49: 432.5635556 | Z49: 497.4477619 | AA49: 572.0645993 | AB49: 657.8739622 | AC49: 756.5547295 | AD49: 870.037612 | AE49: 1000.542927 | AF49: 1150.624039 | AG49: 1323.217318 | AH49: 1521.699588 | AI49: 1749.9542 | AJ49: 2012.447003 | AK49: 2314.313726 | AL49: 2661.460458 | AM49: 3060.6792 | AN49: 3519.780753 | AO49: 3901.805758 | AP49: 4187.895644 | AQ49: 4355.9982 | AR49: 4380.370286 | AS49: 4231.005038 | AT49: 4748.622883 | AU49: 5192.089995 | AV49: 5542.694093 | AW49: 5778.536571 | AX49: 5874.035575 | AY49: 5799.353592 | AZ49: 6395.388864 | BA49: 6921.194275 | BB49: 7358.253587 | BC49: 7684.874041 | BD49: 7875.689918 | BE49: 7901.090652 | BF49: 8602.212777 | BG49: 9238.359384 | BH49: 9791.276951 | BI49: 10239.54857 | BJ49: 10558.09818 | BK49: 10717.61932 | BL49: 11559.56788 | BM49: 12343.58224 | BN49: 13051.76095 | BO49: 13663.05678 | BP49: 14152.78179 | BQ49: 14492.03712 | BR49: 15522.70657 | BS49: 16504.87786 | BT49: 17421.12135 | BU49: =BU46+BU47-BU48 -> 18250.8852 | BV49: 18970.00163 | BW49: 19550.11795 | BX49: 20833.69144 | BY49: 22081.41198 | BZ49: 23276.48218 | CA49: 24399.01406 | CB49: 25425.53694 | CC49: 26328.43002 | CD49: 27950.91912 | CE49: 29554.50104 | CF49: 31123.22569 | CG49: 32638.09475 | CH49: 34076.57166 | CI49: 35412.01648 | CJ49: 37488.6849 | CK49: 39569.15511 | CL49: 41638.61247 | CM49: 43679.25087 | CN49: 45669.78559 | CO49: 47584.8911 | CP49: 50270.20325 | CQ49: 52989.74938 | CR49: 55730.23645 | CS49: 58475.45604 | CT49: 61205.80102 | CU49: 63897.70731 | CV49: 67398.66027 | CW49: 70974.62925 | CX49: 74614.36031 | CY49: 78303.7861 | CZ49: 82025.54758 | DA49: 85758.4412 | DB49: 90352.43085 | DC49: 95076.08836 | DD49: 99920.89238 | DE49: 104875.6448 | DF49: 109925.9992 | DG49: 115053.9154 | DH49: 121112.6787 | DI49: 127374.3486 | DJ49: 133834.0657 | DK49: 140484.4767 | DL49: 147315.2727 | DM49: 154312.6526 | DN49: 162334.3528 | DO49: 170657.1065 | DP49: 179280.9614 | DQ49: 188203.7172 | DR49: 197420.4753 | DS49: 206923.1153 | DT49: 217575.3386 | DU49: 228660.1415 | DV49: 240184.1482 | DW49: 252152.0634 | DX49: 264566.2387 | DY49: 277426.1669 | DZ49: 291603.5428 | EA49: 306389.7559 | EB49: 321800.2433 | EC49: 337848.9633 | ED49: 354547.9836 | EE49: 371906.999 | EF49: 390808.4166 | EG49: =EG46+EG47-EG48 -> 410554.8734 | EH49: 431173.6166 | EI49: 452691.0052 | EJ49: 475132.1277 | EK49: 498520.3503 | EL49: 523752.4354 | EM49: 550146.0931 | EN49: 577744.3974 | EO49: 606590.325 | EP49: 636726.4135 | EQ49: 668194.3504 | ER49: 701910.1355 | ES49: 737211.6782 | ET49: 774163.2617 | EU49: 812830.1326 | EV49: 853278.2114 | EW49: 895573.7382 | EX49: 940658.4927 | EY49: 987897.4533 | EZ49: 1037383.326 | FA49: 1089211.2 | FB49: 1143478.332 | FC49: 1200283.865 | FD49: 1260604.125 | FE49: 1323840.368 | FF49: 1390123.386 | FG49: 1459588.263 | FH49: 1532374.248 | FI49: 1608624.577 | FJ49: 1689361.873 | FK49: 1774036.003 | FL49: 1862828.802 | FM49: 1955928.95 | FN49: 2053531.97 | FO49: 2155840.185 | FP49: 2263938.262 | FQ49: 2377341.211 | FR49: 2496299.271 | FS49: 2621072.942 | FT49: 2751933.161 | FU49: 2889161.436 | FV49: 3033925.575 | FW49: 3185827.89 | FX49: 3345210.284 | FY49: 3512429.506 | FZ49: 3687857.553 | GA49: 3871882.047 | GB49: 4065782.217 | GC49: 4269277.364 | GD49: 4482832.232 | GE49: 4706932.551 | GF49: 4942085.751 | GG49: 5188821.655 | GH49: 5448568.805 | GI49: 5721203.281 | GJ49: 6007354.445 | GK49: 6307680.875 | GL49: 6622871.491 | GM49: 6953646.682 | GN49: 7301635.083 | GO49: 7666922.874 | GP49: 8050360.017 | GQ49: 8452836.725 | GR49: 8875285.134 | GS49: =GS46+GS47-GS48 -> 9318681.007 | GT49: 9784921.125 | GU49: 10274373.22 | GV49: 10788182.88 | GW49: 11327550.73 | GX49: 11893734.84 | GY49: 12488053.2 | GZ49: 13112761.92 | HA49: 13768606.06 | HB49: 14457127.36 | HC49: 15179942.43 | HD49: 15938746.13 | HE49: 16735315.05 | HF49: 17572386.87 | HG49: 18451212.25 | HH49: 19373863.86 | HI49: 20342515.76 | HJ49: 21359448.12 | HK49: 22427052.14 | HL49: 23548710.82 | HM49: 24726352.4 | HN49: 25962761.02 | HO49: 27260857.77 | HP49: 28623707.24 | HQ49: 30054524.21 | HR49: 31557556.49 | HS49: 33135640.35 | HT49: 34792513.37 | HU49: 36532097.75 | HV49: 38358509.21 | HW49: 40276066.28 | HX49: 42290175.66 | HY49: 44404890.48 | HZ49: 46625226.01 | IA49: 48956446.01 | IB49: 51404074.89 | IC49: 53973910.25 | ID49: 56672911.83 | IE49: 59506763.46 | IF49: 62482192.63 | IG49: 65606260.97 | IH49: 68886380.59 | II49: 72330331.23 | IJ49: 75947153.86 | IK49: 79744717.59 | IL49: 83732044.47 | IM49: 87918605.4 | IN49: 92314342.24 | IO49: 96929690.97 | IP49: 101776481.6 | IQ49: 106865511.7 | IR49: 112208878.3 | IS49: 117819280.9 | IT49: 123710051.5 | IU49: 129895185.7 | IV49: 136390251.1 | IW49: 143209969.7 | IX49: 150370559.1 | IY49: 157889045.8 | IZ49: 165783304.7 | JA49: 174072101.5 | JB49: 182776012.7 | JC49: 191915019.3 | JD49: 201510861.3 | JE49: =JE46+JE47-JE48 -> 211586363.1 | JF49: 222165487.8 | JG49: 233273393.8 | JH49: 244937369.6 | JI49: 257184444.1 | JJ49: 270043757.3 | JK49: 283545903.9 | JL49: 297723005.6 | JM49: 312608787.5 | JN49: 328239533 | JO49: 344651715.6 | JP49: 361884392.4 | JQ49: 379978570.8 | JR49: 398977305.9 | JS49: 418925802.8 | JT49: 439872399 | JU49: 461866225 | JV49: 484959627.2 | JW49: 509207567.3 | JX49: 534667752.2 | JY49: 561400771.5 | JZ49: 589471116.1 | KA49: 618944877.9 | KB49: 649892212.8 | KC49: 682386782.2 | KD49: 716505927.9 | KE49: 752330855.9 | KF49: 789947704.7 | KG49: 829445296 | KH49: 870917651.8 | KI49: 914463493.1 | KJ49: 960186474.3 | KK49: 1008195430 | KL49: 1058605507 | KM49: 1111535989 | KN49: 1167112879 | KO49: 1225468482 | KP49: 1286741712 | KQ49: 1351078430 | KR49: 1418632657 | KS49: 1489564496 | KT49: 1564042812 | KU49: 1642244911
E50: =E49-F49 -> 1.946845128e-05 | F50: Diff
D51: Net Plant | G51: =G40-G49 -> 65.04464681 | H51: =H40-H49 -> 74.8016708 | I51: =I40-I49 -> 86.02224839 | J51: 98.92591261 | K51: 113.7651265 | L51: 130.8302224 | M51: 150.4550827 | N51: 173.0236721 | O51: 198.9775499 | P51: 228.8245094 | Q51: 263.1485127 | R51: 302.6211166 | S51: 348.0146111 | T51: 400.2171297 | U51: 460.2500261 | V51: 529.287857 | W51: 608.6813625 | X51: 699.9838939 | Y51: 804.9818049 | Z51: 925.7294027 | AA51: 1064.58914 | AB51: 1224.277838 | AC51: 1407.919841 | AD51: 1619.108144 | AE51: 1861.974692 | AF51: 2141.271223 | AG51: 2462.462234 | AH51: 2831.831896 | AI51: 3256.607007 | AJ51: 3745.098385 | AK51: 4306.86347 | AL51: 4952.893317 | AM51: 5695.827641 | AN51: 5674.551431 | AO51: 5752.243034 | AP51: 5948.855588 | AQ51: 6287.590593 | AR51: 6795.397947 | AS51: 7503.551607 | AT51: 7572.661595 | AU51: 7745.258707 | AV51: 8041.522044 | AW51: 8484.890372 | AX51: 9102.562715 | AY51: 9926.074613 | AZ51: 10116.31075 | BA51: 10416.09032 | BB51: 10845.89524 | BC51: 11429.48223 | BD51: 12194.38416 | BE51: 13172.48713 | BF51: 13525.0439 | BG51: 13995.26012 | BH51: 14604.02353 | BI51: 15375.51693 | BJ51: 16337.7206 | BK51: 17522.9904 | BL51: 18093.07232 | BM51: 18791.68997 | BN51: 19640.27487 | BO51: 20663.58084 | BP51: 21890.18771 | BQ51: 23353.08086 | BR51: 24214.66731 | BS51: 25219.36471 | BT51: 26389.33334 | BU51: =BU40-BU49 -> 27750.09224 | BV51: 29331.02467 | BW51: 31165.95967 | BX51: 32418.19006 | BY51: 33833.06359 | BZ51: 35433.71717 | CA51: 37246.69526 | CB51: 39302.45785 | CC51: 41635.9645 | CD51: 43411.69513 | CE51: 45376.24392 | CF51: 47554.05652 | CG51: 49973.05157 | CH51: 52665.13198 | CI51: 55666.77234 | CJ51: 58144.04336 | CK51: 60845.20956 | CL51: 63796.47044 | CM51: 67027.58619 | CN51: 70572.39332 | CO51: 74469.39675 | CP51: 77886.799 | CQ51: 81575.10298 | CR51: 85562.85853 | CS51: 89882.29368 | CT51: 94569.83619 | CU51: 99666.71176 | CV51: 104343.9798 | CW51: 109355.1428 | CX51: 114731.9003 | CY51: 120509.7876 | CZ51: 126728.7048 | DA51: 133433.5238 | DB51: 139799.1324 | DC51: 146583.053 | DD51: 153821.2061 | DE51: 161553.5586 | DF51: 169824.6643 | DG51: 178684.2813 | DH51: 187312.4278 | DI51: 196472.0132 | DJ51: 206204.6143 | DK51: 216556.1372 | DL51: 227577.3719 | DM51: 239324.6243 | DN51: 250984.7879 | DO51: 263327.9913 | DP51: 276403.3913 | DQ51: 290264.8531 | DR51: 304971.5235 | DS51: 320588.4835 | DT51: 336311.8401 | DU51: 352921.3961 | DV51: 370476.4663 | DW51: 389041.5818 | DX51: 408687.0888 | DY51: 429489.827 | DZ51: 450658.2507 | EA51: 472985.1273 | EB51: 496543.3841 | EC51: 521411.8455 | ED51: 547675.8656 | EE51: 575428.0426 | EF51: 603893.3772 | EG51: =EG40-EG49 -> 633882.0101 | EH51: 665485.111 | EI51: 698800.6587 | EJ51: 733934.1195 | EK51: 770999.2092 | EL51: 809243.1021 | EM51: 849499.2212 | EN51: 891883.1827 | EO51: 936518.6341 | EP51: 983537.9936 | EQ51: 1033083.277 | ER51: 1084431.373 | ES51: 1138446.906 | ET51: 1195278.252 | EU51: 1255083.456 | EV51: 1318031.057 | EW51: 1384300.994 | EX51: 1453209.976 | EY51: 1525664.439 | EZ51: 1601856.661 | FA51: 1681990.786 | FB51: 1766283.753 | FC51: 1854966.325 | FD51: 1947408.574 | FE51: 2044572.966 | FF51: 2146710.615 | FG51: 2254087.438 | FH51: 2366985.238 | FI51: 2485702.883 | FJ51: 2609681.96 | FK51: 2739960.022 | FL51: 2876867.023 | FM51: 3020751.667 | FN51: 3171982.678 | FO51: 3330950.196 | FP51: 3497191.638 | FQ51: 3671845.184 | FR51: 3855346.443 | FS51: 4048155.058 | FT51: 4250756.238 | FU51: 4463662.434 | FV51: 4686539.488 | FW51: 4920660.427 | FX51: 5166602.448 | FY51: 5424973.863 | FZ51: 5696415.984 | GA51: 5981605.167 | GB51: 6280379.358 | GC51: 6594192.29 | GD51: 6923810.904 | GE51: 7270042.742 | GF51: 7633738.307 | GG51: 8015793.606 | GH51: 8416277.219 | GI51: 8836885.044 | GJ51: 9278638.296 | GK51: 9742611.503 | GL51: 10229935.51 | GM51: 10741800.67 | GN51: 11278584.63 | GO51: 11842307.83 | GP51: 12434332.22 | GQ51: 13056090.12 | GR51: 13709088.06 | GS51: =GS40-GS49 -> 14394910.84 | GT51: 15114350.32 | GU51: 15869861.8 | GV51: 16663263.89 | GW51: 17496468.37 | GX51: 18371485.22 | GY51: 19290427.86 | GZ51: 20254643.19 | HA51: 21267169.31 | HB51: 22330436.78 | HC51: 23446999.91 | HD51: 24619543.33 | HE51: 25850888.88 | HF51: 27143127.26 | HG51: 28500077.59 | HH51: 29924990.47 | HI51: 31421281.28 | HJ51: 32992538.78 | HK51: 34642534.1 | HL51: 36374354.74 | HM51: 38192866.44 | HN51: 40102418.76 | HO51: 42107580.99 | HP51: 44213153.47 | HQ51: 46424179.52 | HR51: 48745082.43 | HS51: 51182130.52 | HT51: 53741146.04 | HU51: 56428244.64 | HV51: 59249850.3 | HW51: 62212711.2 | HX51: 65323040.69 | HY51: 68588986.69 | HZ51: 72018345.02 | IA51: 75619303.56 | IB51: 79400462.17 | IC51: 83370853.66 | ID51: 87539090.28 | IE51: 91915838.76 | IF51: 96511539.69 | IG51: 101337158 | IH51: 106404209.3 | II51: 111724788.1 | IJ51: 117310721.5 | IK51: 123176051.5 | IL51: 129334763.1 | IM51: 135801542.5 | IN51: 142591813.1 | IO51: 149721772.1 | IP51: 157207554.7 | IQ51: 165067726.4 | IR51: 173321021.7 | IS51: 181987114.1 | IT51: 191086663.2 | IU51: 200641364.8 | IV51: 210673126.9 | IW51: 221206577.2 | IX51: 232266815.1 | IY51: 243880197.1 | IZ51: 256074400.4 | JA51: 268878488.8 | JB51: 282322107.2 | JC51: 296438006.5 | JD51: 311259815.9 | JE51: =JE40-JE49 -> 326822847.9 | JF51: 343164183.8 | JG51: 360322761.3 | JH51: 378338593.3 | JI51: 397255317 | JJ51: 417117991.8 | JK51: 437973932.7 | JL51: 459872822.8 | JM51: 482866832.3 | JN51: 507009867.8 | JO51: 532360155.2 | JP51: 558978071.9 | JQ51: 586927016.8 | JR51: 616273561.1 | JS51: 647087607.5 | JT51: 679441681.9 | JU51: 713413559.9 | JV51: 749084146.9 | JW51: 786538395.5 | JX51: 825865508.8 | JY51: 867159152.6 | JZ51: 910516804.1 | KA51: 956042438.3 | KB51: 1003844469 | KC51: 1054036734 | KD51: 1106738764 | KE51: 1162076071 | KF51: 1220179568 | KG51: 1281188341 | KH51: 1345247667 | KI51: 1412510091 | KJ51: 1483135789 | KK51: 1557292947 | KL51: 1635157288 | KM51: 1716914947 | KN51: 1802760603 | KO51: 1892898674 | KP51: 1987543802 | KQ51: 2086921360 | KR51: 2191267122 | KS51: 2300830272 | KT51: 2415871695 | KU51: 2337669595
C53: Rate of Return | G53: =E21 -> 0.12 | H53: =G53 -> 0.12 | I53: =H53 -> 0.12 | J53: =I53 -> 0.12 | K53: 0.12 | L53: 0.12 | M53: 0.12 | N53: 0.12 | O53: 0.12 | P53: 0.12 | Q53: 0.12 | R53: 0.12 | S53: 0.12 | T53: 0.12 | U53: 0.12 | V53: 0.12 | W53: 0.12 | X53: 0.12 | Y53: 0.12 | Z53: 0.12 | AA53: 0.12 | AB53: 0.12 | AC53: 0.12 | AD53: 0.12 | AE53: 0.12 | AF53: 0.12 | AG53: 0.12 | AH53: 0.12 | AI53: 0.12 | AJ53: 0.12 | AK53: 0.12 | AL53: 0.12 | AM53: 0.12 | AN53: 0.12 | AO53: 0.12 | AP53: 0.12 | AQ53: 0.12 | AR53: 0.12 | AS53: 0.12 | AT53: 0.12 | AU53: 0.12 | AV53: 0.12 | AW53: 0.12 | AX53: 0.12 | AY53: 0.12 | AZ53: 0.12 | BA53: 0.12 | BB53: 0.12 | BC53: 0.12 | BD53: 0.12 | BE53: 0.12 | BF53: 0.12 | BG53: 0.12 | BH53: 0.12 | BI53: 0.12 | BJ53: 0.12 | BK53: 0.12 | BL53: 0.12 | BM53: 0.12 | BN53: 0.12 | BO53: 0.12 | BP53: 0.12 | BQ53: 0.12 | BR53: 0.12 | BS53: 0.12 | BT53: 0.12 | BU53: =BT53 -> 0.12 | BV53: 0.12 | BW53: 0.12 | BX53: 0.12 | BY53: 0.12 | BZ53: 0.12 | CA53: 0.12 | CB53: 0.12 | CC53: 0.12 | CD53: 0.12 | CE53: 0.12 | CF53: 0.12 | CG53: 0.12 | CH53: 0.12 | CI53: 0.12 | CJ53: 0.12 | CK53: 0.12 | CL53: 0.12 | CM53: 0.12 | CN53: 0.12 | CO53: 0.12 | CP53: 0.12 | CQ53: 0.12 | CR53: 0.12 | CS53: 0.12 | CT53: 0.12 | CU53: 0.12 | CV53: 0.12 | CW53: 0.12 | CX53: 0.12 | CY53: 0.12 | CZ53: 0.12 | DA53: 0.12 | DB53: 0.12 | DC53: 0.12 | DD53: 0.12 | DE53: 0.12 | DF53: 0.12 | DG53: 0.12 | DH53: 0.12 | DI53: 0.12 | DJ53: 0.12 | DK53: 0.12 | DL53: 0.12 | DM53: 0.12 | DN53: 0.12 | DO53: 0.12 | DP53: 0.12 | DQ53: 0.12 | DR53: 0.12 | DS53: 0.12 | DT53: 0.12 | DU53: 0.12 | DV53: 0.12 | DW53: 0.12 | DX53: 0.12 | DY53: 0.12 | DZ53: 0.12 | EA53: 0.12 | EB53: 0.12 | EC53: 0.12 | ED53: 0.12 | EE53: 0.12 | EF53: 0.12 | EG53: =EF53 -> 0.12 | EH53: 0.12 | EI53: 0.12 | EJ53: 0.12 | EK53: 0.12 | EL53: 0.12 | EM53: 0.12 | EN53: 0.12 | EO53: 0.12 | EP53: 0.12 | EQ53: 0.12 | ER53: 0.12 | ES53: 0.12 | ET53: 0.12 | EU53: 0.12 | EV53: 0.12 | EW53: 0.12 | EX53: 0.12 | EY53: 0.12 | EZ53: 0.12 | FA53: 0.12 | FB53: 0.12 | FC53: 0.12 | FD53: 0.12 | FE53: 0.12 | FF53: 0.12 | FG53: 0.12 | FH53: 0.12 | FI53: 0.12 | FJ53: 0.12 | FK53: 0.12 | FL53: 0.12 | FM53: 0.12 | FN53: 0.12 | FO53: 0.12 | FP53: 0.12 | FQ53: 0.12 | FR53: 0.12 | FS53: 0.12 | FT53: 0.12 | FU53: 0.12 | FV53: 0.12 | FW53: 0.12 | FX53: 0.12 | FY53: 0.12 | FZ53: 0.12 | GA53: 0.12 | GB53: 0.12 | GC53: 0.12 | GD53: 0.12 | GE53: 0.12 | GF53: 0.12 | GG53: 0.12 | GH53: 0.12 | GI53: 0.12 | GJ53: 0.12 | GK53: 0.12 | GL53: 0.12 | GM53: 0.12 | GN53: 0.12 | GO53: 0.12 | GP53: 0.12 | GQ53: 0.12 | GR53: 0.12 | GS53: =GR53 -> 0.12 | GT53: 0.12 | GU53: 0.12 | GV53: 0.12 | GW53: 0.12 | GX53: 0.12 | GY53: 0.12 | GZ53: 0.12 | HA53: 0.12 | HB53: 0.12 | HC53: 0.12 | HD53: 0.12 | HE53: 0.12 | HF53: 0.12 | HG53: 0.12 | HH53: 0.12 | HI53: 0.12 | HJ53: 0.12 | HK53: 0.12 | HL53: 0.12 | HM53: 0.12 | HN53: 0.12 | HO53: 0.12 | HP53: 0.12 | HQ53: 0.12 | HR53: 0.12 | HS53: 0.12 | HT53: 0.12 | HU53: 0.12 | HV53: 0.12 | HW53: 0.12 | HX53: 0.12 | HY53: 0.12 | HZ53: 0.12 | IA53: 0.12 | IB53: 0.12 | IC53: 0.12 | ID53: 0.12 | IE53: 0.12 | IF53: 0.12 | IG53: 0.12 | IH53: 0.12 | II53: 0.12 | IJ53: 0.12 | IK53: 0.12 | IL53: 0.12 | IM53: 0.12 | IN53: 0.12 | IO53: 0.12 | IP53: 0.12 | IQ53: 0.12 | IR53: 0.12 | IS53: 0.12 | IT53: 0.12 | IU53: 0.12 | IV53: 0.12 | IW53: 0.12 | IX53: 0.12 | IY53: 0.12 | IZ53: 0.12 | JA53: 0.12 | JB53: 0.12 | JC53: 0.12 | JD53: 0.12 | JE53: =JD53 -> 0.12 | JF53: 0.12 | JG53: 0.12 | JH53: 0.12 | JI53: 0.12 | JJ53: 0.12 | JK53: 0.12 | JL53: 0.12 | JM53: 0.12 | JN53: 0.12 | JO53: 0.12 | JP53: 0.12 | JQ53: 0.12 | JR53: 0.12 | JS53: 0.12 | JT53: 0.12 | JU53: 0.12 | JV53: 0.12 | JW53: 0.12 | JX53: 0.12 | JY53: 0.12 | JZ53: 0.12 | KA53: 0.12 | KB53: 0.12 | KC53: 0.12 | KD53: 0.12 | KE53: 0.12 | KF53: 0.12 | KG53: 0.12 | KH53: 0.12 | KI53: 0.12 | KJ53: 0.12 | KK53: 0.12 | KL53: 0.12 | KM53: 0.12 | KN53: 0.12 | KO53: 0.12 | KP53: 0.12 | KQ53: 0.12 | KR53: 0.12 | KS53: 0.12 | KT53: 0.12 | KU53: 0.12
C54: Return | H54: =H53*H37 -> 12 | I54: =I53*I40 -> 15.87 | J54: =J53*J37 -> 15.87 | K54: 18.2505 | L54: 20.988075 | M54: 24.13628625 | N54: 27.75672919 | O54: 31.92023857 | P54: 36.70827435 | Q54: 42.2145155 | R54: 48.54669283 | S54: 55.82869675 | T54: 64.20300127 | U54: 73.83345146 | V54: 84.90846917 | W54: 97.64473955 | X54: 112.2914505 | Y54: 129.1351681 | Z54: 148.5054433 | AA54: 170.7812598 | AB54: 196.3984487 | AC54: 225.858216 | AD54: 259.7369484 | AE54: 298.6974907 | AF54: 343.5021143 | AG54: 395.0274314 | AH54: 454.2815462 | AI54: 522.4237781 | AJ54: 600.7873448 | AK54: 690.9054465 | AL54: 794.5412635 | AM54: 913.722453 | AN54: 1050.780821 | AO54: 1103.319862 | AP54: 1158.485855 | AQ54: 1216.410148 | AR54: 1277.230655 | AS54: 1341.092188 | AT54: 1408.146797 | AU54: 1478.554137 | AV54: 1552.481844 | AW54: 1630.105936 | AX54: 1711.611233 | AY54: 1797.191795 | AZ54: 1887.051385 | BA54: 1981.403954 | BB54: 2080.474151 | BC54: 2184.497859 | BD54: 2293.722752 | BE54: 2408.40889 | BF54: 2528.829334 | BG54: 2655.270801 | BH54: 2788.034341 | BI54: 2927.436058 | BJ54: 3073.807861 | BK54: 3227.498254 | BL54: 3388.873167 | BM54: 3558.316825 | BN54: 3736.232666 | BO54: 3923.044299 | BP54: 4119.196514 | BQ54: 4325.15634 | BR54: 4541.414157 | BS54: 4768.484865 | BT54: 5006.909108 | BU54: =BU53*BU37 -> 5257.254564 | BV54: 5520.117292 | BW54: 5796.123156 | BX54: 6085.929314 | BY54: 6390.22578 | BZ54: 6709.737069 | CA54: 7045.223922 | CB54: 7397.485118 | CC54: 7767.359374 | CD54: 8155.727343 | CE54: 8563.51371 | CF54: 8991.689396 | CG54: 9441.273866 | CH54: 9913.337559 | CI54: 10409.00444 | CJ54: 10929.45466 | CK54: 11475.92739 | CL54: 12049.72376 | CM54: 12652.20995 | CN54: 13284.82045 | CO54: 13949.06147 | CP54: 14646.51454 | CQ54: 15378.84027 | CR54: 16147.78228 | CS54: 16955.1714 | CT54: 17802.92997 | CU54: 18693.07647 | CV54: 19627.73029 | CW54: 20609.1168 | CX54: 21639.57264 | CY54: 22721.55128 | CZ54: 23857.62884 | DA54: 25050.51028 | DB54: 26303.0358 | DC54: 27618.18758 | DD54: 28999.09696 | DE54: 30449.05181 | DF54: 31971.5044 | DG54: 33570.07962 | DH54: 35248.5836 | DI54: 37011.01278 | DJ54: 38861.56342 | DK54: 40804.64159 | DL54: 42844.87367 | DM54: 44987.11736 | DN54: 47236.47323 | DO54: 49598.29689 | DP54: 52078.21173 | DQ54: 54682.12232 | DR54: 57416.22843 | DS54: 60287.03986 | DT54: 63301.39185 | DU54: 66466.46144 | DV54: 69789.78451 | DW54: 73279.27374 | DX54: 76943.23743 | DY54: 80790.3993 | DZ54: 84829.91926 | EA54: 89071.41523 | EB54: 93524.98599 | EC54: 98201.23529 | ED54: 103111.2971 | EE54: 108266.8619 | EF54: 113680.205 | EG54: =EG53*EG37 -> 119364.2152 | EH54: 125332.426 | EI54: 131599.0473 | EJ54: 138178.9997 | EK54: 145087.9497 | EL54: 152342.3471 | EM54: 159959.4645 | EN54: 167957.4377 | EO54: 176355.3096 | EP54: 185173.0751 | EQ54: 194431.7288 | ER54: 204153.3153 | ES54: 214360.9811 | ET54: 225079.0301 | EU54: 236332.9816 | EV54: 248149.6307 | EW54: 260557.1122 | EX54: 273584.9678 | EY54: 287264.2162 | EZ54: 301627.427 | FA54: 316708.7984 | FB54: 332544.2383 | FC54: 349171.4502 | FD54: 366630.0227 | FE54: 384961.5239 | FF54: 404209.6001 | FG54: 424420.0801 | FH54: 445641.0841 | FI54: 467923.1383 | FJ54: 491319.2952 | FK54: 515885.26 | FL54: 541679.523 | FM54: 568763.4991 | FN54: 597201.6741 | FO54: 627061.7578 | FP54: 658414.8456 | FQ54: 691335.5879 | FR54: 725902.3673 | FS54: 762197.4857 | FT54: 800307.36 | FU54: 840322.728 | FV54: 882338.8644 | FW54: 926455.8076 | FX54: 972778.598 | FY54: 1021417.528 | FZ54: 1072488.404 | GA54: 1126112.824 | GB54: 1182418.466 | GC54: 1241539.389 | GD54: 1303616.358 | GE54: 1368797.176 | GF54: 1437237.035 | GG54: 1509098.887 | GH54: 1584553.831 | GI54: 1663781.523 | GJ54: 1746970.599 | GK54: 1834319.129 | GL54: 1926035.085 | GM54: 2022336.84 | GN54: 2123453.682 | GO54: 2229626.366 | GP54: 2341107.684 | GQ54: 2458163.068 | GR54: 2581071.222 | GS54: =GS53*GS37 -> 2710124.783 | GT54: 2845631.022 | GU54: 2987912.573 | GV54: 3137308.202 | GW54: 3294173.612 | GX54: 3458882.292 | GY54: 3631826.407 | GZ54: 3813417.727 | HA54: 4004088.614 | HB54: 4204293.044 | HC54: 4414507.696 | HD54: 4635233.081 | HE54: 4866994.735 | HF54: 5110344.472 | HG54: 5365861.696 | HH54: 5634154.78 | HI54: 5915862.519 | HJ54: 6211655.645 | HK54: 6522238.428 | HL54: 6848350.349 | HM54: 7190767.867 | HN54: 7550306.26 | HO54: 7927821.573 | HP54: 8324212.652 | HQ54: 8740423.284 | HR54: 9177444.448 | HS54: 9636316.671 | HT54: 10118132.5 | HU54: 10624039.13 | HV54: 11155241.09 | HW54: 11713003.14 | HX54: 12298653.3 | HY54: 12913585.96 | HZ54: 13559265.26 | IA54: 14237228.52 | IB54: 14949089.95 | IC54: 15696544.45 | ID54: 16481371.67 | IE54: 17305440.25 | IF54: 18170712.27 | IG54: 19079247.88 | IH54: 20033210.27 | II54: 21034870.79 | IJ54: 22086614.33 | IK54: 23190945.04 | IL54: 24350492.29 | IM54: 25568016.91 | IN54: 26846417.75 | IO54: 28188738.64 | IP54: 29598175.57 | IQ54: 31078084.35 | IR54: 32631988.57 | IS54: 34263588 | IT54: 35976767.4 | IU54: 37775605.77 | IV54: 39664386.06 | IW54: 41647605.36 | IX54: 43729985.63 | IY54: 45916484.91 | IZ54: 48212309.15 | JA54: 50622924.61 | JB54: 53154070.84 | JC54: 55811774.39 | JD54: 58602363.1 | JE54: =JE53*JE37 -> 61532481.26 | JF54: 64609105.32 | JG54: 67839560.59 | JH54: 71231538.62 | JI54: 74793115.55 | JJ54: 78532771.33 | JK54: 82459409.89 | JL54: 86582380.39 | JM54: 90911499.41 | JN54: 95457074.38 | JO54: 100229928.1 | JP54: 105241424.5 | JQ54: 110503495.7 | JR54: 116028670.5 | JS54: 121830104 | JT54: 127921609.2 | JU54: 134317689.7 | JV54: 141033574.2 | JW54: 148085252.9 | JX54: 155489515.5 | JY54: 163263991.3 | JZ54: 171427190.9 | KA54: 179998550.4 | KB54: 188998477.9 | KC54: 198448401.8 | KD54: 208370821.9 | KE54: 218789363 | KF54: 229728831.2 | KG54: 241215272.7 | KH54: 253276036.4 | KI54: 265939838.2 | KJ54: 279236830.1 | KK54: 293198671.6 | KL54: 307858605.2 | KM54: 323251535.5 | KN54: 339414112.2 | KO54: 356384817.8 | KP54: 374204058.7 | KQ54: 392914261.7 | KR54: 412559974.8 | KS54: 433187973.5 | KT54: 454847372.2 | KU54: 477589740.8
C55: EBITDA | H55: =H54+H43 -> 28.66666667 | I55: =I54+I43 -> 35.03666667 | J55: 37.91166667 | K55: 43.59841667 | L55: 50.13817917 | M55: 57.65890604 | N55: 66.30774195 | O55: 76.25390324 | P55: 87.69198873 | Q55: 100.845787 | R55: 115.9726551 | S55: 133.3685534 | T55: 153.3738364 | U55: 176.3799118 | V55: 202.8368986 | W55: 233.2624334 | X55: 268.2517984 | Y55: 308.4895681 | Z55: 354.7630034 | AA55: 407.9774539 | AB55: 469.1740719 | AC55: 539.5501827 | AD55: 620.4827101 | AE55: 713.5551166 | AF55: 820.5883841 | AG55: 943.6766418 | AH55: 1085.228138 | AI55: 1248.012359 | AJ55: 1435.214213 | AK55: 1650.496344 | AL55: 1898.070796 | AM55: 2182.781416 | AN55: 2510.198628 | AO55: 2635.708559 | AP55: 2767.493987 | AQ55: 2905.868687 | AR55: 3051.162121 | AS55: 3203.720227 | AT55: 3363.906238 | AU55: 3532.10155 | AV55: 3708.706628 | AW55: 3894.141959 | AX55: 4088.849057 | AY55: 4293.29151 | AZ55: 4507.956085 | BA55: 4733.35389 | BB55: 4970.021584 | BC55: 5218.522663 | BD55: 5479.448796 | BE55: 5753.421236 | BF55: 6041.092298 | BG55: 6343.146913 | BH55: 6660.304259 | BI55: 6993.319472 | BJ55: 7342.985445 | BK55: 7710.134717 | BL55: 8095.641453 | BM55: 8500.423526 | BN55: 8925.444702 | BO55: 9371.716937 | BP55: 9840.302784 | BQ55: 10332.31792 | BR55: 10848.93382 | BS55: 11391.38051 | BT55: 11960.94954 | BU55: =BU54+BU43 -> 12558.99701 | BV55: 13186.94686 | BW55: 13846.29421 | BX55: 14538.60892 | BY55: 15265.53936 | BZ55: 16028.81633 | CA55: 16830.25715 | CB55: 17671.77001 | CC55: 18555.35851 | CD55: 19483.12643 | CE55: 20457.28275 | CF55: 21480.14689 | CG55: 22554.15423 | CH55: 23681.86195 | CI55: 24865.95504 | CJ55: 26109.2528 | CK55: 27414.71544 | CL55: 28785.45121 | CM55: 30224.72377 | CN55: 31735.95996 | CO55: 33322.75795 | CP55: 34988.89585 | CQ55: 36738.34064 | CR55: 38575.25768 | CS55: 40504.02056 | CT55: 42529.22159 | CU55: 44655.68267 | CV55: 46888.4668 | CW55: 49232.89014 | CX55: 51694.53465 | CY55: 54279.26138 | CZ55: 56993.22445 | DA55: 59842.88567 | DB55: 62835.02995 | DC55: 65976.78145 | DD55: 69275.62053 | DE55: 72739.40155 | DF55: 76376.37163 | DG55: 80195.19021 | DH55: 84204.94972 | DI55: 88415.19721 | DJ55: 92835.95707 | DK55: 97477.75492 | DL55: 102351.6427 | DM55: 107469.2248 | DN55: 112842.686 | DO55: 118484.8203 | DP55: 124409.0614 | DQ55: 130629.5144 | DR55: 137160.9901 | DS55: 144019.0397 | DT55: 151219.9916 | DU55: 158780.9912 | DV55: 166720.0408 | DW55: 175056.0428 | DX55: 183808.845 | DY55: 192999.2872 | DZ55: 202649.2516 | EA55: 212781.7141 | EB55: 223420.7999 | EC55: 234591.8398 | ED55: 246321.4318 | EE55: 258637.5034 | EF55: 271569.3786 | EG55: =EG54+EG43 -> 285147.8475 | EH55: 299405.2399 | EI55: 314375.5019 | EJ55: 330094.277 | EK55: 346598.9909 | EL55: 363928.9404 | EM55: 382125.3874 | EN55: 401231.6568 | EO55: 421293.2396 | EP55: 442357.9016 | EQ55: 464475.7967 | ER55: 487699.5865 | ES55: 512084.5658 | ET55: 537688.7941 | EU55: 564573.2338 | EV55: 592801.8955 | EW55: 622441.9903 | EX55: 653564.0898 | EY55: 686242.2943 | EZ55: 720554.409 | FA55: 756582.1295 | FB55: 794411.236 | FC55: 834131.7978 | FD55: 875838.3877 | FE55: 919630.307 | FF55: 965611.8224 | FG55: 1013892.414 | FH55: 1064587.034 | FI55: 1117816.386 | FJ55: 1173707.205 | FK55: 1232392.565 | FL55: 1294012.194 | FM55: 1358712.803 | FN55: 1426648.444 | FO55: 1497980.866 | FP55: 1572879.909 | FQ55: 1651523.904 | FR55: 1734100.1 | FS55: 1820805.105 | FT55: 1911845.36 | FU55: 2007437.628 | FV55: 2107809.509 | FW55: 2213199.985 | FX55: 2323859.984 | FY55: 2440052.983 | FZ55: 2562055.632 | GA55: 2690158.414 | GB55: 2824666.335 | GC55: 2965899.651 | GD55: 3114194.634 | GE55: 3269904.366 | GF55: 3433399.584 | GG55: 3605069.563 | GH55: 3785323.041 | GI55: 3974589.193 | GJ55: 4173318.653 | GK55: 4381984.586 | GL55: 4601083.815 | GM55: 4831138.006 | GN55: 5072694.906 | GO55: 5326329.651 | GP55: 5592646.134 | GQ55: 5872278.441 | GR55: 6165892.363 | GS55: =GS54+GS43 -> 6474186.981 | GT55: 6797896.33 | GU55: 7137791.146 | GV55: 7494680.704 | GW55: 7869414.739 | GX55: 8262885.476 | GY55: 8676029.75 | GZ55: 9109831.237 | HA55: 9565322.799 | HB55: 10043588.94 | HC55: 10545768.39 | HD55: 11073056.81 | HE55: 11626709.65 | HF55: 12208045.13 | HG55: 12818447.38 | HH55: 13459369.75 | HI55: 14132338.24 | HJ55: 14838955.15 | HK55: 15580902.91 | HL55: 16359948.06 | HM55: 17177945.46 | HN55: 18036842.73 | HO55: 18938684.87 | HP55: 19885619.11 | HQ55: 20879900.07 | HR55: 21923895.07 | HS55: 23020089.82 | HT55: 24171094.32 | HU55: 25379649.03 | HV55: 26648631.48 | HW55: 27981063.06 | HX55: 29380116.21 | HY55: 30849122.02 | HZ55: 32391578.12 | IA55: 34011157.03 | IB55: 35711714.88 | IC55: 37497300.62 | ID55: 39372165.65 | IE55: 41340773.94 | IF55: 43407812.63 | IG55: 45578203.27 | IH55: 47857113.43 | II55: 50249969.1 | IJ55: 52762467.56 | IK55: 55400590.93 | IL55: 58170620.48 | IM55: 61079151.5 | IN55: 64133109.08 | IO55: 67339764.53 | IP55: 70706752.76 | IQ55: 74242090.4 | IR55: 77954194.92 | IS55: 81851904.66 | IT55: 85944499.9 | IU55: 90241724.89 | IV55: 94753811.14 | IW55: 99491501.69 | IX55: 104466076.8 | IY55: 109689380.6 | IZ55: 115173849.6 | JA55: 120932542.1 | JB55: 126979169.2 | JC55: 133328127.7 | JD55: 139994534.1 | JE55: =JE54+JE43 -> 146994260.8 | JF55: 154343973.8 | JG55: 162061172.5 | JH55: 170164231.1 | JI55: 178672442.7 | JJ55: 187606064.8 | JK55: 196986368.1 | JL55: 206835686.5 | JM55: 217177470.8 | JN55: 228036344.3 | JO55: 239438161.6 | JP55: 251410069.6 | JQ55: 263980573.1 | JR55: 277179601.8 | JS55: 291038581.9 | JT55: 305590511 | JU55: 320870036.5 | JV55: 336913538.3 | JW55: 353759215.3 | JX55: 371447176 | JY55: 390019534.8 | JZ55: 409520511.6 | KA55: 429996537.1 | KB55: 451496364 | KC55: 474071182.2 | KD55: 497774741.3 | KE55: 522663478.4 | KF55: 548796652.3 | KG55: 576236484.9 | KH55: 605048309.1 | KI55: 635300724.6 | KJ55: 667065760.8 | KK55: 700419048.9 | KL55: 735440001.3 | KM55: 772212001.4 | KN55: 810822601.4 | KO55: 851363731.5 | KP55: 893931918.1 | KQ55: 938628514 | KR55: 985559939.7 | KS55: 1034837937 | KT55: 1086579834 | KU55: 1140908825
C56: Free Cash Flow | H56: =H55-H38 -> 2.242976011 | I56: =I55-I38 -> 4.649422413 | J56: 2.966335775 | K56: 3.411286141 | L56: 3.922979062 | M56: 4.511425921 | N56: 5.188139808 | O56: 5.966360779 | P56: 6.861314896 | Q56: 7.89051213 | R56: 9.07408895 | S56: 10.43520229 | T56: 12.00048263 | U56: 13.80055503 | V56: 15.87063828 | W56: 18.25123403 | X56: 20.98891913 | Y56: 24.137257 | Z56: 27.75784555 | AA56: 31.92152238 | AB56: 36.70975074 | AC56: 42.21621335 | AD56: 48.54864535 | AE56: 55.83094216 | AF56: 64.20558348 | AG56: 73.836421 | AH56: 84.91188415 | AI56: 97.64866677 | AJ56: 112.2959668 | AK56: 129.1403618 | AL56: 148.5114161 | AM56: 170.7881285 | AN56: 1072.057032 | AO56: 1025.628258 | AP56: 961.8733018 | AQ56: 877.6751423 | AR56: 769.4233012 | AS56: 632.9385282 | AT56: 1339.03681 | AU56: 1305.957025 | AV56: 1256.218507 | AW56: 1186.737608 | AX56: 1093.93889 | AY56: 973.6798967 | AZ56: 1696.815247 | BA56: 1681.624384 | BB56: 1650.669234 | BC56: 1600.910871 | BD56: 1528.820816 | BE56: 1430.305919 | BF56: 2176.27257 | BG56: 2185.054574 | BH56: 2179.270933 | BI56: 2155.942655 | BJ56: 2111.60419 | BK56: 2042.228461 | BL56: 2818.79124 | BM56: 2859.699176 | BN56: 2887.647766 | BO56: 2899.73833 | BP56: 2892.589648 | BQ56: 2862.263192 | BR56: 3679.827707 | BS56: 3763.787467 | BT56: 3836.940471 | BU56: =BU55-BU38 -> 3896.49567 | BV56: 3939.184856 | BW56: 3961.18816 | BX56: 4833.698924 | BY56: 4975.352245 | BZ56: 5109.083488 | CA56: 5232.245837 | CB56: 5341.722531 | CC56: 5433.85272 | CD56: 6379.996711 | CE56: 6598.964921 | CF56: 6813.876798 | CG56: 7022.278813 | CH56: 7221.257156 | CI56: 7407.364076 | CJ56: 8452.183635 | CK56: 8774.761191 | CL56: 9098.462881 | CM56: 9421.094201 | CN56: 9740.013313 | CO56: 10052.05804 | CP56: 11229.1123 | CQ56: 11690.53629 | CR56: 12160.02673 | CS56: 12635.73624 | CT56: 13115.38746 | CU56: 13596.20089 | CV56: 14950.46229 | CW56: 15597.95378 | CX56: 16262.8151 | CY56: 16943.66403 | CZ56: 17638.71164 | DA56: 18345.69128 | DB56: 19937.4272 | DC56: 20834.26693 | DD56: 21760.94391 | DE56: 22716.69928 | DF56: 23700.39865 | DG56: 24710.46264 | DH56: 26620.43713 | DI56: 27851.42736 | DJ56: 29128.96236 | DK56: 30453.11865 | DL56: 31823.63899 | DM56: 33239.865 | DN56: 35576.30961 | DO56: 37255.09346 | DP56: 39002.81176 | DQ56: 40820.66053 | DR56: 42709.55796 | DS56: 44670.07992 | DT56: 47578.03527 | DU56: 49856.90541 | DV56: 52234.71431 | DW56: 54714.1582 | DX56: 57297.73051 | DY56: 59987.6611 | DZ56: 63661.49551 | EA56: 66744.53866 | EB56: 69966.72922 | EC56: 73332.77386 | ED56: 76847.27695 | EE56: 80514.68486 | EF56: 85214.87046 | EG56: =EG55-EG38 -> 89375.58236 | EH56: 93729.32511 | EI56: 98283.49954 | EJ56: 103045.5389 | EK56: 108022.8599 | EL56: 114098.4543 | EM56: 119703.3454 | EN56: 125573.4763 | EO56: 131719.8583 | EP56: 138153.7156 | EQ56: 144886.4454 | ER56: 152805.219 | ES56: 160345.4484 | ET56: 168247.6844 | EU56: 176527.7768 | EV56: 185202.03 | EW56: 194287.1756 | EX56: 204675.9857 | EY56: 214809.7534 | EZ56: 225435.2047 | FA56: 236574.6731 | FB56: 248251.2712 | FC56: 260488.8788 | FD56: 274187.7741 | FE56: 287797.1312 | FF56: 302071.9514 | FG56: 317043.2571 | FH56: 332743.2844 | FI56: 349205.4926 | FJ56: 367340.2186 | FK56: 385607.1979 | FL56: 404772.5215 | FM56: 424878.8557 | FN56: 445970.6629 | FO56: 468094.2401 | FP56: 492173.4035 | FQ56: 516682.042 | FR56: 542401.1077 | FS56: 569388.8713 | FT56: 597706.1793 | FU56: 627416.5323 | FV56: 659461.8103 | FW56: 692334.8692 | FX56: 726836.5762 | FY56: 763046.1132 | FZ56: 801046.2833 | GA56: 840923.6415 | GB56: 883644.275 | GC56: 927726.4571 | GD56: 973997.7436 | GE56: 1022565.339 | GF56: 1073541.47 | GG56: 1127043.588 | GH56: 1184070.219 | GI56: 1243173.698 | GJ56: 1305217.346 | GK56: 1370345.922 | GL56: 1438711.082 | GM56: 1510471.681 | GN56: 1586669.716 | GO56: 1665903.17 | GP56: 1749083.292 | GQ56: 1836405.165 | GR56: 1928073.288 | GS56: =GS55-GS38 -> 2024301.996 | GT56: 2126191.547 | GU56: 2232401.093 | GV56: 2343906.111 | GW56: 2460969.125 | GX56: 2583865.446 | GY56: 2712883.762 | GZ56: 2849202.402 | HA56: 2991562.49 | HB56: 3141025.578 | HC56: 3297944.565 | HD56: 3462689.658 | HE56: 3635649.185 | HF56: 3818106.095 | HG56: 4008911.369 | HH56: 4209241.901 | HI56: 4419571.704 | HJ56: 4640398.153 | HK56: 4872243.105 | HL56: 5116529.712 | HM56: 5372256.166 | HN56: 5640753.938 | HO56: 5922659.343 | HP56: 6218640.174 | HQ56: 6529397.227 | HR56: 6856541.54 | HS56: 7199268.585 | HT56: 7559116.978 | HU56: 7936940.535 | HV56: 8333635.426 | HW56: 8750142.242 | HX56: 9188323.805 | HY56: 9647639.964 | HZ56: 10129906.93 | IA56: 10636269.98 | IB56: 11167931.34 | IC56: 11726152.95 | ID56: 12313135.05 | IE56: 12928691.77 | IF56: 13575011.33 | IG56: 14253629.6 | IH56: 14966158.95 | II56: 15714291.94 | IJ56: 16500680.99 | IK56: 17325615 | IL56: 18191780.72 | IM56: 19101237.46 | IN56: 20056147.2 | IO56: 21058779.6 | IP56: 22112393.03 | IQ56: 23217912.65 | IR56: 24378693.25 | IS56: 25597495.62 | IT56: 26877218.27 | IU56: 28220904.22 | IV56: 29632623.89 | IW56: 31114155.05 | IX56: 32669747.77 | IY56: 34303102.86 | IZ56: 36018105.87 | JA56: 37818836.21 | JB56: 39710452.47 | JC56: 41695875.06 | JD56: 43780553.78 | JE56: =JE55-JE38 -> 45969449.17 | JF56: 48267769.5 | JG56: 50680983.02 | JH56: 53215706.62 | JI56: 55876391.92 | JJ56: 58670096.48 | JK56: 61603469.01 | JL56: 64683490.32 | JM56: 67917489.88 | JN56: 71314038.83 | JO56: 74879640.74 | JP56: 78623507.74 | JQ56: 82554550.84 | JR56: 86682126.24 | JS56: 91016057.6 | JT56: 95567534.93 | JU56: 100345811.6 | JV56: 105362987.2 | JW56: 110631004.3 | JX56: 116162402.3 | JY56: 121970347.5 | JZ56: 128069539.3 | KA56: 134472916.3 | KB56: 141196447 | KC56: 148256137.1 | KD56: 155668791.8 | KE56: 163452056.4 | KF56: 171625333.7 | KG56: 180206500.4 | KH56: 189216710.4 | KI56: 198677413.6 | KJ56: 208611132.1 | KK56: 219041513.8 | KL56: 229994263.9 | KM56: 241493877.1 | KN56: 253568455.9 | KO56: 266246746.4 | KP56: 279558931.6 | KQ56: 293536703.2 | KR56: 308214212.8 | KS56: 323624823.4 | KT56: 339805949.6 | KU56: 555791840.1
C58: Growth Rates
D59: EBITDA | I59: =I55/H55-1 -> 0.2222093023 | J59: =J55/I55-1 -> 0.08205689278 | K59: 0.15 | L59: 0.15 | M59: 0.15 | N59: 0.15 | O59: 0.15 | P59: 0.15 | Q59: 0.15 | R59: 0.15 | S59: 0.15 | T59: 0.15 | U59: 0.15 | V59: 0.15 | W59: 0.15 | X59: 0.15 | Y59: 0.15 | Z59: 0.15 | AA59: 0.15 | AB59: 0.15 | AC59: 0.15 | AD59: 0.15 | AE59: 0.15 | AF59: 0.15 | AG59: 0.15 | AH59: 0.15 | AI59: 0.15 | AJ59: 0.15 | AK59: 0.15 | AL59: 0.15 | AM59: 0.15 | AN59: 0.15 | AO59: =AO55/AN55-1 -> 0.05 | AP59: 0.05 | AQ59: 0.05 | AR59: 0.05 | AS59: 0.05 | AT59: 0.05 | AU59: 0.05 | AV59: 0.05 | AW59: 0.05 | AX59: 0.05 | AY59: 0.05 | AZ59: 0.05 | BA59: 0.05 | BB59: 0.05 | BC59: 0.05 | BD59: 0.05 | BE59: 0.05 | BF59: 0.05 | BG59: 0.05 | BH59: 0.05 | BI59: 0.05 | BJ59: 0.05 | BK59: 0.05 | BL59: 0.05 | BM59: 0.05 | BN59: 0.05 | BO59: 0.05 | BP59: 0.05 | BQ59: 0.05 | BR59: 0.05 | BS59: 0.05 | BT59: 0.05 | BU59: 0.05 | BV59: =BV55/BU55-1 -> 0.05 | BW59: 0.05 | BX59: 0.05 | BY59: 0.05 | BZ59: 0.05 | CA59: 0.05 | CB59: 0.05 | CC59: 0.05 | CD59: 0.05 | CE59: 0.05 | CF59: 0.05 | CG59: 0.05 | CH59: 0.05 | CI59: 0.05 | CJ59: 0.05 | CK59: 0.05 | CL59: 0.05 | CM59: 0.05 | CN59: 0.05 | CO59: 0.05 | CP59: 0.05 | CQ59: 0.05 | CR59: 0.05 | CS59: 0.05 | CT59: 0.05 | CU59: 0.05 | CV59: 0.05 | CW59: 0.05 | CX59: 0.05 | CY59: 0.05 | CZ59: 0.05 | DA59: 0.05 | DB59: 0.05 | DC59: 0.05 | DD59: 0.05 | DE59: 0.05 | DF59: 0.05 | DG59: 0.05 | DH59: 0.05 | DI59: 0.05 | DJ59: 0.05 | DK59: 0.05 | DL59: 0.05 | DM59: 0.05 | DN59: 0.05 | DO59: 0.05 | DP59: 0.05 | DQ59: 0.05 | DR59: 0.05 | DS59: 0.05 | DT59: 0.05 | DU59: 0.05 | DV59: 0.05 | DW59: 0.05 | DX59: 0.05 | DY59: 0.05 | DZ59: 0.05 | EA59: 0.05 | EB59: 0.05 | EC59: 0.05 | ED59: 0.05 | EE59: 0.05 | EF59: 0.05 | EG59: 0.05 | EH59: =EH55/EG55-1 -> 0.05 | EI59: 0.05 | EJ59: 0.05 | EK59: 0.05 | EL59: 0.05 | EM59: 0.05 | EN59: 0.05 | EO59: 0.05 | EP59: 0.05 | EQ59: 0.05 | ER59: 0.05 | ES59: 0.05 | ET59: 0.05 | EU59: 0.05 | EV59: 0.05 | EW59: 0.05 | EX59: 0.05 | EY59: 0.05 | EZ59: 0.05 | FA59: 0.05 | FB59: 0.05 | FC59: 0.05 | FD59: 0.05 | FE59: 0.05 | FF59: 0.05 | FG59: 0.05 | FH59: 0.05 | FI59: 0.05 | FJ59: 0.05 | FK59: 0.05 | FL59: 0.05 | FM59: 0.05 | FN59: 0.05 | FO59: 0.05 | FP59: 0.05 | FQ59: 0.05 | FR59: 0.05 | FS59: 0.05 | FT59: 0.05 | FU59: 0.05 | FV59: 0.05 | FW59: 0.05 | FX59: 0.05 | FY59: 0.05 | FZ59: 0.05 | GA59: 0.05 | GB59: 0.05 | GC59: 0.05 | GD59: 0.05 | GE59: 0.05 | GF59: 0.05 | GG59: 0.05 | GH59: 0.05 | GI59: 0.05 | GJ59: 0.05 | GK59: 0.05 | GL59: 0.05 | GM59: 0.05 | GN59: 0.05 | GO59: 0.05 | GP59: 0.05 | GQ59: 0.05 | GR59: 0.05 | GS59: 0.05 | GT59: =GT55/GS55-1 -> 0.05 | GU59: 0.05 | GV59: 0.05 | GW59: 0.05 | GX59: 0.05 | GY59: 0.05 | GZ59: 0.05 | HA59: 0.05 | HB59: 0.05 | HC59: 0.05 | HD59: 0.05 | HE59: 0.05 | HF59: 0.05 | HG59: 0.05 | HH59: 0.05 | HI59: 0.05 | HJ59: 0.05 | HK59: 0.05 | HL59: 0.05 | HM59: 0.05 | HN59: 0.05 | HO59: 0.05 | HP59: 0.05 | HQ59: 0.05 | HR59: 0.05 | HS59: 0.05 | HT59: 0.05 | HU59: 0.05 | HV59: 0.05 | HW59: 0.05 | HX59: 0.05 | HY59: 0.05 | HZ59: 0.05 | IA59: 0.05 | IB59: 0.05 | IC59: 0.05 | ID59: 0.05 | IE59: 0.05 | IF59: 0.05 | IG59: 0.05 | IH59: 0.05 | II59: 0.05 | IJ59: 0.05 | IK59: 0.05 | IL59: 0.05 | IM59: 0.05 | IN59: 0.05 | IO59: 0.05 | IP59: 0.05 | IQ59: 0.05 | IR59: 0.05 | IS59: 0.05 | IT59: 0.05 | IU59: 0.05 | IV59: 0.05 | IW59: 0.05 | IX59: 0.05 | IY59: 0.05 | IZ59: 0.05 | JA59: 0.05 | JB59: 0.05 | JC59: 0.05 | JD59: 0.05 | JE59: 0.05 | JF59: =JF55/JE55-1 -> 0.05 | JG59: 0.05 | JH59: 0.05 | JI59: 0.05 | JJ59: 0.05 | JK59: 0.05 | JL59: 0.05 | JM59: 0.05 | JN59: 0.05 | JO59: 0.05 | JP59: 0.05 | JQ59: 0.05 | JR59: 0.05 | JS59: 0.05 | JT59: 0.05 | JU59: 0.05 | JV59: 0.05 | JW59: 0.05 | JX59: 0.05 | JY59: 0.05 | JZ59: 0.05 | KA59: 0.05 | KB59: 0.05 | KC59: 0.05 | KD59: 0.05 | KE59: 0.05 | KF59: 0.05 | KG59: 0.05 | KH59: 0.05 | KI59: 0.05 | KJ59: 0.05 | KK59: 0.05 | KL59: 0.05 | KM59: 0.05 | KN59: 0.05 | KO59: 0.05 | KP59: 0.05 | KQ59: 0.05 | KR59: 0.05 | KS59: 0.05 | KT59: 0.05 | KU59: 0.05
D60: Return | I60: =I54/H54-1 -> 0.3225 | J60: =J54/I54-1 -> 0 | K60: 0.15 | L60: 0.15 | M60: 0.15 | N60: 0.15 | O60: 0.15 | P60: 0.15 | Q60: 0.15 | R60: 0.15 | S60: 0.15 | T60: 0.15 | U60: 0.15 | V60: 0.15 | W60: 0.15 | X60: 0.15 | Y60: 0.15 | Z60: 0.15 | AA60: 0.15 | AB60: 0.15 | AC60: 0.15 | AD60: 0.15 | AE60: 0.15 | AF60: 0.15 | AG60: 0.15 | AH60: 0.15 | AI60: 0.15 | AJ60: 0.15 | AK60: 0.15 | AL60: 0.15 | AM60: 0.15 | AN60: 0.15 | AO60: 0.05 | AP60: 0.05 | AQ60: 0.05 | AR60: 0.05 | AS60: 0.05 | AT60: 0.05 | AU60: 0.05 | AV60: 0.05 | AW60: 0.05 | AX60: 0.05 | AY60: 0.05 | AZ60: 0.05 | BA60: 0.05 | BB60: 0.05 | BC60: 0.05 | BD60: 0.05 | BE60: 0.05 | BF60: 0.05 | BG60: 0.05 | BH60: 0.05 | BI60: 0.05 | BJ60: 0.05 | BK60: 0.05 | BL60: 0.05 | BM60: 0.05 | BN60: 0.05 | BO60: 0.05 | BP60: 0.05 | BQ60: 0.05 | BR60: 0.05 | BS60: 0.05 | BT60: 0.05 | BU60: 0.05 | BV60: =BV54/BU54-1 -> 0.05 | BW60: 0.05 | BX60: 0.05 | BY60: 0.05 | BZ60: 0.05 | CA60: 0.05 | CB60: 0.05 | CC60: 0.05 | CD60: 0.05 | CE60: 0.05 | CF60: 0.05 | CG60: 0.05 | CH60: 0.05 | CI60: 0.05 | CJ60: 0.05 | CK60: 0.05 | CL60: 0.05 | CM60: 0.05 | CN60: 0.05 | CO60: 0.05 | CP60: 0.05 | CQ60: 0.05 | CR60: 0.05 | CS60: 0.05 | CT60: 0.05 | CU60: 0.05 | CV60: 0.05 | CW60: 0.05 | CX60: 0.05 | CY60: 0.05 | CZ60: 0.05 | DA60: 0.05 | DB60: 0.05 | DC60: 0.05 | DD60: 0.05 | DE60: 0.05 | DF60: 0.05 | DG60: 0.05 | DH60: 0.05 | DI60: 0.05 | DJ60: 0.05 | DK60: 0.05 | DL60: 0.05 | DM60: 0.05 | DN60: 0.05 | DO60: 0.05 | DP60: 0.05 | DQ60: 0.05 | DR60: 0.05 | DS60: 0.05 | DT60: 0.05 | DU60: 0.05 | DV60: 0.05 | DW60: 0.05 | DX60: 0.05 | DY60: 0.05 | DZ60: 0.05 | EA60: 0.05 | EB60: 0.05 | EC60: 0.05 | ED60: 0.05 | EE60: 0.05 | EF60: 0.05 | EG60: 0.05 | EH60: =EH54/EG54-1 -> 0.05 | EI60: 0.05 | EJ60: 0.05 | EK60: 0.05 | EL60: 0.05 | EM60: 0.05 | EN60: 0.05 | EO60: 0.05 | EP60: 0.05 | EQ60: 0.05 | ER60: 0.05 | ES60: 0.05 | ET60: 0.05 | EU60: 0.05 | EV60: 0.05 | EW60: 0.05 | EX60: 0.05 | EY60: 0.05 | EZ60: 0.05 | FA60: 0.05 | FB60: 0.05 | FC60: 0.05 | FD60: 0.05 | FE60: 0.05 | FF60: 0.05 | FG60: 0.05 | FH60: 0.05 | FI60: 0.05 | FJ60: 0.05 | FK60: 0.05 | FL60: 0.05 | FM60: 0.05 | FN60: 0.05 | FO60: 0.05 | FP60: 0.05 | FQ60: 0.05 | FR60: 0.05 | FS60: 0.05 | FT60: 0.05 | FU60: 0.05 | FV60: 0.05 | FW60: 0.05 | FX60: 0.05 | FY60: 0.05 | FZ60: 0.05 | GA60: 0.05 | GB60: 0.05 | GC60: 0.05 | GD60: 0.05 | GE60: 0.05 | GF60: 0.05 | GG60: 0.05 | GH60: 0.05 | GI60: 0.05 | GJ60: 0.05 | GK60: 0.05 | GL60: 0.05 | GM60: 0.05 | GN60: 0.05 | GO60: 0.05 | GP60: 0.05 | GQ60: 0.05 | GR60: 0.05 | GS60: 0.05 | GT60: =GT54/GS54-1 -> 0.05 | GU60: 0.05 | GV60: 0.05 | GW60: 0.05 | GX60: 0.05 | GY60: 0.05 | GZ60: 0.05 | HA60: 0.05 | HB60: 0.05 | HC60: 0.05 | HD60: 0.05 | HE60: 0.05 | HF60: 0.05 | HG60: 0.05 | HH60: 0.05 | HI60: 0.05 | HJ60: 0.05 | HK60: 0.05 | HL60: 0.05 | HM60: 0.05 | HN60: 0.05 | HO60: 0.05 | HP60: 0.05 | HQ60: 0.05 | HR60: 0.05 | HS60: 0.05 | HT60: 0.05 | HU60: 0.05 | HV60: 0.05 | HW60: 0.05 | HX60: 0.05 | HY60: 0.05 | HZ60: 0.05 | IA60: 0.05 | IB60: 0.05 | IC60: 0.05 | ID60: 0.05 | IE60: 0.05 | IF60: 0.05 | IG60: 0.05 | IH60: 0.05 | II60: 0.05 | IJ60: 0.05 | IK60: 0.05 | IL60: 0.05 | IM60: 0.05 | IN60: 0.05 | IO60: 0.05 | IP60: 0.05 | IQ60: 0.05 | IR60: 0.05 | IS60: 0.05 | IT60: 0.05 | IU60: 0.05 | IV60: 0.05 | IW60: 0.05 | IX60: 0.05 | IY60: 0.05 | IZ60: 0.05 | JA60: 0.05 | JB60: 0.05 | JC60: 0.05 | JD60: 0.05 | JE60: 0.05 | JF60: =JF54/JE54-1 -> 0.05 | JG60: 0.05 | JH60: 0.05 | JI60: 0.05 | JJ60: 0.05 | JK60: 0.05 | JL60: 0.05 | JM60: 0.05 | JN60: 0.05 | JO60: 0.05 | JP60: 0.05 | JQ60: 0.05 | JR60: 0.05 | JS60: 0.05 | JT60: 0.05 | JU60: 0.05 | JV60: 0.05 | JW60: 0.05 | JX60: 0.05 | JY60: 0.05 | JZ60: 0.05 | KA60: 0.05 | KB60: 0.05 | KC60: 0.05 | KD60: 0.05 | KE60: 0.05 | KF60: 0.05 | KG60: 0.05 | KH60: 0.05 | KI60: 0.05 | KJ60: 0.05 | KK60: 0.05 | KL60: 0.05 | KM60: 0.05 | KN60: 0.05 | KO60: 0.05 | KP60: 0.05 | KQ60: 0.05 | KR60: 0.05 | KS60: 0.05 | KT60: 0.05 | KU60: 0.05
D61: Plant - Gross | I61: =I40/H40-1 -> 0.15 | J61: =J40/I40-1 -> 0.15 | K61: 0.15 | L61: 0.15 | M61: 0.15 | N61: 0.15 | O61: 0.15 | P61: 0.15 | Q61: 0.15 | R61: 0.15 | S61: 0.15 | T61: 0.15 | U61: 0.15 | V61: 0.15 | W61: 0.15 | X61: 0.15 | Y61: 0.15 | Z61: 0.15 | AA61: 0.15 | AB61: 0.15 | AC61: 0.15 | AD61: 0.15 | AE61: 0.15 | AF61: 0.15 | AG61: 0.15 | AH61: 0.15 | AI61: 0.15 | AJ61: 0.15 | AK61: 0.15 | AL61: 0.15 | AM61: 0.15 | AN61: 0.05 | AO61: 0.05 | AP61: 0.05 | AQ61: 0.05 | AR61: 0.05 | AS61: 0.05 | AT61: 0.05 | AU61: 0.05 | AV61: 0.05 | AW61: 0.05 | AX61: 0.05 | AY61: 0.05 | AZ61: 0.05 | BA61: 0.05 | BB61: 0.05 | BC61: 0.05 | BD61: 0.05 | BE61: 0.05 | BF61: 0.05 | BG61: 0.05 | BH61: 0.05 | BI61: 0.05 | BJ61: 0.05 | BK61: 0.05 | BL61: 0.05 | BM61: 0.05 | BN61: 0.05 | BO61: 0.05 | BP61: 0.05 | BQ61: 0.05 | BR61: 0.05 | BS61: 0.05 | BT61: 0.05 | BU61: 0.05 | BV61: =BV40/BU40-1 -> 0.05 | BW61: 0.05 | BX61: 0.05 | BY61: 0.05 | BZ61: 0.05 | CA61: 0.05 | CB61: 0.05 | CC61: 0.05 | CD61: 0.05 | CE61: 0.05 | CF61: 0.05 | CG61: 0.05 | CH61: 0.05 | CI61: 0.05 | CJ61: 0.05 | CK61: 0.05 | CL61: 0.05 | CM61: 0.05 | CN61: 0.05 | CO61: 0.05 | CP61: 0.05 | CQ61: 0.05 | CR61: 0.05 | CS61: 0.05 | CT61: 0.05 | CU61: 0.05 | CV61: 0.05 | CW61: 0.05 | CX61: 0.05 | CY61: 0.05 | CZ61: 0.05 | DA61: 0.05 | DB61: 0.05 | DC61: 0.05 | DD61: 0.05 | DE61: 0.05 | DF61: 0.05 | DG61: 0.05 | DH61: 0.05 | DI61: 0.05 | DJ61: 0.05 | DK61: 0.05 | DL61: 0.05 | DM61: 0.05 | DN61: 0.05 | DO61: 0.05 | DP61: 0.05 | DQ61: 0.05 | DR61: 0.05 | DS61: 0.05 | DT61: 0.05 | DU61: 0.05 | DV61: 0.05 | DW61: 0.05 | DX61: 0.05 | DY61: 0.05 | DZ61: 0.05 | EA61: 0.05 | EB61: 0.05 | EC61: 0.05 | ED61: 0.05 | EE61: 0.05 | EF61: 0.05 | EG61: 0.05 | EH61: =EH40/EG40-1 -> 0.05 | EI61: 0.05 | EJ61: 0.05 | EK61: 0.05 | EL61: 0.05 | EM61: 0.05 | EN61: 0.05 | EO61: 0.05 | EP61: 0.05 | EQ61: 0.05 | ER61: 0.05 | ES61: 0.05 | ET61: 0.05 | EU61: 0.05 | EV61: 0.05 | EW61: 0.05 | EX61: 0.05 | EY61: 0.05 | EZ61: 0.05 | FA61: 0.05 | FB61: 0.05 | FC61: 0.05 | FD61: 0.05 | FE61: 0.05 | FF61: 0.05 | FG61: 0.05 | FH61: 0.05 | FI61: 0.05 | FJ61: 0.05 | FK61: 0.05 | FL61: 0.05 | FM61: 0.05 | FN61: 0.05 | FO61: 0.05 | FP61: 0.05 | FQ61: 0.05 | FR61: 0.05 | FS61: 0.05 | FT61: 0.05 | FU61: 0.05 | FV61: 0.05 | FW61: 0.05 | FX61: 0.05 | FY61: 0.05 | FZ61: 0.05 | GA61: 0.05 | GB61: 0.05 | GC61: 0.05 | GD61: 0.05 | GE61: 0.05 | GF61: 0.05 | GG61: 0.05 | GH61: 0.05 | GI61: 0.05 | GJ61: 0.05 | GK61: 0.05 | GL61: 0.05 | GM61: 0.05 | GN61: 0.05 | GO61: 0.05 | GP61: 0.05 | GQ61: 0.05 | GR61: 0.05 | GS61: 0.05 | GT61: =GT40/GS40-1 -> 0.05 | GU61: 0.05 | GV61: 0.05 | GW61: 0.05 | GX61: 0.05 | GY61: 0.05 | GZ61: 0.05 | HA61: 0.05 | HB61: 0.05 | HC61: 0.05 | HD61: 0.05 | HE61: 0.05 | HF61: 0.05 | HG61: 0.05 | HH61: 0.05 | HI61: 0.05 | HJ61: 0.05 | HK61: 0.05 | HL61: 0.05 | HM61: 0.05 | HN61: 0.05 | HO61: 0.05 | HP61: 0.05 | HQ61: 0.05 | HR61: 0.05 | HS61: 0.05 | HT61: 0.05 | HU61: 0.05 | HV61: 0.05 | HW61: 0.05 | HX61: 0.05 | HY61: 0.05 | HZ61: 0.05 | IA61: 0.05 | IB61: 0.05 | IC61: 0.05 | ID61: 0.05 | IE61: 0.05 | IF61: 0.05 | IG61: 0.05 | IH61: 0.05 | II61: 0.05 | IJ61: 0.05 | IK61: 0.05 | IL61: 0.05 | IM61: 0.05 | IN61: 0.05 | IO61: 0.05 | IP61: 0.05 | IQ61: 0.05 | IR61: 0.05 | IS61: 0.05 | IT61: 0.05 | IU61: 0.05 | IV61: 0.05 | IW61: 0.05 | IX61: 0.05 | IY61: 0.05 | IZ61: 0.05 | JA61: 0.05 | JB61: 0.05 | JC61: 0.05 | JD61: 0.05 | JE61: 0.05 | JF61: =JF40/JE40-1 -> 0.05 | JG61: 0.05 | JH61: 0.05 | JI61: 0.05 | JJ61: 0.05 | JK61: 0.05 | JL61: 0.05 | JM61: 0.05 | JN61: 0.05 | JO61: 0.05 | JP61: 0.05 | JQ61: 0.05 | JR61: 0.05 | JS61: 0.05 | JT61: 0.05 | JU61: 0.05 | JV61: 0.05 | JW61: 0.05 | JX61: 0.05 | JY61: 0.05 | JZ61: 0.05 | KA61: 0.05 | KB61: 0.05 | KC61: 0.05 | KD61: 0.05 | KE61: 0.05 | KF61: 0.05 | KG61: 0.05 | KH61: 0.05 | KI61: 0.05 | KJ61: 0.05 | KK61: 0.05 | KL61: 0.05 | KM61: 0.05 | KN61: 0.05 | KO61: 0.05 | KP61: 0.05 | KQ61: 0.05 | KR61: 0.05 | KS61: 0.05 | KT61: 0.05 | KU61: 0
D62: Plant - Net | I62: =I51/H51-1 -> 0.1500043711 | J62: =J51/I51-1 -> 0.150003801 | K62: 0.1500033052 | L62: 0.1500028741 | M62: 0.1500024992 | N62: 0.1500021732 | O62: 0.1500018897 | P62: 0.1500016432 | Q62: 0.1500014289 | R62: 0.1500012425 | S62: 0.1500010805 | T62: 0.1500009395 | U62: 0.150000817 | V62: 0.1500007104 | W62: 0.1500006178 | X62: 0.1500005372 | Y62: 0.1500004671 | Z62: 0.1500004062 | AA62: 0.1500003532 | AB62: 0.1500003071 | AC62: 0.1500002671 | AD62: 0.1500002322 | AE62: 0.1500002019 | AF62: 0.1500001756 | AG62: 0.1500001527 | AH62: 0.1500001328 | AI62: 0.1500001155 | AJ62: 0.1500001004 | AK62: 0.1500000873 | AL62: 0.1500000759 | AM62: 0.150000066 | AN62: -0.003735402873 | AO62: 0.01369123267 | AP62: 0.03418015409 | AQ62: 0.056941205 | AR62: 0.08076342544 | AS62: 0.1042107711 | AT62: 0.009210303463 | AU62: 0.02279213325 | AV62: 0.03825092849 | AW62: 0.05513487695 | AX62: 0.07279673819 | AY62: 0.090470335 | AZ62: 0.01916529394 | BA62: 0.02963328997 | BB62: 0.04126355517 | BC62: 0.05380717546 | BD62: 0.06692358591 | BE62: 0.08020929614 | BF62: 0.02676463147 | BG62: 0.03476633649 | BH62: 0.04349782729 | BI62: 0.05282745547 | BJ62: 0.06258024854 | BK62: 0.07254805131 | BL62: 0.03253336982 | BM62: 0.03861243884 | BN62: 0.04515745531 | BO62: 0.05210242608 | BP62: 0.05936080856 | BQ62: 0.06682871647 | BR62: 0.03689390942 | BS62: 0.04149127407 | BT62: 0.04639167761 | BU62: 0.05156473169 | BV62: =BV51/BU51-1 -> 0.05697034888 | BW62: 0.06255952585 | BX62: 0.04017942665 | BY62: 0.04364443335 | BZ62: 0.04731033525 | CA62: 0.05116533713 | CB62: 0.055193154 | CC62: 0.05937304644 | CD62: 0.04264896114 | CE62: 0.04525390642 | CF62: 0.04799455419 | CG62: 0.05086832185 | CH62: 0.05387064264 | CI62: 0.05699483223 | CJ62: 0.0445017902 | CK62: 0.04645645614 | CL62: 0.04850440817 | CM62: 0.05064724938 | CN62: 0.05288579427 | CO62: 0.05521994147 | CP62: 0.04589002186 | CQ62: 0.04735467409 | CR62: 0.04888446848 | CS62: 0.05048259522 | CT62: 0.05215201255 | CU62: 0.05389536217 | CV62: 0.04692908909 | CW62: 0.04802541586 | CX62: 0.04916785259 | CY62: 0.05035990188 | CZ62: 0.05160507979 | DA62: 0.05290686915 | DB62: 0.04770621667 | DC62: 0.04852619995 | DD62: 0.04937919428 | DE62: 0.050268443 | DF62: 0.05119729844 | DG62: 0.05216920059 | DH62: 0.04828710399 | DI62: 0.04890004112 | DJ62: 0.04953683175 | DK62: 0.0502002488 | DL62: 0.05089319946 | DM62: 0.05161871877 | DN62: 0.04872111951 | DO62: 0.04917908982 | DP62: 0.04965442489 | DQ62: 0.05014939117 | DR62: 0.0506663839 | DS62: 0.05120792839 | DT62: 0.04904529449 | DU62: 0.0493873663 | DV62: 0.04974215335 | DW62: 0.05011145708 | DX62: 0.05049719062 | DY62: 0.05090138341 | DZ62: 0.0492873694 | EA62: 0.04954281106 | EB62: 0.04980760579 | EC62: 0.05008315935 | ED62: 0.05037096937 | EE62: 0.050672631 | EF62: 0.04946810449 | EG62: 0.04965882062 | EH62: =EH51/EG51-1 -> 0.04985644079 | EI62: 0.05006204831 | EJ62: 0.05027679972 | EK62: 0.05050193029 | EL62: 0.04960302476 | EM62: 0.0497453967 | EN62: 0.04989287854 | EO62: 0.0500462978 | EP62: 0.05020653922 | EQ62: 0.0503745496 | ER62: 0.04970373386 | ES62: 0.04981000553 | ET62: 0.04992006689 | EU62: 0.05003454612 | EV62: 0.05015411551 | EW62: 0.05027949551 | EX62: 0.04977890098 | EY62: 0.0498582201 | EZ62: 0.04994035412 | FA62: 0.05002577773 | FB62: 0.05011499934 | FC62: 0.05020856432 | FD62: 0.049835001 | FE62: 0.04989419993 | FF62: 0.04995549212 | FG62: 0.05001923512 | FH62: 0.05008581203 | FI62: 0.05015563416 | FJ62: 0.04987686879 | FK62: 0.0499210494 | FL62: 0.04996678798 | FM62: 0.05001435319 | FN62: 0.05006403301 | FO62: 0.05011613675 | FP62: 0.04990811403 | FQ62: 0.04994108531 | FR62: 0.04997521693 | FS62: 0.05001071038 | FT62: 0.05004778172 | FU62: 0.05008666311 | FV62: 0.04993143129 | FW62: 0.04995603665 | FX62: 0.04998150663 | FY62: 0.05000799214 | FZ62: 0.05003565507 | GA62: 0.05006466939 | GB62: 0.04994883186 | GC62: 0.04996719371 | GD62: 0.04998620004 | GE62: 0.0500059638 | GF62: 0.05002660615 | GG62: 0.05004825732 | GH62: 0.04996181693 | GI62: 0.04997551935 | GJ62: 0.0499897023 | GK62: 0.05000445025 | GL62: 0.0500198538 | GM62: 0.05003601037 | GN62: 0.04997150686 | GO62: 0.04998173211 | GP62: 0.04999231572 | GQ62: 0.05000332082 | GR62: 0.05001481514 | GS62: 0.0500268715 | GT62: =GT51/GS51-1 -> 0.04997873779 | GU62: 0.04998636819 | GV62: 0.04999426589 | GW62: 0.05000247804 | GX62: 0.05001105525 | GY62: 0.05002005193 | GZ62: 0.04998413371 | HA62: 0.04998982772 | HB62: 0.04999572112 | HC62: 0.05000184915 | HD62: 0.05000824958 | HE62: 0.05001496306 | HF62: 0.04998816027 | HG62: 0.04999240928 | HH62: 0.04999680704 | HI62: 0.05000137986 | HJ62: 0.05000615595 | HK62: 0.05001116567 | HL62: 0.04999116498 | HM62: 0.04999433568 | HN62: 0.04999761737 | HO62: 0.05000102967 | HP62: 0.05000459366 | HQ62: 0.05000833199 | HR62: 0.04999340715 | HS62: 0.04999577319 | HT62: 0.04999822204 | HU62: 0.05000076835 | HV62: 0.05000342785 | HW62: 0.05000621746 | HX62: 0.0499950803 | HY62: 0.04999684589 | HZ62: 0.04999867326 | IA62: 0.05000057336 | IB62: 0.05000255792 | IC62: 0.05000463957 | ID62: 0.04999632884 | IE62: 0.04999764635 | IF62: 0.04999900997 | IG62: 0.05000042785 | IH62: 0.05000190876 | II62: 0.05000346212 | IJ62: 0.04999726052 | IK62: 0.04999824367 | IL62: 0.04999926122 | IM62: 0.05000031927 | IN62: 0.05000142434 | IO62: 0.05000258348 | IP62: 0.04999795576 | IQ62: 0.0499986894 | IR62: 0.04999944871 | IS62: 0.05000023824 | IT62: 0.05000106287 | IU62: 0.05000192784 | IV62: 0.04999847455 | IW62: 0.04999902201 | IX62: 0.04999958862 | IY62: 0.05000017778 | IZ62: 0.05000079313 | JA62: 0.05000143858 | JB62: 0.04999886169 | JC62: 0.04999927021 | JD62: 0.04999969302 | JE62: 0.05000013266 | JF62: =JF51/JE51-1 -> 0.05000059184 | JG62: 0.05000107349 | JH62: 0.04999915057 | JI62: 0.04999945542 | JJ62: 0.04999977093 | JK62: 0.05000009899 | JL62: 0.05000044164 | JM62: 0.05000080106 | JN62: 0.04999936614 | JO62: 0.04999959363 | JP62: 0.04999982906 | JQ62: 0.05000007387 | JR62: 0.05000032956 | JS62: 0.05000059776 | JT62: 0.04999952701 | JU62: 0.04999969676 | JV62: 0.04999987244 | JW62: 0.05000005512 | JX62: 0.05000024592 | JY62: 0.05000044606 | JZ62: 0.04999964705 | KA62: 0.04999977372 | KB62: 0.04999990482 | KC62: 0.05000004113 | KD62: 0.05000018351 | KE62: 0.05000033286 | KF62: 0.04999973662 | KG62: 0.04999983114 | KH62: 0.04999992897 | KI62: 0.05000003069 | KJ62: 0.05000013694 | KK62: 0.05000024838 | KL62: 0.04999980346 | KM62: 0.049999874 | KN62: 0.049999947 | KO62: 0.0500000229 | KP62: 0.05000010219 | KQ62: 0.05000018535 | KR62: 0.04999985334 | KS62: 0.04999990597 | KT62: 0.04999996045 | KU62: -0.03237013765
D63: Depreciation | I63: =I43/H43-1 -> 0.15 | J63: =J43/I43-1 -> 0.15 | K63: 0.15 | L63: 0.15 | M63: 0.15 | N63: 0.15 | O63: 0.15 | P63: 0.15 | Q63: 0.15 | R63: 0.15 | S63: 0.15 | T63: 0.15 | U63: 0.15 | V63: 0.15 | W63: 0.15 | X63: 0.15 | Y63: 0.15 | Z63: 0.15 | AA63: 0.15 | AB63: 0.15 | AC63: 0.15 | AD63: 0.15 | AE63: 0.15 | AF63: 0.15 | AG63: 0.15 | AH63: 0.15 | AI63: 0.15 | AJ63: 0.15 | AK63: 0.15 | AL63: 0.15 | AM63: 0.15 | AN63: 0.15 | AO63: 0.05 | AP63: 0.05 | AQ63: 0.05 | AR63: 0.05 | AS63: 0.05 | AT63: 0.05 | AU63: 0.05 | AV63: 0.05 | AW63: 0.05 | AX63: 0.05 | AY63: 0.05 | AZ63: 0.05 | BA63: 0.05 | BB63: 0.05 | BC63: 0.05 | BD63: 0.05 | BE63: 0.05 | BF63: 0.05 | BG63: 0.05 | BH63: 0.05 | BI63: 0.05 | BJ63: 0.05 | BK63: 0.05 | BL63: 0.05 | BM63: 0.05 | BN63: 0.05 | BO63: 0.05 | BP63: 0.05 | BQ63: 0.05 | BR63: 0.05 | BS63: 0.05 | BT63: 0.05 | BU63: 0.05 | BV63: =BV43/BU43-1 -> 0.05 | BW63: 0.05 | BX63: 0.05 | BY63: 0.05 | BZ63: 0.05 | CA63: 0.05 | CB63: 0.05 | CC63: 0.05 | CD63: 0.05 | CE63: 0.05 | CF63: 0.05 | CG63: 0.05 | CH63: 0.05 | CI63: 0.05 | CJ63: 0.05 | CK63: 0.05 | CL63: 0.05 | CM63: 0.05 | CN63: 0.05 | CO63: 0.05 | CP63: 0.05 | CQ63: 0.05 | CR63: 0.05 | CS63: 0.05 | CT63: 0.05 | CU63: 0.05 | CV63: 0.05 | CW63: 0.05 | CX63: 0.05 | CY63: 0.05 | CZ63: 0.05 | DA63: 0.05 | DB63: 0.05 | DC63: 0.05 | DD63: 0.05 | DE63: 0.05 | DF63: 0.05 | DG63: 0.05 | DH63: 0.05 | DI63: 0.05 | DJ63: 0.05 | DK63: 0.05 | DL63: 0.05 | DM63: 0.05 | DN63: 0.05 | DO63: 0.05 | DP63: 0.05 | DQ63: 0.05 | DR63: 0.05 | DS63: 0.05 | DT63: 0.05 | DU63: 0.05 | DV63: 0.05 | DW63: 0.05 | DX63: 0.05 | DY63: 0.05 | DZ63: 0.05 | EA63: 0.05 | EB63: 0.05 | EC63: 0.05 | ED63: 0.05 | EE63: 0.05 | EF63: 0.05 | EG63: 0.05 | EH63: =EH43/EG43-1 -> 0.05 | EI63: 0.05 | EJ63: 0.05 | EK63: 0.05 | EL63: 0.05 | EM63: 0.05 | EN63: 0.05 | EO63: 0.05 | EP63: 0.05 | EQ63: 0.05 | ER63: 0.05 | ES63: 0.05 | ET63: 0.05 | EU63: 0.05 | EV63: 0.05 | EW63: 0.05 | EX63: 0.05 | EY63: 0.05 | EZ63: 0.05 | FA63: 0.05 | FB63: 0.05 | FC63: 0.05 | FD63: 0.05 | FE63: 0.05 | FF63: 0.05 | FG63: 0.05 | FH63: 0.05 | FI63: 0.05 | FJ63: 0.05 | FK63: 0.05 | FL63: 0.05 | FM63: 0.05 | FN63: 0.05 | FO63: 0.05 | FP63: 0.05 | FQ63: 0.05 | FR63: 0.05 | FS63: 0.05 | FT63: 0.05 | FU63: 0.05 | FV63: 0.05 | FW63: 0.05 | FX63: 0.05 | FY63: 0.05 | FZ63: 0.05 | GA63: 0.05 | GB63: 0.05 | GC63: 0.05 | GD63: 0.05 | GE63: 0.05 | GF63: 0.05 | GG63: 0.05 | GH63: 0.05 | GI63: 0.05 | GJ63: 0.05 | GK63: 0.05 | GL63: 0.05 | GM63: 0.05 | GN63: 0.05 | GO63: 0.05 | GP63: 0.05 | GQ63: 0.05 | GR63: 0.05 | GS63: 0.05 | GT63: =GT43/GS43-1 -> 0.05 | GU63: 0.05 | GV63: 0.05 | GW63: 0.05 | GX63: 0.05 | GY63: 0.05 | GZ63: 0.05 | HA63: 0.05 | HB63: 0.05 | HC63: 0.05 | HD63: 0.05 | HE63: 0.05 | HF63: 0.05 | HG63: 0.05 | HH63: 0.05 | HI63: 0.05 | HJ63: 0.05 | HK63: 0.05 | HL63: 0.05 | HM63: 0.05 | HN63: 0.05 | HO63: 0.05 | HP63: 0.05 | HQ63: 0.05 | HR63: 0.05 | HS63: 0.05 | HT63: 0.05 | HU63: 0.05 | HV63: 0.05 | HW63: 0.05 | HX63: 0.05 | HY63: 0.05 | HZ63: 0.05 | IA63: 0.05 | IB63: 0.05 | IC63: 0.05 | ID63: 0.05 | IE63: 0.05 | IF63: 0.05 | IG63: 0.05 | IH63: 0.05 | II63: 0.05 | IJ63: 0.05 | IK63: 0.05 | IL63: 0.05 | IM63: 0.05 | IN63: 0.05 | IO63: 0.05 | IP63: 0.05 | IQ63: 0.05 | IR63: 0.05 | IS63: 0.05 | IT63: 0.05 | IU63: 0.05 | IV63: 0.05 | IW63: 0.05 | IX63: 0.05 | IY63: 0.05 | IZ63: 0.05 | JA63: 0.05 | JB63: 0.05 | JC63: 0.05 | JD63: 0.05 | JE63: 0.05 | JF63: =JF43/JE43-1 -> 0.05 | JG63: 0.05 | JH63: 0.05 | JI63: 0.05 | JJ63: 0.05 | JK63: 0.05 | JL63: 0.05 | JM63: 0.05 | JN63: 0.05 | JO63: 0.05 | JP63: 0.05 | JQ63: 0.05 | JR63: 0.05 | JS63: 0.05 | JT63: 0.05 | JU63: 0.05 | JV63: 0.05 | JW63: 0.05 | JX63: 0.05 | JY63: 0.05 | JZ63: 0.05 | KA63: 0.05 | KB63: 0.05 | KC63: 0.05 | KD63: 0.05 | KE63: 0.05 | KF63: 0.05 | KG63: 0.05 | KH63: 0.05 | KI63: 0.05 | KJ63: 0.05 | KK63: 0.05 | KL63: 0.05 | KM63: 0.05 | KN63: 0.05 | KO63: 0.05 | KP63: 0.05 | KQ63: 0.05 | KR63: 0.05 | KS63: 0.05 | KT63: 0.05 | KU63: 0.05
D64: Capital Expenditure | I64: =I38/H38-1 -> 0.15 | J64: =J38/I38-1 -> 0.15 | K64: 0.15 | L64: 0.15 | M64: 0.15 | N64: 0.15 | O64: 0.15 | P64: 0.15 | Q64: 0.15 | R64: 0.15 | S64: 0.15 | T64: 0.15 | U64: 0.15 | V64: 0.15 | W64: 0.15 | X64: 0.15 | Y64: 0.15 | Z64: 0.15 | AA64: 0.15 | AB64: 0.15 | AC64: 0.15 | AD64: 0.15 | AE64: 0.15 | AF64: 0.15 | AG64: 0.15 | AH64: 0.15 | AI64: 0.15 | AJ64: 0.15 | AK64: 0.15 | AL64: 0.15 | AM64: 0.15 | AN64: -0.2852155098 | AO64: 0.1195561728 | AP64: 0.1214475974 | AQ64: 0.1232666754 | AR64: 0.1250103947 | AS64: 0.1266765839 | AT64: -0.2123526361 | AU64: 0.09940151893 | AV64: 0.1016751576 | AW64: 0.1039418819 | AX64: 0.1061924185 | AY64: 0.1084177582 | AZ64: -0.1531717665 | BA64: 0.08558399637 | BB64: 0.0876954671 | BC64: 0.08985470978 | BD64: 0.09205415257 | BE64: 0.0942856019 | BF64: -0.1060104938 | BG64: 0.07588261095 | BH64: 0.07766566007 | BI64: 0.07952261565 | BJ64: 0.08145002013 | BK64: 0.08344354568 | BL64: -0.06899479718 | BM64: 0.06895669222 | BN64: 0.07039390016 | BO64: 0.07191061176 | BP64: 0.07350681414 | BQ64: 0.07518180221 | BR64: -0.04028733787 | BS64: 0.06395315173 | BT64: 0.06508160812 | BU64: 0.06628405674 | BV64: =BV38/BU38-1 -> 0.0675625483 | BW64: 0.06891873275 | BX64: -0.01822904603 | BY64: 0.06030732129 | BZ64: 0.06117923006 | CA64: 0.06211493234 | CB64: 0.06311738661 | CC64: 0.06418939695 | CD64: -0.001400454066 | CE64: 0.05763417806 | CF64: 0.0583008898 | CG64: 0.05902014103 | CH64: 0.05979505656 | CI64: 0.0606287673 | CJ64: 0.01136851154 | CK64: 0.05566524515 | CL64: 0.05617149418 | CM64: 0.05671975939 | CN64: 0.05731293536 | CO64: 0.05795400811 | CP64: 0.02101714353 | CQ64: 0.0542101236 | CR64: 0.05459267278 | CS64: 0.0550081646 | CT64: 0.05545909452 | CU64: 0.05594808338 | CV64: 0.02828517036 | CW64: 0.05313205621 | CX64: 0.05342014529 | CY64: 0.05373371167 | CZ64: 0.05407481356 | DA64: 0.05444563852 | DB64: 0.03374706133 | DC64: 0.05233186982 | DD64: 0.05254829334 | DE64: 0.05278423077 | DF64: 0.05304133106 | DG64: 0.0533213613 | DH64: 0.03784437835 | DI64: 0.05173712724 | DJ64: 0.05189942551 | DK64: 0.05207656671 | DL64: 0.05226984594 | DM64: 0.05248065915 | DN64: 0.0409139543 | DO64: 0.05129463332 | DP64: 0.0514161856 | DQ64: 0.05154897124 | DR64: 0.05169399332 | DS64: 0.05185233759 | DT64: 0.04321128921 | DU64: 0.05096516535 | DV64: 0.05105611508 | DW64: 0.0511555352 | DX64: 0.05126419491 | DY64: 0.05138292939 | DZ64: 0.04492938042 | EA64: 0.05071971538 | EB64: 0.05078771976 | EC64: 0.05086209394 | ED64: 0.05094342354 | EE64: 0.05103234584 | EF64: 0.04621356005 | EG64: 0.05053678135 | EH64: =EH38/EG38-1 -> 0.05058760299 | EI64: 0.05064320523 | EJ64: 0.0507040316 | EK64: 0.05077056556 | EL64: 0.04717301411 | EM64: 0.05040039799 | EN64: 0.05043836397 | EO64: 0.05047991257 | EP64: 0.05052537839 | EQ64: 0.05057512666 | ER64: 0.04788963133 | ES64: 0.05029869605 | ET64: 0.05032705026 | EU64: 0.05035808637 | EV64: 0.05039205613 | EW64: 0.05042923453 | EX64: 0.04842474887 | EY64: 0.05022284312 | EZ64: 0.05024401449 | FA64: 0.05026719187 | FB64: 0.05029256426 | FC64: 0.05032033827 | FD64: 0.04882426622 | FE64: 0.05016626199 | FF64: 0.05018206763 | FG64: 0.05019937283 | FH64: 0.05021831927 | FI64: 0.05023906187 | FJ64: 0.04912250612 | FK64: 0.05012405223 | FL64: 0.05013585068 | FM64: 0.05014876959 | FN64: 0.05016291504 | FO64: 0.05017840308 | FP64: 0.04934512077 | FQ64: 0.05009256132 | FR64: 0.05010136775 | FS64: 0.05011101111 | FT64: 0.05012157074 | FU64: 0.05013313349 | FV64: 0.0495112746 | FW64: 0.05006906603 | FX64: 0.05007563877 | FY64: 0.0500828365 | FZ64: 0.05009071853 | GA64: 0.05009934981 | GB64: 0.04963528084 | GC64: 0.05005153554 | GD64: 0.05005644092 | GE64: 0.05006181292 | GF64: 0.05006769588 | GG64: 0.05007413833 | GH64: 0.04972782716 | GI64: 0.05003845517 | GJ64: 0.05004211603 | GK64: 0.05004612523 | GL64: 0.05005051589 | GM64: 0.05005532426 | GN64: 0.04979689277 | GO64: 0.05002869504 | GP64: 0.05003142704 | GQ64: 0.05003441906 | GR64: 0.05003769583 | GS64: 0.05004128443 | GT64: =GT38/GS38-1 -> 0.04984843398 | GU64: 0.05002141223 | GV64: 0.05002345101 | GW64: 0.05002568387 | GX64: 0.05002812926 | GY64: 0.05003080742 | GZ64: 0.04988689672 | HA64: 0.05001597789 | HB64: 0.05001749933 | HC64: 0.05001916561 | HD64: 0.05002099052 | HE64: 0.05002298916 | HF64: 0.04991559927 | HG64: 0.05001192281 | HH64: 0.05001305816 | HI64: 0.05001430162 | HJ64: 0.05001566347 | HK64: 0.05001715497 | HL64: 0.04993701814 | HM64: 0.05000889691 | HN64: 0.05000974415 | HO64: 0.05001067206 | HP64: 0.05001168833 | HQ64: 0.05001280136 | HR64: 0.04995300155 | HS64: 0.05000663896 | HT64: 0.0500072712 | HU64: 0.05000796364 | HV64: 0.05000872202 | HW64: 0.05000955261 | HX64: 0.04996492881 | HY64: 0.05000495407 | HZ64: 0.05000542586 | IA64: 0.05000594258 | IB64: 0.05000650851 | IC64: 0.05000712832 | ID64: 0.04997382921 | IE64: 0.05000369679 | IF64: 0.05000404885 | IG64: 0.05000443444 | IH64: 0.05000485675 | II64: 0.05000531927 | IJ64: 0.04998047088 | IK64: 0.0500027586 | IL64: 0.05000302131 | IM64: 0.05000330905 | IN64: 0.05000362418 | IO64: 0.05000396933 | IP64: 0.04998542703 | IQ64: 0.0500020585 | IR64: 0.05000225455 | IS64: 0.05000246926 | IT64: 0.05000270442 | IU64: 0.05000296198 | IV64: 0.0499891254 | IW64: 0.05000153608 | IX64: 0.05000168238 | IY64: 0.0500018426 | IZ64: 0.05000201808 | JA64: 0.05000221027 | JB64: 0.0499918852 | JC64: 0.05000114625 | JD64: 0.05000125541 | JE64: 0.05000137498 | JF64: =JF38/JE38-1 -> 0.05000150592 | JG64: 0.05000164934 | JH64: 0.0499939446 | JI64: 0.05000085535 | JJ64: 0.05000093681 | JK64: 0.05000102603 | JL64: 0.05000112374 | JM64: 0.05000123076 | JN64: 0.04999548137 | JO64: 0.05000063827 | JP64: 0.05000069906 | JQ64: 0.05000076564 | JR64: 0.05000083855 | JS64: 0.05000091842 | JT64: 0.04999662812 | JU64: 0.05000047629 | JV64: 0.05000052165 | JW64: 0.05000057133 | JX64: 0.05000062574 | JY64: 0.05000068534 | JZ64: 0.04999748385 | KA64: 0.05000035541 | KB64: 0.05000038926 | KC64: 0.05000042634 | KD64: 0.05000046694 | KE64: 0.05000051141 | KF64: 0.04999812241 | KG64: 0.05000026522 | KH64: 0.05000029047 | KI64: 0.05000031814 | KJ64: 0.05000034844 | KK64: 0.05000038162 | KL64: 0.04999859891 | KM64: 0.05000019791 | KN64: 0.05000021676 | KO64: 0.0500002374 | KP64: 0.05000026001 | KQ64: 0.05000028477 | KR64: 0.04999895449 | KS64: 0.05000014768 | KT64: 0.05000016175 | KU64: -0.2164736908
D65: Cash Flow | I65: =I56/H56-1 -> 1.072881025 | J65: =J56/I56-1 -> -0.3619990805 | K65: 0.15 | L65: 0.15 | M65: 0.15 | N65: 0.1499999997 | O65: 0.15 | P65: 0.15 | Q65: 0.15 | R65: 0.15 | S65: 0.15 | T65: 0.1499999999 | U65: 0.15 | V65: 0.15 | W65: 0.15 | X65: 0.15 | Y65: 0.15 | Z65: 0.1499999999 | AA65: 0.15 | AB65: 0.15 | AC65: 0.15 | AD65: 0.15 | AE65: 0.15 | AF65: 0.15 | AG65: 0.15 | AH65: 0.15 | AI65: 0.15 | AJ65: 0.15 | AK65: 0.15 | AL65: 0.15 | AM65: 0.15 | AN65: 5.277116808 | AO65: -0.04330811926 | AP65: -0.0621618562 | AQ65: -0.087535603 | AR65: -0.123339304 | AS65: -0.1773858067 | AT65: 1.115587455 | AU65: -0.02470416395 | AV65: -0.03808587647 | AW65: -0.05530956503 | AX65: -0.07819649199 | AY65: -0.1099320945 | AZ65: 0.7426828393 | BA65: -0.008952573399 | BB65: -0.01840788603 | BC65: -0.03014435713 | BD65: -0.0450306485 | BE65: -0.06443848497 | BF65: 0.5215434275 | BG65: 0.004035341554 | BH65: -0.002646908954 | BI65: -0.01070462491 | BJ65: -0.02056569798 | BK65: -0.03285451358 | BL65: 0.3802526472 | BM65: 0.01451258114 | BN65: 0.009773262114 | BO65: 0.004186993947 | BP65: -0.00246528513 | BQ65: -0.01048418867 | BR65: 0.2856356876 | BS65: 0.02281622039 | BT65: 0.01943600822 | BU65: 0.01552153322 | BV65: =BV56/BU56-1 -> 0.01095578922 | BW65: 0.005585750754 | BX65: 0.2202649125 | BY65: 0.02930536697 | BZ65: 0.02687874877 | CA65: 0.02410654477 | CB65: 0.02092346136 | CC65: 0.01724728082 | CD65: 0.1741202863 | CE65: 0.03432105377 | CF65: 0.03256751315 | CG65: 0.03058494034 | CH65: 0.02833529509 | CI65: 0.02577209422 | CJ65: 0.1410514656 | CK65: 0.03816499621 | CL65: 0.03689008547 | CM65: 0.03545998085 | CN65: 0.03385159993 | CO65: 0.03203740258 | CP65: 0.1170958477 | CQ65: 0.04109176017 | CR65: 0.04015987236 | CS65: 0.03912076203 | CT65: 0.03795989444 | CU65: 0.03666025395 | CV65: 0.09960586863 | CW65: 0.04330912828 | CX65: 0.04262490639 | CY65: 0.04186537978 | CZ65: 0.04102109213 | DA65: 0.04008113849 | DB65: 0.0867634746 | DC65: 0.04498272147 | DD65: 0.04447850171 | DE65: 0.04392067618 | DF65: 0.04330291798 | DG65: 0.04261801708 | DH65: 0.07729416139 | DI65: 0.04624229967 | DJ65: 0.04586964188 | DK65: 0.0454584093 | DL65: 0.04500426869 | DM65: 0.04450232772 | DN65: 0.07029043606 | DO65: 0.04718825177 | DP65: 0.04691219754 | DQ65: 0.04660814647 | DR65: 0.04627307358 | DS65: 0.04590358818 | DT65: 0.06509850344 | DU65: 0.04789752509 | DV65: 0.04769266929 | DW65: 0.04746735813 | DX65: 0.04721944734 | DY65: 0.04694654681 | DZ65: 0.06124316806 | EA65: 0.04842869501 | EB65: 0.04827646769 | EC65: 0.04810921811 | ED65: 0.04792540783 | EE65: 0.04772332938 | EF65: 0.05837674962 | EG65: 0.04882612477 | EH65: =EH56/EG56-1 -> 0.04871288817 | EI65: 0.04858857594 | EJ65: 0.04845207386 | EK65: 0.04830214932 | EL65: 0.0562435984 | EM65: 0.04912328676 | EN65: 0.04903898785 | EO65: 0.04894649867 | EP65: 0.04884500636 | EQ65: 0.04873361395 | ER65: 0.05465503418 | ES65: 0.04934536513 | ET65: 0.04928257166 | EU65: 0.0492137079 | EV65: 0.04913817757 | EW65: 0.04905532386 | EX65: 0.05347141469 | EY65: 0.04951126838 | EZ65: 0.04946447325 | FA65: 0.0494131714 | FB65: 0.04935692356 | FC65: 0.04929524656 | FD65: 0.05258917524 | FE65: 0.04963517109 | FF65: 0.0496002866 | FG65: 0.04956205194 | FH65: 0.04952014246 | FI65: 0.04947420145 | FJ65: 0.05193138816 | FK65: 0.0497276867 | FL65: 0.04970167474 | FM65: 0.04967316995 | FN65: 0.04964193182 | FO65: 0.04960769631 | FP65: 0.05144084524 | FQ65: 0.04979675532 | FR65: 0.04977735559 | FS65: 0.04975609964 | FT65: 0.04973280897 | FU65: 0.04970728772 | FV65: 0.05107496587 | FW65: 0.04984831324 | FX65: 0.04983384288 | FY65: 0.04981798959 | FZ65: 0.0498006207 | GA65: 0.04978159072 | GB65: 0.05080203638 | GC65: 0.0498867965 | GD65: 0.04987600184 | GE65: 0.04986417646 | GF65: 0.04985122164 | GG65: 0.04983702918 | GH65: 0.05059842526 | GI65: 0.04991551884 | GJ65: 0.04990746557 | GK65: 0.04989864384 | GL65: 0.04988898015 | GM65: 0.04987839397 | GN65: 0.05044651705 | GO65: 0.04993695498 | GP65: 0.04993094655 | GQ65: 0.04992436505 | GR65: 0.04991715576 | GS65: 0.04990925867 | GT65: =GT56/GS56-1 -> 0.05033317724 | GU65: 0.04995295267 | GV65: 0.04994846967 | GW65: 0.04994355925 | GX65: 0.04993818061 | GY65: 0.04993228907 | GZ65: 0.05024861049 | HA65: 0.04996489136 | HB65: 0.04996154639 | HC65: 0.0499578826 | HD65: 0.04995386957 | HE65: 0.04994947398 | HF65: 0.05018551057 | HG65: 0.04997380072 | HH65: 0.04997130484 | HI65: 0.0499685711 | HJ65: 0.04996557685 | HK65: 0.04996229721 | HL65: 0.05013842728 | HM65: 0.04998044932 | HN65: 0.04997858695 | HO65: 0.04997654714 | HP65: 0.04997431296 | HQ65: 0.04997186588 | HR65: 0.05010329458 | HS65: 0.04998541078 | HT65: 0.0499840211 | HU65: 0.04998249904 | HV65: 0.04998083196 | HW65: 0.04997900605 | HX65: 0.0500770789 | HY65: 0.04998911318 | HZ65: 0.04998807622 | IA65: 0.04998694047 | IB65: 0.04998569653 | IC65: 0.04998433408 | ID65: 0.05005751685 | IE65: 0.04999187602 | IF65: 0.04999110224 | IG65: 0.04999025475 | IH65: 0.04998932654 | II65: 0.0499883099 | IJ65: 0.05004291961 | IK65: 0.04999393773 | IL65: 0.04999336033 | IM65: 0.04999272793 | IN65: 0.0499920353 | IO65: 0.04999127669 | IP65: 0.05003202709 | IQ65: 0.04999547622 | IR65: 0.04999504536 | IS65: 0.04999457347 | IT65: 0.04999405662 | IU65: 0.04999349055 | IV65: 0.050023899 | IW65: 0.04999662427 | IX65: 0.04999630276 | IY65: 0.04999595063 | IZ65: 0.04999556496 | JA65: 0.04999514256 | JB65: 0.05001783374 | JC65: 0.04999748097 | JD65: 0.04999724106 | JE65: 0.0499969783 | JF65: =JF56/JE56-1 -> 0.04999669051 | JG65: 0.04999637531 | JH65: 0.05001330778 | JI65: 0.04999812026 | JJ65: 0.04999794123 | JK65: 0.04999774516 | JL65: 0.04999753041 | JM65: 0.0499972952 | JN65: 0.05000993045 | JO65: 0.04999859731 | JP65: 0.04999846372 | JQ65: 0.0499983174 | JR65: 0.04999815715 | JS65: 0.04999798164 | JT65: 0.05000741025 | JU65: 0.04999895329 | JV65: 0.0499988536 | JW65: 0.04999874442 | JX65: 0.04999862484 | JY65: 0.04999849387 | JZ65: 0.05000552963 | KA65: 0.04999921893 | KB65: 0.04999914454 | KC65: 0.04999906307 | KD65: 0.04999897383 | KE65: 0.0499988761 | KF65: 0.05000412629 | KG65: 0.04999941715 | KH65: 0.04999936164 | KI65: 0.04999930084 | KJ65: 0.04999923426 | KK65: 0.04999916133 | KL65: 0.0500030791 | KM65: 0.04999956507 | KN65: 0.04999952365 | KO65: 0.04999947828 | KP65: 0.04999942859 | KQ65: 0.04999937417 | KR65: 0.05000229767 | KS65: 0.04999967545 | KT65: 0.04999964454 | KU65: 0.6356153881
B67: Capital Asset Ratios
C68: Accumulated Depreciation to Net Plant | H68: =H49/H40 -> 0.3495506887 | I68: =I49/I40 -> 0.3495482164 | J68: 0.3495460665 | K68: 0.349544197 | L68: 0.3495425714 | M68: 0.3495411579 | N68: 0.3495399287 | O68: 0.3495388598 | P68: 0.3495379304 | Q68: 0.3495371221 | R68: 0.3495364193 | S68: 0.3495358082 | T68: 0.3495352768 | U68: 0.3495348147 | V68: 0.3495344129 | W68: 0.3495340634 | X68: 0.3495337596 | Y68: 0.3495334954 | Z68: 0.3495332657 | AA68: 0.3495330659 | AB68: 0.3495328921 | AC68: 0.3495327411 | AD68: 0.3495326097 | AE68: 0.3495324955 | AF68: 0.3495323962 | AG68: 0.3495323098 | AH68: 0.3495322347 | AI68: 0.3495321694 | AJ68: 0.3495321126 | AK68: 0.3495320632 | AL68: 0.3495320203 | AM68: 0.3495319829 | AN68: 0.3828207077 | AO68: 0.4041626308 | AP68: 0.4131398264 | AQ68: 0.4092602866 | AR68: 0.3919524989 | AS68: 0.3605594285 | AT68: 0.3853999874 | AU68: 0.4013256591 | AV68: 0.4080245807 | AW68: 0.4051296084 | AX68: 0.3922142707 | AY68: 0.3687882782 | AZ68: 0.3873246857 | BA68: 0.3992086671 | BB68: 0.4042075055 | BC68: 0.4020472326 | BD68: 0.3924096088 | BE68: 0.3749287725 | BF68: 0.3887609252 | BG68: 0.3976289351 | BH68: 0.4013591453 | BI68: 0.3997471164 | BJ68: 0.3925553731 | BK68: 0.379510904 | BL68: 0.3898326693 | BM68: 0.3964501148 | BN68: 0.3992336551 | BO68: 0.3980307343 | BP68: 0.3926641447 | BQ68: 0.382930161 | BR68: 0.3906324212 | BS68: 0.3955704609 | BT68: 0.3976475815 | BU68: =BU49/BU40 -> 0.3967499435 | BV68: 0.3927453117 | BW68: 0.3854816632 | BX68: 0.3912292083 | BY68: 0.3949140496 | BZ68: 0.396464029 | CA68: 0.3957941977 | CB68: 0.3928058798 | CC68: 0.3873856334 | CD68: 0.3916745401 | CE68: 0.3944242254 | CF68: 0.3955808439 | CG68: 0.3950810055 | CH68: 0.3928510766 | CI68: 0.3888064053 | CJ68: 0.3920068535 | CK68: 0.394058711 | CL68: 0.3949217976 | CM68: 0.3945488104 | CN68: 0.3928848032 | CO68: 0.3898666072 | CP68: 0.3922548309 | CQ68: 0.3937859586 | CR68: 0.3944300071 | CS68: 0.3941516783 | CT68: 0.3929099705 | CU68: 0.3906577462 | CV68: 0.3924398755 | CW68: 0.3935824265 | CX68: 0.3940630254 | CY68: 0.3938553322 | CZ68: 0.3929287507 | DA68: 0.3912481063 | DB68: 0.3925779586 | DC68: 0.3934305478 | DD68: 0.393789178 | DE68: 0.3936341942 | DF68: 0.3929427648 | DG68: 0.391688642 | DH68: 0.3926809983 | DI68: 0.3933172135 | DJ68: 0.3935848289 | DK68: 0.3934691776 | DL68: 0.3929532223 | DM68: 0.3920173766 | DN68: 0.3927578882 | DO68: 0.3932326417 | DP68: 0.3934323405 | DQ68: 0.3933460397 | DR68: 0.3929610259 | DS68: 0.3922626834 | DT68: 0.3928152645 | DU68: 0.3931695329 | DV68: 0.3933185512 | DW68: 0.3932541522 | DX68: 0.3929668491 | DY68: 0.3924457351 | DZ68: 0.3928580797 | EA68: 0.3931224402 | EB68: 0.39323364 | EC68: 0.3931855844 | ED68: 0.3929711944 | EE68: 0.3925823311 | EF68: 0.392890029 | EG68: =EG49/EG40 -> 0.3930872989 | EH68: 0.3931702779 | EI68: 0.3931344181 | EJ68: 0.3929744369 | EK68: 0.3926842612 | EL68: 0.3929138701 | EM68: 0.3930610759 | EN68: 0.3931229961 | EO68: 0.393096237 | EP68: 0.3929768566 | EQ68: 0.392760323 | ER68: 0.3929316606 | ES68: 0.3930415079 | ET68: 0.3930877137 | EU68: 0.3930677456 | EV68: 0.3929786621 | EW68: 0.3928170814 | EX68: 0.3929449362 | EY68: 0.3930269059 | EZ68: 0.3930613854 | FA68: 0.3930464849 | FB68: 0.3929800095 | FC68: 0.3928594355 | FD68: 0.3929548427 | FE68: 0.3930160098 | FF68: 0.3930417389 | FG68: 0.3930306199 | FH68: 0.3929810149 | FI68: 0.3928910407 | FJ68: 0.392962235 | FK68: 0.3930078788 | FL68: 0.3930270783 | FM68: 0.3930187812 | FN68: 0.3929817651 | FO68: 0.392914625 | FP68: 0.3929677513 | FQ68: 0.3930018114 | FR68: 0.3930161384 | FS68: 0.3930099469 | FT68: 0.392982325 | FU68: 0.392932224 | FV68: 0.3929718677 | FW68: 0.3929972838 | FX68: 0.3930079748 | FY68: 0.3930033547 | FZ68: 0.3929827427 | GA68: 0.3929453566 | GB68: 0.3929749393 | GC68: 0.3929939053 | GD68: 0.3930018831 | GE68: 0.3929984354 | GF68: 0.3929830545 | GG68: 0.3929551564 | GH68: 0.3929772315 | GI68: 0.3929913841 | GJ68: 0.3929973373 | GK68: 0.3929947646 | GL68: 0.3929832871 | GM68: 0.3929624691 | GN68: 0.3929789419 | GO68: 0.3929895028 | GP68: 0.3929939452 | GQ68: 0.3929920254 | GR68: 0.3929834607 | GS68: =GS49/GS40 -> 0.392967926 | GT68: 0.3929802182 | GU68: 0.392988099 | GV68: 0.3929914139 | GW68: 0.3929899813 | GX68: 0.3929835902 | GY68: 0.392971998 | GZ68: 0.3929811707 | HA68: 0.3929870514 | HB68: 0.392989525 | HC68: 0.392988456 | HD68: 0.3929836869 | HE68: 0.3929750366 | HF68: 0.3929818814 | HG68: 0.3929862697 | HH68: 0.3929881155 | HI68: 0.3929873178 | HJ68: 0.392983759 | HK68: 0.392977304 | HL68: 0.3929824117 | HM68: 0.3929856863 | HN68: 0.3929870638 | HO68: 0.3929864685 | HP68: 0.3929838129 | HQ68: 0.3929789961 | HR68: 0.3929828075 | HS68: 0.392985251 | HT68: 0.3929862789 | HU68: 0.3929858347 | HV68: 0.392983853 | HW68: 0.3929802586 | HX68: 0.3929831028 | HY68: 0.3929849262 | HZ68: 0.3929856932 | IA68: 0.3929853618 | IB68: 0.392983883 | IC68: 0.3929812008 | ID68: 0.3929833232 | IE68: 0.3929846838 | IF68: 0.3929852562 | IG68: 0.3929850088 | IH68: 0.3929839054 | II68: 0.3929819039 | IJ68: 0.3929834876 | IK68: 0.392984503 | IL68: 0.3929849301 | IM68: 0.3929847455 | IN68: 0.3929839221 | IO68: 0.3929824285 | IP68: 0.3929836103 | IQ68: 0.392984368 | IR68: 0.3929846867 | IS68: 0.392984549 | IT68: 0.3929839345 | IU68: 0.39298282 | IV68: 0.3929837019 | IW68: 0.3929842673 | IX68: 0.3929845051 | IY68: 0.3929844023 | IZ68: 0.3929839438 | JA68: 0.3929831121 | JB68: 0.3929837702 | JC68: 0.3929841921 | JD68: 0.3929843696 | JE68: =JE49/JE40 -> 0.3929842929 | JF68: 0.3929839507 | JG68: 0.3929833301 | JH68: 0.3929838212 | JI68: 0.392984136 | JJ68: 0.3929842685 | JK68: 0.3929842112 | JL68: 0.3929839559 | JM68: 0.3929834928 | JN68: 0.3929838593 | JO68: 0.3929840942 | JP68: 0.392984193 | JQ68: 0.3929841503 | JR68: 0.3929839598 | JS68: 0.3929836142 | JT68: 0.3929838876 | JU68: 0.392984063 | JV68: 0.3929841367 | JW68: 0.3929841048 | JX68: 0.3929839627 | JY68: 0.3929837048 | JZ68: 0.3929839088 | KA68: 0.3929840397 | KB68: 0.3929840947 | KC68: 0.3929840709 | KD68: 0.3929839648 | KE68: 0.3929837724 | KF68: 0.3929839246 | KG68: 0.3929840223 | KH68: 0.3929840633 | KI68: 0.3929840456 | KJ68: 0.3929839664 | KK68: 0.3929838228 | KL68: 0.3929839364 | KM68: 0.3929840093 | KN68: 0.3929840399 | KO68: 0.3929840267 | KP68: 0.3929839676 | KQ68: 0.3929838605 | KR68: 0.3929839452 | KS68: 0.3929839996 | KT68: 0.3929840225 | KU68: 0.4126332132
C69: Net Plant Depreciation Rate | H69: =H43/G51 -> 0.2562342558 | I69: =I43/H51 -> 0.2562331357 | J69: =J43/I51 -> 0.2562321618 | K69: 0.2562313149 | L69: 0.2562305785 | M69: 0.2562299381 | N69: 0.2562293813 | O69: 0.2562288971 | P69: 0.256228476 | Q69: 0.2562281099 | R69: 0.2562277915 | S69: 0.2562275147 | T69: 0.256227274 | U69: 0.2562270646 | V69: 0.2562268826 | W69: 0.2562267243 | X69: 0.2562265867 | Y69: 0.256226467 | Z69: 0.2562263629 | AA69: 0.2562262724 | AB69: 0.2562261937 | AC69: 0.2562261253 | AD69: 0.2562260658 | AE69: 0.256226014 | AF69: 0.256225969 | AG69: 0.2562259299 | AH69: 0.2562258959 | AI69: 0.2562258663 | AJ69: 0.2562258406 | AK69: 0.2562258182 | AL69: 0.2562257988 | AM69: 0.2562257818 | AN69: 0.2562257671 | AO69: 0.2700457853 | AP69: 0.2797183851 | AQ69: 0.2839972351 | AR69: 0.2821321521 | AS69: 0.2741013923 | AT69: 0.2606444979 | AU69: 0.2711790811 | AV69: 0.2783928678 | AW69: 0.2815432216 | AX69: 0.2801730747 | AY69: 0.2742194471 | AZ69: 0.2640424138 | BA69: 0.2720309808 | BB69: 0.2774119025 | BC69: 0.2797394533 | BD69: 0.2787288157 | BE69: 0.2743076077 | BF69: 0.2666362797 | BG69: 0.2726701769 | BH69: 0.2766843834 | BI69: 0.2784084403 | BJ69: 0.2776607514 | BK69: 0.2743734314 | BL69: 0.2686053111 | BM69: 0.2731491154 | BN69: 0.2761439787 | BO69: 0.277423441 | BP69: 0.2768690632 | BQ69: 0.2744225707 | BR69: 0.2700936849 | BS69: 0.2735076044 | BT69: 0.2757420938 | BU69: 0.2766929484 | BV69: =BV43/BU51 -> 0.2762812284 | BW69: 0.2744592506 | BX69: 0.2712151236 | BY69: 0.273775728 | BZ69: 0.2754429624 | CA69: 0.2761503451 | CB69: 0.2758442008 | CC69: 0.2744866281 | CD69: 0.2720580446 | CE69: 0.2739761487 | CF69: 0.2752201684 | CG69: 0.2757468306 | CH69: 0.2755189838 | CI69: 0.2745070612 | CJ69: 0.2726904669 | CK69: 0.274125897 | CL69: 0.2750541508 | CM69: 0.2754464894 | CN69: 0.2752768011 | CO69: 0.2745223107 | CP69: 0.273164309 | CQ69: 0.2742377482 | CR69: 0.2749303963 | CS69: 0.2752227961 | CT69: 0.2750963578 | CU69: 0.2745336912 | CV69: 0.2735189717 | CW69: 0.2743212728 | CX69: 0.2748381214 | CY69: 0.2750561092 | CZ69: 0.2749618623 | DA69: 0.2745421841 | DB69: 0.273784227 | DC69: 0.2743836333 | DD69: 0.2747693047 | DE69: 0.2749318564 | DF69: 0.2748615853 | DG69: 0.274548522 | DH69: 0.2739825001 | DI69: 0.2744301861 | DJ69: 0.2747179751 | DK69: 0.2748392102 | DL69: 0.2747868047 | DM69: 0.2745532516 | DN69: 0.2741306417 | DO69: 0.2744649349 | DP69: 0.2746796847 | DQ69: 0.2747701168 | DR69: 0.2747310288 | DS69: 0.274556781 | DT69: 0.2742412916 | DU69: 0.2744908706 | DV69: 0.2746511187 | DW69: 0.2747185809 | DX69: 0.2746894227 | DY69: 0.2745594148 | DZ69: 0.2743239185 | EA69: 0.2745102275 | EB69: 0.2746298063 | EC69: 0.2746801366 | ED69: 0.2746583838 | EE69: 0.2745613802 | EF69: 0.2743856085 | EG69: 0.2745246737 | EH69: =EH43/EG51 -> 0.2746139047 | EI69: 0.2746514559 | EJ69: 0.2746352267 | EK69: 0.2745628468 | EL69: 0.2744316605 | EM69: 0.2745354546 | EN69: 0.2746020399 | EO69: 0.2746300578 | EP69: 0.274617949 | EQ69: 0.2745639412 | ER69: 0.2744660354 | ES69: 0.2745435001 | ET69: 0.2745931869 | EU69: 0.2746140924 | EV69: 0.2746050576 | EW69: 0.2745647579 | EX69: 0.274491692 | EY69: 0.274549504 | EZ69: 0.274586581 | FA69: 0.27460218 | FB69: 0.2745954386 | FC69: 0.2745653673 | FD69: 0.2745108405 | FE69: 0.2745539844 | FF69: 0.2745816518 | FG69: 0.2745932914 | FH69: 0.2745882612 | FI69: 0.2745658221 | FJ69: 0.2745251311 | FK69: 0.2745573279 | FL69: 0.2745779737 | FM69: 0.274586659 | FN69: 0.2745829055 | FO69: 0.2745661614 | FP69: 0.274535796 | FQ69: 0.2745598229 | FR69: 0.2745752291 | FS69: 0.27458171 | FT69: 0.2745789092 | FU69: 0.2745664147 | FV69: 0.2745437548 | FW69: 0.2745616847 | FX69: 0.274573181 | FY69: 0.2745780171 | FZ69: 0.2745759271 | GA69: 0.2745666036 | GB69: 0.2745496941 | GC69: 0.274563074 | GD69: 0.2745716528 | GE69: 0.2745752615 | GF69: 0.2745737019 | GG69: 0.2745667446 | GH69: 0.2745541263 | GI69: 0.2745641108 | GJ69: 0.2745705124 | GK69: 0.2745732052 | GL69: 0.2745720415 | GM69: 0.2745668499 | GN69: 0.2745574337 | GO69: 0.2745648844 | GP69: 0.2745696614 | GQ69: 0.2745716708 | GR69: 0.2745708024 | GS69: 0.2745669284 | GT69: =GT43/GS51 -> 0.2745599019 | GU69: 0.2745654617 | GV69: 0.2745690264 | GW69: 0.2745705258 | GX69: 0.2745698778 | GY69: 0.274566987 | GZ69: 0.2745617436 | HA69: 0.2745658925 | HB69: 0.2745685525 | HC69: 0.2745696714 | HD69: 0.2745691879 | HE69: 0.2745670307 | HF69: 0.274563118 | HG69: 0.274566214 | HH69: 0.2745681989 | HI69: 0.2745690339 | HJ69: 0.2745686731 | HK69: 0.2745670633 | HL69: 0.2745641436 | HM69: 0.2745664539 | HN69: 0.2745679351 | HO69: 0.2745685581 | HP69: 0.2745682889 | HQ69: 0.2745670877 | HR69: 0.2745649089 | HS69: 0.2745666329 | HT69: 0.2745677382 | HU69: 0.2745682031 | HV69: 0.2745680022 | HW69: 0.2745671058 | HX69: 0.27456548 | HY69: 0.2745667665 | HZ69: 0.2745675913 | IA69: 0.2745679382 | IB69: 0.2745677883 | IC69: 0.2745671194 | ID69: 0.2745659062 | IE69: 0.2745668662 | IF69: 0.2745674816 | IG69: 0.2745677405 | IH69: 0.2745676286 | II69: 0.2745671295 | IJ69: 0.2745662242 | IK69: 0.2745669405 | IL69: 0.2745673998 | IM69: 0.274567593 | IN69: 0.2745675095 | IO69: 0.2745671371 | IP69: 0.2745664615 | IQ69: 0.274566996 | IR69: 0.2745673388 | IS69: 0.2745674829 | IT69: 0.2745674206 | IU69: 0.2745671427 | IV69: 0.2745666386 | IW69: 0.2745670375 | IX69: 0.2745672932 | IY69: 0.2745674008 | IZ69: 0.2745673543 | JA69: 0.2745671469 | JB69: 0.2745667707 | JC69: 0.2745670684 | JD69: 0.2745672592 | JE69: 0.2745673395 | JF69: =JF43/JE51 -> 0.2745673048 | JG69: 0.27456715 | JH69: 0.2745668693 | JI69: 0.2745670914 | JJ69: 0.2745672338 | JK69: 0.2745672937 | JL69: 0.2745672679 | JM69: 0.2745671524 | JN69: 0.2745669429 | JO69: 0.2745671086 | JP69: 0.2745672149 | JQ69: 0.2745672596 | JR69: 0.2745672403 | JS69: 0.2745671541 | JT69: 0.2745669978 | JU69: 0.2745671215 | JV69: 0.2745672008 | JW69: 0.2745672341 | JX69: 0.2745672197 | JY69: 0.2745671554 | JZ69: 0.2745670388 | KA69: 0.2745671311 | KB69: 0.2745671902 | KC69: 0.2745672151 | KD69: 0.2745672044 | KE69: 0.2745671564 | KF69: 0.2745670694 | KG69: 0.2745671382 | KH69: 0.2745671824 | KI69: 0.274567201 | KJ69: 0.2745671929 | KK69: 0.2745671571 | KL69: 0.2745670922 | KM69: 0.2745671436 | KN69: 0.2745671765 | KO69: 0.2745671904 | KP69: 0.2745671844 | KQ69: 0.2745671577 | KR69: 0.2745671092 | KS69: 0.2745671475 | KT69: 0.2745671721 | KU69: 0.2745671825
C70: Capital Expenditures to Depreciation | H70: =H38/H43 -> 1.585421439 | I70: =I38/I43 -> 1.585421439 | J70: 1.585421439 | K70: 1.585421439 | L70: 1.585421439 | M70: 1.585421439 | N70: 1.585421439 | O70: 1.585421439 | P70: 1.585421439 | Q70: 1.585421439 | R70: 1.585421439 | S70: 1.585421439 | T70: 1.585421439 | U70: 1.585421439 | V70: 1.585421439 | W70: 1.585421439 | X70: 1.585421439 | Y70: 1.585421439 | Z70: 1.585421439 | AA70: 1.585421439 | AB70: 1.585421439 | AC70: 1.585421439 | AD70: 1.585421439 | AE70: 1.585421439 | AF70: 1.585421439 | AG70: 1.585421439 | AH70: 1.585421439 | AI70: 1.585421439 | AJ70: 1.585421439 | AK70: 1.585421439 | AL70: 1.585421439 | AM70: 1.585421439 | AN70: 0.9854214394 | AO70: 1.050699672 | AP70: 1.122194879 | AQ70: 1.200499153 | AR70: 1.286260977 | AS70: 1.380190594 | AT70: 1.03533665 | AU70: 1.084048272 | AV70: 1.137399096 | AW70: 1.195830951 | AX70: 1.259827745 | AY70: 1.329919471 | AZ70: 1.072584149 | BA70: 1.108933511 | BB70: 1.148744718 | BC70: 1.192347468 | BD70: 1.24010286 | BE70: 1.292406386 | BF70: 1.100378806 | BG70: 1.12750326 | BH70: 1.157210995 | BI70: 1.189748039 | BJ70: 1.225383848 | BK70: 1.264413544 | BL70: 1.121119607 | BM70: 1.141360292 | BN70: 1.163528662 | BO70: 1.187808304 | BP70: 1.214400294 | BQ70: 1.243524854 | BR70: 1.136596712 | BS70: 1.151700623 | BT70: 1.168243002 | BU70: =BU38/BU43 -> 1.186360845 | BV70: 1.206204197 | BW70: 1.227937392 | BX70: 1.148145967 | BY70: 1.159416737 | BZ70: 1.171760915 | CA70: 1.185280729 | CB70: 1.200088143 | CC70: 1.216305788 | CD70: 1.156764198 | CE70: 1.165174621 | CF70: 1.174386036 | CG70: 1.184474729 | CH70: 1.19552425 | CI70: 1.207626106 | CJ70: 1.163195255 | CK70: 1.169471242 | CL70: 1.176344942 | CM70: 1.18387328 | CN70: 1.192118602 | CO70: 1.201149194 | CP70: 1.167994208 | CQ70: 1.172677446 | CR70: 1.177806707 | CS70: 1.183424469 | CT70: 1.189577256 | CU70: 1.196316022 | CV70: 1.171575261 | CW70: 1.175069966 | CX70: 1.178897499 | CY70: 1.18308956 | CZ70: 1.187680864 | DA70: 1.192709435 | DB70: 1.174247498 | DC70: 1.176855301 | DD70: 1.179711465 | DE70: 1.182839645 | DF70: 1.186265747 | DG70: 1.190018144 | DH70: 1.176241563 | DI70: 1.178187545 | DJ70: 1.180318859 | DK70: 1.182653155 | DL70: 1.185209765 | DM70: 1.188009861 | DN70: 1.177729564 | DO70: 1.179181686 | DP70: 1.180772105 | DQ70: 1.182513993 | DR70: 1.184421775 | DS70: 1.18651125 | DT70: 1.178839934 | DU70: 1.17992353 | DV70: 1.181110325 | DW70: 1.182410148 | DX70: 1.183833764 | DY70: 1.185392963 | DZ70: 1.179668509 | EA70: 1.180477105 | EB70: 1.18136271 | EC70: 1.182332658 | ED70: 1.183394982 | EE70: 1.18455848 | EF70: 1.180286804 | EG70: =EG38/EG43 -> 1.180890191 | EH70: 1.181551043 | EI70: 1.182274833 | EJ70: 1.183067556 | EK70: 1.183935776 | EL70: 1.180748186 | EM70: 1.181198442 | EN70: 1.18169158 | EO70: 1.182231684 | EP70: 1.182823225 | EQ70: 1.183471105 | ER70: 1.181092476 | ES70: 1.181428464 | ET70: 1.181796451 | EU70: 1.182199485 | EV70: 1.182640902 | EW70: 1.18312436 | EX70: 1.18134939 | EY70: 1.18160011 | EZ70: 1.181874708 | FA70: 1.182175457 | FB70: 1.18250485 | FC70: 1.182865613 | FD70: 1.181541104 | FE70: 1.181728195 | FF70: 1.181933104 | FG70: 1.182157528 | FH70: 1.182403326 | FI70: 1.182672533 | FJ70: 1.181684163 | FK70: 1.181823773 | FL70: 1.18197668 | FM70: 1.182144149 | FN70: 1.182327567 | FO70: 1.182528453 | FP70: 1.181790917 | FQ70: 1.181895096 | FR70: 1.182009197 | FS70: 1.182134165 | FT70: 1.182271034 | FU70: 1.182420939 | FV70: 1.181870578 | FW70: 1.181948318 | FX70: 1.182033462 | FY70: 1.182126715 | FZ70: 1.182228849 | GA70: 1.18234071 | GB70: 1.181930022 | GC70: 1.181988033 | GD70: 1.182051568 | GE70: 1.182121155 | GF70: 1.182197369 | GG70: 1.182280842 | GH70: 1.18197438 | GI70: 1.182017669 | GJ70: 1.18206508 | GK70: 1.182117007 | GL70: 1.182173879 | GM70: 1.182236167 | GN70: 1.182007481 | GO70: 1.182039783 | GP70: 1.182075163 | GQ70: 1.182113911 | GR70: 1.18215635 | GS70: =GS38/GS43 -> 1.18220283 | GT70: 1.182032181 | GU70: 1.182056286 | GV70: 1.182082686 | GW70: 1.182111601 | GX70: 1.182143269 | GY70: 1.182177954 | GZ70: 1.182050613 | HA70: 1.1820686 | HB70: 1.182088301 | HC70: 1.182109877 | HD70: 1.182133509 | HE70: 1.182159391 | HF70: 1.182064367 | HG70: 1.182077789 | HH70: 1.18209249 | HI70: 1.182108591 | HJ70: 1.182126225 | HK70: 1.182145539 | HL70: 1.18207463 | HM70: 1.182084646 | HN70: 1.182095616 | HO70: 1.182107631 | HP70: 1.18212079 | HQ70: 1.182135202 | HR70: 1.182082289 | HS70: 1.182089763 | HT70: 1.182097949 | HU70: 1.182106915 | HV70: 1.182116734 | HW70: 1.182127489 | HX70: 1.182088004 | HY70: 1.182093582 | HZ70: 1.18209969 | IA70: 1.18210638 | IB70: 1.182113708 | IC70: 1.182121733 | ID70: 1.182092269 | IE70: 1.182096431 | IF70: 1.182100989 | IG70: 1.182105981 | IH70: 1.182111449 | II70: 1.182117438 | IJ70: 1.182095451 | IK70: 1.182098557 | IL70: 1.182101958 | IM70: 1.182105684 | IN70: 1.182109764 | IO70: 1.182114233 | IP70: 1.182097826 | IQ70: 1.182100144 | IR70: 1.182102682 | IS70: 1.182105462 | IT70: 1.182108506 | IU70: 1.182111841 | IV70: 1.182099598 | IW70: 1.182101328 | IX70: 1.182103222 | IY70: 1.182105296 | IZ70: 1.182107568 | JA70: 1.182110056 | JB70: 1.182100921 | JC70: 1.182102211 | JD70: 1.182103624 | JE70: =JE38/JE43 -> 1.182105172 | JF70: 1.182106868 | JG70: 1.182108725 | JH70: 1.182101907 | JI70: 1.18210287 | JJ70: 1.182103925 | JK70: 1.18210508 | JL70: 1.182106345 | JM70: 1.182107731 | JN70: 1.182102644 | JO70: 1.182103362 | JP70: 1.182104149 | JQ70: 1.182105011 | JR70: 1.182105955 | JS70: 1.182106989 | JT70: 1.182103193 | JU70: 1.182103729 | JV70: 1.182104317 | JW70: 1.18210496 | JX70: 1.182105664 | JY70: 1.182106436 | JZ70: 1.182103603 | KA70: 1.182104003 | KB70: 1.182104441 | KC70: 1.182104921 | KD70: 1.182105447 | KE70: 1.182106023 | KF70: 1.182103909 | KG70: 1.182104208 | KH70: 1.182104535 | KI70: 1.182104893 | KJ70: 1.182105285 | KK70: 1.182105715 | KL70: 1.182104137 | KM70: 1.18210436 | KN70: 1.182104604 | KO70: 1.182104871 | KP70: 1.182105164 | KQ70: 1.182105485 | KR70: 1.182104308 | KS70: 1.182104474 | KT70: 1.182104656 | KU70: 0.8821048555
C71: Retirements as Percent of Depreciation | H71: =H48/H43 -> 0.6854214393 | I71: =I48/I43 -> 0.6854214393 | J71: 0.6854214393 | K71: 0.6854214393 | L71: 0.6854214393 | M71: 0.6854214393 | N71: 0.6854214394 | O71: 0.6854214394 | P71: 0.6854214394 | Q71: 0.6854214394 | R71: 0.6854214394 | S71: 0.6854214394 | T71: 0.6854214394 | U71: 0.6854214394 | V71: 0.6854214394 | W71: 0.6854214394 | X71: 0.6854214394 | Y71: 0.6854214394 | Z71: 0.6854214394 | AA71: 0.6854214394 | AB71: 0.6854214394 | AC71: 0.6854214394 | AD71: 0.6854214394 | AE71: 0.6854214394 | AF71: 0.6854214394 | AG71: 0.6854214394 | AH71: 0.6854214394 | AI71: 0.6854214394 | AJ71: 0.6854214394 | AK71: 0.6854214394 | AL71: 0.6854214394 | AM71: 0.6854214394 | AN71: 0.6854214394 | AO71: 0.7506996717 | AP71: 0.8221948786 | AQ71: 0.9004991527 | AR71: 0.9862609768 | AS71: 1.080190594 | AT71: 0.7353366503 | AU71: 0.7840482723 | AV71: 0.8373990964 | AW71: 0.8958309514 | AX71: 0.959827745 | AY71: 1.029919471 | AZ71: 0.7725841491 | BA71: 0.8089335115 | BB71: 0.8487447179 | BC71: 0.8923474677 | BD71: 0.9401028604 | BE71: 0.9924063857 | BF71: 0.8003788063 | BG71: 0.8275032601 | BH71: 0.8572109953 | BI71: 0.8897480385 | BJ71: 0.9253838478 | BK71: 0.9644135437 | BL71: 0.8211196074 | BM71: 0.8413602925 | BN71: 0.8635286618 | BO71: 0.8878083045 | BP71: 0.9144002941 | BQ71: 0.9435248541 | BR71: 0.8365967125 | BS71: 0.8517006233 | BT71: 0.8682430019 | BU71: =BU48/BU43 -> 0.8863608451 | BV71: 0.9062041971 | BW71: 0.9279373922 | BX71: 0.8481459666 | BY71: 0.8594167375 | BZ71: 0.871760915 | CA71: 0.8852807285 | CB71: 0.9000881434 | CC71: 0.9163057882 | CD71: 0.8567641979 | CE71: 0.8651746206 | CF71: 0.874386036 | CG71: 0.884474729 | CH71: 0.8955242499 | CI71: 0.9076261061 | CJ71: 0.8631952547 | CK71: 0.8694712417 | CL71: 0.8763449416 | CM71: 0.8838732797 | CN71: 0.8921186023 | CO71: 0.9011491938 | CP71: 0.8679942084 | CQ71: 0.8726774465 | CR71: 0.8778067072 | CS71: 0.883424469 | CT71: 0.8895772557 | CU71: 0.8963160221 | CV71: 0.8715752615 | CW71: 0.8750699658 | CX71: 0.8788974992 | CY71: 0.8830895595 | CZ71: 0.8876808637 | DA71: 0.8927094349 | DB71: 0.8742474984 | DC71: 0.8768553006 | DD71: 0.8797114649 | DE71: 0.8828396449 | DF71: 0.8862657468 | DG71: 0.890018144 | DH71: 0.8762415628 | DI71: 0.8781875449 | DJ71: 0.8803188587 | DK71: 0.8826531548 | DL71: 0.8852097647 | DM71: 0.8880098614 | DN71: 0.8777295643 | DO71: 0.8791816862 | DP71: 0.8807721053 | DQ71: 0.882513993 | DR71: 0.8844217747 | DS71: 0.8865112499 | DT71: 0.878839934 | DU71: 0.8799235296 | DV71: 0.8811103249 | DW71: 0.8824101483 | DX71: 0.8838337644 | DY71: 0.885392963 | DZ71: 0.8796685089 | EA71: 0.8804771047 | EB71: 0.8813627096 | EC71: 0.8823326578 | ED71: 0.883394982 | EE71: 0.88455848 | EF71: 0.8802868043 | EG71: =EG48/EG43 -> 0.8808901909 | EH71: 0.8815510429 | EI71: 0.8822748332 | EJ71: 0.8830675559 | EK71: 0.883935776 | EL71: 0.8807481858 | EM71: 0.8811984422 | EN71: 0.8816915801 | EO71: 0.8822316836 | EP71: 0.8828232255 | EQ71: 0.8834711047 | ER71: 0.8810924758 | ES71: 0.881428464 | ET71: 0.8817964512 | EU71: 0.8821994847 | EV71: 0.8826409023 | EW71: 0.8831243598 | EX71: 0.8813493903 | EY71: 0.8816001099 | EZ71: 0.8818747075 | FA71: 0.8821754574 | FB71: 0.88250485 | FC71: 0.8828656134 | FD71: 0.8815411038 | FE71: 0.8817281947 | FF71: 0.8819331037 | FG71: 0.8821575278 | FH71: 0.8824033257 | FI71: 0.8826725329 | FJ71: 0.8816841634 | FK71: 0.8818237735 | FL71: 0.8819766798 | FM71: 0.8821441485 | FN71: 0.8823275667 | FO71: 0.8825284532 | FP71: 0.8817909167 | FQ71: 0.8818950959 | FR71: 0.8820091969 | FS71: 0.8821341647 | FT71: 0.8822710341 | FU71: 0.8824209388 | FV71: 0.8818705777 | FW71: 0.8819483178 | FX71: 0.8820334617 | FY71: 0.8821267146 | FZ71: 0.8822288487 | GA71: 0.8823407098 | GB71: 0.8819300219 | GC71: 0.8819880327 | GD71: 0.8820515685 | GE71: 0.8821211552 | GF71: 0.8821973692 | GG71: 0.8822808417 | GH71: 0.8819743801 | GI71: 0.8820176687 | GJ71: 0.88206508 | GK71: 0.8821170067 | GL71: 0.8821738788 | GM71: 0.8822361672 | GN71: 0.8820074808 | GO71: 0.8820397835 | GP71: 0.8820751625 | GQ71: 0.882113911 | GR71: 0.8821563498 | GS71: =GS48/GS43 -> 0.8822028305 | GT71: 0.8820321811 | GU71: 0.8820562859 | GV71: 0.8820826863 | GW71: 0.882111601 | GX71: 0.8821432695 | GY71: 0.882177954 | GZ71: 0.8820506129 | HA71: 0.8820686002 | HB71: 0.8820883006 | HC71: 0.8821098772 | HD71: 0.8821335087 | HE71: 0.8821593909 | HF71: 0.8820643669 | HG71: 0.8820777893 | HH71: 0.8820924901 | HI71: 0.8821085909 | HJ71: 0.8821262251 | HK71: 0.8821455387 | HL71: 0.8820746304 | HM71: 0.8820846464 | HN71: 0.8820956163 | HO71: 0.882107631 | HP71: 0.8821207899 | HQ71: 0.8821352021 | HR71: 0.8820822892 | HS71: 0.8820897633 | HT71: 0.8820979492 | HU71: 0.8821069147 | HV71: 0.8821167341 | HW71: 0.8821274887 | HX71: 0.8820880043 | HY71: 0.8820935816 | HZ71: 0.88209969 | IA71: 0.8821063802 | IB71: 0.8821137076 | IC71: 0.8821217329 | ID71: 0.882092269 | IE71: 0.8820964308 | IF71: 0.8821009891 | IG71: 0.8821059814 | IH71: 0.8821114492 | II71: 0.8821174378 | IJ71: 0.8820954514 | IK71: 0.882098557 | IL71: 0.8821019584 | IM71: 0.8821056838 | IN71: 0.8821097639 | IO71: 0.8821142327 | IP71: 0.8820978261 | IQ71: 0.8821001436 | IR71: 0.8821026818 | IS71: 0.8821054617 | IT71: 0.8821085064 | IU71: 0.882111841 | IV71: 0.8820995982 | IW71: 0.8821013275 | IX71: 0.8821032215 | IY71: 0.882105296 | IZ71: 0.8821075679 | JA71: 0.8821100563 | JB71: 0.8821009205 | JC71: 0.882102211 | JD71: 0.8821036243 | JE71: =JE48/JE43 -> 0.8821051723 | JF71: 0.8821068677 | JG71: 0.8821087245 | JH71: 0.8821019073 | JI71: 0.8821028702 | JJ71: 0.8821039249 | JK71: 0.88210508 | JL71: 0.8821063451 | JM71: 0.8821077307 | JN71: 0.8821026436 | JO71: 0.8821033622 | JP71: 0.8821041492 | JQ71: 0.8821050111 | JR71: 0.8821059552 | JS71: 0.8821069892 | JT71: 0.8821031931 | JU71: 0.8821037293 | JV71: 0.8821043165 | JW71: 0.8821049598 | JX71: 0.8821056642 | JY71: 0.8821064358 | JZ71: 0.8821036031 | KA71: 0.8821040032 | KB71: 0.8821044414 | KC71: 0.8821049214 | KD71: 0.8821054471 | KE71: 0.8821060228 | KF71: 0.882103909 | KG71: 0.8821042076 | KH71: 0.8821045346 | KI71: 0.8821048928 | KJ71: 0.8821052851 | KK71: 0.8821057147 | KL71: 0.8821041373 | KM71: 0.8821043602 | KN71: 0.8821046042 | KO71: 0.8821048714 | KP71: 0.8821051642 | KQ71: 0.8821054848 | KR71: 0.8821043077 | KS71: 0.882104474 | KT71: 0.8821046561 | KU71: 0.8821048555
C72: Retirements as Percent of Gross Plant | H72: =H48/H40 -> 0.09933644048 | I72: =I48/I40 -> 0.09933644048 | J72: 0.09933644048 | K72: 0.09933644048 | L72: 0.09933644048 | M72: 0.09933644048 | N72: 0.09933644049 | O72: 0.09933644049 | P72: 0.09933644049 | Q72: 0.09933644049 | R72: 0.09933644049 | S72: 0.09933644049 | T72: 0.09933644049 | U72: 0.09933644049 | V72: 0.09933644049 | W72: 0.09933644049 | X72: 0.09933644049 | Y72: 0.09933644049 | Z72: 0.09933644049 | AA72: 0.09933644049 | AB72: 0.09933644049 | AC72: 0.09933644049 | AD72: 0.09933644049 | AE72: 0.09933644049 | AF72: 0.09933644049 | AG72: 0.09933644049 | AH72: 0.09933644049 | AI72: 0.09933644049 | AJ72: 0.09933644049 | AK72: 0.09933644049 | AL72: 0.09933644049 | AM72: 0.09933644049 | AN72: 0.1087970539 | AO72: 0.1191586781 | AP72: 0.1305071236 | AQ72: 0.1429363734 | AR72: 0.1565493614 | AS72: 0.1714588244 | AT72: 0.1167201032 | AU72: 0.1244521067 | AV72: 0.1329204915 | AW72: 0.1421953891 | AX72: 0.1523536103 | AY72: 0.1634792812 | AZ72: 0.1226324046 | BA72: 0.1284021447 | BB72: 0.1347213838 | BC72: 0.1416424552 | BD72: 0.1492226763 | BE72: 0.1575248231 | BF72: 0.127044255 | BG72: 0.1313497238 | BH72: 0.1360652373 | BI72: 0.1412298474 | BJ72: 0.1468863251 | BK72: 0.1530815149 | BL72: 0.1303364456 | BM72: 0.1335492528 | BN72: 0.1370680416 | BO72: 0.1409219531 | BP72: 0.1451429038 | BQ72: 0.1497658499 | BR72: 0.132793129 | BS72: 0.1351905751 | BT72: 0.1378163495 | BU72: =BU48/BU40 -> 0.1406921976 | BV72: 0.143841936 | BW72: 0.1472916496 | BX72: 0.1346263439 | BY72: 0.1364153552 | BZ72: 0.1383747484 | CA72: 0.1405207506 | CB72: 0.1428711339 | CC72: 0.1454453632 | CD72: 0.1359943171 | CE72: 0.1373293049 | CF72: 0.1387914343 | CG72: 0.1403928141 | CH72: 0.1421467063 | CI72: 0.1440676359 | CJ72: 0.1370151198 | CK72: 0.1380113082 | CL72: 0.1391023717 | CM72: 0.140297346 | CN72: 0.1416061274 | CO72: 0.1430395546 | CP72: 0.1377768585 | CQ72: 0.1385202296 | CR72: 0.139334398 | CS72: 0.1402261062 | CT72: 0.141202739 | CU72: 0.1422723845 | CV72: 0.1383452796 | CW72: 0.1388999946 | CX72: 0.1395075396 | CY72: 0.140172946 | CZ72: 0.1409017244 | DA72: 0.1416999103 | DB72: 0.1387694442 | DC72: 0.1391833811 | DD72: 0.1396367405 | DE72: 0.140133277 | DF72: 0.1406771027 | DG72: 0.1412727213 | DH72: 0.1390859623 | DI72: 0.1393948484 | DJ72: 0.1397331522 | DK72: 0.1401036754 | DL72: 0.1405094865 | DM72: 0.1409539462 | DN72: 0.1393221531 | DO72: 0.1395526486 | DP72: 0.1398050961 | DQ72: 0.1400815862 | DR72: 0.1403844087 | DS72: 0.1407160714 | DT72: 0.1394984022 | DU72: 0.1396704015 | DV72: 0.1398587817 | DW72: 0.1400651029 | DX72: 0.1402910737 | DY72: 0.1405385655 | DZ72: 0.139629922 | EA72: 0.1397582706 | EB72: 0.1398988428 | EC72: 0.1400528028 | ED72: 0.1402214257 | EE72: 0.1404061079 | EF72: 0.1397280642 | EG72: =EG48/EG40 -> 0.1398238398 | EH72: 0.139928737 | EI72: 0.1400436243 | EJ72: 0.1401694533 | EK72: 0.140307266 | EL72: 0.1398012993 | EM72: 0.1398727686 | EN72: 0.1399510445 | EO72: 0.1400367752 | EP72: 0.1401306707 | EQ72: 0.1402335087 | ER72: 0.1398559485 | ES72: 0.13990928 | ET72: 0.1399676907 | EU72: 0.1400316642 | EV72: 0.1401017305 | EW72: 0.1401784698 | EX72: 0.1398967286 | EY72: 0.1399365254 | EZ72: 0.1399801123 | FA72: 0.1400278504 | FB72: 0.1400801349 | FC72: 0.140137399 | FD72: 0.1399271593 | FE72: 0.1399568563 | FF72: 0.1399893815 | FG72: 0.1400250044 | FH72: 0.14006402 | FI72: 0.1401067513 | FJ72: 0.1399498672 | FK72: 0.1399720275 | FL72: 0.1399962984 | FM72: 0.1400228807 | FN72: 0.1400519947 | FO72: 0.1400838815 | FP72: 0.1399668122 | FQ72: 0.1399833486 | FR72: 0.1400014598 | FS72: 0.140021296 | FT72: 0.1400430213 | FU72: 0.1400668157 | FV72: 0.1399794568 | FW72: 0.1399917965 | FX72: 0.1400053114 | FY72: 0.1400201134 | FZ72: 0.1400363252 | GA72: 0.1400540809 | GB72: 0.1399888924 | GC72: 0.1399981004 | GD72: 0.1400081855 | GE72: 0.140019231 | GF72: 0.1400313284 | GG72: 0.1400445781 | GH72: 0.1399959333 | GI72: 0.1400028046 | GJ72: 0.1400103302 | GK72: 0.1400185725 | GL72: 0.1400275998 | GM72: 0.1400374869 | GN72: 0.1400011874 | GO72: 0.1400063148 | GP72: 0.1400119306 | GQ72: 0.1400180811 | GR72: 0.1400248174 | GS72: =GS48/GS40 -> 0.1400321953 | GT72: 0.1400051081 | GU72: 0.1400089343 | GV72: 0.1400131248 | GW72: 0.1400177144 | GX72: 0.1400227412 | GY72: 0.1400282467 | GZ72: 0.1400080338 | HA72: 0.1400108889 | HB72: 0.140014016 | HC72: 0.1400174408 | HD72: 0.1400211919 | HE72: 0.1400253001 | HF72: 0.140010217 | HG72: 0.1400123475 | HH72: 0.140014681 | HI72: 0.1400172366 | HJ72: 0.1400200357 | HK72: 0.1400231014 | HL72: 0.1400118461 | HM72: 0.1400134359 | HN72: 0.1400151772 | HO72: 0.1400170843 | HP72: 0.140019173 | HQ72: 0.1400214606 | HR72: 0.1400130618 | HS72: 0.1400142481 | HT72: 0.1400155475 | HU72: 0.1400169706 | HV72: 0.1400185292 | HW72: 0.1400202363 | HX72: 0.1400139689 | HY72: 0.1400148542 | HZ72: 0.1400158238 | IA72: 0.1400168858 | IB72: 0.1400180488 | IC72: 0.1400193227 | ID72: 0.1400146459 | IE72: 0.1400153065 | IF72: 0.14001603 | IG72: 0.1400168224 | IH72: 0.1400176904 | II72: 0.1400186409 | IJ72: 0.140015151 | IK72: 0.140015644 | IL72: 0.1400161839 | IM72: 0.1400167752 | IN72: 0.1400174228 | IO72: 0.1400181322 | IP72: 0.140015528 | IQ72: 0.1400158958 | IR72: 0.1400162987 | IS72: 0.14001674 | IT72: 0.1400172232 | IU72: 0.1400177525 | IV72: 0.1400158092 | IW72: 0.1400160837 | IX72: 0.1400163844 | IY72: 0.1400167136 | IZ72: 0.1400170743 | JA72: 0.1400174693 | JB72: 0.1400160191 | JC72: 0.140016224 | JD72: 0.1400164483 | JE72: =JE48/JE40 -> 0.140016694 | JF72: 0.1400169631 | JG72: 0.1400172579 | JH72: 0.1400161758 | JI72: 0.1400163286 | JJ72: 0.140016496 | JK72: 0.1400166794 | JL72: 0.1400168802 | JM72: 0.1400171001 | JN72: 0.1400162926 | JO72: 0.1400164067 | JP72: 0.1400165316 | JQ72: 0.1400166684 | JR72: 0.1400168183 | JS72: 0.1400169824 | JT72: 0.1400163798 | JU72: 0.140016465 | JV72: 0.1400165582 | JW72: 0.1400166603 | JX72: 0.1400167721 | JY72: 0.1400168946 | JZ72: 0.1400164449 | KA72: 0.1400165084 | KB72: 0.140016578 | KC72: 0.1400166542 | KD72: 0.1400167376 | KE72: 0.140016829 | KF72: 0.1400164935 | KG72: 0.1400165409 | KH72: 0.1400165928 | KI72: 0.1400166497 | KJ72: 0.1400167119 | KK72: 0.1400167801 | KL72: 0.1400165297 | KM72: 0.1400165651 | KN72: 0.1400166038 | KO72: 0.1400166463 | KP72: 0.1400166927 | KQ72: 0.1400167436 | KR72: 0.1400165568 | KS72: 0.1400165832 | KT72: 0.1400166121 | KU72: 0.1470174759
C73: Retirements as Percent of Net Plant | H73: =H39/H51 -> 0.1527197258 | I73: =I39/I51 -> 0.1527191453 | J73: 0.1527186406 | K73: 0.1527182017 | L73: 0.15271782 | M73: 0.1527174881 | N73: 0.1527171995 | O73: 0.1527169486 | P73: 0.1527167303 | Q73: 0.1527165406 | R73: 0.1527163756 | S73: 0.1527162321 | T73: 0.1527161073 | U73: 0.1527159989 | V73: 0.1527159045 | W73: 0.1527158225 | X73: 0.1527157511 | Y73: 0.1527156891 | Z73: 0.1527156352 | AA73: 0.1527155883 | AB73: 0.1527155475 | AC73: 0.152715512 | AD73: 0.1527154812 | AE73: 0.1527154544 | AF73: 0.152715431 | AG73: 0.1527154108 | AH73: 0.1527153931 | AI73: 0.1527153778 | AJ73: 0.1527153645 | AK73: 0.1527153529 | AL73: 0.1527153428 | AM73: 0.152715334 | AN73: 0.1762811151 | AO73: 0.1999852379 | AP73: 0.2223819735 | AQ73: 0.2419616799 | AR73: 0.2574623876 | AS73: 0.2681387951 | AT73: 0.189912302 | AU73: 0.2078794734 | AV73: 0.2245371804 | AW73: 0.2390359162 | AX73: 0.2506699367 | AY73: 0.258992784 | AZ73: 0.2001588799 | BA73: 0.2137216995 | BB73: 0.2261213175 | BC73: 0.2368790027 | BD73: 0.245597492 | BE73: 0.2520109968 | BF73: 0.2078470769 | BG73: 0.2180545041 | BH73: 0.2272902631 | BI73: 0.2352839132 | BJ73: 0.2418102302 | BK73: 0.2467110476 | BL73: 0.213607709 | BM73: 0.2212729321 | BN73: 0.2281553265 | BO73: 0.2341015748 | BP73: 0.2389829327 | BQ73: 0.2427048616 | BR73: 0.2179195835 | BS73: 0.2236663935 | BT73: 0.2287968725 | BU73: =BU39/BU51 -> 0.2332236791 | BV73: 0.2368724998 | BW73: 0.2396863376 | BX73: 0.2211445519 | BY73: 0.2254478972 | BZ73: 0.2292734072 | CA73: 0.2325710048 | CB73: 0.2352972947 | CC73: 0.2374174867 | CD73: 0.2235551955 | CE73: 0.2267747665 | CF73: 0.2296277887 | CG73: 0.2320853129 | CH73: 0.2341216477 | CI73: 0.2357152253 | CJ73: 0.2253563557 | CK73: 0.2277634991 | CL73: 0.2298915597 | CM73: 0.2317236276 | CN73: 0.2332442477 | CO73: 0.2344398065 | CP73: 0.2267016926 | CQ73: 0.2285005297 | CR73: 0.2300880156 | CS73: 0.2314541465 | CT73: 0.2325894548 | CU73: 0.2334851778 | CV73: 0.2277063191 | CW73: 0.2290500814 | CX73: 0.2302344062 | CY73: 0.2312532856 | CZ73: 0.2321008029 | DA73: 0.2327712025 | DB73: 0.2284563857 | DC73: 0.2294599251 | DD73: 0.2303435297 | DE73: 0.231103528 | DF73: 0.2317361437 | DG73: 0.2322375202 | DH73: 0.2290163192 | DI73: 0.229765623 | DJ73: 0.2304248951 | DK73: 0.2309918477 | DL73: 0.2314640183 | DM73: 0.2318387744 | DN73: 0.229434274 | DO73: 0.2299936651 | DP73: 0.2304855755 | DQ73: 0.2309085498 | DR73: 0.2312609481 | DS73: 0.2315409431 | DT73: 0.2297462273 | DU73: 0.2301637922 | DV73: 0.2305308363 | DW73: 0.2308464136 | DX73: 0.2311094106 | DY73: 0.23131854 | DZ73: 0.22997905 | EA73: 0.2302907206 | EB73: 0.2305645995 | EC73: 0.2308000589 | ED73: 0.230996329 | EE73: 0.2311524922 | EF73: 0.2301528073 | EG73: =EG39/EG51 -> 0.2303854237 | EH73: 0.230589788 | EI73: 0.2307654751 | EJ73: 0.2309119448 | EK73: 0.231028536 | EL73: 0.2302824796 | EM73: 0.2304560855 | EN73: 0.2306085806 | EO73: 0.2307396719 | EP73: 0.2308489754 | EQ73: 0.2309360109 | ER73: 0.2303792497 | ES73: 0.2305088104 | ET73: 0.230622602 | EU73: 0.2307204193 | EV73: 0.2308019863 | EW73: 0.2308669521 | EX73: 0.2304514647 | EY73: 0.2305481524 | EZ73: 0.2306330639 | FA73: 0.2307060539 | FB73: 0.2307669222 | FC73: 0.230815411 | FD73: 0.2305053548 | FE73: 0.2305775087 | FF73: 0.2306408702 | FG73: 0.2306953349 | FH73: 0.2307407567 | FI73: 0.2307769456 | FJ73: 0.2305455695 | FK73: 0.2305994142 | FL73: 0.230646695 | FM73: 0.2306873366 | FN73: 0.2307212315 | FO73: 0.2307482394 | FP73: 0.2305755789 | FQ73: 0.23061576 | FR73: 0.2306510414 | FS73: 0.2306813683 | FT73: 0.2307066615 | FU73: 0.230726817 | FV73: 0.2305979728 | FW73: 0.2306279572 | FX73: 0.2306542847 | FY73: 0.2306769148 | FZ73: 0.2306957891 | GA73: 0.2307108305 | GB73: 0.2306146837 | GC73: 0.2306370589 | GD73: 0.2306567048 | GE73: 0.2306735916 | GF73: 0.230687676 | GG73: 0.2306989006 | GH73: 0.2306271537 | GI73: 0.2306438507 | GJ73: 0.2306585107 | GK73: 0.2306711118 | GL73: 0.2306816218 | GM73: 0.2306899981 | GN73: 0.2306364591 | GO73: 0.2306489187 | GP73: 0.2306598582 | GQ73: 0.2306692613 | GR73: 0.2306771041 | GS73: =GS39/GS51 -> 0.2306833548 | GT73: 0.2306434029 | GU73: 0.2306527006 | GV73: 0.2306608638 | GW73: 0.2306678805 | GX73: 0.2306737329 | GY73: 0.2306783974 | GZ73: 0.2306485846 | HA73: 0.2306555227 | HB73: 0.2306616142 | HC73: 0.2306668501 | HD73: 0.2306712173 | HE73: 0.230674698 | HF73: 0.2306524512 | HG73: 0.2306576285 | HH73: 0.2306621741 | HI73: 0.2306660812 | HJ73: 0.2306693401 | HK73: 0.2306719375 | HL73: 0.2306553365 | HM73: 0.2306591999 | HN73: 0.2306625919 | HO73: 0.2306655075 | HP73: 0.2306679393 | HQ73: 0.2306698775 | HR73: 0.2306574896 | HS73: 0.2306603726 | HT73: 0.2306629037 | HU73: 0.2306650793 | HV73: 0.230666894 | HW73: 0.2306683404 | HX73: 0.2306590963 | HY73: 0.2306612476 | HZ73: 0.2306631364 | IA73: 0.2306647598 | IB73: 0.230666114 | IC73: 0.2306671933 | ID73: 0.2306602952 | IE73: 0.2306619005 | IF73: 0.23066331 | IG73: 0.2306645214 | IH73: 0.2306655319 | II73: 0.2306663373 | IJ73: 0.2306611899 | IK73: 0.2306623878 | IL73: 0.2306634395 | IM73: 0.2306643435 | IN73: 0.2306650976 | IO73: 0.2306656986 | IP73: 0.2306618575 | IQ73: 0.2306627514 | IR73: 0.2306635362 | IS73: 0.2306642108 | IT73: 0.2306647735 | IU73: 0.2306652219 | IV73: 0.2306623556 | IW73: 0.2306630227 | IX73: 0.2306636083 | IY73: 0.2306641117 | IZ73: 0.2306645316 | JA73: 0.2306648663 | JB73: 0.2306627274 | JC73: 0.2306632251 | JD73: 0.2306636622 | JE73: =JE39/JE51 -> 0.2306640378 | JF73: 0.2306643511 | JG73: 0.2306646009 | JH73: 0.2306630048 | JI73: 0.2306633762 | JJ73: 0.2306637023 | JK73: 0.2306639826 | JL73: 0.2306642164 | JM73: 0.2306644028 | JN73: 0.2306632118 | JO73: 0.230663489 | JP73: 0.2306637323 | JQ73: 0.2306639415 | JR73: 0.2306641159 | JS73: 0.230664255 | JT73: 0.2306633663 | JU73: 0.2306635731 | JV73: 0.2306637547 | JW73: 0.2306639108 | JX73: 0.230664041 | JY73: 0.2306641447 | JZ73: 0.2306634815 | KA73: 0.2306636359 | KB73: 0.2306637714 | KC73: 0.2306638878 | KD73: 0.230663985 | KE73: 0.2306640624 | KF73: 0.2306635675 | KG73: 0.2306636827 | KH73: 0.2306637838 | KI73: 0.2306638707 | KJ73: 0.2306639432 | KK73: 0.230664001 | KL73: 0.2306636317 | KM73: 0.2306637177 | KN73: 0.2306637931 | KO73: 0.230663858 | KP73: 0.2306639121 | KQ73: 0.2306639552 | KR73: 0.2306636796 | KS73: 0.2306637438 | KT73: 0.2306638001 | KU73: 0.2502992665
A75: Depreciation Method FOUR using Functions
C76: Parameters
D77: Life | E77: =E17 -> 6
D78: Accumulated Depreciation From History | E78: =INDEX(68:68,MATCH(E12,2:2)) -> 0.3495340634
D79: Implied Historic Growth | E79: =find_growth(E78,E77) -> 0.1499942884
D80: Computed Growth | E80: =E20 -> 0.15
D82: Base Retirements | E82: =find_base(E79,E77) -> 0.1142385535
C84: Existing Deprecation
D85: Opening Balance | H85: =G87 -> 0 | I85: =H87 -> 115 | J85: 132.25 | K85: 152.0875 | L85: 174.900625 | M85: 201.1357187 | N85: 231.3060766 | O85: 266.001988 | P85: 305.9022863 | Q85: 351.7876292 | R85: 404.5557736 | S85: 465.2391396 | T85: 535.0250105 | U85: 615.2787621 | V85: 707.5705764 | W85: 813.7061629 | X85: 935.7620874 | Y85: 828.86198 | Z85: 705.9274672 | AA85: 564.5534796 | AB85: 401.9742013 | AC85: 215.0089598 | AD85: 3.627320666e-09 | AE85: 0 | AF85: 0 | AG85: 0 | AH85: 0 | AI85: 0 | AJ85: 0 | AK85: 0 | AL85: 0 | AM85: 0 | AN85: 0 | AO85: 0 | AP85: 0 | AQ85: 0 | AR85: 0 | AS85: 0 | AT85: 0 | AU85: 0 | AV85: 0 | AW85: 0 | AX85: 0 | AY85: 0 | AZ85: 0 | BA85: 0 | BB85: 0 | BC85: 0 | BD85: 0 | BE85: 0 | BF85: 0 | BG85: 0 | BH85: 0 | BI85: 0 | BJ85: 0 | BK85: 0 | BL85: 0 | BM85: 0 | BN85: 0 | BO85: 0 | BP85: 0 | BQ85: 0 | BR85: 0 | BS85: 0 | BT85: 0 | BU85: =BT87 -> 0 | BV85: 0 | BW85: 0 | BX85: 0 | BY85: 0 | BZ85: 0 | CA85: 0 | CB85: 0 | CC85: 0 | CD85: 0 | CE85: 0 | CF85: 0 | CG85: 0 | CH85: 0 | CI85: 0 | CJ85: 0 | CK85: 0 | CL85: 0 | CM85: 0 | CN85: 0 | CO85: 0 | CP85: 0 | CQ85: 0 | CR85: 0 | CS85: 0 | CT85: 0 | CU85: 0 | CV85: 0 | CW85: 0 | CX85: 0 | CY85: 0 | CZ85: 0 | DA85: 0 | DB85: 0 | DC85: 0 | DD85: 0 | DE85: 0 | DF85: 0 | DG85: 0 | DH85: 0 | DI85: 0 | DJ85: 0 | DK85: 0 | DL85: 0 | DM85: 0 | DN85: 0 | DO85: 0 | DP85: 0 | DQ85: 0 | DR85: 0 | DS85: 0 | DT85: 0 | DU85: 0 | DV85: 0 | DW85: 0 | DX85: 0 | DY85: 0 | DZ85: 0 | EA85: 0 | EB85: 0 | EC85: 0 | ED85: 0 | EE85: 0 | EF85: 0 | EG85: =EF87 -> 0 | EH85: 0 | EI85: 0 | EJ85: 0 | EK85: 0 | EL85: 0 | EM85: 0 | EN85: 0 | EO85: 0 | EP85: 0 | EQ85: 0 | ER85: 0 | ES85: 0 | ET85: 0 | EU85: 0 | EV85: 0 | EW85: 0 | EX85: 0 | EY85: 0 | EZ85: 0 | FA85: 0 | FB85: 0 | FC85: 0 | FD85: 0 | FE85: 0 | FF85: 0 | FG85: 0 | FH85: 0 | FI85: 0 | FJ85: 0 | FK85: 0 | FL85: 0 | FM85: 0 | FN85: 0 | FO85: 0 | FP85: 0 | FQ85: 0 | FR85: 0 | FS85: 0 | FT85: 0 | FU85: 0 | FV85: 0 | FW85: 0 | FX85: 0 | FY85: 0 | FZ85: 0 | GA85: 0 | GB85: 0 | GC85: 0 | GD85: 0 | GE85: 0 | GF85: 0 | GG85: 0 | GH85: 0 | GI85: 0 | GJ85: 0 | GK85: 0 | GL85: 0 | GM85: 0 | GN85: 0 | GO85: 0 | GP85: 0 | GQ85: 0 | GR85: 0 | GS85: =GR87 -> 0 | GT85: 0 | GU85: 0 | GV85: 0 | GW85: 0 | GX85: 0 | GY85: 0 | GZ85: 0 | HA85: 0 | HB85: 0 | HC85: 0 | HD85: 0 | HE85: 0 | HF85: 0 | HG85: 0 | HH85: 0 | HI85: 0 | HJ85: 0 | HK85: 0 | HL85: 0 | HM85: 0 | HN85: 0 | HO85: 0 | HP85: 0 | HQ85: 0 | HR85: 0 | HS85: 0 | HT85: 0 | HU85: 0 | HV85: 0 | HW85: 0 | HX85: 0 | HY85: 0 | HZ85: 0 | IA85: 0 | IB85: 0 | IC85: 0 | ID85: 0 | IE85: 0 | IF85: 0 | IG85: 0 | IH85: 0 | II85: 0 | IJ85: 0 | IK85: 0 | IL85: 0 | IM85: 0 | IN85: 0 | IO85: 0 | IP85: 0 | IQ85: 0 | IR85: 0 | IS85: 0 | IT85: 0 | IU85: 0 | IV85: 0 | IW85: 0 | IX85: 0 | IY85: 0 | IZ85: 0 | JA85: 0 | JB85: 0 | JC85: 0 | JD85: 0 | JE85: =JD87 -> 0 | JF85: 0 | JG85: 0 | JH85: 0 | JI85: 0 | JJ85: 0 | JK85: 0 | JL85: 0 | JM85: 0 | JN85: 0 | JO85: 0 | JP85: 0 | JQ85: 0 | JR85: 0 | JS85: 0 | JT85: 0 | JU85: 0 | JV85: 0 | JW85: 0 | JX85: 0 | JY85: 0 | JZ85: 0 | KA85: 0 | KB85: 0 | KC85: 0 | KD85: 0 | KE85: 0 | KF85: 0 | KG85: 0 | KH85: 0 | KI85: 0 | KJ85: 0 | KK85: 0 | KL85: 0 | KM85: 0 | KN85: 0 | KO85: 0 | KP85: 0 | KQ85: 0 | KR85: 0 | KS85: 0 | KT85: 0 | KU85: 0
D86: Less: Retirements | H86: =MIN(IF(H8,H85*$E$82,G86*(1+$E$79)),H85) -> 0 | I86: 0 | J86: 0 | K86: 0 | L86: 0 | M86: 0 | N86: 0 | O86: 0 | P86: 0 | Q86: 0 | R86: 0 | S86: 0 | T86: 0 | U86: 0 | V86: 0 | W86: 0 | X86: 106.9001073 | Y86: 122.9345128 | Z86: 141.3739876 | AA86: 162.5792783 | AB86: 186.9652415 | AC86: 215.0089598 | AD86: 3.627320666e-09 | AE86: 0 | AF86: 0 | AG86: 0 | AH86: 0 | AI86: 0 | AJ86: 0 | AK86: 0 | AL86: 0 | AM86: 0 | AN86: 0 | AO86: 0 | AP86: 0 | AQ86: 0 | AR86: 0 | AS86: 0 | AT86: 0 | AU86: 0 | AV86: 0 | AW86: 0 | AX86: 0 | AY86: 0 | AZ86: 0 | BA86: 0 | BB86: 0 | BC86: 0 | BD86: 0 | BE86: 0 | BF86: 0 | BG86: 0 | BH86: 0 | BI86: 0 | BJ86: 0 | BK86: 0 | BL86: 0 | BM86: 0 | BN86: 0 | BO86: 0 | BP86: 0 | BQ86: 0 | BR86: 0 | BS86: 0 | BT86: =MIN(IF(BT8,BT85*$E$82,BS86*(1+$E$79)),BT85) -> 0 | BU86: 0 | BV86: 0 | BW86: 0 | BX86: 0 | BY86: 0 | BZ86: 0 | CA86: 0 | CB86: 0 | CC86: 0 | CD86: 0 | CE86: 0 | CF86: 0 | CG86: 0 | CH86: 0 | CI86: 0 | CJ86: 0 | CK86: 0 | CL86: 0 | CM86: 0 | CN86: 0 | CO86: 0 | CP86: 0 | CQ86: 0 | CR86: 0 | CS86: 0 | CT86: 0 | CU86: 0 | CV86: 0 | CW86: 0 | CX86: 0 | CY86: 0 | CZ86: 0 | DA86: 0 | DB86: 0 | DC86: 0 | DD86: 0 | DE86: 0 | DF86: 0 | DG86: 0 | DH86: 0 | DI86: 0 | DJ86: 0 | DK86: 0 | DL86: 0 | DM86: 0 | DN86: 0 | DO86: 0 | DP86: 0 | DQ86: 0 | DR86: 0 | DS86: 0 | DT86: 0 | DU86: 0 | DV86: 0 | DW86: 0 | DX86: 0 | DY86: 0 | DZ86: 0 | EA86: 0 | EB86: 0 | EC86: 0 | ED86: 0 | EE86: 0 | EF86: =MIN(IF(EF8,EF85*$E$82,EE86*(1+$E$79)),EF85) -> 0 | EG86: 0 | EH86: 0 | EI86: 0 | EJ86: 0 | EK86: 0 | EL86: 0 | EM86: 0 | EN86: 0 | EO86: 0 | EP86: 0 | EQ86: 0 | ER86: 0 | ES86: 0 | ET86: 0 | EU86: 0 | EV86: 0 | EW86: 0 | EX86: 0 | EY86: 0 | EZ86: 0 | FA86: 0 | FB86: 0 | FC86: 0 | FD86: 0 | FE86: 0 | FF86: 0 | FG86: 0 | FH86: 0 | FI86: 0 | FJ86: 0 | FK86: 0 | FL86: 0 | FM86: 0 | FN86: 0 | FO86: 0 | FP86: 0 | FQ86: 0 | FR86: 0 | FS86: 0 | FT86: 0 | FU86: 0 | FV86: 0 | FW86: 0 | FX86: 0 | FY86: 0 | FZ86: 0 | GA86: 0 | GB86: 0 | GC86: 0 | GD86: 0 | GE86: 0 | GF86: 0 | GG86: 0 | GH86: 0 | GI86: 0 | GJ86: 0 | GK86: 0 | GL86: 0 | GM86: 0 | GN86: 0 | GO86: 0 | GP86: 0 | GQ86: 0 | GR86: =MIN(IF(GR8,GR85*$E$82,GQ86*(1+$E$79)),GR85) -> 0 | GS86: 0 | GT86: 0 | GU86: 0 | GV86: 0 | GW86: 0 | GX86: 0 | GY86: 0 | GZ86: 0 | HA86: 0 | HB86: 0 | HC86: 0 | HD86: 0 | HE86: 0 | HF86: 0 | HG86: 0 | HH86: 0 | HI86: 0 | HJ86: 0 | HK86: 0 | HL86: 0 | HM86: 0 | HN86: 0 | HO86: 0 | HP86: 0 | HQ86: 0 | HR86: 0 | HS86: 0 | HT86: 0 | HU86: 0 | HV86: 0 | HW86: 0 | HX86: 0 | HY86: 0 | HZ86: 0 | IA86: 0 | IB86: 0 | IC86: 0 | ID86: 0 | IE86: 0 | IF86: 0 | IG86: 0 | IH86: 0 | II86: 0 | IJ86: 0 | IK86: 0 | IL86: 0 | IM86: 0 | IN86: 0 | IO86: 0 | IP86: 0 | IQ86: 0 | IR86: 0 | IS86: 0 | IT86: 0 | IU86: 0 | IV86: 0 | IW86: 0 | IX86: 0 | IY86: 0 | IZ86: 0 | JA86: 0 | JB86: 0 | JC86: 0 | JD86: =MIN(IF(JD8,JD85*$E$82,JC86*(1+$E$79)),JD85) -> 0 | JE86: 0 | JF86: 0 | JG86: 0 | JH86: 0 | JI86: 0 | JJ86: 0 | JK86: 0 | JL86: 0 | JM86: 0 | JN86: 0 | JO86: 0 | JP86: 0 | JQ86: 0 | JR86: 0 | JS86: 0 | JT86: 0 | JU86: 0 | JV86: 0 | JW86: 0 | JX86: 0 | JY86: 0 | JZ86: 0 | KA86: 0 | KB86: 0 | KC86: 0 | KD86: 0 | KE86: 0 | KF86: 0 | KG86: 0 | KH86: 0 | KI86: 0 | KJ86: 0 | KK86: 0 | KL86: 0 | KM86: 0 | KN86: 0 | KO86: 0 | KP86: 0 | KQ86: 0 | KR86: 0 | KS86: 0 | KT86: 0 | KU86: 0
D87: Closing Balance | H87: =IF(H3,H40,H85-H86) -> 115 | I87: 132.25 | J87: 152.0875 | K87: 174.900625 | L87: 201.1357187 | M87: 231.3060766 | N87: 266.001988 | O87: 305.9022863 | P87: 351.7876292 | Q87: 404.5557736 | R87: 465.2391396 | S87: 535.0250105 | T87: 615.2787621 | U87: 707.5705764 | V87: 813.7061629 | W87: 935.7620874 | X87: 828.86198 | Y87: 705.9274672 | Z87: 564.5534796 | AA87: 401.9742013 | AB87: 215.0089598 | AC87: 3.627320666e-09 | AD87: 0 | AE87: 0 | AF87: 0 | AG87: 0 | AH87: 0 | AI87: 0 | AJ87: 0 | AK87: 0 | AL87: 0 | AM87: 0 | AN87: 0 | AO87: 0 | AP87: 0 | AQ87: 0 | AR87: 0 | AS87: 0 | AT87: 0 | AU87: 0 | AV87: 0 | AW87: 0 | AX87: 0 | AY87: 0 | AZ87: 0 | BA87: 0 | BB87: 0 | BC87: 0 | BD87: 0 | BE87: 0 | BF87: 0 | BG87: 0 | BH87: 0 | BI87: 0 | BJ87: 0 | BK87: 0 | BL87: 0 | BM87: 0 | BN87: 0 | BO87: 0 | BP87: 0 | BQ87: 0 | BR87: 0 | BS87: 0 | BT87: =IF(BT3,BT40,BT85-BT86) -> 0 | BU87: 0 | BV87: 0 | BW87: 0 | BX87: 0 | BY87: 0 | BZ87: 0 | CA87: 0 | CB87: 0 | CC87: 0 | CD87: 0 | CE87: 0 | CF87: 0 | CG87: 0 | CH87: 0 | CI87: 0 | CJ87: 0 | CK87: 0 | CL87: 0 | CM87: 0 | CN87: 0 | CO87: 0 | CP87: 0 | CQ87: 0 | CR87: 0 | CS87: 0 | CT87: 0 | CU87: 0 | CV87: 0 | CW87: 0 | CX87: 0 | CY87: 0 | CZ87: 0 | DA87: 0 | DB87: 0 | DC87: 0 | DD87: 0 | DE87: 0 | DF87: 0 | DG87: 0 | DH87: 0 | DI87: 0 | DJ87: 0 | DK87: 0 | DL87: 0 | DM87: 0 | DN87: 0 | DO87: 0 | DP87: 0 | DQ87: 0 | DR87: 0 | DS87: 0 | DT87: 0 | DU87: 0 | DV87: 0 | DW87: 0 | DX87: 0 | DY87: 0 | DZ87: 0 | EA87: 0 | EB87: 0 | EC87: 0 | ED87: 0 | EE87: 0 | EF87: =IF(EF3,EF40,EF85-EF86) -> 0 | EG87: 0 | EH87: 0 | EI87: 0 | EJ87: 0 | EK87: 0 | EL87: 0 | EM87: 0 | EN87: 0 | EO87: 0 | EP87: 0 | EQ87: 0 | ER87: 0 | ES87: 0 | ET87: 0 | EU87: 0 | EV87: 0 | EW87: 0 | EX87: 0 | EY87: 0 | EZ87: 0 | FA87: 0 | FB87: 0 | FC87: 0 | FD87: 0 | FE87: 0 | FF87: 0 | FG87: 0 | FH87: 0 | FI87: 0 | FJ87: 0 | FK87: 0 | FL87: 0 | FM87: 0 | FN87: 0 | FO87: 0 | FP87: 0 | FQ87: 0 | FR87: 0 | FS87: 0 | FT87: 0 | FU87: 0 | FV87: 0 | FW87: 0 | FX87: 0 | FY87: 0 | FZ87: 0 | GA87: 0 | GB87: 0 | GC87: 0 | GD87: 0 | GE87: 0 | GF87: 0 | GG87: 0 | GH87: 0 | GI87: 0 | GJ87: 0 | GK87: 0 | GL87: 0 | GM87: 0 | GN87: 0 | GO87: 0 | GP87: 0 | GQ87: 0 | GR87: =IF(GR3,GR40,GR85-GR86) -> 0 | GS87: 0 | GT87: 0 | GU87: 0 | GV87: 0 | GW87: 0 | GX87: 0 | GY87: 0 | GZ87: 0 | HA87: 0 | HB87: 0 | HC87: 0 | HD87: 0 | HE87: 0 | HF87: 0 | HG87: 0 | HH87: 0 | HI87: 0 | HJ87: 0 | HK87: 0 | HL87: 0 | HM87: 0 | HN87: 0 | HO87: 0 | HP87: 0 | HQ87: 0 | HR87: 0 | HS87: 0 | HT87: 0 | HU87: 0 | HV87: 0 | HW87: 0 | HX87: 0 | HY87: 0 | HZ87: 0 | IA87: 0 | IB87: 0 | IC87: 0 | ID87: 0 | IE87: 0 | IF87: 0 | IG87: 0 | IH87: 0 | II87: 0 | IJ87: 0 | IK87: 0 | IL87: 0 | IM87: 0 | IN87: 0 | IO87: 0 | IP87: 0 | IQ87: 0 | IR87: 0 | IS87: 0 | IT87: 0 | IU87: 0 | IV87: 0 | IW87: 0 | IX87: 0 | IY87: 0 | IZ87: 0 | JA87: 0 | JB87: 0 | JC87: 0 | JD87: =IF(JD3,JD40,JD85-JD86) -> 0 | JE87: 0 | JF87: 0 | JG87: 0 | JH87: 0 | JI87: 0 | JJ87: 0 | JK87: 0 | JL87: 0 | JM87: 0 | JN87: 0 | JO87: 0 | JP87: 0 | JQ87: 0 | JR87: 0 | JS87: 0 | JT87: 0 | JU87: 0 | JV87: 0 | JW87: 0 | JX87: 0 | JY87: 0 | JZ87: 0 | KA87: 0 | KB87: 0 | KC87: 0 | KD87: 0 | KE87: 0 | KF87: 0 | KG87: 0 | KH87: 0 | KI87: 0 | KJ87: 0 | KK87: 0 | KL87: 0 | KM87: 0 | KN87: 0 | KO87: 0 | KP87: 0 | KQ87: 0 | KR87: 0 | KS87: 0 | KT87: 0 | KU87: 0
D89: Deprecation on Existing Plant | H89: =H85*(1/$E$77)*H4 -> 0 | I89: 0 | J89: 0 | K89: 0 | L89: 0 | M89: 0 | N89: 0 | O89: 0 | P89: 0 | Q89: 0 | R89: 0 | S89: 0 | T89: 0 | U89: 0 | V89: 0 | W89: 0 | X89: 155.9603479 | Y89: 138.1436633 | Z89: 117.6545779 | AA89: 94.0922466 | AB89: 66.99570021 | AC89: 35.83482664 | AD89: 6.045534443e-10 | AE89: 0 | AF89: 0 | AG89: 0 | AH89: 0 | AI89: 0 | AJ89: 0 | AK89: 0 | AL89: 0 | AM89: 0 | AN89: 0 | AO89: 0 | AP89: 0 | AQ89: 0 | AR89: 0 | AS89: 0 | AT89: 0 | AU89: 0 | AV89: 0 | AW89: 0 | AX89: 0 | AY89: 0 | AZ89: 0 | BA89: 0 | BB89: 0 | BC89: 0 | BD89: 0 | BE89: 0 | BF89: 0 | BG89: 0 | BH89: 0 | BI89: 0 | BJ89: 0 | BK89: 0 | BL89: 0 | BM89: 0 | BN89: 0 | BO89: 0 | BP89: 0 | BQ89: 0 | BR89: 0 | BS89: 0 | BT89: =BT85*(1/$E$77)*BT4 -> 0 | BU89: 0 | BV89: 0 | BW89: 0 | BX89: 0 | BY89: 0 | BZ89: 0 | CA89: 0 | CB89: 0 | CC89: 0 | CD89: 0 | CE89: 0 | CF89: 0 | CG89: 0 | CH89: 0 | CI89: 0 | CJ89: 0 | CK89: 0 | CL89: 0 | CM89: 0 | CN89: 0 | CO89: 0 | CP89: 0 | CQ89: 0 | CR89: 0 | CS89: 0 | CT89: 0 | CU89: 0 | CV89: 0 | CW89: 0 | CX89: 0 | CY89: 0 | CZ89: 0 | DA89: 0 | DB89: 0 | DC89: 0 | DD89: 0 | DE89: 0 | DF89: 0 | DG89: 0 | DH89: 0 | DI89: 0 | DJ89: 0 | DK89: 0 | DL89: 0 | DM89: 0 | DN89: 0 | DO89: 0 | DP89: 0 | DQ89: 0 | DR89: 0 | DS89: 0 | DT89: 0 | DU89: 0 | DV89: 0 | DW89: 0 | DX89: 0 | DY89: 0 | DZ89: 0 | EA89: 0 | EB89: 0 | EC89: 0 | ED89: 0 | EE89: 0 | EF89: =EF85*(1/$E$77)*EF4 -> 0 | EG89: 0 | EH89: 0 | EI89: 0 | EJ89: 0 | EK89: 0 | EL89: 0 | EM89: 0 | EN89: 0 | EO89: 0 | EP89: 0 | EQ89: 0 | ER89: 0 | ES89: 0 | ET89: 0 | EU89: 0 | EV89: 0 | EW89: 0 | EX89: 0 | EY89: 0 | EZ89: 0 | FA89: 0 | FB89: 0 | FC89: 0 | FD89: 0 | FE89: 0 | FF89: 0 | FG89: 0 | FH89: 0 | FI89: 0 | FJ89: 0 | FK89: 0 | FL89: 0 | FM89: 0 | FN89: 0 | FO89: 0 | FP89: 0 | FQ89: 0 | FR89: 0 | FS89: 0 | FT89: 0 | FU89: 0 | FV89: 0 | FW89: 0 | FX89: 0 | FY89: 0 | FZ89: 0 | GA89: 0 | GB89: 0 | GC89: 0 | GD89: 0 | GE89: 0 | GF89: 0 | GG89: 0 | GH89: 0 | GI89: 0 | GJ89: 0 | GK89: 0 | GL89: 0 | GM89: 0 | GN89: 0 | GO89: 0 | GP89: 0 | GQ89: 0 | GR89: =GR85*(1/$E$77)*GR4 -> 0 | GS89: 0 | GT89: 0 | GU89: 0 | GV89: 0 | GW89: 0 | GX89: 0 | GY89: 0 | GZ89: 0 | HA89: 0 | HB89: 0 | HC89: 0 | HD89: 0 | HE89: 0 | HF89: 0 | HG89: 0 | HH89: 0 | HI89: 0 | HJ89: 0 | HK89: 0 | HL89: 0 | HM89: 0 | HN89: 0 | HO89: 0 | HP89: 0 | HQ89: 0 | HR89: 0 | HS89: 0 | HT89: 0 | HU89: 0 | HV89: 0 | HW89: 0 | HX89: 0 | HY89: 0 | HZ89: 0 | IA89: 0 | IB89: 0 | IC89: 0 | ID89: 0 | IE89: 0 | IF89: 0 | IG89: 0 | IH89: 0 | II89: 0 | IJ89: 0 | IK89: 0 | IL89: 0 | IM89: 0 | IN89: 0 | IO89: 0 | IP89: 0 | IQ89: 0 | IR89: 0 | IS89: 0 | IT89: 0 | IU89: 0 | IV89: 0 | IW89: 0 | IX89: 0 | IY89: 0 | IZ89: 0 | JA89: 0 | JB89: 0 | JC89: 0 | JD89: =JD85*(1/$E$77)*JD4 -> 0 | JE89: 0 | JF89: 0 | JG89: 0 | JH89: 0 | JI89: 0 | JJ89: 0 | JK89: 0 | JL89: 0 | JM89: 0 | JN89: 0 | JO89: 0 | JP89: 0 | JQ89: 0 | JR89: 0 | JS89: 0 | JT89: 0 | JU89: 0 | JV89: 0 | JW89: 0 | JX89: 0 | JY89: 0 | JZ89: 0 | KA89: 0 | KB89: 0 | KC89: 0 | KD89: 0 | KE89: 0 | KF89: 0 | KG89: 0 | KH89: 0 | KI89: 0 | KJ89: 0 | KK89: 0 | KL89: 0 | KM89: 0 | KN89: 0 | KO89: 0 | KP89: 0 | KQ89: 0 | KR89: 0 | KS89: 0 | KT89: 0 | KU89: 0
C91: New Depreciation
D92: Opening Balance | H92: =G95 -> 0 | I92: =H95 -> 0 | J92: 0 | K92: 0 | L92: 0 | M92: 0 | N92: 0 | O92: 0 | P92: 0 | Q92: 0 | R92: 0 | S92: 0 | T92: 0 | U92: 0 | V92: 0 | W92: 0 | X92: 0 | Y92: 247.2628792 | Z92: 531.6151904 | AA92: 858.6203482 | AB92: 1234.67628 | AC92: 1667.140601 | AD92: 2164.47457 | AE92: 2489.145756 | AF92: 2862.517619 | AG92: 3291.895262 | AH92: 3785.679551 | AI92: 4353.531484 | AJ92: 5006.561207 | AK92: 5757.545388 | AL92: 6621.177196 | AM92: 7614.353775 | AN92: 8756.506841 | AO92: 9194.332183 | AP92: 8043.968491 | AQ92: 6721.050246 | AR92: 5199.694263 | AS92: 3450.134883 | AT92: 1438.141596 | AU92: 3.183231456e-12 | AV92: 3.183231456e-12 | AW92: 3.183231456e-12 | AX92: 3.183231456e-12 | AY92: 3.183231456e-12 | AZ92: 3.183231456e-12 | BA92: 3.183231456e-12 | BB92: 3.183231456e-12 | BC92: 3.183231456e-12 | BD92: 3.183231456e-12 | BE92: 3.183231456e-12 | BF92: 3.183231456e-12 | BG92: 3.183231456e-12 | BH92: 3.183231456e-12 | BI92: 3.183231456e-12 | BJ92: 3.183231456e-12 | BK92: 3.183231456e-12 | BL92: 3.183231456e-12 | BM92: 3.183231456e-12 | BN92: 3.183231456e-12 | BO92: 3.183231456e-12 | BP92: 3.183231456e-12 | BQ92: 3.183231456e-12 | BR92: 3.183231456e-12 | BS92: 3.183231456e-12 | BT92: 3.183231456e-12 | BU92: =BT95 -> 3.183231456e-12 | BV92: 3.183231456e-12 | BW92: 3.183231456e-12 | BX92: 3.183231456e-12 | BY92: 3.183231456e-12 | BZ92: 3.183231456e-12 | CA92: 3.183231456e-12 | CB92: 3.183231456e-12 | CC92: 3.183231456e-12 | CD92: 3.183231456e-12 | CE92: 3.183231456e-12 | CF92: 3.183231456e-12 | CG92: 3.183231456e-12 | CH92: 3.183231456e-12 | CI92: 3.183231456e-12 | CJ92: 3.183231456e-12 | CK92: 3.183231456e-12 | CL92: 3.183231456e-12 | CM92: 3.183231456e-12 | CN92: 3.183231456e-12 | CO92: 3.183231456e-12 | CP92: 3.183231456e-12 | CQ92: 3.183231456e-12 | CR92: 3.183231456e-12 | CS92: 3.183231456e-12 | CT92: 3.183231456e-12 | CU92: 3.183231456e-12 | CV92: 3.183231456e-12 | CW92: 3.183231456e-12 | CX92: 3.183231456e-12 | CY92: 3.183231456e-12 | CZ92: 3.183231456e-12 | DA92: 3.183231456e-12 | DB92: 3.183231456e-12 | DC92: 3.183231456e-12 | DD92: 3.183231456e-12 | DE92: 3.183231456e-12 | DF92: 3.183231456e-12 | DG92: 3.183231456e-12 | DH92: 3.183231456e-12 | DI92: 3.183231456e-12 | DJ92: 3.183231456e-12 | DK92: 3.183231456e-12 | DL92: 3.183231456e-12 | DM92: 3.183231456e-12 | DN92: 3.183231456e-12 | DO92: 3.183231456e-12 | DP92: 3.183231456e-12 | DQ92: 3.183231456e-12 | DR92: 3.183231456e-12 | DS92: 3.183231456e-12 | DT92: 3.183231456e-12 | DU92: 3.183231456e-12 | DV92: 3.183231456e-12 | DW92: 3.183231456e-12 | DX92: 3.183231456e-12 | DY92: 3.183231456e-12 | DZ92: 3.183231456e-12 | EA92: 3.183231456e-12 | EB92: 3.183231456e-12 | EC92: 3.183231456e-12 | ED92: 3.183231456e-12 | EE92: 3.183231456e-12 | EF92: 3.183231456e-12 | EG92: =EF95 -> 3.183231456e-12 | EH92: 3.183231456e-12 | EI92: 3.183231456e-12 | EJ92: 3.183231456e-12 | EK92: 3.183231456e-12 | EL92: 3.183231456e-12 | EM92: 3.183231456e-12 | EN92: 3.183231456e-12 | EO92: 3.183231456e-12 | EP92: 3.183231456e-12 | EQ92: 3.183231456e-12 | ER92: 3.183231456e-12 | ES92: 3.183231456e-12 | ET92: 3.183231456e-12 | EU92: 3.183231456e-12 | EV92: 3.183231456e-12 | EW92: 3.183231456e-12 | EX92: 3.183231456e-12 | EY92: 3.183231456e-12 | EZ92: 3.183231456e-12 | FA92: 3.183231456e-12 | FB92: 3.183231456e-12 | FC92: 3.183231456e-12 | FD92: 3.183231456e-12 | FE92: 3.183231456e-12 | FF92: 3.183231456e-12 | FG92: 3.183231456e-12 | FH92: 3.183231456e-12 | FI92: 3.183231456e-12 | FJ92: 3.183231456e-12 | FK92: 3.183231456e-12 | FL92: 3.183231456e-12 | FM92: 3.183231456e-12 | FN92: 3.183231456e-12 | FO92: 3.183231456e-12 | FP92: 3.183231456e-12 | FQ92: 3.183231456e-12 | FR92: 3.183231456e-12 | FS92: 3.183231456e-12 | FT92: 3.183231456e-12 | FU92: 3.183231456e-12 | FV92: 3.183231456e-12 | FW92: 3.183231456e-12 | FX92: 3.183231456e-12 | FY92: 3.183231456e-12 | FZ92: 3.183231456e-12 | GA92: 3.183231456e-12 | GB92: 3.183231456e-12 | GC92: 3.183231456e-12 | GD92: 3.183231456e-12 | GE92: 3.183231456e-12 | GF92: 3.183231456e-12 | GG92: 3.183231456e-12 | GH92: 3.183231456e-12 | GI92: 3.183231456e-12 | GJ92: 3.183231456e-12 | GK92: 3.183231456e-12 | GL92: 3.183231456e-12 | GM92: 3.183231456e-12 | GN92: 3.183231456e-12 | GO92: 3.183231456e-12 | GP92: 3.183231456e-12 | GQ92: 3.183231456e-12 | GR92: 3.183231456e-12 | GS92: =GR95 -> 3.183231456e-12 | GT92: 3.183231456e-12 | GU92: 3.183231456e-12 | GV92: 3.183231456e-12 | GW92: 3.183231456e-12 | GX92: 3.183231456e-12 | GY92: 3.183231456e-12 | GZ92: 3.183231456e-12 | HA92: 3.183231456e-12 | HB92: 3.183231456e-12 | HC92: 3.183231456e-12 | HD92: 3.183231456e-12 | HE92: 3.183231456e-12 | HF92: 3.183231456e-12 | HG92: 3.183231456e-12 | HH92: 3.183231456e-12 | HI92: 3.183231456e-12 | HJ92: 3.183231456e-12 | HK92: 3.183231456e-12 | HL92: 3.183231456e-12 | HM92: 3.183231456e-12 | HN92: 3.183231456e-12 | HO92: 3.183231456e-12 | HP92: 3.183231456e-12 | HQ92: 3.183231456e-12 | HR92: 3.183231456e-12 | HS92: 3.183231456e-12 | HT92: 3.183231456e-12 | HU92: 3.183231456e-12 | HV92: 3.183231456e-12 | HW92: 3.183231456e-12 | HX92: 3.183231456e-12 | HY92: 3.183231456e-12 | HZ92: 3.183231456e-12 | IA92: 3.183231456e-12 | IB92: 3.183231456e-12 | IC92: 3.183231456e-12 | ID92: 3.183231456e-12 | IE92: 3.183231456e-12 | IF92: 3.183231456e-12 | IG92: 3.183231456e-12 | IH92: 3.183231456e-12 | II92: 3.183231456e-12 | IJ92: 3.183231456e-12 | IK92: 3.183231456e-12 | IL92: 3.183231456e-12 | IM92: 3.183231456e-12 | IN92: 3.183231456e-12 | IO92: 3.183231456e-12 | IP92: 3.183231456e-12 | IQ92: 3.183231456e-12 | IR92: 3.183231456e-12 | IS92: 3.183231456e-12 | IT92: 3.183231456e-12 | IU92: 3.183231456e-12 | IV92: 3.183231456e-12 | IW92: 3.183231456e-12 | IX92: 3.183231456e-12 | IY92: 3.183231456e-12 | IZ92: 3.183231456e-12 | JA92: 3.183231456e-12 | JB92: 3.183231456e-12 | JC92: 3.183231456e-12 | JD92: 3.183231456e-12 | JE92: =JD95 -> 3.183231456e-12 | JF92: 3.183231456e-12 | JG92: 3.183231456e-12 | JH92: 3.183231456e-12 | JI92: 3.183231456e-12 | JJ92: 3.183231456e-12 | JK92: 3.183231456e-12 | JL92: 3.183231456e-12 | JM92: 3.183231456e-12 | JN92: 3.183231456e-12 | JO92: 3.183231456e-12 | JP92: 3.183231456e-12 | JQ92: 3.183231456e-12 | JR92: 3.183231456e-12 | JS92: 3.183231456e-12 | JT92: 3.183231456e-12 | JU92: 3.183231456e-12 | JV92: 3.183231456e-12 | JW92: 3.183231456e-12 | JX92: 3.183231456e-12 | JY92: 3.183231456e-12 | JZ92: 3.183231456e-12 | KA92: 3.183231456e-12 | KB92: 3.183231456e-12 | KC92: 3.183231456e-12 | KD92: 3.183231456e-12 | KE92: 3.183231456e-12 | KF92: 3.183231456e-12 | KG92: 3.183231456e-12 | KH92: 3.183231456e-12 | KI92: 3.183231456e-12 | KJ92: 3.183231456e-12 | KK92: 3.183231456e-12 | KL92: 3.183231456e-12 | KM92: 3.183231456e-12 | KN92: 3.183231456e-12 | KO92: 3.183231456e-12 | KP92: 3.183231456e-12 | KQ92: 3.183231456e-12 | KR92: 3.183231456e-12 | KS92: 3.183231456e-12 | KT92: 3.183231456e-12 | KU92: 3.183231456e-12
D93: Add: New Captial Expenditures | H93: =IF(H4,H28) -> FALSE | I93: FALSE | J93: FALSE | K93: FALSE | L93: FALSE | M93: FALSE | N93: FALSE | O93: FALSE | P93: FALSE | Q93: FALSE | R93: FALSE | S93: FALSE | T93: FALSE | U93: FALSE | V93: FALSE | W93: FALSE | X93: 247.2628792 | Y93: 284.3523111 | Z93: 327.0051578 | AA93: 376.0559315 | AB93: 432.4643212 | AC93: 497.3339694 | AD93: 571.9340648 | AE93: 657.7241745 | AF93: 756.3828007 | AG93: 869.8402208 | AH93: 1000.316254 | AI93: 1150.363692 | AJ93: 1322.918246 | AK93: 1521.355983 | AL93: 1749.55938 | AM93: 2011.993287 | AN93: 1438.141596 | AO93: FALSE | AP93: FALSE | AQ93: FALSE | AR93: FALSE | AS93: FALSE | AT93: FALSE | AU93: FALSE | AV93: FALSE | AW93: FALSE | AX93: FALSE | AY93: FALSE | AZ93: FALSE | BA93: FALSE | BB93: FALSE | BC93: FALSE | BD93: FALSE | BE93: FALSE | BF93: FALSE | BG93: FALSE | BH93: FALSE | BI93: FALSE | BJ93: FALSE | BK93: FALSE | BL93: FALSE | BM93: FALSE | BN93: FALSE | BO93: FALSE | BP93: FALSE | BQ93: FALSE | BR93: FALSE | BS93: FALSE | BT93: =IF(BT4,BT28) -> FALSE | BU93: FALSE | BV93: FALSE | BW93: FALSE | BX93: FALSE | BY93: FALSE | BZ93: FALSE | CA93: FALSE | CB93: FALSE | CC93: FALSE | CD93: FALSE | CE93: FALSE | CF93: FALSE | CG93: FALSE | CH93: FALSE | CI93: FALSE | CJ93: FALSE | CK93: FALSE | CL93: FALSE | CM93: FALSE | CN93: FALSE | CO93: FALSE | CP93: FALSE | CQ93: FALSE | CR93: FALSE | CS93: FALSE | CT93: FALSE | CU93: FALSE | CV93: FALSE | CW93: FALSE | CX93: FALSE | CY93: FALSE | CZ93: FALSE | DA93: FALSE | DB93: FALSE | DC93: FALSE | DD93: FALSE | DE93: FALSE | DF93: FALSE | DG93: FALSE | DH93: FALSE | DI93: FALSE | DJ93: FALSE | DK93: FALSE | DL93: FALSE | DM93: FALSE | DN93: FALSE | DO93: FALSE | DP93: FALSE | DQ93: FALSE | DR93: FALSE | DS93: FALSE | DT93: FALSE | DU93: FALSE | DV93: FALSE | DW93: FALSE | DX93: FALSE | DY93: FALSE | DZ93: FALSE | EA93: FALSE | EB93: FALSE | EC93: FALSE | ED93: FALSE | EE93: FALSE | EF93: =IF(EF4,EF28) -> FALSE | EG93: FALSE | EH93: FALSE | EI93: FALSE | EJ93: FALSE | EK93: FALSE | EL93: FALSE | EM93: FALSE | EN93: FALSE | EO93: FALSE | EP93: FALSE | EQ93: FALSE | ER93: FALSE | ES93: FALSE | ET93: FALSE | EU93: FALSE | EV93: FALSE | EW93: FALSE | EX93: FALSE | EY93: FALSE | EZ93: FALSE | FA93: FALSE | FB93: FALSE | FC93: FALSE | FD93: FALSE | FE93: FALSE | FF93: FALSE | FG93: FALSE | FH93: FALSE | FI93: FALSE | FJ93: FALSE | FK93: FALSE | FL93: FALSE | FM93: FALSE | FN93: FALSE | FO93: FALSE | FP93: FALSE | FQ93: FALSE | FR93: FALSE | FS93: FALSE | FT93: FALSE | FU93: FALSE | FV93: FALSE | FW93: FALSE | FX93: FALSE | FY93: FALSE | FZ93: FALSE | GA93: FALSE | GB93: FALSE | GC93: FALSE | GD93: FALSE | GE93: FALSE | GF93: FALSE | GG93: FALSE | GH93: FALSE | GI93: FALSE | GJ93: FALSE | GK93: FALSE | GL93: FALSE | GM93: FALSE | GN93: FALSE | GO93: FALSE | GP93: FALSE | GQ93: FALSE | GR93: =IF(GR4,GR28) -> FALSE | GS93: FALSE | GT93: FALSE | GU93: FALSE | GV93: FALSE | GW93: FALSE | GX93: FALSE | GY93: FALSE | GZ93: FALSE | HA93: FALSE | HB93: FALSE | HC93: FALSE | HD93: FALSE | HE93: FALSE | HF93: FALSE | HG93: FALSE | HH93: FALSE | HI93: FALSE | HJ93: FALSE | HK93: FALSE | HL93: FALSE | HM93: FALSE | HN93: FALSE | HO93: FALSE | HP93: FALSE | HQ93: FALSE | HR93: FALSE | HS93: FALSE | HT93: FALSE | HU93: FALSE | HV93: FALSE | HW93: FALSE | HX93: FALSE | HY93: FALSE | HZ93: FALSE | IA93: FALSE | IB93: FALSE | IC93: FALSE | ID93: FALSE | IE93: FALSE | IF93: FALSE | IG93: FALSE | IH93: FALSE | II93: FALSE | IJ93: FALSE | IK93: FALSE | IL93: FALSE | IM93: FALSE | IN93: FALSE | IO93: FALSE | IP93: FALSE | IQ93: FALSE | IR93: FALSE | IS93: FALSE | IT93: FALSE | IU93: FALSE | IV93: FALSE | IW93: FALSE | IX93: FALSE | IY93: FALSE | IZ93: FALSE | JA93: FALSE | JB93: FALSE | JC93: FALSE | JD93: =IF(JD4,JD28) -> FALSE | JE93: FALSE | JF93: FALSE | JG93: FALSE | JH93: FALSE | JI93: FALSE | JJ93: FALSE | JK93: FALSE | JL93: FALSE | JM93: FALSE | JN93: FALSE | JO93: FALSE | JP93: FALSE | JQ93: FALSE | JR93: FALSE | JS93: FALSE | JT93: FALSE | JU93: FALSE | JV93: FALSE | JW93: FALSE | JX93: FALSE | JY93: FALSE | JZ93: FALSE | KA93: FALSE | KB93: FALSE | KC93: FALSE | KD93: FALSE | KE93: FALSE | KF93: FALSE | KG93: FALSE | KH93: FALSE | KI93: FALSE | KJ93: FALSE | KK93: FALSE | KL93: FALSE | KM93: FALSE | KN93: FALSE | KO93: FALSE | KP93: FALSE | KQ93: FALSE | KR93: FALSE | KS93: FALSE | KT93: FALSE | KU93: FALSE
D94: Less: Retirements on New Plant | H94: =IF(H2>=$E$77,OFFSET(H93,0,-$E$77)) -> FALSE | I94: FALSE | J94: FALSE | K94: FALSE | L94: FALSE | M94: 0 | N94: FALSE | O94: FALSE | P94: FALSE | Q94: FALSE | R94: FALSE | S94: FALSE | T94: FALSE | U94: FALSE | V94: FALSE | W94: FALSE | X94: FALSE | Y94: FALSE | Z94: FALSE | AA94: FALSE | AB94: FALSE | AC94: FALSE | AD94: 247.2628792 | AE94: 284.3523111 | AF94: 327.0051578 | AG94: 376.0559315 | AH94: 432.4643212 | AI94: 497.3339694 | AJ94: 571.9340648 | AK94: 657.7241745 | AL94: 756.3828007 | AM94: 869.8402208 | AN94: 1000.316254 | AO94: 1150.363692 | AP94: 1322.918246 | AQ94: 1521.355983 | AR94: 1749.55938 | AS94: 2011.993287 | AT94: 1438.141596 | AU94: FALSE | AV94: FALSE | AW94: FALSE | AX94: FALSE | AY94: FALSE | AZ94: FALSE | BA94: FALSE | BB94: FALSE | BC94: FALSE | BD94: FALSE | BE94: FALSE | BF94: FALSE | BG94: FALSE | BH94: FALSE | BI94: FALSE | BJ94: FALSE | BK94: FALSE | BL94: FALSE | BM94: FALSE | BN94: FALSE | BO94: FALSE | BP94: FALSE | BQ94: FALSE | BR94: FALSE | BS94: FALSE | BT94: =IF(BT2>=$E$77,OFFSET(BT93,0,-$E$77)) -> FALSE | BU94: FALSE | BV94: FALSE | BW94: FALSE | BX94: FALSE | BY94: FALSE | BZ94: FALSE | CA94: FALSE | CB94: FALSE | CC94: FALSE | CD94: FALSE | CE94: FALSE | CF94: FALSE | CG94: FALSE | CH94: FALSE | CI94: FALSE | CJ94: FALSE | CK94: FALSE | CL94: FALSE | CM94: FALSE | CN94: FALSE | CO94: FALSE | CP94: FALSE | CQ94: FALSE | CR94: FALSE | CS94: FALSE | CT94: FALSE | CU94: FALSE | CV94: FALSE | CW94: FALSE | CX94: FALSE | CY94: FALSE | CZ94: FALSE | DA94: FALSE | DB94: FALSE | DC94: FALSE | DD94: FALSE | DE94: FALSE | DF94: FALSE | DG94: FALSE | DH94: FALSE | DI94: FALSE | DJ94: FALSE | DK94: FALSE | DL94: FALSE | DM94: FALSE | DN94: FALSE | DO94: FALSE | DP94: FALSE | DQ94: FALSE | DR94: FALSE | DS94: FALSE | DT94: FALSE | DU94: FALSE | DV94: FALSE | DW94: FALSE | DX94: FALSE | DY94: FALSE | DZ94: FALSE | EA94: FALSE | EB94: FALSE | EC94: FALSE | ED94: FALSE | EE94: FALSE | EF94: =IF(EF2>=$E$77,OFFSET(EF93,0,-$E$77)) -> FALSE | EG94: FALSE | EH94: FALSE | EI94: FALSE | EJ94: FALSE | EK94: FALSE | EL94: FALSE | EM94: FALSE | EN94: FALSE | EO94: FALSE | EP94: FALSE | EQ94: FALSE | ER94: FALSE | ES94: FALSE | ET94: FALSE | EU94: FALSE | EV94: FALSE | EW94: FALSE | EX94: FALSE | EY94: FALSE | EZ94: FALSE | FA94: FALSE | FB94: FALSE | FC94: FALSE | FD94: FALSE | FE94: FALSE | FF94: FALSE | FG94: FALSE | FH94: FALSE | FI94: FALSE | FJ94: FALSE | FK94: FALSE | FL94: FALSE | FM94: FALSE | FN94: FALSE | FO94: FALSE | FP94: FALSE | FQ94: FALSE | FR94: FALSE | FS94: FALSE | FT94: FALSE | FU94: FALSE | FV94: FALSE | FW94: FALSE | FX94: FALSE | FY94: FALSE | FZ94: FALSE | GA94: FALSE | GB94: FALSE | GC94: FALSE | GD94: FALSE | GE94: FALSE | GF94: FALSE | GG94: FALSE | GH94: FALSE | GI94: FALSE | GJ94: FALSE | GK94: FALSE | GL94: FALSE | GM94: FALSE | GN94: FALSE | GO94: FALSE | GP94: FALSE | GQ94: FALSE | GR94: =IF(GR2>=$E$77,OFFSET(GR93,0,-$E$77)) -> FALSE | GS94: FALSE | GT94: FALSE | GU94: FALSE | GV94: FALSE | GW94: FALSE | GX94: FALSE | GY94: FALSE | GZ94: FALSE | HA94: FALSE | HB94: FALSE | HC94: FALSE | HD94: FALSE | HE94: FALSE | HF94: FALSE | HG94: FALSE | HH94: FALSE | HI94: FALSE | HJ94: FALSE | HK94: FALSE | HL94: FALSE | HM94: FALSE | HN94: FALSE | HO94: FALSE | HP94: FALSE | HQ94: FALSE | HR94: FALSE | HS94: FALSE | HT94: FALSE | HU94: FALSE | HV94: FALSE | HW94: FALSE | HX94: FALSE | HY94: FALSE | HZ94: FALSE | IA94: FALSE | IB94: FALSE | IC94: FALSE | ID94: FALSE | IE94: FALSE | IF94: FALSE | IG94: FALSE | IH94: FALSE | II94: FALSE | IJ94: FALSE | IK94: FALSE | IL94: FALSE | IM94: FALSE | IN94: FALSE | IO94: FALSE | IP94: FALSE | IQ94: FALSE | IR94: FALSE | IS94: FALSE | IT94: FALSE | IU94: FALSE | IV94: FALSE | IW94: FALSE | IX94: FALSE | IY94: FALSE | IZ94: FALSE | JA94: FALSE | JB94: FALSE | JC94: FALSE | JD94: =IF(JD2>=$E$77,OFFSET(JD93,0,-$E$77)) -> FALSE | JE94: FALSE | JF94: FALSE | JG94: FALSE | JH94: FALSE | JI94: FALSE | JJ94: FALSE | JK94: FALSE | JL94: FALSE | JM94: FALSE | JN94: FALSE | JO94: FALSE | JP94: FALSE | JQ94: FALSE | JR94: FALSE | JS94: FALSE | JT94: FALSE | JU94: FALSE | JV94: FALSE | JW94: FALSE | JX94: FALSE | JY94: FALSE | JZ94: FALSE | KA94: FALSE | KB94: FALSE | KC94: FALSE | KD94: FALSE | KE94: FALSE | KF94: FALSE | KG94: FALSE | KH94: FALSE | KI94: FALSE | KJ94: FALSE | KK94: FALSE | KL94: FALSE | KM94: FALSE | KN94: FALSE | KO94: FALSE | KP94: FALSE | KQ94: FALSE | KR94: FALSE | KS94: FALSE | KT94: FALSE | KU94: FALSE
D95: Closing Balance | H95: =H92+H93-H94 -> 0 | I95: =I92+I93-I94 -> 0 | J95: 0 | K95: 0 | L95: 0 | M95: 0 | N95: 0 | O95: 0 | P95: 0 | Q95: 0 | R95: 0 | S95: 0 | T95: 0 | U95: 0 | V95: 0 | W95: 0 | X95: 247.2628792 | Y95: 531.6151904 | Z95: 858.6203482 | AA95: 1234.67628 | AB95: 1667.140601 | AC95: 2164.47457 | AD95: 2489.145756 | AE95: 2862.517619 | AF95: 3291.895262 | AG95: 3785.679551 | AH95: 4353.531484 | AI95: 5006.561207 | AJ95: 5757.545388 | AK95: 6621.177196 | AL95: 7614.353775 | AM95: 8756.506841 | AN95: 9194.332183 | AO95: 8043.968491 | AP95: 6721.050246 | AQ95: 5199.694263 | AR95: 3450.134883 | AS95: 1438.141596 | AT95: 3.183231456e-12 | AU95: 3.183231456e-12 | AV95: 3.183231456e-12 | AW95: 3.183231456e-12 | AX95: 3.183231456e-12 | AY95: 3.183231456e-12 | AZ95: 3.183231456e-12 | BA95: 3.183231456e-12 | BB95: 3.183231456e-12 | BC95: 3.183231456e-12 | BD95: 3.183231456e-12 | BE95: 3.183231456e-12 | BF95: 3.183231456e-12 | BG95: 3.183231456e-12 | BH95: 3.183231456e-12 | BI95: 3.183231456e-12 | BJ95: 3.183231456e-12 | BK95: 3.183231456e-12 | BL95: 3.183231456e-12 | BM95: 3.183231456e-12 | BN95: 3.183231456e-12 | BO95: 3.183231456e-12 | BP95: 3.183231456e-12 | BQ95: 3.183231456e-12 | BR95: 3.183231456e-12 | BS95: 3.183231456e-12 | BT95: 3.183231456e-12 | BU95: =BU92+BU93-BU94 -> 3.183231456e-12 | BV95: 3.183231456e-12 | BW95: 3.183231456e-12 | BX95: 3.183231456e-12 | BY95: 3.183231456e-12 | BZ95: 3.183231456e-12 | CA95: 3.183231456e-12 | CB95: 3.183231456e-12 | CC95: 3.183231456e-12 | CD95: 3.183231456e-12 | CE95: 3.183231456e-12 | CF95: 3.183231456e-12 | CG95: 3.183231456e-12 | CH95: 3.183231456e-12 | CI95: 3.183231456e-12 | CJ95: 3.183231456e-12 | CK95: 3.183231456e-12 | CL95: 3.183231456e-12 | CM95: 3.183231456e-12 | CN95: 3.183231456e-12 | CO95: 3.183231456e-12 | CP95: 3.183231456e-12 | CQ95: 3.183231456e-12 | CR95: 3.183231456e-12 | CS95: 3.183231456e-12 | CT95: 3.183231456e-12 | CU95: 3.183231456e-12 | CV95: 3.183231456e-12 | CW95: 3.183231456e-12 | CX95: 3.183231456e-12 | CY95: 3.183231456e-12 | CZ95: 3.183231456e-12 | DA95: 3.183231456e-12 | DB95: 3.183231456e-12 | DC95: 3.183231456e-12 | DD95: 3.183231456e-12 | DE95: 3.183231456e-12 | DF95: 3.183231456e-12 | DG95: 3.183231456e-12 | DH95: 3.183231456e-12 | DI95: 3.183231456e-12 | DJ95: 3.183231456e-12 | DK95: 3.183231456e-12 | DL95: 3.183231456e-12 | DM95: 3.183231456e-12 | DN95: 3.183231456e-12 | DO95: 3.183231456e-12 | DP95: 3.183231456e-12 | DQ95: 3.183231456e-12 | DR95: 3.183231456e-12 | DS95: 3.183231456e-12 | DT95: 3.183231456e-12 | DU95: 3.183231456e-12 | DV95: 3.183231456e-12 | DW95: 3.183231456e-12 | DX95: 3.183231456e-12 | DY95: 3.183231456e-12 | DZ95: 3.183231456e-12 | EA95: 3.183231456e-12 | EB95: 3.183231456e-12 | EC95: 3.183231456e-12 | ED95: 3.183231456e-12 | EE95: 3.183231456e-12 | EF95: 3.183231456e-12 | EG95: =EG92+EG93-EG94 -> 3.183231456e-12 | EH95: 3.183231456e-12 | EI95: 3.183231456e-12 | EJ95: 3.183231456e-12 | EK95: 3.183231456e-12 | EL95: 3.183231456e-12 | EM95: 3.183231456e-12 | EN95: 3.183231456e-12 | EO95: 3.183231456e-12 | EP95: 3.183231456e-12 | EQ95: 3.183231456e-12 | ER95: 3.183231456e-12 | ES95: 3.183231456e-12 | ET95: 3.183231456e-12 | EU95: 3.183231456e-12 | EV95: 3.183231456e-12 | EW95: 3.183231456e-12 | EX95: 3.183231456e-12 | EY95: 3.183231456e-12 | EZ95: 3.183231456e-12 | FA95: 3.183231456e-12 | FB95: 3.183231456e-12 | FC95: 3.183231456e-12 | FD95: 3.183231456e-12 | FE95: 3.183231456e-12 | FF95: 3.183231456e-12 | FG95: 3.183231456e-12 | FH95: 3.183231456e-12 | FI95: 3.183231456e-12 | FJ95: 3.183231456e-12 | FK95: 3.183231456e-12 | FL95: 3.183231456e-12 | FM95: 3.183231456e-12 | FN95: 3.183231456e-12 | FO95: 3.183231456e-12 | FP95: 3.183231456e-12 | FQ95: 3.183231456e-12 | FR95: 3.183231456e-12 | FS95: 3.183231456e-12 | FT95: 3.183231456e-12 | FU95: 3.183231456e-12 | FV95: 3.183231456e-12 | FW95: 3.183231456e-12 | FX95: 3.183231456e-12 | FY95: 3.183231456e-12 | FZ95: 3.183231456e-12 | GA95: 3.183231456e-12 | GB95: 3.183231456e-12 | GC95: 3.183231456e-12 | GD95: 3.183231456e-12 | GE95: 3.183231456e-12 | GF95: 3.183231456e-12 | GG95: 3.183231456e-12 | GH95: 3.183231456e-12 | GI95: 3.183231456e-12 | GJ95: 3.183231456e-12 | GK95: 3.183231456e-12 | GL95: 3.183231456e-12 | GM95: 3.183231456e-12 | GN95: 3.183231456e-12 | GO95: 3.183231456e-12 | GP95: 3.183231456e-12 | GQ95: 3.183231456e-12 | GR95: 3.183231456e-12 | GS95: =GS92+GS93-GS94 -> 3.183231456e-12 | GT95: 3.183231456e-12 | GU95: 3.183231456e-12 | GV95: 3.183231456e-12 | GW95: 3.183231456e-12 | GX95: 3.183231456e-12 | GY95: 3.183231456e-12 | GZ95: 3.183231456e-12 | HA95: 3.183231456e-12 | HB95: 3.183231456e-12 | HC95: 3.183231456e-12 | HD95: 3.183231456e-12 | HE95: 3.183231456e-12 | HF95: 3.183231456e-12 | HG95: 3.183231456e-12 | HH95: 3.183231456e-12 | HI95: 3.183231456e-12 | HJ95: 3.183231456e-12 | HK95: 3.183231456e-12 | HL95: 3.183231456e-12 | HM95: 3.183231456e-12 | HN95: 3.183231456e-12 | HO95: 3.183231456e-12 | HP95: 3.183231456e-12 | HQ95: 3.183231456e-12 | HR95: 3.183231456e-12 | HS95: 3.183231456e-12 | HT95: 3.183231456e-12 | HU95: 3.183231456e-12 | HV95: 3.183231456e-12 | HW95: 3.183231456e-12 | HX95: 3.183231456e-12 | HY95: 3.183231456e-12 | HZ95: 3.183231456e-12 | IA95: 3.183231456e-12 | IB95: 3.183231456e-12 | IC95: 3.183231456e-12 | ID95: 3.183231456e-12 | IE95: 3.183231456e-12 | IF95: 3.183231456e-12 | IG95: 3.183231456e-12 | IH95: 3.183231456e-12 | II95: 3.183231456e-12 | IJ95: 3.183231456e-12 | IK95: 3.183231456e-12 | IL95: 3.183231456e-12 | IM95: 3.183231456e-12 | IN95: 3.183231456e-12 | IO95: 3.183231456e-12 | IP95: 3.183231456e-12 | IQ95: 3.183231456e-12 | IR95: 3.183231456e-12 | IS95: 3.183231456e-12 | IT95: 3.183231456e-12 | IU95: 3.183231456e-12 | IV95: 3.183231456e-12 | IW95: 3.183231456e-12 | IX95: 3.183231456e-12 | IY95: 3.183231456e-12 | IZ95: 3.183231456e-12 | JA95: 3.183231456e-12 | JB95: 3.183231456e-12 | JC95: 3.183231456e-12 | JD95: 3.183231456e-12 | JE95: =JE92+JE93-JE94 -> 3.183231456e-12 | JF95: 3.183231456e-12 | JG95: 3.183231456e-12 | JH95: 3.183231456e-12 | JI95: 3.183231456e-12 | JJ95: 3.183231456e-12 | JK95: 3.183231456e-12 | JL95: 3.183231456e-12 | JM95: 3.183231456e-12 | JN95: 3.183231456e-12 | JO95: 3.183231456e-12 | JP95: 3.183231456e-12 | JQ95: 3.183231456e-12 | JR95: 3.183231456e-12 | JS95: 3.183231456e-12 | JT95: 3.183231456e-12 | JU95: 3.183231456e-12 | JV95: 3.183231456e-12 | JW95: 3.183231456e-12 | JX95: 3.183231456e-12 | JY95: 3.183231456e-12 | JZ95: 3.183231456e-12 | KA95: 3.183231456e-12 | KB95: 3.183231456e-12 | KC95: 3.183231456e-12 | KD95: 3.183231456e-12 | KE95: 3.183231456e-12 | KF95: 3.183231456e-12 | KG95: 3.183231456e-12 | KH95: 3.183231456e-12 | KI95: 3.183231456e-12 | KJ95: 3.183231456e-12 | KK95: 3.183231456e-12 | KL95: 3.183231456e-12 | KM95: 3.183231456e-12 | KN95: 3.183231456e-12 | KO95: 3.183231456e-12 | KP95: 3.183231456e-12 | KQ95: 3.183231456e-12 | KR95: 3.183231456e-12 | KS95: 3.183231456e-12 | KT95: 3.183231456e-12 | KU95: 3.183231456e-12
D97: Depreciation on New Plant | H97: =H92*(1/$E$77) -> 0 | I97: =I92*(1/$E$77) -> 0 | J97: 0 | K97: 0 | L97: 0 | M97: 0 | N97: 0 | O97: 0 | P97: 0 | Q97: 0 | R97: 0 | S97: 0 | T97: 0 | U97: 0 | V97: 0 | W97: 0 | X97: 0 | Y97: 41.21047987 | Z97: 88.60253173 | AA97: 143.1033914 | AB97: 205.7793799 | AC97: 277.8567668 | AD97: 360.7457617 | AE97: 414.857626 | AF97: 477.0862699 | AG97: 548.6492103 | AH97: 630.9465919 | AI97: 725.5885807 | AJ97: 834.4268678 | AK97: 959.5908979 | AL97: 1103.529533 | AM97: 1269.058963 | AN97: 1459.417807 | AO97: 1532.388697 | AP97: 1340.661415 | AQ97: 1120.175041 | AR97: 866.6157105 | AS97: 575.0224805 | AT97: 239.690266 | AU97: 5.30538576e-13 | AV97: 5.30538576e-13 | AW97: 5.30538576e-13 | AX97: 5.30538576e-13 | AY97: 5.30538576e-13 | AZ97: 5.30538576e-13 | BA97: 5.30538576e-13 | BB97: 5.30538576e-13 | BC97: 5.30538576e-13 | BD97: 5.30538576e-13 | BE97: 5.30538576e-13 | BF97: 5.30538576e-13 | BG97: 5.30538576e-13 | BH97: 5.30538576e-13 | BI97: 5.30538576e-13 | BJ97: 5.30538576e-13 | BK97: 5.30538576e-13 | BL97: 5.30538576e-13 | BM97: 5.30538576e-13 | BN97: 5.30538576e-13 | BO97: 5.30538576e-13 | BP97: 5.30538576e-13 | BQ97: 5.30538576e-13 | BR97: 5.30538576e-13 | BS97: 5.30538576e-13 | BT97: 5.30538576e-13 | BU97: =BU92*(1/$E$77) -> 5.30538576e-13 | BV97: 5.30538576e-13 | BW97: 5.30538576e-13 | BX97: 5.30538576e-13 | BY97: 5.30538576e-13 | BZ97: 5.30538576e-13 | CA97: 5.30538576e-13 | CB97: 5.30538576e-13 | CC97: 5.30538576e-13 | CD97: 5.30538576e-13 | CE97: 5.30538576e-13 | CF97: 5.30538576e-13 | CG97: 5.30538576e-13 | CH97: 5.30538576e-13 | CI97: 5.30538576e-13 | CJ97: 5.30538576e-13 | CK97: 5.30538576e-13 | CL97: 5.30538576e-13 | CM97: 5.30538576e-13 | CN97: 5.30538576e-13 | CO97: 5.30538576e-13 | CP97: 5.30538576e-13 | CQ97: 5.30538576e-13 | CR97: 5.30538576e-13 | CS97: 5.30538576e-13 | CT97: 5.30538576e-13 | CU97: 5.30538576e-13 | CV97: 5.30538576e-13 | CW97: 5.30538576e-13 | CX97: 5.30538576e-13 | CY97: 5.30538576e-13 | CZ97: 5.30538576e-13 | DA97: 5.30538576e-13 | DB97: 5.30538576e-13 | DC97: 5.30538576e-13 | DD97: 5.30538576e-13 | DE97: 5.30538576e-13 | DF97: 5.30538576e-13 | DG97: 5.30538576e-13 | DH97: 5.30538576e-13 | DI97: 5.30538576e-13 | DJ97: 5.30538576e-13 | DK97: 5.30538576e-13 | DL97: 5.30538576e-13 | DM97: 5.30538576e-13 | DN97: 5.30538576e-13 | DO97: 5.30538576e-13 | DP97: 5.30538576e-13 | DQ97: 5.30538576e-13 | DR97: 5.30538576e-13 | DS97: 5.30538576e-13 | DT97: 5.30538576e-13 | DU97: 5.30538576e-13 | DV97: 5.30538576e-13 | DW97: 5.30538576e-13 | DX97: 5.30538576e-13 | DY97: 5.30538576e-13 | DZ97: 5.30538576e-13 | EA97: 5.30538576e-13 | EB97: 5.30538576e-13 | EC97: 5.30538576e-13 | ED97: 5.30538576e-13 | EE97: 5.30538576e-13 | EF97: 5.30538576e-13 | EG97: =EG92*(1/$E$77) -> 5.30538576e-13 | EH97: 5.30538576e-13 | EI97: 5.30538576e-13 | EJ97: 5.30538576e-13 | EK97: 5.30538576e-13 | EL97: 5.30538576e-13 | EM97: 5.30538576e-13 | EN97: 5.30538576e-13 | EO97: 5.30538576e-13 | EP97: 5.30538576e-13 | EQ97: 5.30538576e-13 | ER97: 5.30538576e-13 | ES97: 5.30538576e-13 | ET97: 5.30538576e-13 | EU97: 5.30538576e-13 | EV97: 5.30538576e-13 | EW97: 5.30538576e-13 | EX97: 5.30538576e-13 | EY97: 5.30538576e-13 | EZ97: 5.30538576e-13 | FA97: 5.30538576e-13 | FB97: 5.30538576e-13 | FC97: 5.30538576e-13 | FD97: 5.30538576e-13 | FE97: 5.30538576e-13 | FF97: 5.30538576e-13 | FG97: 5.30538576e-13 | FH97: 5.30538576e-13 | FI97: 5.30538576e-13 | FJ97: 5.30538576e-13 | FK97: 5.30538576e-13 | FL97: 5.30538576e-13 | FM97: 5.30538576e-13 | FN97: 5.30538576e-13 | FO97: 5.30538576e-13 | FP97: 5.30538576e-13 | FQ97: 5.30538576e-13 | FR97: 5.30538576e-13 | FS97: 5.30538576e-13 | FT97: 5.30538576e-13 | FU97: 5.30538576e-13 | FV97: 5.30538576e-13 | FW97: 5.30538576e-13 | FX97: 5.30538576e-13 | FY97: 5.30538576e-13 | FZ97: 5.30538576e-13 | GA97: 5.30538576e-13 | GB97: 5.30538576e-13 | GC97: 5.30538576e-13 | GD97: 5.30538576e-13 | GE97: 5.30538576e-13 | GF97: 5.30538576e-13 | GG97: 5.30538576e-13 | GH97: 5.30538576e-13 | GI97: 5.30538576e-13 | GJ97: 5.30538576e-13 | GK97: 5.30538576e-13 | GL97: 5.30538576e-13 | GM97: 5.30538576e-13 | GN97: 5.30538576e-13 | GO97: 5.30538576e-13 | GP97: 5.30538576e-13 | GQ97: 5.30538576e-13 | GR97: 5.30538576e-13 | GS97: =GS92*(1/$E$77) -> 5.30538576e-13 | GT97: 5.30538576e-13 | GU97: 5.30538576e-13 | GV97: 5.30538576e-13 | GW97: 5.30538576e-13 | GX97: 5.30538576e-13 | GY97: 5.30538576e-13 | GZ97: 5.30538576e-13 | HA97: 5.30538576e-13 | HB97: 5.30538576e-13 | HC97: 5.30538576e-13 | HD97: 5.30538576e-13 | HE97: 5.30538576e-13 | HF97: 5.30538576e-13 | HG97: 5.30538576e-13 | HH97: 5.30538576e-13 | HI97: 5.30538576e-13 | HJ97: 5.30538576e-13 | HK97: 5.30538576e-13 | HL97: 5.30538576e-13 | HM97: 5.30538576e-13 | HN97: 5.30538576e-13 | HO97: 5.30538576e-13 | HP97: 5.30538576e-13 | HQ97: 5.30538576e-13 | HR97: 5.30538576e-13 | HS97: 5.30538576e-13 | HT97: 5.30538576e-13 | HU97: 5.30538576e-13 | HV97: 5.30538576e-13 | HW97: 5.30538576e-13 | HX97: 5.30538576e-13 | HY97: 5.30538576e-13 | HZ97: 5.30538576e-13 | IA97: 5.30538576e-13 | IB97: 5.30538576e-13 | IC97: 5.30538576e-13 | ID97: 5.30538576e-13 | IE97: 5.30538576e-13 | IF97: 5.30538576e-13 | IG97: 5.30538576e-13 | IH97: 5.30538576e-13 | II97: 5.30538576e-13 | IJ97: 5.30538576e-13 | IK97: 5.30538576e-13 | IL97: 5.30538576e-13 | IM97: 5.30538576e-13 | IN97: 5.30538576e-13 | IO97: 5.30538576e-13 | IP97: 5.30538576e-13 | IQ97: 5.30538576e-13 | IR97: 5.30538576e-13 | IS97: 5.30538576e-13 | IT97: 5.30538576e-13 | IU97: 5.30538576e-13 | IV97: 5.30538576e-13 | IW97: 5.30538576e-13 | IX97: 5.30538576e-13 | IY97: 5.30538576e-13 | IZ97: 5.30538576e-13 | JA97: 5.30538576e-13 | JB97: 5.30538576e-13 | JC97: 5.30538576e-13 | JD97: 5.30538576e-13 | JE97: =JE92*(1/$E$77) -> 5.30538576e-13 | JF97: 5.30538576e-13 | JG97: 5.30538576e-13 | JH97: 5.30538576e-13 | JI97: 5.30538576e-13 | JJ97: 5.30538576e-13 | JK97: 5.30538576e-13 | JL97: 5.30538576e-13 | JM97: 5.30538576e-13 | JN97: 5.30538576e-13 | JO97: 5.30538576e-13 | JP97: 5.30538576e-13 | JQ97: 5.30538576e-13 | JR97: 5.30538576e-13 | JS97: 5.30538576e-13 | JT97: 5.30538576e-13 | JU97: 5.30538576e-13 | JV97: 5.30538576e-13 | JW97: 5.30538576e-13 | JX97: 5.30538576e-13 | JY97: 5.30538576e-13 | JZ97: 5.30538576e-13 | KA97: 5.30538576e-13 | KB97: 5.30538576e-13 | KC97: 5.30538576e-13 | KD97: 5.30538576e-13 | KE97: 5.30538576e-13 | KF97: 5.30538576e-13 | KG97: 5.30538576e-13 | KH97: 5.30538576e-13 | KI97: 5.30538576e-13 | KJ97: 5.30538576e-13 | KK97: 5.30538576e-13 | KL97: 5.30538576e-13 | KM97: 5.30538576e-13 | KN97: 5.30538576e-13 | KO97: 5.30538576e-13 | KP97: 5.30538576e-13 | KQ97: 5.30538576e-13 | KR97: 5.30538576e-13 | KS97: 5.30538576e-13 | KT97: 5.30538576e-13 | KU97: 5.30538576e-13
D98: Total Modelled Depreciation | H98: =H97+H89 -> 0 | I98: =I97+I89 -> 0 | J98: 0 | K98: 0 | L98: 0 | M98: 0 | N98: 0 | O98: 0 | P98: 0 | Q98: 0 | R98: 0 | S98: 0 | T98: 0 | U98: 0 | V98: 0 | W98: 0 | X98: 155.9603479 | Y98: 179.3541432 | Z98: 206.2571096 | AA98: 237.195638 | AB98: 272.7750802 | AC98: 313.6915934 | AD98: 360.7457617 | AE98: 414.857626 | AF98: 477.0862699 | AG98: 548.6492103 | AH98: 630.9465919 | AI98: 725.5885807 | AJ98: 834.4268678 | AK98: 959.5908979 | AL98: 1103.529533 | AM98: 1269.058963 | AN98: 1459.417807 | AO98: 1532.388697 | AP98: 1340.661415 | AQ98: 1120.175041 | AR98: 866.6157105 | AS98: 575.0224805 | AT98: 239.690266 | AU98: 5.30538576e-13 | AV98: 5.30538576e-13 | AW98: 5.30538576e-13 | AX98: 5.30538576e-13 | AY98: 5.30538576e-13 | AZ98: 5.30538576e-13 | BA98: 5.30538576e-13 | BB98: 5.30538576e-13 | BC98: 5.30538576e-13 | BD98: 5.30538576e-13 | BE98: 5.30538576e-13 | BF98: 5.30538576e-13 | BG98: 5.30538576e-13 | BH98: 5.30538576e-13 | BI98: 5.30538576e-13 | BJ98: 5.30538576e-13 | BK98: 5.30538576e-13 | BL98: 5.30538576e-13 | BM98: 5.30538576e-13 | BN98: 5.30538576e-13 | BO98: 5.30538576e-13 | BP98: 5.30538576e-13 | BQ98: 5.30538576e-13 | BR98: 5.30538576e-13 | BS98: 5.30538576e-13 | BT98: 5.30538576e-13 | BU98: =BU97+BU89 -> 5.30538576e-13 | BV98: 5.30538576e-13 | BW98: 5.30538576e-13 | BX98: 5.30538576e-13 | BY98: 5.30538576e-13 | BZ98: 5.30538576e-13 | CA98: 5.30538576e-13 | CB98: 5.30538576e-13 | CC98: 5.30538576e-13 | CD98: 5.30538576e-13 | CE98: 5.30538576e-13 | CF98: 5.30538576e-13 | CG98: 5.30538576e-13 | CH98: 5.30538576e-13 | CI98: 5.30538576e-13 | CJ98: 5.30538576e-13 | CK98: 5.30538576e-13 | CL98: 5.30538576e-13 | CM98: 5.30538576e-13 | CN98: 5.30538576e-13 | CO98: 5.30538576e-13 | CP98: 5.30538576e-13 | CQ98: 5.30538576e-13 | CR98: 5.30538576e-13 | CS98: 5.30538576e-13 | CT98: 5.30538576e-13 | CU98: 5.30538576e-13 | CV98: 5.30538576e-13 | CW98: 5.30538576e-13 | CX98: 5.30538576e-13 | CY98: 5.30538576e-13 | CZ98: 5.30538576e-13 | DA98: 5.30538576e-13 | DB98: 5.30538576e-13 | DC98: 5.30538576e-13 | DD98: 5.30538576e-13 | DE98: 5.30538576e-13 | DF98: 5.30538576e-13 | DG98: 5.30538576e-13 | DH98: 5.30538576e-13 | DI98: 5.30538576e-13 | DJ98: 5.30538576e-13 | DK98: 5.30538576e-13 | DL98: 5.30538576e-13 | DM98: 5.30538576e-13 | DN98: 5.30538576e-13 | DO98: 5.30538576e-13 | DP98: 5.30538576e-13 | DQ98: 5.30538576e-13 | DR98: 5.30538576e-13 | DS98: 5.30538576e-13 | DT98: 5.30538576e-13 | DU98: 5.30538576e-13 | DV98: 5.30538576e-13 | DW98: 5.30538576e-13 | DX98: 5.30538576e-13 | DY98: 5.30538576e-13 | DZ98: 5.30538576e-13 | EA98: 5.30538576e-13 | EB98: 5.30538576e-13 | EC98: 5.30538576e-13 | ED98: 5.30538576e-13 | EE98: 5.30538576e-13 | EF98: 5.30538576e-13 | EG98: =EG97+EG89 -> 5.30538576e-13 | EH98: 5.30538576e-13 | EI98: 5.30538576e-13 | EJ98: 5.30538576e-13 | EK98: 5.30538576e-13 | EL98: 5.30538576e-13 | EM98: 5.30538576e-13 | EN98: 5.30538576e-13 | EO98: 5.30538576e-13 | EP98: 5.30538576e-13 | EQ98: 5.30538576e-13 | ER98: 5.30538576e-13 | ES98: 5.30538576e-13 | ET98: 5.30538576e-13 | EU98: 5.30538576e-13 | EV98: 5.30538576e-13 | EW98: 5.30538576e-13 | EX98: 5.30538576e-13 | EY98: 5.30538576e-13 | EZ98: 5.30538576e-13 | FA98: 5.30538576e-13 | FB98: 5.30538576e-13 | FC98: 5.30538576e-13 | FD98: 5.30538576e-13 | FE98: 5.30538576e-13 | FF98: 5.30538576e-13 | FG98: 5.30538576e-13 | FH98: 5.30538576e-13 | FI98: 5.30538576e-13 | FJ98: 5.30538576e-13 | FK98: 5.30538576e-13 | FL98: 5.30538576e-13 | FM98: 5.30538576e-13 | FN98: 5.30538576e-13 | FO98: 5.30538576e-13 | FP98: 5.30538576e-13 | FQ98: 5.30538576e-13 | FR98: 5.30538576e-13 | FS98: 5.30538576e-13 | FT98: 5.30538576e-13 | FU98: 5.30538576e-13 | FV98: 5.30538576e-13 | FW98: 5.30538576e-13 | FX98: 5.30538576e-13 | FY98: 5.30538576e-13 | FZ98: 5.30538576e-13 | GA98: 5.30538576e-13 | GB98: 5.30538576e-13 | GC98: 5.30538576e-13 | GD98: 5.30538576e-13 | GE98: 5.30538576e-13 | GF98: 5.30538576e-13 | GG98: 5.30538576e-13 | GH98: 5.30538576e-13 | GI98: 5.30538576e-13 | GJ98: 5.30538576e-13 | GK98: 5.30538576e-13 | GL98: 5.30538576e-13 | GM98: 5.30538576e-13 | GN98: 5.30538576e-13 | GO98: 5.30538576e-13 | GP98: 5.30538576e-13 | GQ98: 5.30538576e-13 | GR98: 5.30538576e-13 | GS98: =GS97+GS89 -> 5.30538576e-13 | GT98: 5.30538576e-13 | GU98: 5.30538576e-13 | GV98: 5.30538576e-13 | GW98: 5.30538576e-13 | GX98: 5.30538576e-13 | GY98: 5.30538576e-13 | GZ98: 5.30538576e-13 | HA98: 5.30538576e-13 | HB98: 5.30538576e-13 | HC98: 5.30538576e-13 | HD98: 5.30538576e-13 | HE98: 5.30538576e-13 | HF98: 5.30538576e-13 | HG98: 5.30538576e-13 | HH98: 5.30538576e-13 | HI98: 5.30538576e-13 | HJ98: 5.30538576e-13 | HK98: 5.30538576e-13 | HL98: 5.30538576e-13 | HM98: 5.30538576e-13 | HN98: 5.30538576e-13 | HO98: 5.30538576e-13 | HP98: 5.30538576e-13 | HQ98: 5.30538576e-13 | HR98: 5.30538576e-13 | HS98: 5.30538576e-13 | HT98: 5.30538576e-13 | HU98: 5.30538576e-13 | HV98: 5.30538576e-13 | HW98: 5.30538576e-13 | HX98: 5.30538576e-13 | HY98: 5.30538576e-13 | HZ98: 5.30538576e-13 | IA98: 5.30538576e-13 | IB98: 5.30538576e-13 | IC98: 5.30538576e-13 | ID98: 5.30538576e-13 | IE98: 5.30538576e-13 | IF98: 5.30538576e-13 | IG98: 5.30538576e-13 | IH98: 5.30538576e-13 | II98: 5.30538576e-13 | IJ98: 5.30538576e-13 | IK98: 5.30538576e-13 | IL98: 5.30538576e-13 | IM98: 5.30538576e-13 | IN98: 5.30538576e-13 | IO98: 5.30538576e-13 | IP98: 5.30538576e-13 | IQ98: 5.30538576e-13 | IR98: 5.30538576e-13 | IS98: 5.30538576e-13 | IT98: 5.30538576e-13 | IU98: 5.30538576e-13 | IV98: 5.30538576e-13 | IW98: 5.30538576e-13 | IX98: 5.30538576e-13 | IY98: 5.30538576e-13 | IZ98: 5.30538576e-13 | JA98: 5.30538576e-13 | JB98: 5.30538576e-13 | JC98: 5.30538576e-13 | JD98: 5.30538576e-13 | JE98: =JE97+JE89 -> 5.30538576e-13 | JF98: 5.30538576e-13 | JG98: 5.30538576e-13 | JH98: 5.30538576e-13 | JI98: 5.30538576e-13 | JJ98: 5.30538576e-13 | JK98: 5.30538576e-13 | JL98: 5.30538576e-13 | JM98: 5.30538576e-13 | JN98: 5.30538576e-13 | JO98: 5.30538576e-13 | JP98: 5.30538576e-13 | JQ98: 5.30538576e-13 | JR98: 5.30538576e-13 | JS98: 5.30538576e-13 | JT98: 5.30538576e-13 | JU98: 5.30538576e-13 | JV98: 5.30538576e-13 | JW98: 5.30538576e-13 | JX98: 5.30538576e-13 | JY98: 5.30538576e-13 | JZ98: 5.30538576e-13 | KA98: 5.30538576e-13 | KB98: 5.30538576e-13 | KC98: 5.30538576e-13 | KD98: 5.30538576e-13 | KE98: 5.30538576e-13 | KF98: 5.30538576e-13 | KG98: 5.30538576e-13 | KH98: 5.30538576e-13 | KI98: 5.30538576e-13 | KJ98: 5.30538576e-13 | KK98: 5.30538576e-13 | KL98: 5.30538576e-13 | KM98: 5.30538576e-13 | KN98: 5.30538576e-13 | KO98: 5.30538576e-13 | KP98: 5.30538576e-13 | KQ98: 5.30538576e-13 | KR98: 5.30538576e-13 | KS98: 5.30538576e-13 | KT98: 5.30538576e-13 | KU98: 5.30538576e-13
D100: Theoretical Depreciation | H100: =H43 -> 16.66666667 | I100: 19.16666667 | J100: 22.04166667 | K100: 25.34791667 | L100: 29.15010417 | M100: 33.52261979 | N100: 38.55101276 | O100: 44.33366467 | P100: 50.98371438 | Q100: 58.63127153 | R100: 67.42596226 | S100: 77.5398566 | T100: 89.17083509 | U100: 102.5464604 | V100: 117.9284294 | W100: 135.6176938 | X100: 155.9603479 | Y100: 179.3544001 | Z100: 206.2575601 | AA100: 237.1961941 | AB100: 272.7756232 | AC100: 313.6919667 | AD100: 360.7457617 | AE100: 414.857626 | AF100: 477.0862699 | AG100: 548.6492103 | AH100: 630.9465919 | AI100: 725.5885807 | AJ100: 834.4268678 | AK100: 959.5908979 | AL100: 1103.529533 | AM100: 1269.058963 | AN100: 1459.417807 | AO100: 1532.388697 | AP100: 1609.008132 | AQ100: 1689.458539 | AR100: 1773.931466 | AS100: 1862.628039 | AT100: 1955.759441 | AU100: 2053.547413 | AV100: 2156.224784 | AW100: 2264.036023 | AX100: 2377.237824 | AY100: 2496.099715 | AZ100: 2620.904701 | BA100: 2751.949936 | BB100: 2889.547433 | BC100: 3034.024804 | BD100: 3185.726044 | BE100: 3345.012347 | BF100: 3512.262964 | BG100: 3687.876112 | BH100: 3872.269918 | BI100: 4065.883414 | BJ100: 4269.177584 | BK100: 4482.636464 | BL100: 4706.768287 | BM100: 4942.106701 | BN100: 5189.212036 | BO100: 5448.672638 | BP100: 5721.10627 | BQ100: 6007.161583 | BR100: 6307.519663 | BS100: 6622.895646 | BT100: =BT43 -> 6954.040428 | BU100: 7301.742449 | BV100: 7666.829572 | BW100: 8050.17105 | BX100: 8452.679603 | BY100: 8875.313583 | BZ100: 9319.079262 | CA100: 9785.033225 | CB100: 10274.28489 | CC100: 10787.99913 | CD100: 11327.39909 | CE100: 11893.76904 | CF100: 12488.45749 | CG100: 13112.88037 | CH100: 13768.52439 | CI100: 14456.95061 | CJ100: 15179.79814 | CK100: 15938.78804 | CL100: 16735.72745 | CM100: 17572.51382 | CN100: 18451.13951 | CO100: 19373.69648 | CP100: 20342.38131 | CQ100: 21359.50037 | CR100: 22427.47539 | CS100: 23548.84916 | CT100: 24726.29162 | CU100: 25962.6062 | CV100: 27260.73651 | CW100: 28623.77334 | CX100: 30054.962 | CY100: 31557.7101 | CZ100: 33135.59561 | DA100: 34792.37539 | DB100: 36531.99416 | DC100: 38358.59387 | DD100: 40276.52356 | DE100: 42290.34974 | DF100: 44404.86723 | DG100: 46625.11059 | DH100: 48956.36612 | DI100: 51404.18442 | DJ100: 53974.39364 | DK100: 56673.11333 | DL100: 59506.76899 | DM100: 62482.10744 | DN100: 65606.21281 | DO100: 68886.52345 | DP100: 72330.84963 | DQ100: 75947.39211 | DR100: 79744.76171 | DS100: 83731.9998 | DT100: 87918.59979 | DU100: 92314.52978 | DV100: 96930.25627 | DW100: 101776.7691 | DX100: 106865.6075 | DY100: 112208.8879 | DZ100: 117819.3323 | EA100: 123710.2989 | EB100: 129895.8139 | EC100: 136390.6046 | ED100: 143210.1348 | EE100: 150370.6415 | EF100: =EF43 -> 157889.1736 | EG100: 165783.6323 | EH100: 174072.8139 | EI100: 182776.4546 | EJ100: 191915.2773 | EK100: 201511.0412 | EL100: 211586.5933 | EM100: 222165.9229 | EN100: 233274.2191 | EO100: 244937.93 | EP100: 257184.8265 | EQ100: 270044.0678 | ER100: 283546.2712 | ES100: 297723.5848 | ET100: 312609.764 | EU100: 328240.2522 | EV100: 344652.2649 | EW100: 361884.8781 | EX100: 379979.122 | EY100: 398978.0781 | EZ100: 418926.982 | FA100: 439873.3311 | FB100: 461866.9977 | FC100: 484960.3475 | FD100: 509208.3649 | FE100: 534668.7832 | FF100: 561402.2223 | FG100: 589472.3334 | FH100: 618945.9501 | FI100: 649893.2476 | FJ100: 682387.91 | FK100: 716507.3055 | FL100: 752332.6708 | FM100: 789949.3043 | FN100: 829446.7695 | FO100: 870919.108 | FP100: 914465.0634 | FQ100: 960188.3166 | FR100: 1008197.732 | FS100: 1058607.619 | FT100: 1111538 | FU100: 1167114.9 | FV100: 1225470.645 | FW100: 1286744.177 | FX100: 1351081.386 | FY100: 1418635.455 | FZ100: 1489567.228 | GA100: 1564045.59 | GB100: 1642247.869 | GC100: 1724360.262 | GD100: 1810578.276 | GE100: 1901107.189 | GF100: 1996162.549 | GG100: 2095970.676 | GH100: 2200769.21 | GI100: 2310807.671 | GJ100: 2426348.054 | GK100: 2547665.457 | GL100: 2675048.73 | GM100: 2808801.166 | GN100: 2949241.224 | GO100: 3096703.286 | GP100: 3251538.45 | GQ100: 3414115.373 | GR100: =GR43 -> 3584821.141 | GS100: 3764062.198 | GT100: 3952265.308 | GU100: 4149878.574 | GV100: 4357372.502 | GW100: 4575241.127 | GX100: 4804003.184 | GY100: 5044203.343 | GZ100: 5296413.51 | HA100: 5561234.185 | HB100: 5839295.895 | HC100: 6131260.689 | HD100: 6437823.724 | HE100: 6759714.91 | HF100: 7097700.656 | HG100: 7452585.688 | HH100: 7825214.973 | HI100: 8216475.722 | HJ100: 8627299.508 | HK100: 9058664.483 | HL100: 9511597.707 | HM100: 9987177.592 | HN100: 10486536.47 | HO100: 11010863.3 | HP100: 11561406.46 | HQ100: 12139476.78 | HR100: 12746450.62 | HS100: 13383773.15 | HT100: 14052961.81 | HU100: 14755609.9 | HV100: 15493390.4 | HW100: 16268059.92 | HX100: 17081462.91 | HY100: 17935536.06 | HZ100: 18832312.86 | IA100: 19773928.5 | IB100: 20762624.93 | IC100: 21800756.18 | ID100: 22890793.99 | IE100: 24035333.68 | IF100: 25237100.37 | IG100: 26498955.39 | IH100: 27823903.16 | II100: 29215098.31 | IJ100: 30675853.23 | IK100: 32209645.89 | IL100: 33820128.19 | IM100: 35511134.6 | IN100: 37286691.32 | IO100: 39151025.89 | IP100: 41108577.19 | IQ100: 43164006.05 | IR100: 45322206.35 | IS100: 47588316.66 | IT100: 49967732.5 | IU100: 52466119.12 | IV100: 55089425.08 | IW100: 57843896.33 | IX100: 60736091.15 | IY100: 63772895.71 | IZ100: 66961540.49 | JA100: 70309617.52 | JB100: 73825098.39 | JC100: 77516353.31 | JD100: =JD43 -> 81392170.98 | JE100: 85461779.53 | JF100: 89734868.5 | JG100: 94221611.93 | JH100: 98932692.53 | JI100: 103879327.2 | JJ100: 109073293.5 | JK100: 114526958.2 | JL100: 120253306.1 | JM100: 126265971.4 | JN100: 132579270 | JO100: 139208233.5 | JP100: 146168645.1 | JQ100: 153477077.4 | JR100: 161150931.3 | JS100: 169208477.8 | JT100: 177668901.7 | JU100: 186552346.8 | JV100: 195879964.1 | JW100: 205673962.4 | JX100: 215957660.5 | JY100: 226755543.5 | JZ100: 238093320.7 | KA100: 249997986.7 | KB100: 262497886 | KC100: 275622780.3 | KD100: 289403919.4 | KE100: 303874115.3 | KF100: 319067821.1 | KG100: 335021212.1 | KH100: 351772272.8 | KI100: 369360886.4 | KJ100: 387828930.7 | KK100: 407220377.2 | KL100: 427581396.1 | KM100: 448960465.9 | KN100: 471408489.2 | KO100: 494978913.7 | KP100: 519727859.4 | KQ100: 545714252.3 | KR100: 572999964.9 | KS100: 601649963.2 | KT100: 631732461.3 | KU100: 663319084.4
C102: Period | F102: na | G102: =MATCH(TRUE,FALSE) ->  | H102: =IF(H4,H2,na) ->  | X102: 17 | Y102: 18 | Z102: 19 | AA102: 20 | AB102: 21 | AC102: 22 | AD102: 23 | AE102: 24 | AF102: 25 | AG102: 26 | AH102: 27 | AI102: 28 | AJ102: 29 | AK102: 30 | AL102: 31 | AM102: 32 | AN102: 33 | BT102: =IF(BT4,BT2,na) ->  | EF102: =IF(EF4,EF2,na) ->  | GR102: =IF(GR4,GR2,na) ->  | JD102: =IF(JD4,JD2,na) -> 
D103: Acual Depreciation | H103: =IF(H102,H43) ->  | X103: 155.9603479 | Y103: 179.3544001 | Z103: 206.2575601 | AA103: 237.1961941 | AB103: 272.7756232 | AC103: 313.6919667 | AD103: 360.7457617 | AE103: 414.857626 | AF103: 477.0862699 | AG103: 548.6492103 | AH103: 630.9465919 | AI103: 725.5885807 | AJ103: 834.4268678 | AK103: 959.5908979 | AL103: 1103.529533 | AM103: 1269.058963 | AN103: 1459.417807 | BT103: =IF(BT102,BT43) ->  | EF103: =IF(EF102,EF43) ->  | GR103: =IF(GR102,GR43) ->  | JD103: =IF(JD102,JD43) -> 
D104: Modelled Depreciation | H104: =IF(H102,H98) ->  | I104: =IF(I102,I98) ->  | X104: 155.9603479 | Y104: 179.3541432 | Z104: 206.2571096 | AA104: 237.195638 | AB104: 272.7750802 | AC104: 313.6915934 | AD104: 360.7457617 | AE104: 414.857626 | AF104: 477.0862699 | AG104: 548.6492103 | AH104: 630.9465919 | AI104: 725.5885807 | AJ104: 834.4268678 | AK104: 959.5908979 | AL104: 1103.529533 | AM104: 1269.058963 | AN104: 1459.417807 | BU104: =IF(BU102,BU98) ->  | EG104: =IF(EG102,EG98) ->  | GS104: =IF(GS102,GS98) ->  | JE104: =IF(JE102,JE98) -> 
C106: Period | H106: =H102 ->  | I106: =I102 ->  | X106: 17 | Y106: 18 | Z106: 19 | AA106: 20 | AB106: 21 | AC106: 22 | AD106: 23 | AE106: 24 | AF106: 25 | AG106: 26 | AH106: 27 | AI106: 28 | AJ106: 29 | AK106: 30 | AL106: 31 | AM106: 32 | AN106: 33 | BU106: =BU102 ->  | EG106: =EG102 ->  | GS106: =GS102 ->  | JE106: =JE102 -> 
D107: Percent Difference | H107: =H104/H103-1 ->  | I107: =I104/I103-1 ->  | X107: 0 | Y107: -1.432150598e-06 | Z107: -2.184128849e-06 | AA107: -2.344654341e-06 | AB107: -1.99087653e-06 | AC107: -1.189880906e-06 | AD107: -2.67663669e-12 | AE107: -3.784750291e-12 | AF107: -3.29092309e-12 | AG107: -2.861599846e-12 | AH107: -2.488342865e-12 | AI107: -2.163935697e-12 | AJ107: -1.88149496e-12 | AK107: -1.636246694e-12 | AL107: -1.422750806e-12 | AM107: -1.237010494e-12 | AN107: -1.075584066e-12 | BU107: =BU104/BU103-1 ->  | EG107: =EG104/EG103-1 ->  | GS107: =GS104/GS103-1 ->  | JE107: =JE104/JE103-1 -> 

Sheet Summary
G3: Capital Ratios | K3: Historic | L3: Modelled | M3: Long-term
A4: Periods | C4: Period | D4: Growth
B5: Historic Period | C5: ='Theoretical Depreciation'!E12 -> 16 | D5: ='Theoretical Depreciation'!F12 -> 0.15 | E5: 12 | G5: Accumulated Depreciation to Net Plant | K5: ='Theoretical Depreciation'!L11 -> 0.3495340634 | L5: ='Theoretical Depreciation'!M11 -> 0.3828207077 | M5: ='Theoretical Depreciation'!N11 -> 0.4126332132
B6: Modelled Period | C6: ='Theoretical Depreciation'!E13 -> 17 | D6: ='Theoretical Depreciation'!F13 -> 0.15 | G6: Net Plant Depreciation Rate | K6: ='Theoretical Depreciation'!L12 -> 0.2562267243 | L6: ='Theoretical Depreciation'!M12 -> 0.2562257671 | M6: ='Theoretical Depreciation'!N12 -> 0.2745671825
B7: Long-term Period | D7: ='Theoretical Depreciation'!F14 -> 0.05 | G7: Gross Plant Depreciation Rate | K7: ='Theoretical Depreciation'!L17 -> 0.1666666667 | L7: ='Theoretical Depreciation'!M17 -> 0.1666666667 | M7: ='Theoretical Depreciation'!N17 -> 0.1666666667
G8: Capital Expenditures to Depreciation | K8: ='Theoretical Depreciation'!L13 -> 1.585421439 | L8: ='Theoretical Depreciation'!M13 -> 0.9854214394 | M8: ='Theoretical Depreciation'!N13 -> 0.8821048555
B9: Asset Life | C9: ='Theoretical Depreciation'!E17 -> 6 | G9: Retirements as Percent of Depreciation | K9: ='Theoretical Depreciation'!L14 -> 0.6854214394 | L9: ='Theoretical Depreciation'!M14 -> 0.6854214394 | M9: ='Theoretical Depreciation'!N14 -> 0.8821048555
G10: Retirements as Percent of Gross Plant | K10: ='Theoretical Depreciation'!L15 -> 0.09933644049 | L10: ='Theoretical Depreciation'!M15 -> 0.1087970539 | M10: ='Theoretical Depreciation'!N15 -> 0.1470174759
G11: Retirements as Percent of Net Plant | K11: ='Theoretical Depreciation'!L16 -> 0.1527158225 | L11: ='Theoretical Depreciation'!M16 -> 0.1762811151 | M11: ='Theoretical Depreciation'!N16 -> 0.2502992665

Sheet Sheet3
